Workbook

Sheet Profile
A1: STARTING WELL : WEST SUSSEX HEALTHY CHILDREN & FAMILY CENTRE PROFILE November 2014
D2: This data profile provides information on progress on health and other performance indicators. It has been developed to support the performance management of the West Sussex Healthy Children and Family Centre programme, and Ofsted inspection requirements.
D4: The information collated forms part of the West Sussex Joint Strategic Needs Assessment.
D5: The profile enables you to look at individual children and family centres, or groups of centres, and to compare the performance of two different centres/groups at a time. Note: not all data are available at all geographies
B6: Select Centre / Group | L6: Select by choosing from the drop down list
B7: Select Comparator Centre / Group | L7: Select by choosing from the drop down list
A17: The data has been collated by the West Sussex Research Unit working with colleagues in the NHS and West Sussex County Council. It will be updated on a six monthly basis. The inclusion of further indicators, some outlined in this profile, will be considered at the next refresh.
A18: If you need further information please email jsna@westsussex.gov.uk
A19: Date | B19: November 2014 | H19: Next update due | J19: October 2015
A20: INFORMATION IN THIS PROFILE
A21: Note | B21: Where possible data are provided at individual centre level, but where the information is not available, or where numbers are very small, information is shown for a group of centres or larger geographical area. Regional and national figures are included where available.
B22: 95% confidence intervals are shown and should be used when making comparisons. Where confidence intervals overlap, it is not possible to say that a difference is statistically significant. In the main, siginificance relates to whether an area is significantly different in comparison to England averages.
B23: There are some brief notes included on statistical issues; a more detailed technical appendix is available.
A24: WEST SUSSEX HEALTHY CHILDREN AND FAMILY CENTRE PROGRAMME
A25: The West Sussex Healthy Children and Family Centre Programme has nine priorities, these are:
A26: • Healthy weight, healthy lives (breastfeeding, healthy eating and physical activity)
A27: • Improving the oral health of children
A28: • Improving children’s emotional health and well-being and adult mental health
A29: • Improving children’s speech, language and communication
A30: • Reducing teenage pregnancy rates and supporting teenage parents
A31: • Reducing alcohol and substance misuse
A32: • Increasing smoking cessation
A33: • Improving cover rate for all childhood immunisations
A34: • Reducing unintentional injuries to children and risk of sudden infant death.
A35: KEY PERFORMANCE INDICATORS (OFSTED)
A36: • Percentage of children being breastfed at six to eight weeks
A37: • Percentage of children in reception year who are obese
A38: • Rate of emergency hospital admissions caused by unintentional and deliberate injuries to children and young people
A39: • The achievement of children who have accessed services provided or commissioned by the centre, shown by the percentage of children gaining at least 78 points across the Early Years Foundation Stage Profile scales with at least six points in each of the
A40: • Percentage of children aged 0–4 living in households dependent on workless benefits
A41: • Percentage of eligible families benefiting from the childcare element of Working Tax Credit
A42: The following indicators rely on information collected / available at each centre.
A43: • Percentage of each of the following target groups in the children’s centre reach area and with whom the children’s centre establishes contact: teenage parents and pregnant teenagers, lone parents, children in workless households, children in minority ethnic groups, disabled children and children of disabled parents, fathers, other groups that are priority vulnerable groups in the children’s centre area
A44: • Any evidence on the percentage of parents of children aged 0–5 in the children’s centre area who are satisfied with the services
A45: CONTENTS
A46: CLICK ON SUBJECT TO GO TO THE DATA. Not all data available at all geographies.
B48: Background Data | F48: Family Structure and Composition | K48: Health indicators
C49: Geographies | G49: Family size (families with a 0-4 yr old) | L49: Breastfeeding (at CFC level)
C50: Overall population | G50: Couple/non-couple households (with 0-4yrs) | L50: Breastfeeding (CCG DoH published data)
C51: Population of 0-4 year olds | G51: Census 2011 data - lone parents | L51: Childhood obesity (reception)
C52: Ethnicity - 0-4 year olds | G52: Lone parent families on low income | L52: Childhood obesity (Year 6)
C53: Proficiency in English (relates to 3-15yr olds) | L53: Oral Health
C54: Tenure (relates to 0-9 yr olds) | L54: Mental health
L55: Identification of Post Natal Depression
B56: Births and Early Health Status | F56: Deprivation | L56: Smoking in pregnancy/in new born households
C57: Births | G57: ID2010 Deprivation decile (location of CFC) | L57: Immunisations
C58: Births to women aged under 20 years | G58: Census 2011 % of households 3/4 measures
C59: Estimation of teenage mothers in area | G59: 0-4yr olds in workless households | K59: Early Years Foundation Stage Measures
C60: Teenage pregnancy | G60: Child Poverty | L60: % of Children "Good Level of Development"
C61: Low birth weight | L61: Gap between lowest scores and median score
C62: 0-4 yrs with daily activities limited
A64: BACKGROUND INFORMATION | O64: back to top
A65: Geographies - CHILDREN AND FAMILY CENTRES ONLY
A66: This page provides information on the location of the children and family centre and the population it serves.
A67: - CFC Group - Children and Family Centres (CFCs) in West Sussex are aggregated into 12 CFC groups.
A68: - Education LOCALITY area refers to groupings established for schools in West Sussex. There are 24 locality groups in West Sussex
A69: - Education PARTNERSHIP AREAS - there are 5 Partnership areas in West Sussex
A70: Other geographies (CFC Groups, LAs etc) cover numerous geographies fields are left blank.
A71: Centre location and grouping. | D71: =HLOOKUP(DATA!$A$2,DATA!$A$2:$A$77,DATA!$A$1+1,FALSE) -> Kingston Buci | J71: =HLOOKUP(DATA!$A$2,DATA!$A$2:$A$77,DATA!$B$1+1,FALSE) -> Stepping Stones
D72: CFC Group | F72: Ward(s) Located | H72: District | J72: CFC Group | L72: Ward(s) Located | N72: District
D73: =VLOOKUP($D$71,DATA!$A$3:$K$69,4,FALSE) -> Adur East | F73: =VLOOKUP($D$71,DATA!$A$3:$K$69,7,FALSE) -> Buckingham, St Mary's, St Nicolas, Southlands | H73: =VLOOKUP($D$71,DATA!$A$3:$K$69,5,FALSE) -> Adur | J73: =VLOOKUP($J$71,DATA!$A$3:$K$69,4,FALSE) -> Adur East | L73: =VLOOKUP($J$71,DATA!$A$3:$K$69,7,FALSE) -> Eastbrook, Hillside, Southwich Green | N73: =VLOOKUP($J$71,DATA!$A$3:$K$69,5,FALSE) -> Adur
A74: EDUCATION Locality Name | D74: =VLOOKUP($D$71,DATA!$A$3:$K$69,8,FALSE) -> Shoreham | J74: =VLOOKUP($J$71,DATA!$A$3:$K$69,8,FALSE) -> Shoreham
A75: EDUCATION Partnership Area | D75: =VLOOKUP($D$71,DATA!$A$3:$K$69,9,FALSE) -> B | J75: =VLOOKUP($J$71,DATA!$A$3:$K$69,9,FALSE) -> B
A76: CCG | D76: =VLOOKUP($D$71,DATA!$A$3:$K$69,10,FALSE) -> Coastal West Sussex | J76: =VLOOKUP($J$71,DATA!$A$3:$K$69,10,FALSE) -> Coastal West Sussex
A77: Parliamentary Constituency | D77: =VLOOKUP($D$71,DATA!$A$3:$K$69,11,FALSE) -> East Worthing and Shoreham | J77: =VLOOKUP($J$71,DATA!$A$3:$K$69,11,FALSE) -> East Worthing and Shoreham
A78: Population | O78: back to top
A79: Source: ONS Mid Year Estimates 2013 | F79: =$D$71 -> Kingston Buci | H79: =$J$71 -> Stepping Stones | J79: West Sussex | L79: South East | N79: England
A80: Population (2013) | F80: =HLOOKUP($A80,_cfc1,DATA!A$1+1,FALSE) -> 15185 | H80: =HLOOKUP($A80,_cfc1,DATA!B$1+1,FALSE) -> 13390 | J80: 821400 | L80: 8792600 | N80: 53865800
A81: Under 5 (2013) | F81: =HLOOKUP($A81,_cfc1,DATA!A$1+1,FALSE) -> 990 | H81: =HLOOKUP($A81,_cfc1,DATA!B$1+1,FALSE) -> 830 | J81: 47800 | L81: 547500 | N81: 3414100
A82: Population of Children 0-4
A83: Source: ONS Small Area Population Statistics (Experimental Stats) | D83: =$D$71 -> Kingston Buci | F83: =$J$71 -> Stepping Stones
D84: =$D$71 -> Kingston Buci | F84: =$J$71 -> Stepping Stones
A85: Under 5 (2004) | D85: =HLOOKUP(A85,cfc,DATA!A$1+1,FALSE) -> 770 | F85: =HLOOKUP(A85,cfc,DATA!B$1+1,FALSE) -> 700
A86: Under 5 (2005) | D86: =HLOOKUP(A86,cfc,DATA!A$1+1,FALSE) -> 775 | F86: =HLOOKUP(A86,cfc,DATA!B$1+1,FALSE) -> 680
A87: Under 5 (2006) | D87: =HLOOKUP(A87,cfc,DATA!A$1+1,FALSE) -> 805 | F87: =HLOOKUP(A87,cfc,DATA!B$1+1,FALSE) -> 705
A88: Under 5 (2007) | D88: =HLOOKUP(A88,cfc,DATA!A$1+1,FALSE) -> 800 | F88: =HLOOKUP(A88,cfc,DATA!B$1+1,FALSE) -> 710
A89: Under 5 (2008) | D89: =HLOOKUP(A89,cfc,DATA!A$1+1,FALSE) -> 830 | F89: =HLOOKUP(A89,cfc,DATA!B$1+1,FALSE) -> 735
A90: Under 5 (2009) | D90: =HLOOKUP(A90,cfc,DATA!A$1+1,FALSE) -> 815 | F90: =HLOOKUP(A90,cfc,DATA!B$1+1,FALSE) -> 775
A91: Under 5 (2010) | D91: =HLOOKUP(A91,cfc,DATA!A$1+1,FALSE) -> 860 | F91: =HLOOKUP(A91,cfc,DATA!B$1+1,FALSE) -> 775
A92: Under 5 (2011) | D92: =HLOOKUP(A92,cfc,DATA!A$1+1,FALSE) -> 905 | F92: =HLOOKUP(A92,cfc,DATA!B$1+1,FALSE) -> 805
A93: Under 5 (2012) | D93: =HLOOKUP(A93,cfc,DATA!A$1+1,FALSE) -> 945 | F93: =HLOOKUP(A93,cfc,DATA!B$1+1,FALSE) -> 825
A94: Under 5 (2013) | D94: =HLOOKUP(A94,cfc,DATA!A$1+1,FALSE) -> 990 | F94: =HLOOKUP(A94,cfc,DATA!B$1+1,FALSE) -> 830
A95: Ethnic Composition | O95: back to top
A96: Data is for children aged 0-4 years and is taken from the 2011 Census.
A97: Source: 2011 Census | D97: =$D$71 -> Kingston Buci | F97: =$J$71 -> Stepping Stones | H97: West Sussex
A98: % White British | D98: =HLOOKUP(A98,cfc,DATA!A1+1,FALSE) -> 0.899103139 | F98: =HLOOKUP(A98,cfc,DATA!B$1+1,FALSE) -> 0.8893034826 | H98: 0.836
A99: % White Irish and White Other | D99: =HLOOKUP(A99,cfc,DATA!A1+1,FALSE) -> 0.02130044843 | F99: =HLOOKUP(A99,cfc,DATA!B$1+1,FALSE) -> 0.01865671642 | H99: 0.044
A100: % Mixed/Multiple | D100: =HLOOKUP(A100,cfc,DATA!A$1+1,FALSE) -> 0.04708520179 | F100: =HLOOKUP(A100,cfc,DATA!B$1+1,FALSE) -> 0.03358208955 | H100: 0.047
A101: % Asian | D101: =HLOOKUP(A101,cfc,DATA!A$1+1,FALSE) -> 0.02802690583 | F101: =HLOOKUP(A101,cfc,DATA!B$1+1,FALSE) -> 0.03109452736 | H101: 0.055
A102: % Black | D102: =HLOOKUP(A102,cfc,DATA!A$1+1,FALSE) -> 0 | F102: =HLOOKUP(A102,cfc,DATA!B$1+1,FALSE) -> 0.007462686567 | H102: 0.013
A103: % Other | D103: =HLOOKUP(A103,cfc,DATA!A$1+1,FALSE) -> 0.004484304933 | F103: =HLOOKUP(A103,cfc,DATA!B$1+1,FALSE) -> 0.01990049751 | H103: 0.005
A104: % BAME (Under 5) | D104: =D99+D100+D101+D102+D103 -> 0.100896861 | F104: =F99+F100+F101+F102+F103 -> 0.1106965174 | H104: 0.165
A105: * BAME (Black Asian and Ethnic Minority) includes White Irish and White Other and Other. This data relates to children aged under 5 only.
A106: Proficiency in English (Children 3 to 15 Years) Source Census 2011
A107: Source: 2011 Census | H107: =$D$71 -> Kingston Buci | J107: =$J$71 -> Stepping Stones | L107: West Sussex | N107: England
A108: Proficiency in English | G108: Proficiency in English 2011 | H108: =HLOOKUP($G108,cfc,DATA!$A$1+1,FALSE) -> 2048 | J108: =HLOOKUP($G108,cfc,DATA!B$1+1,FALSE) -> 2004 | L108: =DATA!FT75 -> 117072 | N108: =DATA!FT77 -> 8015990
A109: Main language is English | G109: 3-15 Main language is English 2011 | H109: =HLOOKUP($G109,cfc,DATA!$A$1+1,FALSE) -> 2022 | J109: =HLOOKUP($G109,cfc,DATA!B$1+1,FALSE) -> 1951 | L109: =DATA!FU75 -> 113395 | N109: =DATA!FU77 -> 7549840
A110: Main language is not English | G110: 3-15 Main language is not English 2011 | H110: =HLOOKUP($G110,cfc,DATA!$A$1+1,FALSE) -> 26 | J110: =HLOOKUP($G110,cfc,DATA!B$1+1,FALSE) -> 53 | L110: =DATA!FV75 -> 3677 | N110: =DATA!FV77 -> 466150
A111: Main language is not English but can speak English well or very well | G111: 3-15 Main language is not English : Can speak English very well or well 2011 | H111: =HLOOKUP($G111,cfc,DATA!$A$1+1,FALSE) -> 22 | J111: =HLOOKUP($G111,cfc,DATA!B$1+1,FALSE) -> 51 | L111: =DATA!FW75 -> 3091 | N111: =DATA!FW77 -> 390060
A112: Main language is not English and cannot speak it or speak it well | G112: 3-15 Main language is not English : Cannot speak English or cannot speak English well 2011 | H112: =HLOOKUP($G112,cfc,DATA!$A$1+1,FALSE) -> 4 | J112: =HLOOKUP($G112,cfc,DATA!B$1+1,FALSE) -> 2 | L112: =DATA!FX75 -> 586 | N112: =DATA!FX77 -> 76090
A113: Households - Tenure of Households with a Child aged 0-9 Years
A114: Source: 2011 Census | D114: =$D$71 -> Kingston Buci | G114: =$J$71 -> Stepping Stones | J114: West Sussex | L114: South East | N114: England
D115: Households | F115: % | G115: Households | I115: % | J115: % of Households
A116: Households with a child aged 0-9 years | D116: =HLOOKUP(A116,cfc,DATA!A1+1,FALSE) -> 1660 | F116: 1 | G116: =HLOOKUP(A116,cfc,DATA!B$1+1,FALSE) -> 1550 | I116: 1
A117: % Owned | D117: =HLOOKUP($A117,cfc,DATA!A$1+1,FALSE) -> 0.5997588909 | G117: =HLOOKUP($A117,cfc,DATA!B$1+1,FALSE) -> 0.5919948354 | J117: 0.622 | L117: 0.601 | N117: 0.552
A118: % Social Rented | D118: =HLOOKUP($A118,cfc,DATA!A$1+1,FALSE) -> 0.2025316456 | G118: =HLOOKUP($A118,cfc,DATA!B$1+1,FALSE) -> 0.2078760491 | J118: 0.173 | L118: 0.172 | N118: 0.214
A119: % Private Rent/Living Rent Free | D119: =HLOOKUP($A119,cfc,DATA!A$1+1,FALSE) -> 0.1977094635 | G119: =HLOOKUP($A119,cfc,DATA!B$1+1,FALSE) -> 0.2001291156 | J119: 0.205 | L119: 0.226 | N119: 0.232
A120: In West Sussex the pattern of social housing, closely aligns with deprivation. At a small area level the level of social housing is a useful indicator of additional need.
A121: =D114 -> Kingston Buci | J121: =J114 -> West Sussex
H125: Owner Occupied
H126: Social Rented
H127: Private Rent / Rent Free
A130: BIRTHS | N130: back to top
A131: Information on births at a local level can be volatile, they are included in this profile to provide scale (approximate number of children per year) and general direction (are numbers going up / down) over a number of years.
A132: All Births
A133: Statistical Issues | C133: This information is taken directly from the Child Health Bureau and usual residence postcode of birth has been allocated to individual CFC catchment areas.
C134: To allocate to catchment areas full postcodes are required. There were a number of records where the postcode was incomplete or missing, this means that the total number of births is lower than reported by ONS.
A135: Source: Child Health Bureau | J135: =$D$71 -> Kingston Buci | L135: =$J$71 -> Stepping Stones | N135: West Sussex
C136: All Births (2009) | J136: =HLOOKUP(C136,cfc,DATA!A1+1,FALSE) -> 150 | L136: =HLOOKUP(C136,cfc,DATA!B$1+1,FALSE) -> 109 | N136: =DATA!AQ$75 -> 8927
C137: All Births (2010) | J137: =HLOOKUP(C137,cfc,DATA!A1+1,FALSE) -> 168 | L137: =HLOOKUP(C137,cfc,DATA!B$1+1,FALSE) -> 125 | N137: =DATA!AR$75 -> 9024
C138: All Births (2011) | J138: =HLOOKUP(C138,cfc,DATA!A1+1,FALSE) -> 169 | L138: =HLOOKUP(C138,cfc,DATA!B$1+1,FALSE) -> 107 | N138: =DATA!AS$75 -> 9198
C139: All Births (2012) | J139: =HLOOKUP(C139,cfc,DATA!A1+1,FALSE) -> 178 | L139: =HLOOKUP(C139,cfc,DATA!B$1+1,FALSE) -> 138 | N139: =DATA!AT$75 -> 9207
C140: All Births (2013) | J140: =HLOOKUP(C140,cfc,DATA!A1+1,FALSE) -> 202 | L140: =HLOOKUP(C140,cfc,DATA!B$1+1,FALSE) -> 115 | N140: 8603
A141: Births to Mothers Aged Under 20
A142: Statistical Issues | C142: Young mothers, first time mothers under the age of 20, are a target group for the work of Family Nurse Partnerships. Not all maternity records used a "flag" for first time mothers, therefore the information provided below relates to all mothers under the age of 20, the majority of these mothers will be first time mothers
A143: Source: Child Health Bureau | J143: =$D$71 -> Kingston Buci | L143: =$J$71 -> Stepping Stones | N143: West Sussex
C144: Births to Mothers Under 20 (2009) | J144: =HLOOKUP(C144,cfc,DATA!A$1+1,FALSE) -> 7 | L144: =HLOOKUP(C144,cfc,DATA!B$1+1,FALSE) -> 10 | N144: =DATA!AV$75 -> 456
C145: Births to Mothers Under 20 (2010) | J145: =HLOOKUP(C145,cfc,DATA!A$1+1,FALSE) -> 5 | L145: =HLOOKUP(C145,cfc,DATA!B$1+1,FALSE) -> 7 | N145: =DATA!AW$75 -> 399
C146: Births to Mothers Under 20 (2011) | J146: =HLOOKUP(C146,cfc,DATA!A$1+1,FALSE) -> 7 | L146: =HLOOKUP(C146,cfc,DATA!B$1+1,FALSE) -> 5 | N146: =DATA!AX$75 -> 367
C147: Births to Mothers Under 20 (2012) | J147: =HLOOKUP(C147,cfc,DATA!A$1+1,FALSE) -> 4 | L147: =HLOOKUP(C147,cfc,DATA!B$1+1,FALSE) -> 7 | N147: =DATA!AY$75 -> 345
C148: Births to Mothers Under 20 (2013) | J148: =HLOOKUP(C148,cfc,DATA!A$1+1,FALSE) -> 6 | L148: =HLOOKUP(C148,cfc,DATA!B$1+1,FALSE) -> 7 | N148: =DATA!AZ$75 -> 331
A149: Total Number of Births and Births to Women Aged Under 20
C150: =J143 -> Kingston Buci | J150: =L143 -> Stepping Stones
J151: Under 20 | K151: All Births | M151: Under 20 | N151: All Births
I152: 2009 | J152: =J144 -> 7 | K152: =J136-J144 -> 143 | L152: 2008 | M152: =L144 -> 10 | N152: =L136-L144 -> 99
I153: 2010 | J153: =J145 -> 5 | K153: =J137-J145 -> 163 | L153: 2009 | M153: =L145 -> 7 | N153: =L137-L145 -> 118
I154: 2011 | J154: =J146 -> 7 | K154: =J138-J146 -> 162 | L154: 2010 | M154: =L146 -> 5 | N154: =L138-L146 -> 102
I155: 2012 | J155: =J147 -> 4 | K155: =J139-J147 -> 174 | L155: 2011 | M155: =L147 -> 7 | N155: =L139-L147 -> 131
A157: Estimation of the number of teenage mothers/parents in the CFC catchment area.
A158: There is no reliable data source providing an estimate of the total number of teenage mothers/parents in a centre catchment area. The figure below relates to the total number of births mapped in the area where the mothers age was known, and the home postcodes at the time of birth was within the CFC ctachment area. This data should be used with caution, there may be some double counting of mothers (where women have a number of births in their teenage years) and this is likely to be a fairly mobile population.
A159: The figures have been calculated by combining births in 2013 to mothers under 20 years, births in 2012 to mothers under 19 years, births in 2011 to mothers under 18 years, births in 2010 to mothers under 17 years, births in 2009 to mothers under 16 years and births in 2008 to mothers aged 15 years.
F160: =$D$71 -> Kingston Buci | I160: =$J$71 -> Stepping Stones
A161: Estimation of teenage mothers in area | F161: =HLOOKUP(A161,cfc,DATA!A$1+1,FALSE) -> 9 | I161: =HLOOKUP(A161,cfc,DATA!B$1+1,FALSE) -> 15
A162: Low Birth Weight
A163: Statistical Issues | C163: The data shows the number and percentage of babies born of weight less than 2.5kg. The data relates to 2013 and single year data should be treated with caution.
A164: Source: Child Health Bureau | D164: =$D$71 -> Kingston Buci | F164: =$J$71 -> Stepping Stones
A165: Number of babies born of low weight | D165: =HLOOKUP(A165,cfc,DATA!A$1+1,FALSE) -> 16 | F165: =HLOOKUP(A165,cfc,DATA!B$1+1,FALSE) -> 5 | H165: =D164 -> Kingston Buci | I165: =F164 -> Stepping Stones
A166: % low weight | D166: =HLOOKUP(A166,cfc,DATA!A$1+1,FALSE) -> 0.07920792079 | F166: =HLOOKUP(A166,cfc,DATA!B$1+1,FALSE) -> 0.04347826087 | H166: =D166 -> 0.07920792079 | I166: =F166 -> 0.04347826087
A167: LCL | D167: =HLOOKUP(A167,cfc,DATA!A$1+1,FALSE) -> 0.04934109022 | F167: =HLOOKUP(A167,cfc,DATA!B$1+1,FALSE) -> 0.01871210111 | H167: =D166-D167 -> 0.02986683057 | I167: =F166-F167 -> 0.02476615976
A168: UCL | D168: =HLOOKUP(A168,cfc,DATA!A$1+1,FALSE) -> 0.124780581 | F168: =HLOOKUP(A168,cfc,DATA!B$1+1,FALSE) -> 0.09775784935 | H168: =D168-D166 -> 0.04557266023 | I168: =F168-F166 -> 0.05427958848
A170: PREGNANCY | N170: back to top
A171: REDUCING TEENAGE PREGNANCY AND SUPPORTING TEENAGE PARENTS
A172: Why teenage pregnancy is important | C172: Teenage mothers are more likely than other mothers to experience a range of negative outcomes including low educational attainment, poverty, poor health including poor mental health, and poor housing. Their children have three times the risk of infant mortality, and are more likely to grow up in poverty and become teenage parents themselves, perpetuating a cycle of disadvantage. Preventing teenage pregnancy allows teenagers to fulfil their potential and contribute to society.
A173: Rationale for the indicator | C173: Teenage pregnancy is associated with deprivation and poverty and the overall rate in West Sussex, an affluent county, is low. However there is variation around the county and children and family centres need to be aware of the needs of their local populations. This indicator shows the number of teenage parents within the catchment area of the centre so that centres can ensure they have capacity to proactively provide appropriate support.
A174: What helps? | C174: Services for teenage parents are provided by a number of agencies including health, social services, education, youth services and the voluntary sector. It is important that they are as integrated as possible, and are welcoming to young people. Children and family centres have an invaluable role in supporting young parents to improve health, social and economic outcomes for them and their children and in preventing subsequent pregnancies.
A175: Statistical issues | C175: Numbers of teenage conceptions in each ward are very small and it is not possible to calculate rates at centre level.
A176: Teenage Conception - Ward | D176: =IF(D71="Littlehampton","Ham","Not significantly higher than England rate") -> Not significantly higher than England rate | H176: Data is only shown for wards which have rates significantly above the England rate. The ward shown is the ward the centre is located in.
D178: =H73 -> Adur | H178: West Sussex | L178: England
D179: LA - Number | E179: LA Rate per 1,000 | F179: LCL | G179: LA - UCL | H179: Number | I179: Rate per 1,000 | J179: LCL | K179: UCL | L179: Number | M179: Rate per 1,000 | N179: LCL | O179: UCL
C180: 2005-2007 | D180: =VLOOKUP($D$178,pt,2,FALSE) -> 133 | E180: =VLOOKUP($D$178,pt,3,FALSE) -> 37.3 | F180: =VLOOKUP($D$178,pt,4,FALSE) -> 31.23051101 | G180: =VLOOKUP($D$178,pt,5,FALSE) -> 44.2047163 | H180: =VLOOKUP($H$178,pt,2,FALSE) -> 1284 | I180: =VLOOKUP($H$178,pt,3,FALSE) -> 30.19684391 | J180: =VLOOKUP($H$178,pt,4,FALSE) -> 28.5675351 | K180: =VLOOKUP($H$178,pt,5,FALSE) -> 31.89485964 | L180: =VLOOKUP($L$178,pt,2,FALSE) -> 119272 | M180: =VLOOKUP($L$178,pt,3,FALSE) -> 41.2 | N180: =VLOOKUP($L$178,pt,4,FALSE) -> 40.96651035 | O180: =VLOOKUP($L$178,pt,5,FALSE) -> 41.43449041
C181: 2006-2008 | D181: =VLOOKUP($D$178,pt,6,FALSE) -> 119 | E181: =VLOOKUP($D$178,pt,7,FALSE) -> 33.1 | F181: =VLOOKUP($D$178,pt,8,FALSE) -> 27.42060592 | G181: =VLOOKUP($D$178,pt,9,FALSE) -> 39.60908495 | H181: =VLOOKUP($H$178,pt,6,FALSE) -> 1337 | I181: =VLOOKUP($H$178,pt,7,FALSE) -> 31.2 | J181: =VLOOKUP($H$178,pt,8,FALSE) -> 29.6 | K181: =VLOOKUP($H$178,pt,9,FALSE) -> 32.9 | L181: =VLOOKUP($L$178,pt,6,FALSE) -> 118319 | M181: =VLOOKUP($L$178,pt,7,FALSE) -> 41 | N181: =VLOOKUP($L$178,pt,8,FALSE) -> 40.7 | O181: =VLOOKUP($L$178,pt,9,FALSE) -> 41.2
C182: 2007-2009 | D182: =VLOOKUP($D$178,pt,10,FALSE) -> 119 | E182: =VLOOKUP($D$178,pt,11,FALSE) -> 32.9 | F182: =VLOOKUP($D$178,pt,12,FALSE) -> 27.6 | G182: =VLOOKUP($D$178,pt,13,FALSE) -> 39.2 | H182: =VLOOKUP($H$178,pt,10,FALSE) -> 1341 | I182: =VLOOKUP($H$178,pt,11,FALSE) -> 31.3 | J182: =VLOOKUP($H$178,pt,12,FALSE) -> 29.7 | K182: =VLOOKUP($H$178,pt,13,FALSE) -> 33 | L182: =VLOOKUP($L$178,pt,10,FALSE) -> 115115 | M182: =VLOOKUP($L$178,pt,11,FALSE) -> 40.2 | N182: =VLOOKUP($L$178,pt,12,FALSE) -> 39.9 | O182: =VLOOKUP($L$178,pt,13,FALSE) -> 40.4
C183: 2008-2010 | D183: =VLOOKUP($D$178,pt,14,FALSE) -> 107 | E183: =VLOOKUP($D$178,pt,15,FALSE) -> 29.9 | F183: =VLOOKUP($D$178,pt,16,FALSE) -> 24.8 | G183: =VLOOKUP($D$178,pt,17,FALSE) -> 36 | H183: =VLOOKUP($H$178,pt,14,FALSE) -> 1281 | I183: =VLOOKUP($H$178,pt,15,FALSE) -> 30.1 | J183: =VLOOKUP($H$178,pt,16,FALSE) -> 28.5 | K183: =VLOOKUP($H$178,pt,17,FALSE) -> 31.8 | L183: =VLOOKUP($L$178,pt,14,FALSE) -> 107301 | M183: =VLOOKUP($L$178,pt,15,FALSE) -> 38.1 | N183: =VLOOKUP($L$178,pt,16,FALSE) -> 37.8 | O183: =VLOOKUP($L$178,pt,17,FALSE) -> 38.3
C184: 2009-2011 | D184: =VLOOKUP($D$178,pt,18,FALSE) -> 108 | E184: =VLOOKUP($D$178,pt,19,FALSE) -> 33.2 | F184: =VLOOKUP($D$178,pt,20,FALSE) -> 27.6 | G184: =VLOOKUP($D$178,pt,21,FALSE) -> 39.9 | H184: =VLOOKUP($H$178,pt,18,FALSE) -> 1120 | I184: =VLOOKUP($H$178,pt,19,FALSE) -> 27 | J184: =VLOOKUP($H$178,pt,20,FALSE) -> 25.4 | K184: =VLOOKUP($H$178,pt,21,FALSE) -> 28.6 | L184: =VLOOKUP($L$178,pt,18,FALSE) -> 97684 | M184: =VLOOKUP($L$178,pt,19,FALSE) -> 34 | N184: =VLOOKUP($L$178,pt,20,FALSE) -> 33.8 | O184: =VLOOKUP($L$178,pt,21,FALSE) -> 34.2
C185: 2010-2012 | D185: =VLOOKUP($D$178,TeenPreg!$A$1:$Y$10,22,FALSE) -> 98 | E185: =VLOOKUP($D$178,TeenPreg!$A$1:$Y$10,23,FALSE) -> 30.6 | F185: =VLOOKUP($D$178,TeenPreg!$A$1:$Y$10,24,FALSE) -> 25.2 | G185: =VLOOKUP($D$178,TeenPreg!$A$1:$Y$10,25,FALSE) -> 37.2 | H185: =VLOOKUP($H$178,TeenPreg!$A$1:$Y$10,22,FALSE) -> 1016 | I185: =VLOOKUP($H$178,TeenPreg!$A$1:$Y$10,23,FALSE) -> 24.6 | J185: =VLOOKUP($H$178,TeenPreg!$A$1:$Y$10,24,FALSE) -> 23.2 | K185: =VLOOKUP($H$178,TeenPreg!$A$1:$Y$10,25,FALSE) -> 26.2 | L185: =VLOOKUP($L$178,TeenPreg!$A$1:$Y$10,22,FALSE) -> 87875 | M185: =VLOOKUP($L$178,TeenPreg!$A$1:$Y$10,23,FALSE) -> 30.9 | N185: =VLOOKUP($L$178,TeenPreg!$A$1:$Y$10,24,FALSE) -> 30.7 | O185: =VLOOKUP($L$178,TeenPreg!$A$1:$Y$10,25,FALSE) -> 31.1
A186: Graph showing District, County and England Teenage Conception Rates (Births per 1,000 women aged 15-17 years) 2005-7 to 2009-11
F187: =G180-E180 -> 6.904716298 | G187: =E180-F180 -> 6.069488992 | J187: =K180-I180 -> 1.69801573 | K187: =I180-J180 -> 1.629308808 | M187: =O180-M180 -> 0.2344904112 | N187: =M180-N180 -> 0.2334896546
F188: =G181-E181 -> 6.509084952 | G188: =E181-F181 -> 5.679394084 | J188: =K181-I181 -> 1.7 | K188: =I181-J181 -> 1.6 | M188: =O181-M181 -> 0.2 | N188: =M181-N181 -> 0.3
F189: =G182-E182 -> 6.3 | G189: =E182-F182 -> 5.3 | J189: =K182-I182 -> 1.7 | K189: =I182-J182 -> 1.6 | M189: =O182-M182 -> 0.2 | N189: =M182-N182 -> 0.3
F190: =G183-E183 -> 6.1 | G190: =E183-F183 -> 5.1 | J190: =K183-I183 -> 1.7 | K190: =I183-J183 -> 1.6 | M190: =O183-M183 -> 0.2 | N190: =M183-N183 -> 0.3
F191: =G184-E184 -> 6.7 | G191: =E184-F184 -> 5.6 | J191: =K184-I184 -> 1.6 | K191: =I184-J184 -> 1.6 | M191: =O184-M184 -> 0.2 | N191: =M184-N184 -> 0.2
F192: 6.6 | G192: 5.4 | J192: 1.6 | K192: 1.4 | M192: 0.2 | N192: 0.2
A193: Long Term Limiting Illness
A194: Data on 0-4 year olds with long term limiting illness (LTLI) or health conditions which act to affect activities of daily living has been taken from the 2011 census and relates to children aged 0-4 years only. A long-term health problem or disability that limits a person's day-to-day activities, and has lasted, or is expected to last, at least 12 months.
A195: Source: 2011 Census | H195: =$D$71 -> Kingston Buci | J195: =$J$71 -> Stepping Stones | L195: West Sussex | N195: England
A196: Number of 0-4 year olds with their day-to-day activities limited | F196: No. activities limited a little or a lot | H196: =HLOOKUP(A196,cfc,DATA!A$1+1,FALSE) -> 22 | J196: =HLOOKUP(A196,cfc,DATA!B$1+1,FALSE) -> 26 | L196: 853 | N196: 70922
A197: % of all 0-4 year olds | F197: % activities limited a ot | H197: =HLOOKUP(A197,cfc,DATA!A$1+1,FALSE) -> 0.02466367713 | J197: =HLOOKUP(A197,cfc,DATA!B$1+1,FALSE) -> 0.03233830846 | L197: 0.018 | N197: 0.021
A198: FAMILIES | N198: back to top
A199: Family Composition
A200: Statistical issues | C200: This information is taken from the 2011 Census and provides information on the total number of families within an area with a child aged 0-4, and also the proportion of larger families (of 3 children or more the youngest aged 0-4 in the area).
A201: Source: 2011 Census | F201: =$D$71 -> Kingston Buci | H201: =$J$71 -> Stepping Stones
A202: All Families | F202: =HLOOKUP(A202,cfc,DATA!A$1+1,FALSE) -> 1701 | H202: =HLOOKUP(A202,cfc,DATA!B$1+1,FALSE) -> 1665 | M202: =F201 -> Kingston Buci | N202: =H201 -> Stepping Stones
A203: - with one child (aged 0-4) | E203: One dependent child families 2011 aged 0-4 | F203: =HLOOKUP(E203,cfc,DATA!A$1+1,FALSE) -> 299 | H203: =HLOOKUP(E203,cfc,DATA!B$1+1,FALSE) -> 256 | J203: =A203 -> - with one child (aged 0-4) | L203: one child | M203: =F203/F202 -> 0.1757789536 | N203: =H203/H202 -> 0.1537537538
A204: - with two children (youngest aged 0-4) | E204: Two dependent children families 2011 youngest aged 0-4 | F204: =HLOOKUP(E204,cfc,DATA!A$1+1,FALSE) -> 296 | H204: =HLOOKUP(E204,cfc,DATA!B$1+1,FALSE) -> 276 | J204: =A204 -> - with two children (youngest aged 0-4) | L204: two children | M204: =F204/F202 -> 0.1740152851 | N204: =H204/H202 -> 0.1657657658
A205: - with three or more children (youngest aged 0-4) | E205: Three dependent children families 2011 youngest aged 0-4 | F205: =HLOOKUP(E205,cfc,DATA!A$1+1,FALSE) -> 106 | H205: =HLOOKUP(E205,cfc,DATA!B$1+1,FALSE) -> 106 | J205: =A205 -> - with three or more children (youngest aged 0-4) | L205: 3 or more | M205: =F205/F202 -> 0.06231628454 | N205: =H205/H202 -> 0.06366366366
A206: % of families with 3 or more children | E206: families with 3 or more children % | F206: =HLOOKUP(E206,cfc,DATA!A$1+1,FALSE) -> 0.1082601116 | H206: =HLOOKUP(E206,cfc,DATA!B$1+1,FALSE) -> 0.1249235266
A207: Household Composition
A208: Statistical issues | C208: This information is taken from the 2011 Census and provides the total number of households with dependent children and the marital status of the Household Reference person.
L209: =F210 -> Kingston Buci | M209: =H210 -> Stepping Stones | N209: West Sussex | O209: England
A210: Source: 2011 Census | F210: =$D$71 -> Kingston Buci | H210: =$J$71 -> Stepping Stones | K210: Couple households | L210: =F212 -> 1218 | M210: =H212 -> 1069 | N210: 65639 | O210: 4482036
A211: Households with a 0-4 year old | F211: =HLOOKUP(A211,cfc,DATA!A$1+1,FALSE) -> 1387 | H211: =HLOOKUP(A211,cfc,DATA!B$1+1,FALSE) -> 1254 | K211: Non-couple households | L211: =F213 -> 169 | M211: =H213 -> 185 | N211: 7309 | O211: 741155
B212: Living in a couple household | F212: =HLOOKUP(B212,cfc,DATA!A$1+1,FALSE) -> 1218 | H212: =HLOOKUP(B212,cfc,DATA!B$1+1,FALSE) -> 1069
B213: Not living in a couple household | F213: =HLOOKUP(B213,cfc,DATA!A$1+1,FALSE) -> 169 | H213: =HLOOKUP(B213,cfc,DATA!B$1+1,FALSE) -> 185
A214: % in non-couple household | F214: =HLOOKUP(A214,cfc,DATA!A$1+1,FALSE) -> 0.1218457102 | H214: =HLOOKUP(A214,cfc,DATA!B$1+1,FALSE) -> 0.1475279107
A215: Census Data on Lone Parent Households
A216: Statistical issues | C216: This relates to all lone parent families not just those with children aged 0-4 years
A217: Source: 2011 Census | F217: =$D$71 -> Kingston Buci | H217: =$J$71 -> Stepping Stones | J217: West Sussex | L217: South East | N217: England
A218: Lone parents (with dependent children) (2011) | F218: =HLOOKUP(A218,cfc,DATA!A$1+1,FALSE) -> 405 | H218: =HLOOKUP(A218,cfc,DATA!B$1+1,FALSE) -> 384 | J218: 18637 | L218: 215348 | N218: 1564681
A219: Lone parents with dependent children - not in employment (2011) | F219: =HLOOKUP(A219,cfc,DATA!A$1+1,FALSE) -> 156 | H219: =HLOOKUP(A219,cfc,DATA!B$1+1,FALSE) -> 151 | J219: 6279 | L219: 78504 | N219: 634019
A220: % not in employment (2011) | F220: =HLOOKUP(A220,cfc,DATA!A$1+1,FALSE) -> 0.3851851852 | H220: =HLOOKUP(A220,cfc,DATA!B$1+1,FALSE) -> 0.3932291667 | J220: 0.337 | L220: 0.365 | N220: 0.405
... 367 more rows

Sheet DATA
A1: 18 | B1: 37 | L1: Population MYE | V1: Population 0-4 | AF1: Ethnic Composition 0-4 (2011) | AM1: Tenure 2011 (0-9s) | AQ1: All Births | AV1: Births to Mothers Under 20 | BA1: Low Birth Weight | BE1: Estimate of Teenage Mothers | BF1: Families 0-4 2011 | BL1: Households | BR1: Lone parent families | BU1: Lone parents data from census | BY1: Deprivation | CF1: Child Poverty | CR1: Breastfeeding | EZ1: New EYFS | FJ1: New EYFS | FT1: Proficiency in English | GA1: Smoking Status | GQ1: Immunisations | HN1: LTLI | HP1: Lone or Couple Households of Households with 0-4 year olds
A2: CFC | B2: Check | C2: CFC Locality | D2: CFC Group | E2: District | F2: GP Cluster | G2: Wards | H2: Education Locality Name | I2: Education Partnership Area | J2: CCG | K2: Parliamentary Constituency | L2: Population (2004) | M2: Population (2005) | N2: Population (2006) | O2: Population (2007) | P2: Population (2008) | Q2: Population (2009) | R2: Population (2010) | S2: Population (2011) | T2: Population (2012) | U2: Population (2013) | V2: Under 5 (2004) | W2: Under 5 (2005) | X2: Under 5 (2006) | Y2: Under 5 (2007) | Z2: Under 5 (2008) | AA2: Under 5 (2009) | AB2: Under 5 (2010) | AC2: Under 5 (2011) | AD2: Under 5 (2012) | AE2: Under 5 (2013) | AF2: % White British | AG2: % White Irish and White Other | AH2: % Mixed/Multiple | AI2: % Asian | AJ2: % Black | AK2: % Other | AL2: % BAME | AM2: Households with a child aged 0-9 years | AN2: % Owned | AO2: % Social rented | AP2: % Private rent/living rent free | AQ2: All Births (2009) | AR2: All Births (2010) | AS2: All Births (2011) | AT2: All Births (2012) | AU2: All Births (2013) | AV2: Births to Mothers Under 20 (2009) | AW2: Births to Mothers Under 20 (2010) | AX2: Births to Mothers Under 20 (2011) | AY2: Births to Mothers Under 20 (2012) | AZ2: Births to Mothers Under 20 (2013) | BA2: Number of babies born of low weight | BB2: % low weight | BC2: LCL | BD2: UCL | BE2: Estimation of teenage mothers in area | BF2: One dependent child families 2011 aged 0-4 | BG2: Two dependent children families 2011 youngest aged 0-4 | BH2: Three dependent children families 2011 youngest aged 0-4 | BI2: families with 3 or more children % | BJ2: All families | BK2: Total number of dependent children 2011 | BL2: All Households with dependent children | BM2: Married Couple with dependent children | BN2: Same-Sex Civil Partnership Couple with dependent children | BO2: Cohabiting Couple with dependent children | BP2: Lone Parent with dependent children | BQ2: Other Household type with dependent children | BR2: Lone parent families on low income - 2011 | BS2: Lone parent families on low income - 2012 | BT2: Lone parent families on low income - 2013 | BU2: Lone parents (with dependent children) (2011) | BV2: Lone parents with dependent children - not in employment (2011) | BW2: % not in employment (2011) | BX2: Male Lone Parents (2011) | BY2: Local Decile | BZ2: Households with 3 or 4 measures of deprivation | CA2: Deprived households as % of all households in area | CB2: 0 to 4 year olds in Out-of-work Benefit Claimant Hholds (2010) | CC2: 0 to 4 year olds in Out-of-work Benefit Claimant Hholds (2011) | CD2: 0 to 4 year olds in Out-of-work Benefit Claimant Hholds (2012) | CE2: 0 to 4 year olds in Out-of-work Benefit Claimant Hholds (2013) | CF2: Number 2007 | CG2: % of Children in Poverty 2007 | CH2: Number 2008 | CI2: % of Children in Poverty 2008 | CJ2: Number 2009 | CK2: % of Children in Poverty 2009 | CL2: Number 2010 | CM2: % of Children in Poverty 2010 | CN2: Number 2011 | CO2: % of Children in Poverty 2011 | CP2: Number 2012 | CQ2: % of Children in Poverty 2012 | CR2: Number of babies eligible 2012/13 | CS2: Number of babies not checked 2012/13 | CT2: Number of babies receiving check 2012/13 | CU2: % of babies checked 2012/13 | CV2: Exclusively breastfed 2012/13 | CW2: Total including partially breastfed 2012/13 | CX2: % exclusively breastfed 2012/13 | CY2: % breastfeeding (including partially) 2012/13 | CZ2: exclusiveLCL | DA2: exclusiveUCL | DB2: partialLCL | DC2: partialUCL | DD2: 2009/10 - Measured (Reception) | DE2: 2009/10 - Measured as Obese (Reception) | DF2: % Obese (Reception) - 2009/10 | DG2: 2009/10 (Reception) - LCL | DH2: 2009/10 (Reception) - UCL | DI2: 2009/10 Significance (Reception) | DJ2: 2010/11 - Measured (Reception) | DK2: 2010/11 - Measured as Obese (Reception) | DL2: % Obese (Reception) - 2010/11 | DM2: 2010/11 (Reception) - LCL | DN2: 2010/11 (Reception) - UCL | DO2: 2010/11 Significance (Reception) | DP2: 2011/12 - Measured (Reception) | DQ2: 2011/12 - Measured as Obese (Reception) | DR2: % Obese (Reception) - 2011/12 | DS2: 2011/12 (Reception) - LCL | DT2: 2011/12 (Reception) - UCL | DU2: 2011/12 Significance (Reception) | DV2: 2012/13 - Measured (Reception) | DW2: 2012/13 - Measured as Obese (Reception) | DX2: % Obese (Reception) - 2012/13 | DY2: 2012/13 (Reception) - LCL | DZ2: 2012/13 (Reception) - UCL | EA2: 2012/13 Significance (Reception) | EB2: 2009/10 - Measured (Year 6) | EC2: 2009/10 - Measured as Obese (Year 6) | ED2: % Obese (Year 6) - 2009/10 | EE2: 2009/10 (Year 6) - LCL | EF2: 2009/10 (Year 6) - UCL | EG2: 2009/10 Significance (Year 6) | EH2: 2010/11 - Measured (Year 6) | EI2: 2010/11 - Measured as Obese (Year 6) | EJ2: % Obese (Year 6) - 2010/11 | EK2: 2010/11 (Year 6) - LCL | EL2: 2010/11 (Year 6) - UCL | EM2: 2010/11 Significance (Year 6) | EN2: 2011/12 - Measured (Year 6) | EO2: 2011/12 - Measured as Obese (Year 6) | EP2: % Obese (Year 6) - 2011/2012 | EQ2: 2011/12 (Year 6) - LCL | ER2: 2011/12 (Year 6) - UCL | ES2: 2011/12 Significance (Year 6) | ET2: 2012/13 - Measured (Year 6) | EU2: 2012/13 - Measured as Obese (Year 6) | EV2: % Obese (Year 6) - 2012/2013 | EW2: 2012/13 (Year 6) - LCL | EX2: 2012/13 (Year 6) - UCL | EY2: 2012/13 Significance (Year 6) | EZ2: Number of children (2013) | FA2: Children Assessed as Having a "Good Level of Development" (2013) | FB2: Percentage of children with a Good Level of Development (2013) | FC2: DevLCL (2013) | FD2: DevUCL (2013) | FE2: Number of Children (2013) | FF2: Median Score all Children (2013) | FG2: Lowest Scores - 20% of All Children (2013) | FH2: Mean Score of Lowest 20% (2013) | FI2: % Gap (2013) | FJ2: Number of children (2014) | FK2: Children Assessed as Having a "Good Level of Development" (2014) | FL2: Percentage of children with a Good Level of Development (2014) | FM2: DevLCL (2014) | FN2: DevUCL (2014) | FO2: Number of Children (2014) | FP2: Median Score all Children (2014) | FQ2: Lowest Scores - 20% of All Children (2014) | FR2: Mean Score of Lowest 20% (2014) | FS2: % Gap (2014) | FT2: Proficiency in English 2011 | FU2: 3-15 Main language is English 2011 | FV2: 3-15 Main language is not English 2011 | FW2: 3-15 Main language is not English : Can speak English very well or well 2011 | FX2: 3-15 Main language is not English : Cannot speak English or cannot speak English well 2011 | FY2: % Main Language not english but can speak it well or very well | FZ2: % Main language is not english and cannot speak it or cannot speak it well | GA2: %not smoking at time of booking | GB2: % smoking at time of booking | GC2: LCLbook | GD2: UCLbook | GE2: %not smoking at delivery | GF2: %smoking at delivery | GG2: LCLdel | GH2: UCLdel | GI2: %not current smoker | GJ2: %current smoker | GK2: LCLsmoke | GL2: UCLsmoke | GM2: %No smoker in household | GN2: %Smoker in household | GO2: LCLhouse | GP2: UCLhouse | GQ2: Immunisations Total age1 eligible Q1 2013-14 | GR2: age1 2nd MenC | GS2: age1 2nd Pneu | GT2: age1 1st Pneu | GU2: age1 3rd5in1 | GV2: total age2 eligible | GW2: age2 HibMenCBoost | GX2: age2 2ndMenC | GY2: age2 PneuBoost | GZ2: age2 2ndPneu | HA2: age2 1stPneu | HB2: age2 MMR1 | HC2: age2 3rd5in1 | HD2: Total age5 eligible | HE2: age5 HibMenCBoost | HF2: age5 2ndMenC | HG2: age5 PneuBoost | HH2: age5 2ndPneu | HI2: age5 1stPneu | HJ2: age5 MMR2 | HK2: age5 MMR1 | HL2: age5 PSB | HM2: age5 3rd5in1 | HN2: Number of 0-4 year olds with their day-to-day activities limited | HO2: % of all 0-4 year olds | HP2: Households with a 0-4 year old | HQ2: Living in a couple household | HR2: Not living in a couple household | HS2: % in non-couple household
A3: Angmering | C3: Arun East | D3: Arun East | E3: Arun | F3: Arun | G3: Angmering, Brookfield, Rustington East, Rustington West | H3: Angmering | I3: B | J3: Coastal West Sussex | K3: Arundel and South Downs | L3: 16620 | M3: 17065 | N3: 17415 | O3: 17650 | P3: 17770 | Q3: 17725 | R3: 17835 | S3: 17855 | T3: 18075 | U3: 18165 | V3: 1015 | W3: 1025 | X3: 1040 | Y3: 1025 | Z3: 1030 | AA3: 1005 | AB3: 1010 | AC3: 990 | AD3: 1020 | AE3: 1020 | AF3: 0.9287169043 | AG3: 0.02749490835 | AH3: 0.03462321792 | AI3: 0.008146639511 | AJ3: 0.001018329939 | AK3: 0 | AL3: 0.07128309572 | AM3: 2025 | AN3: 0.6808300395 | AO3: 0.09337944664 | AP3: 0.2257905138 | AQ3: 184 | AR3: 179 | AS3: 203 | AT3: 195 | AU3: 163 | AV3: 8 | AW3: 4 | AX3: 12 | AY3: 8 | AZ3: 6 | BA3: 11 | BB3: 0.06748466258 | BC3: 0.03809698654 | BD3: 0.1167893289 | BE3: 13 | BF3: 308 | BG3: 333 | BH3: 133 | BI3: 0.1364754307 | BJ3: 2175 | BK3: 3804 | BL3: 2189 | BM3: 1276 | BN3: 1 | BO3: 284 | BP3: 480 | BQ3: 148 | BR3: 115 | BS3: 110 | BT3: 75 | BU3: 480 | BV3: 144 | BW3: =BV3/BU3 -> 0.3 | BX3: 46 | BY3: 5 | BZ3: 230 | CA3: 0.03000652316 | CB3: 140 | CC3: 115 | CD3: 130 | CE3: 145 | CF3: 410 | CG3: 0.1341 | CH3: 470 | CI3: 0.1296 | CJ3: 435 | CK3: 0.1321 | CL3: 440 | CM3: 0.147 | CN3: 465 | CO3: 0.129 | CP3: 395 | CQ3: 0.1179104478 | CR3: 191 | CS3: 4 | CT3: 187 | CU3: 0.9828076158 | CV3: 84 | CW3: 99 | CX3: 0.4680420886 | CY3: 0.5434834365 | CZ3: 0.3796404754 | DA3: 0.5208005186 | DB3: 0.4580003436 | DC3: 0.5996390809 | DD3: 161 | DE3: 10 | DF3: 0.06211180124 | DG3: 0.03408441207 | DH3: 0.1105482489 | DI3: =IF(DG3>$DH$77,"Sig worse than Eng.",(IF(DH3<$DG$77,"Sig better than Eng.","No Sig diff"))) -> No Sig diff | DJ3: 163 | DK3: 9 | DL3: 0.05521472393 | DM3: 0.02931736876 | DN3: 0.1015940904 | DO3: =IF(DM3>$DN$77,"Sig worse than Eng.",(IF(DN3<$DM$77,"Sig better than Eng.","No Sig diff"))) -> No Sig diff | DP3: 130 | DQ3: 9 | DR3: 0.06923076923 | DS3: 0.03684711914 | DT3: 0.1263419182 | DU3: =IF(DS3>$DT$77,"Sig worse than Eng.",(IF(DT3<$DS$77,"Sig better than Eng.","No Sig diff"))) -> No Sig diff | DV3: 165 | DW3: 16 | DX3: 0.09696969697 | DY3: 0.06057200517 | DZ3: 0.1517067744 | EA3: =IF(DY3>$DZ$77,"Sig worse than Eng.",(IF(DZ3<$DY$77,"Sig better than Eng.","No Sig diff"))) -> No Sig diff | EB3: 174 | EC3: 26 | ED3: 0.1494252874 | EE3: 0.1040572695 | EF3: 0.2099384612 | EG3: =IF(EE3>$EF$77,"Sig worse than Eng.",(IF(EF3<$EE$77,"Sig better than Eng.","No Sig diff"))) -> No Sig diff | EH3: 171 | EI3: 30 | EJ3: 0.1754385965 | EK3: 0.1257436268 | EL3: 0.239395507 | EM3: =IF(EK3>$EL$77,"Sig worse than Eng.",(IF(EL3<$EK$77,"Sig better than Eng.","No Sig diff"))) -> No Sig diff | EN3: 191 | EO3: 35 | EP3: 0.1832460733 | EQ3: 0.1348120066 | ER3: 0.2441702658 | ES3: =IF(EQ3>$ER$77,"Sig worse than Eng.",(IF(ER3<$EQ$77,"Sig better than Eng.","No Sig diff"))) -> No Sig diff | ET3: 186 | EU3: 18 | EV3: 0.09677419355 | EW3: 0.0620930764 | EX3: 0.1477739309 | EY3: =IF(EW3>$EX$77,"Sig worse than Eng.",(IF(EX3<$EW$77,"Sig better than Eng.","No Sig diff"))) -> Sig better than Eng. | EZ3: 180 | FA3: 99 | FB3: 0.55 | FC3: 0.4770335504 | FD3: 0.6208768998 | FE3: 180 | FF3: 34 | FG3: 36 | FH3: 25.36111111 | FI3: =(FF3-FH3)/FF3 -> 0.2540849673 | FJ3: 219 | FK3: 132 | FL3: 0.602739726 | FM3: 0.5366972791 | FN3: 0.6652400096 | FO3: 219 | FP3: 34 | FQ3: 43 | FR3: 24.88372093 | FS3: 0.268125855 | FT3: 2763 | FU3: 2742 | FV3: 21 | FW3: 15 | FX3: 6 | FY3: =FW3/FV3 -> 0.7142857143 | FZ3: =FX3/FV3 -> 0.2857142857 | GA3: 0.9612962963 | GB3: 0.0387037037 | GC3: 0.01993069977 | GD3: 0.0909725665 | GE3: 0.9512962963 | GF3: 0.0487037037 | GG3: 0.01993069977 | GH3: 0.0909725665 | GI3: 0.9575925926 | GJ3: 0.04240740741 | GK3: 0.02460523888 | GL3: 0.1002995508 | GM3: 0.8630015818 | GN3: 0.1369984182 | GO3: 0.09061630586 | GP3: 0.2064663743 | GQ3: 59 | GR3: 55 | GS3: 55 | GT3: 58 | GU3: 55 | GV3: 56 | GW3: 53 | GX3: 55 | GY3: 53 | GZ3: 55 | HA3: 55 | HB3: 51 | HC3: 55 | HD3: 56 | HE3: 56 | HF3: 55 | HG3: 54 | HH3: 56 | HI3: 56 | HJ3: 55 | HK3: 56 | HL3: 55 | HM3: 56 | HN3: 19 | HO3: 0.01934826884 | HP3: 1542 | HQ3: 1390 | HR3: 152 | HS3: 0.09857328145
A4: Bewbush | C4: Crawley | D4: Crawley | E4: Crawley | F4: Crawley | G4: Bewbush, Gossops Green | H4: Crawley NW | I4: C1 | J4: Crawley | K4: Crawley | L4: 13920 | M4: 13945 | N4: 14000 | O4: 13975 | P4: 14045 | Q4: 14080 | R4: 14005 | S4: 14160 | T4: 14250 | U4: 14270 | V4: 930 | W4: 950 | X4: 930 | Y4: 935 | Z4: 950 | AA4: 975 | AB4: 1040 | AC4: 1085 | AD4: 1120 | AE4: 1145 | AF4: 0.6158088235 | AG4: 0.07628676471 | AH4: 0.07628676471 | AI4: 0.1323529412 | AJ4: 0.08272058824 | AK4: 0.01654411765 | AL4: 0.3841911765 | AM4: 1980 | AN4: 0.4770085902 | AO4: 0.3249115715 | AP4: 0.1980798383 | AQ4: 228 | AR4: 218 | AS4: 200 | AT4: 196 | AU4: 236 | AV4: 17 | AW4: 13 | AX4: 8 | AY4: 14 | AZ4: 15 | BA4: 22 | BB4: 0.09322033898 | BC4: 0.06236793569 | BD4: 0.1371032444 | BE4: 26 | BF4: 337 | BG4: 306 | BH4: 203 | BI4: 0.1694093216 | BJ4: 1995 | BK4: 3572 | BL4: 1958 | BM4: 991 | BN4: 1 | BO4: 250 | BP4: 500 | BQ4: 216 | BR4: 215 | BS4: 180 | BT4: 165 | BU4: 519 | BV4: 232 | BW4: =BV4/BU4 -> 0.4470134875 | BX4: 39 | BY4: 2 | BZ4: 287 | CA4: 0.05352480418 | CB4: 260 | CC4: 265 | CD4: 285 | CE4: 265 | CF4: 735 | CG4: 0.2227777778 | CH4: 705 | CI4: 0.204 | CJ4: 665 | CK4: 0.2117777778 | CL4: 645 | CM4: 0.2213333333 | CN4: 710 | CO4: 0.2285555556 | CP4: 695 | CQ4: 0.2234726688 | CR4: 199 | CS4: 9 | CT4: 190 | CU4: 0.9561556353 | CV4: 63 | CW4: 90 | CX4: 0.3145197365 | CY4: 0.4631973343 | CZ4: 0.2685575492 | DA4: 0.4012759644 | DB4: 0.4039127259 | DC4: 0.5444987606 | DD4: 139 | DE4: 13 | DF4: 0.09352517986 | DG4: 0.05547239293 | DH4: 0.153440755 | DI4: No Sig diff | DJ4: 167 | DK4: 17 | DL4: 0.1017964072 | DM4: 0.06453215762 | DN4: 0.1569682854 | DO4: No Sig diff | DP4: 148 | DQ4: 15 | DR4: 0.1013513514 | DS4: 0.06238639953 | DT4: 0.1604872417 | DU4: =IF(DS4>$DT$77,"Sig worse than Eng.",(IF(DT4<$DS$77,"Sig better than Eng.","No Sig diff"))) -> No Sig diff | DV4: 185 | DW4: 22 | DX4: 0.1189189189 | DY4: 0.07985752852 | DZ4: 0.1734843971 | EA4: No Sig diff | EB4: 133 | EC4: 30 | ED4: 0.2255639098 | EE4: 0.1628182503 | EF4: 0.3037176912 | EG4: No Sig diff | EH4: 167 | EI4: 39 | EJ4: 0.2335329341 | EK4: 0.1758009458 | EL4: 0.3032482228 | EM4: =IF(EK4>$EL$77,"Sig worse than Eng.",(IF(EL4<$EK$77,"Sig better than Eng.","No Sig diff"))) -> No Sig diff | EN4: 177 | EO4: 39 | EP4: 0.2203389831 | EQ4: 0.1655797355 | ER4: 0.2869794251 | ES4: =IF(EQ4>$ER$77,"Sig worse than Eng.",(IF(ER4<$EQ$77,"Sig better than Eng.","No Sig diff"))) -> No Sig diff | ET4: 160 | EU4: 33 | EV4: 0.20625 | EW4: 0.1508008637 | EX4: 0.275473776 | EY4: =IF(EW4>$EX$77,"Sig worse than Eng.",(IF(EX4<$EW$77,"Sig better than Eng.","No Sig diff"))) -> No Sig diff | EZ4: 212 | FA4: 105 | FB4: 0.4952830189 | FC4: 0.4286660721 | FD4: 0.5620678674 | FE4: 212 | FF4: 34 | FG4: 42 | FH4: 21.97619048 | FI4: =(FF4-FH4)/FF4 -> 0.3536414566 | FJ4: 193 | FK4: 109 | FL4: 0.5647668394 | FM4: 0.4942308877 | FN4: 0.6327748769 | FO4: 193 | FP4: 34 | FQ4: 38 | FR4: 21.55263158 | FS4: 0.3660990712 | FT4: 1852 | FU4: 1811 | FV4: 41 | FW4: 36 | FX4: 5 | FY4: 0.8780487805 | FZ4: 0.1219512195 | GA4: 0.8375864876 | GB4: 0.1624135124 | GC4: 0.1156177199 | GD4: 0.2584970996 | GE4: 0.8792022792 | GF4: 0.1207977208 | GG4: 0.07881199094 | GH4: 0.20589066 | GI4: 0.8005494505 | GJ4: 0.1994505495 | GK4: 0.1477212066 | GL4: 0.3019439011 | GM4: 0.6443901777 | GN4: 0.3556098223 | GO4: 0.2736196617 | GP4: 0.4532597719 | GQ4: 55 | GR4: 53 | GS4: 53 | GT4: 55 | GU4: 54 | GV4: 50 | GW4: 50 | GX4: 49 | GY4: 48 | GZ4: 49 | HA4: 48 | HB4: 49 | HC4: 50 | HD4: 62 | HE4: 59 | HF4: 57 | HG4: 53 | HH4: 57 | HI4: 57 | HJ4: 57 | HK4: 59 | HL4: 55 | HM4: 57 | HN4: 24 | HO4: 0.02205882353 | HP4: 1737 | HQ4: 1485 | HR4: 252 | HS4: 0.1450777202
A5: Billingshurst and Pulborough | C5: Horsham | D5: Horsham Rural | E5: Horsham | F5: Chanctonbury | G5: Wishborough Green, Chanctonbury, Pulborough and Coldwatham, Plaistow, Billingshurst and Shipley, Itchingfield, Slinford and Warnham | H5: Billingshurst | I5: C3 | J5: Coastal West Sussex | K5: Horsham | L5: 24270 | M5: 24350 | N5: 24640 | O5: 24855 | P5: 25020 | Q5: 25175 | R5: 25585 | S5: 25835 | T5: 25910 | U5: 26075 | V5: 1240 | W5: 1220 | X5: 1195 | Y5: 1235 | Z5: 1235 | AA5: 1235 | AB5: 1285 | AC5: 1290 | AD5: 1300 | AE5: 1295 | AF5: 0.9293849658 | AG5: 0.02277904328 | AH5: 0.03492786636 | AI5: 0.009870918755 | AJ5: 0.002277904328 | AK5: 0.0007593014427 | AL5: 0.07061503417 | AM5: 2665 | AN5: 0.7465264739 | AO5: 0.1393165603 | AP5: 0.1141569658 | AQ5: 211 | AR5: 215 | AS5: 225 | AT5: 196 | AU5: 185 | AV5: 8 | AW5: 2 | AX5: 4 | AY5: 6 | AZ5: 3 | BA5: 17 | BB5: 0.09189189189 | BC5: 0.05816474448 | BD5: 0.1422227078 | BE5: 5 | BF5: 372 | BG5: 445 | BH5: 205 | BI5: 0.1521064617 | BJ5: 2831 | BK5: 5095 | BL5: 2877 | BM5: 1861 | BN5: 0 | BO5: 331 | BP5: 494 | BQ5: 191 | BR5: 85 | BS5: 75 | BT5: 70 | BU5: 383 | BV5: 109 | BW5: 0.2845953003 | BX5: 46 | BY5: 8 | BZ5: 209 | CA5: 0.01917959071 | CB5: 140 | CC5: 140 | CD5: 110 | CE5: 120 | CF5: 385 | CG5: 0.077375 | CH5: 410 | CI5: 0.08025 | CJ5: 445 | CK5: 0.095125 | CL5: 360 | CM5: 0.09 | CN5: 350 | CO5: 0.083 | CP5: 310 | CQ5: 0.07085714286 | CR5: 188 | CS5: 6 | CT5: 182 | CU5: 0.9620028409 | CV5: 87 | CW5: 109 | CX5: 0.48906351 | CY5: 0.6283399709 | CZ5: 0.4066566356 | DA5: 0.550295952 | DB5: 0.5263596848 | DC5: 0.6673536711 | DD5: 208 | DE5: 14 | DF5: 0.06730769231 | DG5: 0.04051373101 | DH5: 0.1097942351 | DI5: No Sig diff | DJ5: 258 | DK5: 21 | DL5: 0.08139534884 | DM5: 0.05385190026 | DN5: 0.12122144 | DO5: No Sig diff | DP5: 129 | DQ5: 7 | DR5: 0.05426356589 | DS5: 0.02653095533 | DT5: 0.1077754501 | DU5: No Sig diff | DV5: 197 | DW5: 15 | DX5: 0.07614213198 | DY5: 0.04668336109 | DZ5: 0.1218150108 | EA5: No Sig diff | EB5: 207 | EC5: 34 | ED5: 0.164 | EE5: 0.12 | EF5: 0.221 | EG5: No Sig diff | EH5: 213 | EI5: 31 | EJ5: 0.146 | EK5: 0.104 | EL5: 0.199 | EM5: No Sig diff | EN5: 205 | EO5: 27 | EP5: 0.1317073171 | EQ5: 0.09211952019 | ER5: 0.1848439676 | ES5: Sig better than Eng. | ET5: 193 | EU5: 19 | EV5: 0.09844559585 | EW5: 0.06393250343 | EX5: 0.1486317555 | EY5: Sig better than Eng. | EZ5: 243 | FA5: 152 | FB5: 0.6255144033 | FC5: 0.5631519851 | FD5: 0.6839701972 | FE5: 243 | FF5: 34 | FG5: 48 | FH5: 26.04166667 | FI5: 0.2340686275 | FJ5: 294 | FK5: 196 | FL5: 0.6666666667 | FM5: 0.6109375059 | FN5: 0.7180966064 | FO5: 294 | FP5: 34 | FQ5: 58 | FR5: 26.5862069 | FS5: 0.2180527383 | FT5: 3760 | FU5: 3670 | FV5: 90 | FW5: 72 | FX5: 18 | FY5: 0.8 | FZ5: 0.2 | GA5: 0.943102904 | GB5: 0.05689709596 | GC5: 0.05411793406 | GD5: 0.181138675 | GE5: 0.9644097222 | GF5: 0.03559027778 | GG5: 0.01761420103 | GH5: 0.1099320713 | GI5: 0.9656723485 | GJ5: 0.03432765152 | GK5: 0.01761420103 | GL5: 0.1099320713 | GM5: 0.868063447 | GN5: 0.131936553 | GO5: 0.09607722098 | GP5: 0.2468897249 | GQ5: 58 | GR5: 56 | GS5: 56 | GT5: 56 | GU5: 56 | GV5: 62 | GW5: 58 | GX5: 57 | GY5: 58 | GZ5: 58 | HA5: 57 | HB5: 59 | HC5: 58 | HD5: 60 | HE5: 59 | HF5: 57 | HG5: 56 | HH5: 55 | HI5: 55 | HJ5: 55 | HK5: 58 | HL5: 54 | HM5: 59 | HN5: 14 | HO5: 0.0106302202 | HP5: 2072 | HQ5: 1939 | HR5: 133 | HS5: 0.06418918919
A6: Bognor Nursery School | C6: Arun West | D6: Arun West South | E6: Arun | F6: Arch | G6: Aldwick East, Aldwick West, Bersted, Hotham, Marine, Pagham and Rose Green, Pevensey | H6: Bognor Regis/Felpham | I6: A | J6: Coastal West Sussex | K6: Bognor Regis and Littlehampton | L6: 30475 | M6: 30680 | N6: 30925 | O6: 31290 | P6: 31455 | Q6: 31615 | R6: 31785 | S6: 31830 | T6: 32005 | U6: 32230 | V6: 1185 | W6: 1220 | X6: 1250 | Y6: 1320 | Z6: 1370 | AA6: 1485 | AB6: 1520 | AC6: 1605 | AD6: 1620 | AE6: 1640 | AF6: 0.8206940874 | AG6: 0.1163239075 | AH6: 0.03470437018 | AI6: 0.02570694087 | AJ6: 0.001285347044 | AK6: 0.001285347044 | AL6: 0.1793059126 | AM6: 2780 | AN6: 0.5402588066 | AO6: 0.1063982746 | AP6: 0.3533429188 | AQ6: 315 | AR6: 328 | AS6: 344 | AT6: 357 | AU6: 338 | AV6: 33 | AW6: 20 | AX6: 22 | AY6: 18 | AZ6: 21 | BA6: 22 | BB6: 0.0650887574 | BC6: 0.04337316918 | BD6: 0.09657901505 | BE6: 39 | BF6: 590 | BG6: 458 | BH6: 203 | BI6: 0.1304395526 | BJ6: 2956 | BK6: 4972 | BL6: 2979 | BM6: 1514 | BN6: 2 | BO6: 478 | BP6: 708 | BQ6: 277 | BR6: 225 | BS6: 215 | BT6: 190 | BU6: 702 | BV6: 263 | BW6: 0.3746438746 | BX6: 63 | BY6: 2 | BZ6: 766 | CA6: 0.05217628227 | CB6: 285 | CC6: 275 | CD6: 300 | CE6: 275 | CF6: 780 | CG6: 0.1623 | CH6: 785 | CI6: 0.15945 | CJ6: 795 | CK6: 0.16625 | CL6: 740 | CM6: 0.16325 | CN6: 745 | CO6: 0.1616 | CP6: 650 | CQ6: 0.1454138702 | CR6: 340 | CS6: 7 | CT6: 333 | CU6: 0.9809369048 | CV6: 123 | CW6: 149 | CX6: 0.3664870984 | CY6: 0.4532575231 | CZ6: 0.3192956647 | DA6: 0.4224226979 | DB6: 0.3949426198 | DC6: 0.5011509743 | DD6: 269 | DE6: 33 | DF6: 0.1226765799 | DG6: 0.08870101484 | DH6: 0.1672771606 | DI6: No Sig diff | DJ6: 228 | DK6: 23 | DL6: 0.100877193 | DM6: 0.0681636914 | DN6: 0.1468170936 | DO6: No Sig diff | DP6: 261 | DQ6: 37 | DR6: 0.1417624521 | DS6: 0.1046297346 | DT6: 0.1892874608 | DU6: Sig worse than Eng. | DV6: 297 | DW6: 28 | DX6: 0.09427609428 | DY6: 0.06603279001 | DZ6: 0.132880814 | EA6: No Sig diff | EB6: 205 | EC6: 42 | ED6: 0.2048780488 | EE6: 0.1552981108 | EF6: 0.2653150152 | EG6: No Sig diff | EH6: 218 | EI6: 44 | EJ6: 0.2018348624 | EK6: 0.1539295078 | EL6: 0.2600664121 | EM6: No Sig diff | EN6: 200 | EO6: 37 | EP6: 0.185 | EQ6: 0.137301928 | ER6: 0.2445706276 | ES6: No Sig diff | ET6: 189 | EU6: 36 | EV6: 0.1904761905 | EW6: 0.1408779636 | EX6: 0.2524060288 | EY6: No Sig diff | EZ6: 314 | FA6: 104 | FB6: 0.3312101911 | FC6: 0.2814684428 | FD6: 0.3850319553 | FE6: 314 | FF6: 31.5 | FG6: 62 | FH6: 20.79032258 | FI6: 0.3399897593 | FJ6: 308 | FK6: 163 | FL6: 0.5292207792 | FM6: 0.473459843 | FN6: 0.5842617956 | FO6: 308 | FP6: 34 | FQ6: 61 | FR6: 23.98360656 | FS6: 0.2945998071 | FT6: 3362 | FU6: 3150 | FV6: 212 | FW6: 153 | FX6: 59 | FY6: 0.7216981132 | FZ6: 0.2783018868 | GA6: 0.861482684 | GB6: 0.138517316 | GC6: 0.1042493062 | GD6: 0.2160737751 | GE6: 0.8610840548 | GF6: 0.1389159452 | GG6: 0.1363626743 | GH6: 0.25810698 | GI6: 0.8990818903 | GJ6: 0.1009181097 | GK6: 0.08345672479 | GL6: 0.1874353079 | GM6: 0.7801001082 | GN6: 0.2198998918 | GO6: 0.2030923486 | GP6: 0.3396704515 | GQ6: 71 | GR6: 70 | GS6: 70 | GT6: 70 | GU6: 70 | GV6: 83 | GW6: 78 | GX6: 81 | GY6: 78 | GZ6: 80 | HA6: 82 | HB6: 78 | HC6: 81 | HD6: 94 | HE6: 89 | HF6: 84 | HG6: 85 | HH6: 85 | HI6: 85 | HJ6: 85 | HK6: 91 | HL6: 83 | HM6: 87 | HN6: 33 | HO6: 0.02124919511 | HP6: 2484 | HQ6: 2170 | HR6: 314 | HS6: 0.1264090177
A7: Boundstone Nursery School | C7: Adur | D7: Adur West | E7: Adur | F7: Adur | G7: Churchill, Cokeham, Manor, Peverel | H7: Lancing | I7: B | J7: Coastal West Sussex | K7: East Worthing and Shoreham | L7: 15885 | M7: 15800 | N7: 15880 | O7: 15870 | P7: 15825 | Q7: 15785 | R7: 15830 | S7: 15875 | T7: 16025 | U7: 16035 | V7: 785 | W7: 785 | X7: 780 | Y7: 805 | Z7: 795 | AA7: 830 | AB7: 875 | AC7: 875 | AD7: 900 | AE7: 890 | AF7: 0.9070034443 | AG7: 0.03099885189 | AH7: 0.03903559127 | AI7: 0.01607347876 | AJ7: 0.002296211251 | AK7: 0.004592422503 | AL7: 0.09299655568 | AM7: 1630 | AN7: 0.6220858896 | AO7: 0.2 | AP7: 0.1779141104 | AQ7: 174 | AR7: 177 | AS7: 160 | AT7: 182 | AU7: 172 | AV7: 11 | AW7: 14 | AX7: 8 | AY7: 8 | AZ7: 3 | BA7: 13 | BB7: 0.07558139535 | BC7: 0.04469943282 | BD7: 0.1250071826 | BE7: 13 | BF7: 273 | BG7: 263 | BH7: 144 | BI7: 0.1399705626 | BJ7: 1701 | BK7: 2988 | BL7: 1715 | BM7: 881 | BN7: 2 | BO7: 268 | BP7: 414 | BQ7: 150 | BR7: 130 | BS7: 130 | BT7: 120 | BU7: 414 | BV7: 173 | BW7: 0.4178743961 | BX7: 48 | BY7: 2 | BZ7: 348 | CA7: 0.04912478826 | CB7: 190 | CC7: 160 | CD7: 155 | CE7: 160 | CF7: 465 | CG7: 0.1712727273 | CH7: 480 | CI7: 0.1873636364 | CJ7: 525 | CK7: 0.1861818182 | CL7: 510 | CM7: 0.1768181818 | CN7: 505 | CO7: 0.1647272727 | CP7: 380 | CQ7: 0.1425891182 | CR7: 191 | CS7: 12 | CT7: 179 | CU7: 0.9289619471 | CV7: 63 | CW7: 77 | CX7: 0.346980497 | CY7: 0.4250503854 | CZ7: 0.2857706658 | DA7: 0.4243609454 | DB7: 0.3598550991 | DC7: 0.5034145288 | DD7: 134 | DE7: 10 | DF7: 0.07462686567 | DG7: 0.04103832527 | DH7: 0.1319245774 | DI7: No Sig diff | DJ7: 133 | DK7: 16 | DL7: 0.1203007519 | DM7: 0.07542181331 | DN7: 0.1864977769 | DO7: No Sig diff | DP7: 145 | DQ7: 17 | DR7: 0.1172413793 | DS7: 0.07450140916 | DT7: 0.1797386334 | DU7: No Sig diff | DV7: 157 | DW7: 12 | DX7: 0.07643312102 | DY7: 0.04426106402 | DZ7: 0.1288377068 | EA7: No Sig diff | EB7: 134 | EC7: 21 | ED7: 0.1567164179 | EE7: 0.1048459259 | EF7: 0.2277206271 | EG7: No Sig diff | EH7: 141 | EI7: 16 | EJ7: 0.1134751773 | EK7: 0.07106584289 | EL7: 0.1763871938 | EM7: Sig better than Eng. | EN7: 124 | EO7: 23 | EP7: 0.185483871 | EQ7: 0.1268975225 | ER7: 0.2629717678 | ES7: No Sig diff | ET7: 120 | EU7: 21 | EV7: 0.175 | EW7: 0.1174053594 | EX7: 0.2527570987 | EY7: No Sig diff | EZ7: 176 | FA7: 88 | FB7: 0.5 | FC7: 0.4269242659 | FD7: 0.5730757341 | FE7: 176 | FF7: 34 | FG7: 35 | FH7: 20.42857143 | FI7: 0.3991596639 | FJ7: 166 | FK7: 94 | FL7: 0.5662650602 | FM7: 0.4902182632 | FN7: 0.6393143029 | FO7: 166 | FP7: 34 | FQ7: 33 | FR7: 21.15151515 | FS7: 0.3778966132 | FT7: 2109 | FU7: 2086 | FV7: 23 | FW7: 19 | FX7: 4 | FY7: 0.8260869565 | FZ7: 0.1739130435 | GA7: 0.8314935065 | GB7: 0.1685064935 | GC7: 0.1061072881 | GD7: 0.262370613 | GE7: 0.8649350649 | GF7: 0.1350649351 | GG7: 0.07975866827 | GH7: 0.2233893605 | GI7: 0.874025974 | GJ7: 0.125974026 | GK7: 0.07125200898 | GL7: 0.2101193957 | GM7: 0.7033549784 | GN7: 0.2966450216 | GO7: 0.2402769167 | GP7: 0.4330737218 | GQ7: 43 | GR7: 43 | GS7: 43 | GT7: 43 | GU7: 43 | GV7: 48 | GW7: 47 | GX7: 48 | GY7: 48 | GZ7: 48 | HA7: 48 | HB7: 47 | HC7: 48 | HD7: 51 | HE7: 50 | HF7: 49 | HG7: 47 | HH7: 49 | HI7: 50 | HJ7: 49 | HK7: 49 | HL7: 49 | HM7: 49 | HN7: 19 | HO7: 0.02181400689 | HP7: 1364 | HQ7: 1181 | HR7: 183 | HS7: 0.1341642229
A8: Broadfield | C8: Crawley | D8: Crawley | E8: Crawley | F8: Crawley | G8: Broadfield North, Broadfield South | H8: Crawley SW | I8: C1 | J8: Crawley | K8: Crawley | L8: 12445 | M8: 12395 | N8: 12545 | O8: 12795 | P8: 12885 | Q8: 12975 | R8: 13115 | S8: 13335 | T8: 13525 | U8: 13620 | V8: 990 | W8: 960 | X8: 985 | Y8: 1050 | Z8: 1105 | AA8: 1125 | AB8: 1140 | AC8: 1215 | AD8: 1225 | AE8: 1240 | AF8: 0.5949367089 | AG8: 0.07426160338 | AH8: 0.08691983122 | AI8: 0.152742616 | AJ8: 0.08101265823 | AK8: 0.01012658228 | AL8: 0.4050632911 | AM8: 2080 | AN8: 0.3618452667 | AO8: 0.4521864488 | AP8: 0.1859682845 | AQ8: 271 | AR8: 217 | AS8: 257 | AT8: 242 | AU8: 230 | AV8: 16 | AW8: 13 | AX8: 15 | AY8: 17 | AZ8: 13 | BA8: 23 | BB8: 0.1 | BC8: 0.06756252938 | BD8: 0.1455795673 | BE8: 33 | BF8: 371 | BG8: 307 | BH8: 237 | BI8: 0.2027033144 | BJ8: 1922 | BK8: 3554 | BL8: 1924 | BM8: 855 | BN8: 0 | BO8: 292 | BP8: 551 | BQ8: 226 | BR8: 220 | BS8: 215 | BT8: 180 | BU8: 554 | BV8: 274 | BW8: 0.4945848375 | BX8: 38 | BY8: 1 | BZ8: 354 | CA8: 0.06901930201 | CB8: 300 | CC8: 305 | CD8: 310 | CE8: 285 | CF8: 865 | CG8: 0.291625 | CH8: 835 | CI8: 0.29075 | CJ8: 920 | CK8: 0.288875 | CL8: 900 | CM8: 0.26975 | CN8: 920 | CO8: 0.27225 | CP8: 835 | CQ8: 0.2569230769 | CR8: 225 | CS8: 5 | CT8: 220 | CU8: 0.9747461485 | CV8: 62 | CW8: 96 | CX8: 0.2800920264 | CY8: 0.4366472866 | CZ8: 0.2265069061 | DA8: 0.3446183896 | DB8: 0.3724771049 | DC8: 0.5024344397 | DD8: 157 | DE8: 13 | DF8: 0.08280254777 | DG8: 0.04902713971 | DH8: 0.1365062361 | DI8: No Sig diff | DJ8: 168 | DK8: 14 | DL8: 0.08333333333 | DM8: 0.05028733508 | DN8: 0.1350082219 | DO8: No Sig diff | DP8: 143 | DQ8: 15 | DR8: 0.1048951049 | DS8: 0.06460411838 | DT8: 0.1658584437 | DU8: No Sig diff | DV8: 163 | DW8: 20 | DX8: 0.1226993865 | DY8: 0.08085012466 | DZ8: 0.1819230441 | EA8: No Sig diff | EB8: 177 | EC8: 36 | ED8: 0.2033898305 | EE8: 0.1506870746 | EF8: 0.2686938534 | EG8: No Sig diff | EH8: 181 | EI8: 38 | EJ8: 0.2099447514 | EK8: 0.1569517947 | EL8: 0.2749938268 | EM8: No Sig diff | EN8: 153 | EO8: 39 | EP8: 0.2549019608 | EQ8: 0.1924372049 | ER8: 0.3293729047 | ES8: No Sig diff | ET8: 158 | EU8: 30 | EV8: 0.1898734177 | EW8: 0.1363635181 | EX8: 0.2581056079 | EY8: No Sig diff | EZ8: 207 | FA8: 69 | FB8: 0.3333333333 | FC8: 0.2726672472 | FD8: 0.4000726381 | FE8: 207 | FF8: 32 | FG8: 41 | FH8: 21.82926829 | FI8: 0.3178353659 | FJ8: 215 | FK8: 109 | FL8: 0.5069767442 | FM8: 0.4406155841 | FN8: 0.5730929701 | FO8: 215 | FP8: 33 | FQ8: 43 | FR8: 23.72093023 | FS8: 0.2811839323 | FT8: 1496 | FU8: 1462 | FV8: 34 | FW8: 31 | FX8: 3 | FY8: 0.9117647059 | FZ8: 0.08823529412 | GA8: 0.8434256716 | GB8: 0.1565743284 | GC8: 0.08748856526 | GD8: 0.2141027967 | GE8: 0.8739462131 | GF8: 0.1260537869 | GG8: 0.06847655704 | GH8: 0.1869256285 | GI8: 0.8394078144 | GJ8: 0.1605921856 | GK8: 0.08988584177 | GL8: 0.2195159621 | GM8: 0.642535416 | GN8: 0.357464584 | GO8: 0.2669722864 | GP8: 0.4385180469 | GQ8: 64 | GR8: 61 | GS8: 62 | GT8: 63 | GU8: 62 | GV8: 68 | GW8: 66 | GX8: 64 | GY8: 66 | GZ8: 66 | HA8: 67 | HB8: 66 | HC8: 67 | HD8: 55 | HE8: 49 | HF8: 50 | HG8: 46 | HH8: 51 | HI8: 51 | HJ8: 47 | HK8: 53 | HL8: 46 | HM8: 53 | HN8: 23 | HO8: 0.0194092827 | HP8: 1876 | HQ8: 1558 | HR8: 318 | HS8: 0.1695095949
A9: Chichester Nursery School | C9: Chichester | D9: Chichester Central | E9: Chichester | F9: Arch | G9: Chichester East, Chichester North, Chichester South, Chichester West | H9: Chichester | I9: A | J9: Coastal West Sussex | K9: Chichester | L9: 19720 | M9: 19985 | N9: 20275 | O9: 20625 | P9: 21090 | Q9: 21365 | R9: 21635 | S9: 22095 | T9: 22315 | U9: 22590 | V9: 905 | W9: 890 | X9: 915 | Y9: 960 | Z9: 1035 | AA9: 1125 | AB9: 1150 | AC9: 1190 | AD9: 1280 | AE9: 1270 | AF9: 0.8199658703 | AG9: 0.05204778157 | AH9: 0.04010238908 | AI9: 0.07081911263 | AJ9: 0.01279863481 | AK9: 0.004266211604 | AL9: 0.1800341297 | AM9: 2055 | AN9: 0.3959143969 | AO9: 0.361381323 | AP9: 0.2427042802 | AQ9: 289 | AR9: 258 | AS9: 276 | AT9: 263 | AU9: 249 | AV9: 21 | AW9: 13 | AX9: 12 | AY9: 12 | AZ9: 11 | BA9: 19 | BB9: 0.07630522088 | BC9: 0.04939141983 | BD9: 0.1160935407 | BE9: 24 | BF9: 419 | BG9: 336 | BH9: 165 | BI9: 0.1301606354 | BJ9: 2127 | BK9: 3619 | BL9: 2146 | BM9: 1061 | BN9: 1 | BO9: 342 | BP9: 569 | BQ9: 173 | BR9: 195 | BS9: 205 | BT9: 180 | BU9: 568 | BV9: 201 | BW9: 0.3538732394 | BX9: 31 | BY9: 4 | BZ9: 447 | CA9: 0.04390962672 | CB9: 270 | CC9: 255 | CD9: 285 | CE9: 240 | CF9: 630 | CG9: 0.1815384615 | CH9: 625 | CI9: 0.1954615385 | CJ9: 655 | CK9: 0.1872307692 | CL9: 640 | CM9: 0.1777692308 | CN9: 580 | CO9: 0.1758461538 | CP9: 620 | CQ9: 0.1845238095 | CR9: 248 | CS9: 20 | CT9: 228 | CU9: 0.9071000967 | CV9: 110 | CW9: 137 | CX9: 0.5103525614 | CY9: 0.6346676579 | CZ9: 0.4184236882 | DA9: 0.5470699937 | DB9: 0.5361449129 | DC9: 0.6622664162 | DD9: 189 | DE9: 16 | DF9: 0.08465608466 | DG9: 0.05277929523 | DH9: 0.133080421 | DI9: No Sig diff | DJ9: 168 | DK9: 16 | DL9: 0.09523809524 | DM9: 0.0594743094 | DN9: 0.1490985174 | DO9: No Sig diff | DP9: 182 | DQ9: 11 | DR9: 0.06043956044 | DS9: 0.03408023846 | DT9: 0.1049708591 | DU9: No Sig diff | DV9: 196 | DW9: 18 | DX9: 0.09183673469 | DY9: 0.05888106512 | DZ9: 0.1404842671 | EA9: No Sig diff | EB9: 154 | EC9: 26 | ED9: 0.1688311688 | EE9: 0.117898034 | EF9: 0.2358839143 | EG9: No Sig diff | EH9: 164 | EI9: 31 | EJ9: 0.1890243902 | EK9: 0.1364830694 | EL9: 0.255800573 | EM9: No Sig diff | EN9: 158 | EO9: 29 | EP9: 0.1835443038 | EQ9: 0.1309442092 | ER9: 0.2511671439 | ES9: No Sig diff | ET9: 140 | EU9: 17 | EV9: 0.1214285714 | EW9: 0.07721261463 | EX9: 0.1858649371 | EY9: Sig better than Eng. | EZ9: 227 | FA9: 104 | FB9: 0.4581497797 | FC9: 0.3945685556 | FD9: 0.5231238723 | FE9: 227 | FF9: 33 | FG9: 45 | FH9: 21.17777778 | FI9: 0.3582491582 | FJ9: 226 | FK9: 114 | FL9: 0.5044247788 | FM9: 0.4397129326 | FN9: 0.5689887177 | FO9: 226 | FP9: 34 | FQ9: 45 | FR9: 21.11111111 | FS9: 0.3790849673 | FT9: 3106 | FU9: 2866 | FV9: 240 | FW9: 204 | FX9: 36 | FY9: 0.85 | FZ9: 0.15 | GA9: 0.7380952381 | GB9: 0.2619047619 | GC9: 0.1824141606 | GD9: 0.4317952774 | GE9: 0.7954822955 | GF9: 0.2045177045 | GG9: 0.1330769103 | GH9: 0.3653953591 | GI9: 0.7031746032 | GJ9: 0.2968253968 | GK9: 0.1824141606 | GL9: 0.4317952774 | GM9: 0.5766788767 | GN9: 0.4233211233 | GO9: 0.3447109002 | GP9: 0.6167100436 | GQ9: 63 | GR9: 61 | GS9: 61 | GT9: 62 | GU9: 60 | GV9: 63 | GW9: 60 | GX9: 60 | GY9: 60 | GZ9: 60 | HA9: 62 | HB9: 60 | HC9: 61 | HD9: 65 | HE9: 58 | HF9: 58 | HG9: 54 | HH9: 56 | HI9: 58 | HJ9: 55 | HK9: 58 | HL9: 56 | HM9: 59 | HN9: 23 | HO9: 0.01965811966 | HP9: 1797 | HQ9: 1563 | HR9: 234 | HS9: 0.1302170284
A10: Durrington | C10: Worthing | D10: Worthing | E10: Worthing | F10: CCC | G10: Durrington, Northbrook, Salvington | H10: Worthing | I10: B | J10: Coastal West Sussex | K10: Worthing West | L10: 13400 | M10: 13385 | N10: 13345 | O10: 13375 | P10: 13325 | Q10: 13320 | R10: 13355 | S10: 13510 | T10: 13590 | U10: 13685 | V10: 765 | W10: 790 | X10: 805 | Y10: 830 | Z10: 855 | AA10: 845 | AB10: 865 | AC10: 915 | AD10: 905 | AE10: 885 | AF10: 0.8840262582 | AG10: 0.03172866521 | AH10: 0.04814004376 | AI10: 0.02625820569 | AJ10: 0.005470459519 | AK10: 0.004376367615 | AL10: 0.1159737418 | AM10: 1755 | AN10: 0.5236737022 | AO10: 0.2738163149 | AP10: 0.2025099829 | AQ10: 173 | AR10: 162 | AS10: 167 | AT10: 138 | AU10: 151 | AV10: 15 | AW10: 8 | AX10: 5 | AY10: 5 | AZ10: 5 | BA10: 11 | BB10: 0.07284768212 | BC10: 0.04116107176 | BD10: 0.12572872 | BE10: 12 | BF10: 235 | BG10: 245 | BH10: 197 | BI10: 0.1816360801 | BJ10: 1712 | BK10: 3142 | BL10: 1599 | BM10: 821 | BN10: 0 | BO10: 244 | BP10: 398 | BQ10: 136 | BR10: 165 | BS10: 135 | BT10: 80 | BU10: 461 | BV10: 196 | BW10: 0.4251626898 | BX10: 44 | BY10: 2 | BZ10: 315 | CA10: 0.05554575913 | CB10: 210 | CC10: 220 | CD10: 215 | CE10: 170 | CF10: 655 | CG10: 0.2107777778 | CH10: 675 | CI10: 0.2068888889 | CJ10: 700 | CK10: 0.237 | CL10: 645 | CM10: 0.2286666667 | CN10: 670 | CO10: 0.2148888889 | CP10: 550 | CQ10: 0.2022058824 | CR10: 146 | CS10: 13 | CT10: 133 | CU10: 0.9342080469 | CV10: 48 | CW10: 67 | CX10: 0.3801280577 | CY10: 0.5149336707 | CZ10: 0.2842440865 | DA10: 0.4453702997 | DB10: 0.4198806659 | DC10: 0.5874270533 | DD10: 122 | DE10: 13 | DF10: 0.106557377 | DG10: 0.06333699612 | DH10: 0.1737983574 | DI10: No Sig diff | DJ10: 133 | DK10: 13 | DL10: 0.0977443609 | DM10: 0.05801480382 | DN10: 0.1600584254 | DO10: No Sig diff | DP10: 150 | DQ10: 12 | DR10: 0.08 | DS10: 0.04635364152 | DT10: 0.1346213638 | DU10: No Sig diff | DV10: 170 | DW10: 13 | DX10: 0.07647058824 | DY10: 0.04523178054 | DZ10: 0.1264272646 | EA10: No Sig diff | EB10: 115 | EC10: 15 | ED10: 0.1304347826 | EE10: 0.08066384693 | EF10: 0.2040975415 | EG10: No Sig diff | EH10: 132 | EI10: 18 | EJ10: 0.1363636364 | EK10: 0.08802845887 | EL10: 0.2052653497 | EM10: No Sig diff | EN10: 130 | EO10: 32 | EP10: 0.2461538462 | EQ10: 0.1800979238 | ER10: 0.3267813303 | ES10: No Sig diff | ET10: 127 | EU10: 14 | EV10: 0.1102362205 | EW10: 0.06681000218 | EX10: 0.1765490914 | EY10: Sig better than Eng. | EZ10: 193 | FA10: 111 | FB10: 0.5751295337 | FC10: 0.5045918611 | FD10: 0.6427348259 | FE10: 193 | FF10: 34 | FG10: 38 | FH10: 22.71052632 | FI10: 0.3320433437 | FJ10: 179 | FK10: 106 | FL10: 0.5921787709 | FM10: 0.518984294 | FN10: 0.6614999365 | FO10: 179 | FP10: 34 | FQ10: 35 | FR10: 23.68571429 | FS10: 0.3033613445 | FT10: 2189 | FU10: 2150 | FV10: 39 | FW10: 29 | FX10: 10 | FY10: 0.7435897436 | FZ10: 0.2564102564 | GB10: 0.1388888889 | GC10: 0.06081725363 | GD10: 0.2865985128 | GF10: 0.1111111111 | GG10: 0.04406568909 | GH10: 0.2531512902 | GJ10: 0.1388888889 | GK10: 0.06081725363 | GL10: 0.2865985128 | GN10: 0.2777777778 | GO10: 0.1584817003 | GP10: 0.4399280022 | GQ10: 44 | GR10: 44 | GS10: 44 | GT10: 44 | GU10: 44 | GV10: 49 | GW10: 45 | GX10: 47 | GY10: 44 | GZ10: 47 | HA10: 48 | HB10: 44 | HC10: 47 | HD10: 52 | HE10: 50 | HF10: 50 | HG10: 48 | HH10: 50 | HI10: 50 | HJ10: 48 | HK10: 50 | HL10: 50 | HM10: 50 | HN10: 21 | HO10: 0.02297592998 | HP10: 1339 | HQ10: 1144 | HR10: 195 | HS10: 0.145631068
A11: East Preston | C11: Arun East | D11: Arun East | E11: Arun | F11: Arun | G11: Beach, Brookfield, East Preston with Kingston, Rustington East, Rustington West | H11: Angmering | I11: B | J11: Coastal West Sussex | K11: Worthing West | L11: 18385 | M11: 18325 | N11: 18400 | O11: 18435 | P11: 18385 | Q11: 18475 | R11: 18365 | S11: 18420 | T11: 18370 | U11: 18475 | V11: 700 | W11: 680 | X11: 700 | Y11: 690 | Z11: 665 | AA11: 665 | AB11: 630 | AC11: 625 | AD11: 640 | AE11: 640 | AF11: 0.9219745223 | AG11: 0.03662420382 | AH11: 0.02866242038 | AI11: 0.007961783439 | AJ11: 0.004777070064 | AK11: 0 | AL11: 0.07802547771 | AM11: 1305 | AN11: 0.7057471264 | AO11: 0.08275862069 | AP11: 0.2114942529 | AQ11: 109 | AR11: 130 | AS11: 144 | AT11: 114 | AU11: 112 | AV11: 6 | AW11: 6 | AX11: 4 | AY11: 5 | AZ11: 3 | BA11: 9 | BB11: 0.08035714286 | BC11: 0.04285057784 | BD11: 0.1456955527 | BE11: 7 | BF11: 215 | BG11: 210 | BH11: 80 | BI11: 0.1317084688 | BJ11: 1518 | BK11: 2647 | BL11: 1520 | BM11: 917 | BN11: 0 | BO11: 193 | BP11: 305 | BQ11: 105 | BR11: 65 | BS11: 70 | BT11: 55 | BU11: 305 | BV11: 84 | BW11: 0.2754098361 | BX11: 35 | BY11: 6 | BZ11: 225 | CA11: 0.02542660188 | CB11: 85 | CC11: 95 | CD11: 100 | CE11: 75 | CF11: 265 | CG11: 0.12575 | CH11: 230 | CI11: 0.1129166667 | CJ11: 275 | CK11: 0.1088333333 | CL11: 280 | CM11: 0.09058333333 | CN11: 315 | CO11: 0.1048333333 | CP11: 250 | CQ11: 0.1084598698 | CR11: 115 | CS11: 5 | CT11: 110 | CU11: 0.9703444703 | CV11: 36 | CW11: 49 | CX11: 0.3201645212 | CY11: 0.4422965558 | CZ11: 0.2467099922 | DA11: 0.4194928721 | DB11: 0.3559755712 | DC11: 0.5386148071 | DD11: 100 | DE11: 5 | DF11: 0.05 | DG11: 0.02154367915 | DH11: 0.1117504692 | DI11: No Sig diff | DJ11: 108 | DK11: 11 | DL11: 0.1018518519 | DM11: 0.05782931759 | DN11: 0.1732250615 | DO11: No Sig diff | DP11: 83 | DQ11: 6 | DR11: 0.07228915663 | DS11: 0.03355029552 | DT11: 0.1488678609 | DU11: No Sig diff | DV11: 130 | DW11: 10 | DX11: 0.07692307692 | DY11: 0.04231743709 | DZ11: 0.1358146532 | EA11: No Sig diff | EB11: 144 | EC11: 19 | ED11: 0.1319444444 | EE11: 0.08612287094 | EF11: 0.196892862 | EG11: No Sig diff | EH11: 139 | EI11: 20 | EJ11: 0.1438848921 | EK11: 0.09511407773 | EL11: 0.2118098307 | EM11: No Sig diff | EN11: 117 | EO11: 11 | EP11: 0.09401709402 | EQ11: 0.05331046194 | ER11: 0.1605355068 | ES11: Sig better than Eng. | ET11: 132 | EU11: 16 | EV11: 0.1212121212 | EW11: 0.07600416871 | EX11: 0.1878435486 | EY11: Sig better than Eng. | EZ11: 143 | FA11: 75 | FB11: 0.5244755245 | FC11: 0.4430584683 | FD11: 0.6046119925 | FE11: 143 | FF11: 34 | FG11: 28 | FH11: 26.03571429 | FI11: 0.2342436975 | FJ11: 151 | FK11: 101 | FL11: 0.6688741722 | FM11: 0.5904398227 | FN11: 0.7389293294 | FO11: 151 | FP11: 34 | FQ11: 30 | FR11: 25.06666667 | FS11: 0.262745098 | FT11: 1891 | FU11: 1871 | FV11: 20 | FW11: 17 | FX11: 3 | FY11: 0.85 | FZ11: 0.15 | GA11: 0.94504477 | GB11: 0.05495522996 | GC11: 0.02423252108 | GD11: 0.1248558186 | GE11: 0.9593304843 | GF11: 0.04066951567 | GG11: 0.01761420103 | GH11: 0.1099320713 | GI11: 0.9685897436 | GJ11: 0.03141025641 | GK11: 0.01152901222 | GL11: 0.09447519279 | GM11: 0.8374643875 | GN11: 0.1625356125 | GO11: 0.1164936796 | GP11: 0.2780568347 | GQ11: 32 | GR11: 31 | GS11: 31 | GT11: 32 | GU11: 31 | GV11: 41 | GW11: 41 | GX11: 40 | GY11: 41 | GZ11: 40 | HA11: 41 | HB11: 40 | HC11: 40 | HD11: 37 | HE11: 36 | HF11: 36 | HG11: 35 | HH11: 36 | HI11: 36 | HJ11: 35 | HK11: 37 | HL11: 35 | HM11: 37 | HN11: 17 | HO11: 0.02711323764 | HP11: 1001 | HQ11: 902 | HR11: 99 | HS11: 0.0989010989
A12: EG Library | C12: Mid Sussex | D12: Mid Sussex | E12: Mid Sussex | F12: Mid Sussex | G12: Ashurst Wood, East Grinstead Herontye, East Grinstead Imberhorne, East Grinstead Town | H12: East Grinstead | I12: C2 | J12: Horsham and Mid Sussex | K12: Mid Sussex | L12: 12920 | M12: 13055 | N12: 13210 | O12: 13500 | P12: 13645 | Q12: 13800 | R12: 13935 | S12: 13995 | T12: 14095 | U12: 14340 | V12: 620 | W12: 630 | X12: 660 | Y12: 705 | Z12: 720 | AA12: 735 | AB12: 760 | AC12: 750 | AD12: 760 | AE12: 740 | AF12: 0.8971962617 | AG12: 0.04272363151 | AH12: 0.02670226969 | AI12: 0.02403204272 | AJ12: 0.008010680908 | AK12: 0.001335113485 | AL12: 0.1028037383 | AM12: 1465 | AN12: 0.7283276451 | AO12: 0.09692832765 | AP12: 0.1747440273 | AQ12: 125 | AR12: 138 | AS12: 133 | AT12: 121 | AU12: 135 | AV12: 4 | AW12: 4 | AX12: 5 | AY12: 1 | AZ12: 1 | BA12: 9 | BB12: 0.06666666667 | BC12: 0.03546689778 | BD12: 0.1218453273 | BE12: 5 | BF12: 200 | BG12: 262 | BH12: 111 | BI12: 0.1428863995 | BJ12: 1580 | BK12: 2804 | BL12: 1939 | BM12: 1346 | BN12: 0 | BO12: 191 | BP12: 296 | BQ12: 106 | BR12: 45 | BS12: 55 | BT12: 35 | BU12: 275 | BV12: 50 | BW12: 0.1818181818 | BX12: 20 | BY12: 10 | BZ12: 148 | CA12: 0.02498311951 | CB12: 65 | CC12: 60 | CD12: 50 | CE12: 55 | CF12: 160 | CG12: 0.07911111111 | CH12: 155 | CI12: 0.07144444444 | CJ12: 170 | CK12: 0.07733333333 | CL12: 155 | CM12: 0.06588888889 | CN12: 175 | CO12: 0.06655555556 | CP12: 135 | CQ12: 0.06040268456 | CR12: 131 | CS12: 4 | CT12: 127 | CU12: 0.9699074074 | CV12: 65 | CW12: 82 | CX12: 0.5267196572 | CY12: 0.6597586793 | CZ12: 0.4258126379 | DA12: 0.5971158497 | DB12: 0.5593225831 | DC12: 0.723462097 | DD12: 93 | DE12: 7 | DF12: 0.0752688172 | DG12: 0.03693668398 | DH12: 0.147297001 | DI12: No Sig diff | DJ12: 117 | DK12: 6 | DL12: 0.05128205128 | DM12: 0.02371237853 | DN12: 0.1073805342 | DO12: No Sig diff | DP12: 99 | DQ12: 4 | DR12: 0.0404040404 | DS12: 0.01582263899 | DT12: 0.0993202125 | DU12: No Sig diff | DV12: 127 | DW12: 9 | DX12: 0.07086614173 | DY12: 0.03772805926 | DZ12: 0.1292026599 | EA12: No Sig diff | EB12: 89 | EC12: 18 | ED12: 0.202247191 | EE12: 0.1319378273 | EF12: 0.2971965198 | EG12: No Sig diff | EH12: 88 | EI12: 11 | EJ12: 0.125 | EK12: 0.07125274152 | EL12: 0.2101175585 | EM12: No Sig diff | EN12: 114 | EO12: 10 | EP12: 0.08771929825 | EQ12: 0.04834510541 | ER12: 0.1539729842 | ES12: Sig better than Eng. | ET12: 99 | EU12: 7 | EV12: 0.07070707071 | EW12: 0.03467023028 | EX12: 0.1388148508 | EY12: Sig better than Eng. | EZ12: 147 | FA12: 81 | FB12: 0.5510204082 | FC12: 0.4703352373 | FD12: 0.6291069195 | FE12: 147 | FF12: 34 | FG12: 29 | FH12: 25.34482759 | FI12: 0.2545638945 | FJ12: 126 | FK12: 91 | FL12: 0.7222222222 | FM12: 0.6383259339 | FN12: 0.7929692819 | FO12: 126 | FP12: 34 | FQ12: 25 | FR12: 26.84 | FS12: 0.2105882353 | FT12: 2038 | FU12: 1990 | FV12: 48 | FW12: 42 | FX12: 6 | FY12: 0.875 | FZ12: 0.125 | GA12: 0.9186533873 | GB12: 0.08134661272 | GC12: 0.07209751491 | GD12: 0.2228199533 | GE12: 0.925189335 | GF12: 0.07481066501 | GG12: 0.06272491065 | GH12: 0.2074528196 | GI12: 0.909394128 | GJ12: 0.09060587198 | GK12: 0.08168247824 | GL12: 0.237974728 | GM12: 0.811048864 | GN12: 0.188951136 | GO12: 0.1321496594 | GP12: 0.3112062366 | GQ12: 38 | GR12: 36 | GS12: 36 | GT12: 36 | GU12: 36 | GV12: 36 | GW12: 34 | GX12: 34 | GY12: 34 | GZ12: 34 | HA12: 34 | HB12: 34 | HC12: 34 | HD12: 46 | HE12: 42 | HF12: 42 | HG12: 40 | HH12: 40 | HI12: 43 | HJ12: 40 | HK12: 42 | HL12: 41 | HM12: 42 | HN12: 13 | HO12: 0.0173564753 | HP12: 1182 | HQ12: 1119 | HR12: 63 | HS12: 0.05329949239
A13: EG Urban (Blackwells) | C13: Mid Sussex | D13: Mid Sussex | E13: Mid Sussex | F13: Mid Sussex | G13: East Grinstead Ashplats, East Grinstead Baldwins, East Grinstead Town | H13: East Grinstead | I13: C2 | J13: Horsham and Mid Sussex | K13: Mid Sussex | L13: 11425 | M13: 11570 | N13: 11630 | O13: 11770 | P13: 11975 | Q13: 12235 | R13: 12420 | S13: 12625 | T13: 12605 | U13: 12705 | V13: 740 | W13: 720 | X13: 710 | Y13: 705 | Z13: 740 | AA13: 730 | AB13: 790 | AC13: 795 | AD13: 865 | AE13: 845 | AF13: 0.8523153942 | AG13: 0.04005006258 | AH13: 0.06007509387 | AI13: 0.04005006258 | AJ13: 0.005006257822 | AK13: 0.002503128911 | AL13: 0.1476846058 | AM13: 1525 | AN13: 0.6509495743 | AO13: 0.1892599869 | AP13: 0.1597904388 | AQ13: 137 | AR13: 147 | AS13: 158 | AT13: 170 | AU13: 131 | AV13: 5 | AW13: 7 | AX13: 7 | AY13: 5 | AZ13: 2 | BA13: 9 | BB13: 0.06870229008 | BC13: 0.03656254565 | BD13: 0.1254162627 | BE13: 6 | BF13: 249 | BG13: 267 | BH13: 115 | BI13: 0.1189193839 | BJ13: 1596 | BK13: 2772 | BL13: 1536 | BM13: 1047 | BN13: 1 | BO13: 176 | BP13: 235 | BQ13: 77 | BR13: 65 | BS13: 70 | BT13: 50 | BU13: 316 | BV13: 85 | BW13: 0.2689873418 | BX13: 26 | BY13: 8 | BZ13: 165 | CA13: 0.03148854962 | CB13: 90 | CC13: 110 | CD13: 95 | CE13: 75 | CF13: 250 | CG13: 0.08814285714 | CH13: 270 | CI13: 0.08671428571 | CJ13: 250 | CK13: 0.1018571429 | CL13: 205 | CM13: 0.108 | CN13: 210 | CO13: 0.1001428571 | CP13: 230 | CQ13: 0.09563409563 | CR13: 152 | CS13: 6 | CT13: 146 | CU13: 0.9565251388 | CV13: 63 | CW13: 80 | CX13: 0.4314889592 | CY13: 0.5373494852 | CZ13: 0.353939193 | DA13: 0.5125865248 | DB13: 0.4670164918 | DC13: 0.6264155057 | DD13: 87 | DE13: 7 | DF13: 0.08045977011 | DG13: 0.03952027109 | DH13: 0.1568818899 | DI13: No Sig diff | DJ13: 119 | DK13: 10 | DL13: 0.08403361345 | DM13: 0.04628480919 | DN13: 0.1477983534 | DO13: No Sig diff | DP13: 104 | DQ13: 5 | DR13: 0.04807692308 | DS13: 0.02070804233 | DT13: 0.107642028 | DU13: No Sig diff | DV13: 145 | DW13: 13 | DX13: 0.08965517241 | DY13: 0.05314353029 | DZ13: 0.1473480468 | EA13: No Sig diff | EB13: 105 | EC13: 12 | ED13: 0.1142857143 | EE13: 0.06659702004 | EF13: 0.1892012679 | EG13: No Sig diff | EH13: 116 | EI13: 10 | EJ13: 0.08620689655 | EK13: 0.0474993548 | EL13: 0.1514423058 | EM13: Sig better than Eng. | EN13: 105 | EO13: 18 | EP13: 0.1714285714 | EQ13: 0.1112778538 | ER13: 0.2547725396 | ES13: No Sig diff | ET13: 125 | EU13: 18 | EV13: 0.144 | EW13: 0.09306895025 | EX13: 0.2161596101 | EY13: No Sig diff | EZ13: 159 | FA13: 102 | FB13: 0.641509434 | FC13: 0.5644399555 | FD13: 0.7119024473 | FE13: 159 | FF13: 34 | FG13: 31 | FH13: 26.90322581 | FI13: 0.2087286528 | FJ13: 141 | FK13: 83 | FL13: 0.5886524823 | FM13: 0.5061293118 | FN13: 0.6664732028 | FO13: 141 | FP13: 34 | FQ13: 28 | FR13: 25.78571429 | FS13: 0.2415966387 | FT13: 1928 | FU13: 1895 | FV13: 33 | FW13: 30 | FX13: 3 | FY13: 0.9090909091 | FZ13: 0.09090909091 | GA13: 0.8741039912 | GB13: 0.1258960088 | GC13: 0.08167987995 | GD13: 0.2008898763 | GE13: 0.913884211 | GF13: 0.08611578897 | GG13: 0.03896990061 | GH13: 0.133225972 | GI13: 0.8680743066 | GJ13: 0.1319256934 | GK13: 0.08236340084 | GL13: 0.2024517954 | GM13: 0.7617296989 | GN13: 0.2382703011 | GO13: 0.1765226612 | GP13: 0.3267948624 | GQ13: 40 | GR13: 39 | GS13: 39 | GT13: 39 | GU13: 39 | GV13: 34 | GW13: 31 | GX13: 32 | GY13: 31 | GZ13: 32 | HA13: 32 | HB13: 31 | HC13: 32 | HD13: 41 | HE13: 33 | HF13: 36 | HG13: 34 | HH13: 36 | HI13: 37 | HJ13: 35 | HK13: 34 | HL13: 34 | HM13: 37 | HN13: 15 | HO13: 0.01877346683 | HP13: 1264 | HQ13: 1157 | HR13: 107 | HS13: 0.08465189873
A14: Felpham | C14: Arun West | D14: Arun West South | E14: Arun | F14: Arch | G14: Felpham East, Felpham West, Hotham, Middleton-on-sea | H14: Bognor Regis/Felpham | I14: A | J14: Coastal West Sussex | K14: Bognor Regis and Littlehampton | L14: 19585 | M14: 19635 | N14: 19660 | O14: 19650 | P14: 19765 | Q14: 19785 | R14: 19715 | S14: 19595 | T14: 19835 | U14: 20120 | V14: 800 | W14: 785 | X14: 770 | Y14: 780 | Z14: 785 | AA14: 795 | AB14: 840 | AC14: 815 | AD14: 905 | AE14: 970 | AF14: 0.913899139 | AG14: 0.0430504305 | AH14: 0.024600246 | AI14: 0.0135301353 | AJ14: 0.0024600246 | AK14: 0.0024600246 | AL14: 0.08610086101 | AM14: 1660 | AN14: 0.6847172082 | AO14: 0.06377858002 | AP14: 0.2515042118 | AQ14: 140 | AR14: 159 | AS14: 169 | AT14: 163 | AU14: 155 | AV14: 10 | AW14: 9 | AX14: 9 | AY14: 9 | AZ14: 6 | BA14: 13 | BB14: 0.08387096774 | BC14: 0.04966832872 | BD14: 0.1382011296 | BE14: 17 | BF14: 250 | BG14: 266 | BH14: 117 | BI14: 0.1250186956 | BJ14: 1883 | BK14: 3273 | BL14: 1896 | BM14: 1082 | BN14: 0 | BO14: 244 | BP14: 431 | BQ14: 139 | BR14: 105 | BS14: 115 | BT14: 95 | BU14: 430 | BV14: 125 | BW14: 0.2906976744 | BX14: 47 | BY14: 5 | BZ14: 294 | CA14: 0.03415427509 | CB14: 130 | CC14: 140 | CD14: 150 | CE14: 170 | CF14: 325 | CG14: 0.13775 | CH14: 350 | CI14: 0.1109166667 | CJ14: 355 | CK14: 0.12125 | CL14: 345 | CM14: 0.1205 | CN14: 395 | CO14: 0.11575 | CP14: 390 | CQ14: 0.132879046 | CR14: 178 | CS14: 6 | CT14: 172 | CU14: 0.9594266844 | CV14: 68 | CW14: 81 | CX14: 0.4320575666 | CY14: 0.4912864505 | CZ14: 0.325332335 | DA14: 0.4699379537 | DB14: 0.3977840513 | DC14: 0.5453465844 | DD14: 149 | DE14: 10 | DF14: 0.06711409396 | DG14: 0.03686034061 | DH14: 0.1191278252 | DI14: No Sig diff | DJ14: 179 | DK14: 16 | DL14: 0.08938547486 | DM14: 0.0557687008 | DN14: 0.1402560906 | DO14: No Sig diff | DP14: 138 | DQ14: 15 | DR14: 0.1086956522 | DS14: 0.06698539779 | DT14: 0.1716011135 | DU14: No Sig diff | DV14: 191 | DW14: 18 | DX14: 0.0942408377 | DY14: 0.06044441483 | DZ14: 0.1440370085 | EA14: No Sig diff | EB14: 175 | EC14: 22 | ED14: 0.1257142857 | EE14: 0.08450475362 | EF14: 0.1830028989 | EG14: Sig better than Eng. | EH14: 136 | EI14: 24 | EJ14: 0.1764705882 | EK14: 0.121552174 | EL14: 0.2491637729 | EM14: No Sig diff | EN14: 155 | EO14: 19 | EP14: 0.1225806452 | EQ14: 0.0798966681 | ER14: 0.1835198173 | ES14: Sig better than Eng. | ET14: 164 | EU14: 23 | EV14: 0.1402439024 | EW14: 0.09530391957 | EX14: 0.2016516668 | EY14: No Sig diff | EZ14: 190 | FA14: 81 | FB14: 0.4263157895 | FC14: 0.3581418551 | FD14: 0.4974102019 | FE14: 190 | FF14: 33 | FG14: 38 | FH14: 22.76315789 | FI14: 0.3102073365 | FJ14: 198 | FK14: 99 | FL14: 0.5 | FM14: 0.4310216332 | FN14: 0.5689783668 | FO14: 198 | FP14: 33.5 | FQ14: 39 | FR14: 22.17948718 | FS14: 0.3379257558 | FT14: 2287 | FU14: 2241 | FV14: 46 | FW14: 33 | FX14: 13 | FY14: 0.7173913043 | FZ14: 0.2826086957 | GA14: 0.8884259259 | GB14: 0.1115740741 | GC14: 0.06364479272 | GD14: 0.198807652 | GE14: 0.8898148148 | GF14: 0.1101851852 | GG14: 0.06364479272 | GH14: 0.198807652 | GI14: 0.887962963 | GJ14: 0.112037037 | GK14: 0.06364479272 | GL14: 0.198807652 | GM14: 0.7731481481 | GN14: 0.2268518519 | GO14: 0.1733308743 | GP14: 0.3533177096 | GQ14: 41 | GR14: 39 | GS14: 39 | GT14: 40 | GU14: 40 | GV14: 51 | GW14: 50 | GX14: 51 | GY14: 50 | GZ14: 51 | HA14: 51 | HB14: 50 | HC14: 51 | HD14: 58 | HE14: 57 | HF14: 56 | HG14: 53 | HH14: 56 | HI14: 56 | HJ14: 53 | HK14: 55 | HL14: 54 | HM14: 57 | HN14: 22 | HO14: 0.0270602706 | HP14: 1298 | HQ14: 1163 | HR14: 135 | HS14: 0.1040061633
A15: Findon | C15: Worthing | D15: Worthing | E15: Worthing | F15: CCC | G15: Findon, Broadwater, Offington, Salvington | H15: Worthing | I15: B | J15: Coastal West Sussex | K15: East Worthing and Shoreham | L15: 20260 | M15: 20380 | N15: 20385 | O15: 20465 | P15: 20610 | Q15: 20715 | R15: 20880 | S15: 21010 | T15: 21080 | U15: 21065 | V15: 990 | W15: 980 | X15: 975 | Y15: 970 | Z15: 1010 | AA15: 970 | AB15: 1000 | AC15: 1030 | AD15: 1000 | AE15: 970 | AF15: 0.9076190476 | AG15: 0.02666666667 | AH15: 0.05333333333 | AI15: 0.009523809524 | AJ15: 0.0009523809524 | AK15: 0.001904761905 | AL15: 0.09238095238 | AM15: 2130 | AN15: 0.7840375587 | AO15: 0.03568075117 | AP15: 0.1802816901 | AQ15: 189 | AR15: 158 | AS15: 178 | AT15: 153 | AU15: 160 | AV15: 4 | AW15: 8 | AX15: 7 | AY15: 3 | AZ15: 5 | BA15: 7 | BB15: 0.04375 | BC15: 0.02135161155 | BD15: 0.08754304154 | BE15: 13 | BF15: 329 | BG15: 333 | BH15: 143 | BI15: 0.1346246371 | BJ15: 2320 | BK15: 4068 | BL15: 2557 | BM15: 1588 | BN15: 2 | BO15: 322 | BP15: 476 | BQ15: 169 | BR15: 100 | BS15: 90 | BT15: 45 | BU15: 371 | BV15: 99 | BW15: 0.2668463612 | BX15: 34 | BY15: 8 | BZ15: 215 | CA15: 0.02387827632 | CB15: 115 | CC15: 115 | CD15: 110 | CE15: 85 | CF15: 285 | CG15: 0.07385714286 | CH15: 250 | CI15: 0.07342857143 | CJ15: 285 | CK15: 0.0815 | CL15: 255 | CM15: 0.07378571429 | CN15: 260 | CO15: 0.08464285714 | CP15: 255 | CQ15: 0.07566765579 | CR15: 170 | CS15: 8 | CT15: 162 | CU15: 0.9549698726 | CV15: 58 | CW15: 84 | CX15: 0.4083899994 | CY15: 0.5585264875 | CZ15: 0.2882726216 | DA15: 0.4343542706 | DB15: 0.442041485 | DC15: 0.594137616 | DD15: 149 | DE15: 12 | DF15: 0.08053691275 | DG15: 0.04666884753 | DH15: 0.1354902279 | DI15: No Sig diff | DJ15: 195 | DK15: 12 | DL15: 0.06153846154 | DM15: 0.03554956291 | DN15: 0.1044688165 | DO15: No Sig diff | DP15: 178 | DQ15: 11 | DR15: 0.06179775281 | DS15: 0.03485387229 | DT15: 0.1072559578 | DU15: No Sig diff | DV15: 217 | DW15: 25 | DX15: 0.1152073733 | DY15: 0.07926366095 | DZ15: 0.164537748 | EA15: No Sig diff | EB15: 202 | EC15: 26 | ED15: 0.1287128713 | EE15: 0.0893720249 | EF15: 0.1819118027 | EG15: Sig better than Eng. | EH15: 198 | EI15: 24 | EJ15: 0.1212121212 | EK15: 0.0828223151 | EL15: 0.1740201548 | EM15: Sig better than Eng. | EN15: 168 | EO15: 21 | EP15: 0.125 | EQ15: 0.08323006901 | ER15: 0.1835359323 | ES15: Sig better than Eng. | ET15: 171 | EU15: 29 | EV15: 0.1695906433 | EW15: 0.120753024 | EX15: 0.2329471753 | EY15: No Sig diff | EZ15: 231 | FA15: 132 | FB15: 0.5714285714 | FC15: 0.5069567314 | FD15: 0.6335636016 | FE15: 231 | FF15: 34 | FG15: 46 | FH15: 24.97826087 | FI15: 0.2653452685 | FJ15: 203 | FK15: 123 | FL15: 0.60591133 | FM15: 0.5373219605 | FN15: 0.6705667299 | FO15: 203 | FP15: 34 | FQ15: 40 | FR15: 25.95 | FS15: 0.2367647059 | FT15: 2959 | FU15: 2944 | FV15: 15 | FW15: 13 | FX15: 2 | FY15: 0.8666666667 | FZ15: 0.1333333333 | GB15: 0.1232876712 | GC15: 0.06623676164 | GD15: 0.2180051073 | GF15: 0.09589041096 | GG15: 0.04722835433 | GH15: 0.1849583779 | GJ15: 0.1095890411 | GK15: 0.05658604161 | GL15: 0.201628259 | GN15: 0.1944444444 | GO15: 0.1195137104 | GP15: 0.3003297528 | GQ15: 40 | GR15: 39 | GS15: 37 | GT15: 40 | GU15: 40 | GV15: 51 | GW15: 49 | GX15: 48 | GY15: 49 | GZ15: 48 | HA15: 48 | HB15: 49 | HC15: 49 | HD15: 55 | HE15: 51 | HF15: 50 | HG15: 50 | HH15: 52 | HI15: 52 | HJ15: 49 | HK15: 53 | HL15: 50 | HM15: 52 | HN15: 18 | HO15: 0.01714285714 | HP15: 1644 | HQ15: 1493 | HR15: 151 | HS15: 0.09184914842
A16: Footprints (Crescent and Lyndhurst) | C16: Worthing | D16: Worthing | E16: Worthing | F16: CCC | G16: Central, Heene, Selden | H16: Worthing | I16: B | J16: Coastal West Sussex | K16: East Worthing and Shoreham | L16: 23280 | M16: 23505 | N16: 23940 | O16: 24325 | P16: 24680 | Q16: 24925 | R16: 25605 | S16: 26230 | T16: 26505 | U16: 26715 | V16: 1165 | W16: 1230 | X16: 1310 | Y16: 1420 | Z16: 1490 | AA16: 1510 | AB16: 1600 | AC16: 1685 | AD16: 1730 | AE16: 1725 | AF16: 0.7627118644 | AG16: 0.05508474576 | AH16: 0.07808716707 | AI16: 0.08414043584 | AJ16: 0.01271186441 | AK16: 0.007263922518 | AL16: 0.2372881356 | AM16: 2740 | AN16: 0.4906900329 | AO16: 0.1460387003 | AP16: 0.3632712669 | AQ16: 329 | AR16: 338 | AS16: 395 | AT16: 376 | AU16: 335 | AV16: 17 | AW16: 25 | AX16: 19 | AY16: 21 | AZ16: 16 | BA16: 23 | BB16: 0.06865671642 | BC16: 0.04618197511 | BD16: 0.100911769 | BE16: 30 | BF16: 673 | BG16: 453 | BH16: 177 | BI16: 0.1122005015 | BJ16: 2659 | BK16: 4378 | BL16: 2528 | BM16: 1469 | BN16: 3 | BO16: 311 | BP16: 538 | BQ16: 207 | BR16: 245 | BS16: 215 | BT16: 195 | BU16: 763 | BV16: 300 | BW16: 0.3931847969 | BX16: 94 | BY16: 1 | BZ16: 954 | CA16: 0.07357704766 | CB16: 320 | CC16: 315 | CD16: 310 | CE16: 340 | CF16: 690 | CG16: 0.2027333333 | CH16: 720 | CI16: 0.1754666667 | CJ16: 740 | CK16: 0.1915333333 | CL16: 640 | CM16: 0.1742 | CN16: 705 | CO16: 0.1699333333 | CP16: 590 | CQ16: 0.146039604 | CR16: 345 | CS16: 15 | CT16: 330 | CU16: 0.9507986713 | CV16: 149 | CW16: 198 | CX16: 0.4413727207 | CY16: 0.6095238811 | CZ16: 0.3986869975 | DA16: 0.5054591604 | DB16: 0.5462844093 | DC16: 0.6514141399 | DD16: 161 | DE16: 13 | DF16: 0.08074534161 | DG16: 0.04779318847 | DH16: 0.1332380826 | DI16: No Sig diff | DJ16: 213 | DK16: 28 | DL16: 0.1314553991 | DM16: 0.09253884722 | DN16: 0.1834298681 | DO16: No Sig diff | DP16: 221 | DQ16: 18 | DR16: 0.0814479638 | DS16: 0.05213872455 | DT16: 0.1250592843 | DU16: No Sig diff | DV16: 259 | DW16: 21 | DX16: 0.08108108108 | DY16: 0.05364154924 | DZ16: 0.1207657114 | EA16: No Sig diff | EB16: 152 | EC16: 33 | ED16: 0.2171052632 | EE16: 0.1589758302 | EF16: 0.2891812863 | EG16: No Sig diff | EH16: 156 | EI16: 39 | EJ16: 0.25 | EK16: 0.188611842 | EL16: 0.3234046238 | EM16: No Sig diff | EN16: 148 | EO16: 19 | EP16: 0.1283783784 | EQ16: 0.08374954262 | ER16: 0.1918106314 | ES16: No Sig diff | ET16: 154 | EU16: 22 | EV16: 0.1428571429 | EW16: 0.09627119163 | EX16: 0.2068269879 | EY16: No Sig diff | EZ16: 287 | FA16: 148 | FB16: 0.5156794425 | FC16: 0.4580370174 | FD16: 0.5729076768 | FE16: 287 | FF16: 34 | FG16: 57 | FH16: 26.05263158 | FI16: 0.23374613 | FJ16: 281 | FK16: 171 | FL16: 0.6085409253 | FM16: 0.5503775935 | FN16: 0.663776625 | FO16: 281 | FP16: 34 | FQ16: 56 | FR16: 27.05357143 | FS16: 0.2043067227 | FT16: 2914 | FU16: 2738 | FV16: 176 | FW16: 144 | FX16: 32 | FY16: 0.8181818182 | FZ16: 0.1818181818 | GA16: 0.8552388634 | GB16: 0.1447611366 | GC16: 0.1058994568 | GD16: 0.1979689465 | GE16: 0.9014757716 | GF16: 0.0985242284 | GG16: 0.06877515561 | GH16: 0.1480767981 | GI16: 0.9026593687 | GJ16: 0.09734063129 | GK16: 0.06877515561 | GL16: 0.1480767981 | GM16: 0.7602945091 | GN16: 0.2397054909 | GO16: 0.1928878534 | GP16: 0.3045811383 | GQ16: 74 | GR16: 72 | GS16: 72 | GT16: 74 | GU16: 72 | GV16: 85 | GW16: 82 | GX16: 82 | GY16: 81 | GZ16: 82 | HA16: 82 | HB16: 81 | HC16: 83 | HD16: 89 | HE16: 82 | HF16: 76 | HG16: 76 | HH16: 75 | HI16: 77 | HJ16: 77 | HK16: 82 | HL16: 80 | HM16: 80 | HN16: 23 | HO16: 0.01399026764 | HP16: 2494 | HQ16: 2125 | HR16: 369 | HS16: 0.1479550922
A17: HH Rural | C17: Mid Sussex | D17: Mid Sussex | E17: Mid Sussex | F17: Mid Sussex | G17: Cuckfield, Haywards Heath Heath, Haywards Heath Lucastes, High Weald, Linfield | H17: Haywards Heath/Cuckfield | I17: C2 | J17: Horsham and Mid Sussex | K17: Mid Sussex | L17: 18190 | M17: 18585 | N17: 19055 | O17: 19605 | P17: 19925 | Q17: 20205 | R17: 20375 | S17: 20565 | T17: 20850 | U17: 21065 | V17: 1015 | W17: 1105 | X17: 1200 | Y17: 1320 | Z17: 1365 | AA17: 1365 | AB17: 1320 | AC17: 1305 | AD17: 1385 | AE17: 1420 | AF17: 0.8926681784 | AG17: 0.04157218443 | AH17: 0.03325774754 | AI17: 0.02569916856 | AJ17: 0.006802721088 | AK17: 0 | AL17: 0.1073318216 | AM17: 2610 | AN17: 0.780245023 | AO17: 0.07235834609 | AP17: 0.1473966309 | AQ17: 230 | AR17: 212 | AS17: 237 | AT17: 258 | AU17: 230 | AV17: 4 | AW17: 5 | AX17: 3 | AY17: 3 | AZ17: 3 | BA17: 8 | BB17: 0.0347826087 | BC17: 0.01772831559 | BD17: 0.06712173162 | BE17: 5 | BF17: 347 | BG17: 472 | BH17: 203 | BI17: 0.1442855651 | BJ17: 2468 | BK17: 4544 | BL17: 2646 | BM17: 1671 | BN17: 1 | BO17: 365 | BP17: 438 | BQ17: 171 | BR17: 50 | BS17: 60 | BT17: 45 | BU17: 304 | BV17: 73 | BW17: 0.2401315789 | BX17: 32 | BY17: 10 | BZ17: 153 | CA17: 0.01788846019 | CB17: 50 | CC17: 75 | CD17: 80 | CE17: 66 | CF17: 200 | CG17: 0.055 | CH17: 195 | CI17: 0.04242857143 | CJ17: 200 | CK17: 0.05107142857 | CL17: 160 | CM17: 0.04878571429 | CN17: 210 | CO17: 0.0505 | CP17: 205 | CQ17: 0.05229591837 | CR17: 247 | CS17: 8 | CT17: 239 | CU17: 0.8971269855 | CV17: 130 | CW17: 168 | CX17: 0.5163297264 | CY17: 0.6640283269 | CZ17: 0.4805899074 | DA17: 0.6058862153 | DB17: 0.6421538895 | DC17: 0.7572834392 | DD17: 194 | DE17: 7 | DF17: 0.03608247423 | DG17: 0.01758630668 | DH17: 0.07259427997 | DI17: Sig better than Eng. | DJ17: 208 | DK17: 7 | DL17: 0.03365384615 | DM17: 0.0163957662 | DN17: 0.06782504176 | DO17: Sig better than Eng. | DP17: 226 | DQ17: 10 | DR17: 0.04424778761 | DS17: 0.02420935311 | DT17: 0.07952066559 | DU17: Sig better than Eng. | DV17: 234 | DW17: 9 | DX17: 0.03846153846 | DY17: 0.02036444814 | DZ17: 0.07146756016 | EA17: Sig better than Eng. | EB17: 165 | EC17: 20 | ED17: 0.1212121212 | EE17: 0.07985230358 | EF17: 0.1798082035 | EG17: Sig better than Eng. | EH17: 144 | EI17: 14 | EJ17: 0.09722222222 | EK17: 0.05879905266 | EL17: 0.156576655 | EM17: Sig better than Eng. | EN17: 168 | EO17: 17 | EP17: 0.1011904762 | EQ17: 0.06414204521 | ER17: 0.1560694164 | ES17: Sig better than Eng. | ET17: 157 | EU17: 14 | EV17: 0.08917197452 | EW17: 0.05386079879 | EX17: 0.1441071819 | EY17: Sig better than Eng. | EZ17: 272 | FA17: 163 | FB17: 0.5992647059 | FC17: 0.5400353566 | FD17: 0.6557292693 | FE17: 272 | FF17: 34 | FG17: 54 | FH17: 27.40740741 | FI17: 0.1938997821 | FJ17: 291 | FK17: 187 | FL17: 0.6426116838 | FM17: 0.5860206809 | FN17: 0.6954865411 | FO17: 291 | FP17: 34 | FQ17: 58 | FR17: 28.37931034 | FS17: 0.1653144016 | FT17: 3289 | FU17: 3245 | FV17: 44 | FW17: 36 | FX17: 8 | FY17: 0.8181818182 | FZ17: 0.1818181818 | GA17: 0.8893607699 | GB17: 0.03921065862 | GC17: 0.02126164078 | GD17: 0.08005289096 | GE17: 0.9107053078 | GF17: 0.01786612081 | GG17: 0.008130652412 | GH17: 0.05233453987 | GI17: 0.8975307046 | GJ17: 0.03104072398 | GK17: 0.01439908584 | GL17: 0.06649077617 | GM17: 0.8258519177 | GN17: 0.1027195109 | GO17: 0.07689690423 | GP17: 0.1673903156 | GQ17: 72 | GR17: 69 | GS17: 70 | GT17: 70 | GU17: 70 | GV17: 69 | GW17: 66 | GX17: 65 | GY17: 64 | GZ17: 66 | HA17: 66 | HB17: 63 | HC17: 68 | HD17: 86 | HE17: 81 | HF17: 77 | HG17: 73 | HH17: 77 | HI17: 76 | HJ17: 75 | HK17: 83 | HL17: 80 | HM17: 79 | HN17: 20 | HO17: 0.01511715797 | HP17: 2067 | HQ17: 1975 | HR17: 92 | HS17: 0.04450895017
A18: HH Urban | C18: Mid Sussex | D18: Mid Sussex | E18: Mid Sussex | F18: Mid Sussex | G18: Haywards Heath Ashenground, Haywards Heath Brentswood, Haywards Heath Franklands, Haywards Heath Heath | H18: Haywards Heath/Cuckfield | I18: C2 | J18: Horsham and Mid Sussex | K18: Mid Sussex | L18: 16860 | M18: 17050 | N18: 17235 | O18: 17490 | P18: 17540 | Q18: 17695 | R18: 17985 | S18: 18150 | T18: 18425 | U18: 18995 | V18: 1095 | W18: 1100 | X18: 1120 | Y18: 1200 | Z18: 1220 | AA18: 1205 | AB18: 1225 | AC18: 1230 | AD18: 1245 | AE18: 1320 | AF18: 0.8047579984 | AG18: 0.04265791632 | AH18: 0.05086136177 | AI18: 0.09598031173 | AJ18: 0.005742411813 | AK18: 0 | AL18: 0.1952420016 | AM18: 2250 | AN18: 0.6049822064 | AO18: 0.2086298932 | AP18: 0.1863879004 | AQ18: 243 | AR18: 242 | AS18: 260 | AT18: 236 | AU18: 254 | AV18: 11 | AW18: 9 | AX18: 6 | AY18: 9 | AZ18: 11 | BA18: 13 | BB18: 0.05118110236 | BC18: 0.03015126176 | BD18: 0.08558442697 | BE18: 21 | BF18: 382 | BG18: 376 | BH18: 179 | BI18: 0.1458175448 | BJ18: 2212 | BK18: 3909 | BL18: 2175 | BM18: 1420 | BN18: 1 | BO18: 260 | BP18: 376 | BQ18: 118 | BR18: 100 | BS18: 95 | BT18: 95 | BU18: 384 | BV18: 122 | BW18: 0.3177083333 | BX18: 26 | BY18: 7 | BZ18: 248 | CA18: 0.03174603175 | CB18: 165 | CC18: 130 | CD18: 155 | CE18: 145 | CF18: 405 | CG18: 0.1174545455 | CH18: 410 | CI18: 0.117 | CJ18: 455 | CK18: 0.1294545455 | CL18: 420 | CM18: 0.1180909091 | CN18: 430 | CO18: 0.1157272727 | CP18: 370 | CQ18: 0.1091445428 | CR18: 237 | CS18: 2 | CT18: 235 | CU18: 0.9914772727 | CV18: 107 | CW18: 138 | CX18: 0.4635700439 | CY18: 0.5934918551 | CZ18: 0.3928754693 | DA18: 0.519200149 | DB18: 0.5233757938 | DC18: 0.6482860942 | DD18: 177 | DE18: 8 | DF18: 0.04519774011 | DG18: 0.02307763682 | DH18: 0.08663978611 | DI18: Sig better than Eng. | DJ18: 178 | DK18: 12 | DL18: 0.06741573034 | DM18: 0.03898189964 | DN18: 0.1141265224 | DO18: No Sig diff | DP18: 204 | DQ18: 11 | DR18: 0.05392156863 | DS18: 0.03037242098 | DT18: 0.09396013022 | DU18: Sig better than Eng. | DV18: 197 | DW18: 17 | DX18: 0.08629441624 | DY18: 0.05457498824 | DZ18: 0.1338395903 | EA18: No Sig diff | EB18: 147 | EC18: 25 | ED18: 0.1700680272 | EE18: 0.1179301507 | EF18: 0.2390105687 | EG18: No Sig diff | EH18: 165 | EI18: 29 | EJ18: 0.1757575758 | EK18: 0.1252519399 | EL18: 0.2410174542 | EM18: No Sig diff | EN18: 149 | EO18: 32 | EP18: 0.2147651007 | EQ18: 0.1564363444 | ER18: 0.2874318269 | ES18: No Sig diff | ET18: 143 | EU18: 20 | EV18: 0.1398601399 | EW18: 0.09239695525 | EX18: 0.2061662651 | EY18: No Sig diff | EZ18: 228 | FA18: 130 | FB18: 0.5701754386 | FC18: 0.5052781619 | FD18: 0.6327471945 | FE18: 228 | FF18: 34 | FG18: 45 | FH18: 23.86666667 | FI18: 0.2980392157 | FJ18: 247 | FK18: 141 | FL18: 0.5708502024 | FM18: 0.5085044618 | FN18: 0.6310259019 | FO18: 247 | FP18: 34 | FQ18: 49 | FR18: 24.95918367 | FS18: 0.2659063625 | FT18: 2747 | FU18: 2657 | FV18: 90 | FW18: 75 | FX18: 15 | FY18: 0.8333333333 | FZ18: 0.1666666667 | GA18: 0.9080854087 | GB18: 0.09191459126 | GC18: 0.06722702717 | GD18: 0.1593496191 | GE18: 0.9598883573 | GF18: 0.04011164274 | GG18: 0.02375354056 | GH18: 0.0890843772 | GI18: 0.9113196745 | GJ18: 0.08868032552 | GK18: 0.05807066273 | GL18: 0.1457582378 | GM18: 0.8321443177 | GN18: 0.1678556823 | GO18: 0.1299763671 | GP18: 0.2444606262 | GQ18: 65 | GR18: 63 | GS18: 63 | GT18: 64 | GU18: 63 | GV18: 74 | GW18: 65 | GX18: 66 | GY18: 64 | GZ18: 66 | HA18: 71 | HB18: 66 | HC18: 67 | HD18: 72 | HE18: 68 | HF18: 67 | HG18: 63 | HH18: 66 | HI18: 66 | HJ18: 63 | HK18: 69 | HL18: 69 | HM18: 68 | HN18: 26 | HO18: 0.02134646962 | HP18: 1900 | HQ18: 1785 | HR18: 115 | HS18: 0.06052631579
A19: Horsham Nursery School | C19: Horsham | D19: Horsham Town | E19: Horsham | F19: Horsham | G19: Forest, Holbrook East, Horsham Park, Roffey North, Roffey South | H19: Horsham E | I19: C3 | J19: Horsham and Mid Sussex | K19: Horsham | L19: 16890 | M19: 17035 | N19: 17080 | O19: 17315 | P19: 17440 | Q19: 17640 | R19: 17925 | S19: 18020 | T19: 18165 | U19: 18135 | V19: 985 | W19: 970 | X19: 935 | Y19: 955 | Z19: 1005 | AA19: 1025 | AB19: 1095 | AC19: 1110 | AD19: 1155 | AE19: 1095 | AF19: 0.8372943327 | AG19: 0.04387568556 | AH19: 0.06215722121 | AI19: 0.04387568556 | AJ19: 0.00731261426 | AK19: 0.005484460695 | AL19: 0.1627056673 | AM19: 2085 | AN19: 0.6631477927 | AO19: 0.1679462572 | AP19: 0.1689059501 | AQ19: 203 | AR19: 201 | AS19: 193 | AT19: 194 | AU19: 199 | AV19: 6 | AW19: 6 | AX19: 3 | AY19: 6 | AZ19: 3 | BA19: 11 | BB19: 0.05527638191 | BC19: 0.03114245721 | BD19: 0.09625486566 | BE19: 9 | BF19: 298 | BG19: 371 | BH19: 148 | BI19: 0.1544896942 | BJ19: 2199 | BK19: 3972 | BL19: 2190 | BM19: 1385 | BN19: 5 | BO19: 246 | BP19: 405 | BQ19: 149 | BR19: 80 | BS19: 105 | BT19: 70 | BU19: 375 | BV19: 107 | BW19: 0.2853333333 | BX19: 35 | BY19: 7 | BZ19: 286 | CA19: 0.03772589368 | CB19: 150 | CC19: 145 | CD19: 135 | CE19: 125 | CF19: 345 | CG19: 0.09727272727 | CH19: 340 | CI19: 0.08827272727 | CJ19: 350 | CK19: 0.1028181818 | CL19: 305 | CM19: 0.09772727273 | CN19: 335 | CO19: 0.1010909091 | CP19: 335 | CQ19: 0.1010558069 | CR19: 198 | CS19: 8 | CT19: 190 | CU19: 0.9520341727 | CV19: 93 | CW19: 115 | CX19: 0.5188441988 | CY19: 0.6253739554 | CZ19: 0.419308947 | DA19: 0.5600556476 | DB19: 0.5343343073 | DC19: 0.6720197467 | DD19: 161 | DE19: 11 | DF19: 0.06832298137 | DG19: 0.03857558367 | DH19: 0.1181899473 | DI19: No Sig diff | DJ19: 168 | DK19: 11 | DL19: 0.06547619048 | DM19: 0.03695089522 | DN19: 0.113428757 | DO19: No Sig diff | DP19: 115 | DQ19: 6 | DR19: 0.05217391304 | DS19: 0.02412854906 | DT19: 0.1091705452 | DU19: No Sig diff | DV19: 172 | DW19: 14 | DX19: 0.08139534884 | DY19: 0.04910271749 | DZ19: 0.1319777799 | EA19: No Sig diff | EB19: 181 | EC19: 18 | ED19: 0.09944751381 | EE19: 0.06383423171 | EF19: 0.1517097219 | EG19: Sig better than Eng. | EH19: 172 | EI19: 27 | EJ19: 0.1569767442 | EK19: 0.1101826623 | EL19: 0.2187583008 | EM19: No Sig diff | EN19: 196 | EO19: 24 | EP19: 0.1224489796 | EQ19: 0.08368220469 | ER19: 0.1757307276 | ES19: Sig better than Eng. | ET19: 178 | EU19: 26 | EV19: 0.1460674157 | EW19: 0.1016704486 | EX19: 0.2054182603 | EY19: No Sig diff | EZ19: 197 | FA19: 96 | FB19: 0.4873096447 | FC19: 0.4184243438 | FD19: 0.5566803979 | FE19: 197 | FF19: 34 | FG19: 39 | FH19: 24.07692308 | FI19: 0.2918552036 | FJ19: 215 | FK19: 140 | FL19: 0.6511627907 | FM19: 0.5853085362 | FN19: 0.7117101382 | FO19: 215 | FP19: 34 | FQ19: 43 | FR19: 24.23255814 | FS19: 0.2872777018 | FT19: 2770 | FU19: 2686 | FV19: 84 | FW19: 74 | FX19: 10 | FY19: 0.880952381 | FZ19: 0.119047619 | GA19: 0.9097277722 | GB19: 0.09027222777 | GC19: 0.04298691065 | GD19: 0.1378482734 | GE19: 0.8820942946 | GF19: 0.1179057054 | GG19: 0.0662781875 | GH19: 0.1752358718 | GI19: 0.87754884 | GJ19: 0.12245116 | GK19: 0.0662781875 | GL19: 0.1752358718 | GM19: 0.7717687416 | GN19: 0.2282312584 | GO19: 0.1639546004 | GP19: 0.3086901854 | GQ19: 58 | GR19: 56 | GS19: 57 | GT19: 58 | GU19: 56 | GV19: 68 | GW19: 66 | GX19: 62 | GY19: 65 | GZ19: 63 | HA19: 65 | HB19: 65 | HC19: 66 | HD19: 56 | HE19: 52 | HF19: 49 | HG19: 48 | HH19: 48 | HI19: 51 | HJ19: 46 | HK19: 52 | HL19: 49 | HM19: 51 | HN19: 19 | HO19: 0.01736745887 | HP19: 1659 | HQ19: 1527 | HR19: 132 | HS19: 0.07956600362
A20: Kingston Buci | C20: Adur | D20: Adur East | E20: Adur | F20: Adur | G20: Buckingham, St Mary's, St Nicolas, Southlands | H20: Shoreham | I20: B | J20: Coastal West Sussex | K20: East Worthing and Shoreham | L20: 14170 | M20: 14160 | N20: 14375 | O20: 14435 | P20: 14450 | Q20: 14610 | R20: 14625 | S20: 14590 | T20: 14850 | U20: 15185 | V20: 770 | W20: 775 | X20: 805 | Y20: 800 | Z20: 830 | AA20: 815 | AB20: 860 | AC20: 905 | AD20: 945 | AE20: 990 | AF20: 0.899103139 | AG20: 0.02130044843 | AH20: 0.04708520179 | AI20: 0.02802690583 | AJ20: 0 | AK20: 0.004484304933 | AL20: 0.100896861 | AM20: 1660 | AN20: 0.5997588909 | AO20: 0.2025316456 | AP20: 0.1977094635 | AQ20: 150 | AR20: 168 | AS20: 169 | AT20: 178 | AU20: 202 | AV20: 7 | AW20: 5 | AX20: 7 | AY20: 4 | AZ20: 6 | BA20: 16 | BB20: 0.07920792079 | BC20: 0.04934109022 | BD20: 0.124780581 | BE20: 9 | BF20: 299 | BG20: 296 | BH20: 106 | BI20: 0.1082601116 | BJ20: 1701 | BK20: 2930 | BL20: 1708 | BM20: 897 | BN20: 3 | BO20: 278 | BP20: 406 | BQ20: 124 | BR20: 135 | BS20: 105 | BT20: 95 | BU20: 405 | BV20: 156 | BW20: 0.3851851852 | BX20: 30 | BY20: 3 | BZ20: 345 | CA20: 0.05388940956 | CB20: 165 | CC20: 165 | CD20: 155 | CE20: 155 | CF20: 415 | CG20: 0.1635454545 | CH20: 425 | CI20: 0.1546363636 | CJ20: 420 | CK20: 0.1598181818 | CL20: 420 | CM20: 0.1598181818 | CN20: 445 | CO20: 0.1567272727 | CP20: 435 | CQ20: 0.1632270169 | CR20: 181 | CS20: 5 | CT20: 176 | CU20: 0.9724298447 | CV20: 73 | CW20: 95 | CX20: 0.4221076231 | CY20: 0.5499432456 | CZ20: 0.3445626533 | DA20: 0.4886238842 | DB20: 0.4660727025 | DC20: 0.61177358 | DD20: 128 | DE20: 6 | DF20: 0.046875 | DG20: 0.02165784417 | DH20: 0.09849752245 | DI20: No Sig diff | DJ20: 156 | DK20: 9 | DL20: 0.05769230769 | DM20: 0.03064574216 | DN20: 0.1059987741 | DO20: No Sig diff | DP20: 132 | DQ20: 9 | DR20: 0.06818181818 | DS20: 0.03628233485 | DT20: 0.1245040628 | DU20: No Sig diff | DV20: 165 | DW20: 17 | DX20: 0.103030303 | DY20: 0.06532679971 | DZ20: 0.1587974118 | EA20: No Sig diff | EB20: 135 | EC20: 25 | ED20: 0.1851851852 | EE20: 0.1286978327 | EF20: 0.2590931001 | EG20: No Sig diff | EH20: 120 | EI20: 27 | EJ20: 0.225 | EK20: 0.1594915467 | EL20: 0.3075689948 | EM20: No Sig diff | EN20: 121 | EO20: 18 | EP20: 0.1487603306 | EQ20: 0.0962174087 | ER20: 0.222919032 | ES20: No Sig diff | ET20: 125 | EU20: 27 | EV20: 0.216 | EW20: 0.1529081014 | EX20: 0.2960270422 | EY20: No Sig diff | EZ20: 179 | FA20: 88 | FB20: 0.4916201117 | FC20: 0.4193323829 | FD20: 0.5642599598 | FE20: 179 | FF20: 34 | FG20: 35 | FH20: 23.97142857 | FI20: 0.2949579832 | FJ20: 172 | FK20: 106 | FL20: 0.6162790698 | FM20: 0.541817944 | FN20: 0.6856596956 | FO20: 172 | FP20: 34 | FQ20: 34 | FR20: 26.94117647 | FS20: 0.2076124567 | FT20: 2048 | FU20: 2022 | FV20: 26 | FW20: 22 | FX20: 4 | FY20: 0.8461538462 | FZ20: 0.1538461538 | GA20: 0.9255050505 | GB20: 0.07449494949 | GC20: 0.04283011146 | GD20: 0.1559006781 | GE20: 0.9412878788 | GF20: 0.05871212121 | GG20: 0.02895627969 | GH20: 0.1297110494 | GI20: 0.9311868687 | GJ20: 0.06881313131 | GK20: 0.03576712624 | GL20: 0.1429319331 | GM20: 0.7960858586 | GN20: 0.2039141414 | GO20: 0.1477623625 | GP20: 0.3113809205 | GQ20: 57 | GR20: 52 | GS20: 53 | GT20: 55 | GU20: 53 | GV20: 42 | GW20: 40 | GX20: 41 | GY20: 40 | GZ20: 41 | HA20: 41 | HB20: 40 | HC20: 41 | HD20: 41 | HE20: 38 | HF20: 37 | HG20: 37 | HH20: 37 | HI20: 38 | HJ20: 36 | HK20: 37 | HL20: 36 | HM20: 38 | HN20: 22 | HO20: 0.02466367713 | HP20: 1387 | HQ20: 1218 | HR20: 169 | HS20: 0.1218457102
A21: Lancing | C21: Adur | D21: Adur West | E21: Adur | F21: Adur | G21: Marine, Mash Barn, Widewater | H21: Lancing | I21: B | J21: Coastal West Sussex | K21: East Worthing and Shoreham | L21: 13875 | M21: 13885 | N21: 14085 | O21: 14295 | P21: 14475 | Q21: 14595 | R21: 14705 | S21: 14760 | T21: 14890 | U21: 15055 | V21: 680 | W21: 650 | X21: 690 | Y21: 730 | Z21: 725 | AA21: 805 | AB21: 850 | AC21: 875 | AD21: 910 | AE21: 955 | AF21: 0.8817330211 | AG21: 0.03864168618 | AH21: 0.04683840749 | AI21: 0.01990632319 | AJ21: 0.005854800937 | AK21: 0.007025761124 | AL21: 0.1182669789 | AM21: 1580 | AN21: 0.6198608476 | AO21: 0.1239721695 | AP21: 0.2561669829 | AQ21: 180 | AR21: 169 | AS21: 185 | AT21: 195 | AU21: 199 | AV21: 11 | AW21: 12 | AX21: 7 | AY21: 13 | AZ21: 8 | BA21: 9 | BB21: 0.04522613065 | BC21: 0.02397331605 | BD21: 0.08370417231 | BE21: 14 | BF21: 316 | BG21: 254 | BH21: 103 | BI21: 0.119671645 | BJ21: 1619 | BK21: 2755 | BL21: 1633 | BM21: 831 | BN21: 0 | BO21: 297 | BP21: 388 | BQ21: 117 | BR21: 135 | BS21: 145 | BT21: 140 | BU21: 388 | BV21: 152 | BW21: 0.3917525773 | BX21: 44 | BY21: 3 | BZ21: 296 | CA21: 0.04392994954 | CB21: 190 | CC21: 180 | CD21: 200 | CE21: 175 | CF21: 405 | CG21: 0.1761111111 | CH21: 375 | CI21: 0.1528888889 | CJ21: 460 | CK21: 0.189 | CL21: 370 | CM21: 0.1546666667 | CN21: 420 | CO21: 0.166 | CP21: 405 | CQ21: 0.1639676113 | CR21: 188 | CS21: 14 | CT21: 174 | CU21: 0.9122170315 | CV21: 68 | CW21: 86 | CX21: 0.3516631154 | CY21: 0.4602372573 | CZ21: 0.3214116322 | DA21: 0.4649150766 | DB21: 0.4208949581 | DC21: 0.5678590792 | DD21: 130 | DE21: 7 | DF21: 0.05384615385 | DG21: 0.02632495899 | DH21: 0.1069779725 | DI21: No Sig diff | DJ21: 154 | DK21: 11 | DL21: 0.07142857143 | DM21: 0.04034974456 | DN21: 0.1233680709 | DO21: No Sig diff | DP21: 127 | DQ21: 12 | DR21: 0.09448818898 | DS21: 0.05487919865 | DT21: 0.1579085452 | DU21: No Sig diff | DV21: 158 | DW21: 10 | DX21: 0.06329113924 | DY21: 0.03473843819 | DZ21: 0.1125752291 | EA21: No Sig diff | EB21: 110 | EC21: 24 | ED21: 0.2181818182 | EE21: 0.1512295618 | EF21: 0.3041533835 | EG21: No Sig diff | EH21: 113 | EI21: 17 | EJ21: 0.1504424779 | EK21: 0.09610086712 | EL21: 0.227769266 | EM21: No Sig diff | EN21: 98 | EO21: 16 | EP21: 0.1632653061 | EQ21: 0.1030680352 | ER21: 0.2488658357 | ES21: No Sig diff | ET21: 126 | EU21: 11 | EV21: 0.0873015873 | EW21: 0.04944684363 | EX21: 0.1495763271 | EY21: Sig better than Eng. | EZ21: 171 | FA21: 83 | FB21: 0.485380117 | FC21: 0.4116190698 | FD21: 0.5597835939 | FE21: 171 | FF21: 34 | FG21: 34 | FH21: 22.55882353 | FI21: 0.3365051903 | FJ21: 169 | FK21: 90 | FL21: 0.5325443787 | FM21: 0.4574348033 | FN21: 0.6062073349 | FO21: 169 | FP21: 34 | FQ21: 33 | FR21: 22.09090909 | FS21: 0.3502673797 | FT21: 1894 | FU21: 1869 | FV21: 25 | FW21: 20 | FX21: 5 | FY21: 0.8 | FZ21: 0.2 | GA21: 0.8494708995 | GB21: 0.1505291005 | GC21: 0.08520256972 | GD21: 0.2147010119 | GE21: 0.8764550265 | GF21: 0.1235449735 | GG21: 0.07103906425 | GH21: 0.1934165975 | GI21: 0.8838624339 | GJ21: 0.1161375661 | GK21: 0.07103906425 | GL21: 0.1934165975 | GM21: 0.719416597 | GN21: 0.280583403 | GO21: 0.1682954921 | GP21: 0.3265716491 | GQ21: 53 | GR21: 51 | GS21: 51 | GT21: 52 | GU21: 51 | GV21: 58 | GW21: 54 | GX21: 56 | GY21: 52 | GZ21: 55 | HA21: 57 | HB21: 55 | HC21: 56 | HD21: 37 | HE21: 34 | HF21: 33 | HG21: 33 | HH21: 33 | HI21: 33 | HJ21: 33 | HK21: 35 | HL21: 34 | HM21: 34 | HN21: 12 | HO21: 0.01405152225 | HP21: 1322 | HQ21: 1162 | HR21: 160 | HS21: 0.1210287443
A22: Langley Green | C22: Crawley | D22: Crawley | E22: Crawley | F22: Crawley | G22: Ifield, Langley Green | H22: Crawley NW | I22: C1 | J22: Crawley | K22: Crawley | L22: 15625 | M22: 15845 | N22: 16080 | O22: 16165 | P22: 16350 | Q22: 16480 | R22: 16875 | S22: 17185 | T22: 17290 | U22: 17405 | V22: 935 | W22: 940 | X22: 970 | Y22: 1025 | Z22: 1100 | AA22: 1170 | AB22: 1285 | AC22: 1305 | AD22: 1330 | AE22: 1310 | AF22: 0.5768936496 | AG22: 0.0596786534 | AH22: 0.07115531752 | AI22: 0.2448355011 | AJ22: 0.03825554705 | AK22: 0.009181331293 | AL22: 0.4231063504 | AM22: 2405 | AN22: 0.4467554077 | AO22: 0.3801996672 | AP22: 0.1730449251 | AQ22: 278 | AR22: 290 | AS22: 295 | AT22: 260 | AU22: 242 | AV22: 16 | AW22: 8 | AX22: 11 | AY22: 12 | AZ22: 8 | BA22: 20 | BB22: 0.0826446281 | BC22: 0.0541348683 | BD22: 0.1241973749 | BE22: 25 | BF22: 379 | BG22: 343 | BH22: 285 | BI22: 0.1969213807 | BJ22: 2149 | BK22: 3986 | BL22: 2183 | BM22: 1076 | BN22: 1 | BO22: 300 | BP22: 546 | BQ22: 260 | BR22: 200 | BS22: 185 | BT22: 160 | BU22: 523 | BV22: 219 | BW22: 0.4187380497 | BX22: 47 | BY22: 3 | BZ22: 382 | CA22: 0.0582761251 | CB22: 280 | CC22: 300 | CD22: 300 | CE22: 280 | CF22: 780 | CG22: 0.2301818182 | CH22: 810 | CI22: 0.2177272727 | CJ22: 750 | CK22: 0.2231818182 | CL22: 705 | CM22: 0.2307272727 | CN22: 725 | CO22: 0.2115454545 | CP22: 735 | CQ22: 0.1957390146 | CR22: 243 | CS22: 9 | CT22: 234 | CU22: 0.967484316 | CV22: 83 | CW22: 121 | CX22: 0.3698104574 | CY22: 0.5230064804 | CZ22: 0.2961996063 | DA22: 0.4178958253 | DB22: 0.4533093484 | DC22: 0.5803264832 | DD22: 182 | DE22: 13 | DF22: 0.07142857143 | DG22: 0.04221524487 | DH22: 0.1183595753 | DI22: No Sig diff | DJ22: 199 | DK22: 23 | DL22: 0.1155778894 | DM22: 0.07826150821 | DN22: 0.1674548217 | DO22: No Sig diff | DP22: 164 | DQ22: 16 | DR22: 0.09756097561 | DS22: 0.06094696723 | DT22: 0.1525965701 | DU22: No Sig diff | DV22: 175 | DW22: 13 | DX22: 0.07428571429 | DY22: 0.04392400383 | DZ22: 0.1229358452 | EA22: No Sig diff | EB22: 171 | EC22: 34 | ED22: 0.1988304094 | EE22: 0.1459183477 | EF22: 0.2649765242 | EG22: No Sig diff | EH22: 175 | EI22: 32 | EJ22: 0.1828571429 | EK22: 0.1326087002 | EL22: 0.2467298451 | EM22: No Sig diff | EN22: 188 | EO22: 36 | EP22: 0.1914893617 | EQ22: 0.1416462786 | ER22: 0.2536877607 | ES22: No Sig diff | ET22: 173 | EU22: 38 | EV22: 0.2196531792 | EW22: 0.1644204104 | EX22: 0.2870656798 | EY22: No Sig diff | EZ22: 213 | FA22: 77 | FB22: 0.3615023474 | FC22: 0.2999630342 | FD22: 0.427948776 | FE22: 213 | FF22: 32 | FG22: 42 | FH22: 22.0952381 | FI22: 0.3095238095 | FJ22: 276 | FK22: 140 | FL22: 0.5072463768 | FM22: 0.4485712589 | FN22: 0.5657225488 | FO22: 276 | FP22: 34 | FQ22: 55 | FR22: 22.47272727 | FS22: 0.3390374332 | FT22: 2421 | FU22: 2397 | FV22: 24 | FW22: 18 | FX22: 6 | FY22: 0.75 | FZ22: 0.25 | GA22: 0.8914570278 | GB22: 0.1085429722 | GC22: 0.06506614889 | GD22: 0.1669773833 | GE22: 0.9440377804 | GF22: 0.0559622196 | GG22: 0.0288203706 | GH22: 0.1072286031 | GI22: 0.8809221082 | GJ22: 0.1190778918 | GK22: 0.07610414474 | GL22: 0.1833664041 | GM22: 0.7286804105 | GN22: 0.2713195895 | GO22: 0.201224669 | GP22: 0.3475677868 | GQ22: 73 | GR22: 71 | GS22: 70 | GT22: 72 | GU22: 71 | GV22: 56 | GW22: 55 | GX22: 53 | GY22: 55 | GZ22: 54 | HA22: 53 | HB22: 56 | HC22: 56 | HD22: 66 | HE22: 64 | HF22: 60 | HG22: 64 | HH22: 59 | HI22: 61 | HJ22: 64 | HK22: 65 | HL22: 63 | HM22: 60 | HN22: 26 | HO22: 0.01989288447 | HP22: 2123 | HQ22: 1864 | HR22: 259 | HS22: 0.1219971738
A23: Littlehampton | C23: Arun East | D23: Arun East | E23: Arun | F23: Arun | G23: Beach, Brookfield, Ham, River, Wick with Toddington | H23: Littlehampton | I23: B | J23: Coastal West Sussex | K23: Bognor Regis and Littlehampton | L23: 18555 | M23: 18535 | N23: 18740 | O23: 18880 | P23: 19110 | Q23: 19395 | R23: 19645 | S23: 19930 | T23: 20235 | U23: 20490 | V23: 960 | W23: 995 | X23: 1000 | Y23: 1025 | Z23: 1065 | AA23: 1165 | AB23: 1225 | AC23: 1320 | AD23: 1410 | AE23: 1430 | AF23: 0.834375 | AG23: 0.07578125 | AH23: 0.04609375 | AI23: 0.034375 | AJ23: 0.0046875 | AK23: 0.0046875 | AL23: 0.165625 | AM23: 2345 | AN23: 0.4166311301 | AO23: 0.2298507463 | AP23: 0.3535181237 | AQ23: 268 | AR23: 267 | AS23: 297 | AT23: 321 | AU23: 285 | AV23: 30 | AW23: 20 | AX23: 31 | AY23: 19 | AZ23: 17 | BA23: 18 | BB23: 0.06315789474 | BC23: 0.04032028632 | BD23: 0.09761510212 | BE23: 35 | BF23: 464 | BG23: 346 | BH23: 223 | BI23: 0.1573398067 | BJ23: 2358 | BK23: 4123 | BL23: 2370 | BM23: 1004 | BN23: 2 | BO23: 421 | BP23: 698 | BQ23: 245 | BR23: 300 | BS23: 285 | BT23: 235 | BU23: 697 | BV23: 280 | BW23: 0.4017216643 | BX23: 56 | BY23: 1 | BZ23: 653 | CA23: 0.07392731801 | CB23: 380 | CC23: 445 | CD23: 420 | CE23: 390 | CF23: 1070 | CG23: 0.2849166667 | CH23: 1035 | CI23: 0.2583333333 | CJ23: 1095 | CK23: 0.2895 | CL23: 970 | CM23: 0.26875 | CN23: 1030 | CO23: 0.2736666667 | CP23: 1010 | CQ23: 0.2560202788 | CR23: 282 | CS23: 14 | CT23: 268 | CU23: 0.9510487396 | CV23: 87 | CW23: 115 | CX23: 0.3166765892 | CY23: 0.4274255746 | CZ23: 0.2713876119 | DA23: 0.3828227812 | DB23: 0.3712598197 | DC23: 0.4889528924 | DD23: 155 | DE23: 7 | DF23: 0.04516129032 | DG23: 0.02204575349 | DH23: 0.09027667765 | DI23: Sig better than Eng. | DJ23: 201 | DK23: 20 | DL23: 0.09950248756 | DM23: 0.06533892623 | DN23: 0.1486873704 | DO23: No Sig diff | DP23: 151 | DQ23: 12 | DR23: 0.07947019868 | DS23: 0.04604266587 | DT23: 0.1337635632 | DU23: No Sig diff | DV23: 218 | DW23: 21 | DX23: 0.09633027523 | DY23: 0.06387095568 | DZ23: 0.1427696744 | EA23: No Sig diff | EB23: 168 | EC23: 28 | ED23: 0.1666666667 | EE23: 0.1179013149 | EF23: 0.2303351307 | EG23: No Sig diff | EH23: 185 | EI23: 34 | EJ23: 0.1837837838 | EK23: 0.1346028191 | EL23: 0.2458298426 | EM23: No Sig diff | EN23: 192 | EO23: 57 | EP23: 0.296875 | EQ23: 0.2367473538 | ER23: 0.3649712993 | ES23: Sig worse than Eng. | ET23: 188 | EU23: 39 | EV23: 0.2074468085 | EW23: 0.1556287854 | EX23: 0.2709810794 | EY23: No Sig diff | EZ23: 250 | FA23: 132 | FB23: 0.528 | FC23: 0.466162589 | FD23: 0.5889899462 | FE23: 250 | FF23: 34 | FG23: 50 | FH23: 22.36 | FI23: 0.3423529412 | FJ23: 253 | FK23: 137 | FL23: 0.5415019763 | FM23: 0.479940638 | FN23: 0.6018218628 | FO23: 253 | FP23: 34 | FQ23: 50 | FR23: 24.74 | FS23: 0.2723529412 | FT23: 2884 | FU23: 2719 | FV23: 165 | FW23: 134 | FX23: 31 | FY23: 0.8121212121 | FZ23: 0.1878787879 | GA23: 0.8321674159 | GB23: 0.1678325841 | GC23: 0.1348112338 | GD23: 0.2441714886 | GE23: 0.8403327228 | GF23: 0.1596672772 | GG23: 0.1206013156 | GH23: 0.225809253 | GI23: 0.816710928 | GJ23: 0.183289072 | GK23: 0.147725941 | GL23: 0.2599586367 | GM23: 0.6699114774 | GN23: 0.3300885226 | GO23: 0.2704984306 | GP23: 0.4027068537 | GQ23: 93 | GR23: 90 | GS23: 90 | GT23: 92 | GU23: 90 | GV23: 66 | GW23: 56 | GX23: 60 | GY23: 58 | GZ23: 60 | HA23: 64 | HB23: 57 | HC23: 61 | HD23: 50 | HE23: 45 | HF23: 41 | HG23: 41 | HH23: 41 | HI23: 41 | HJ23: 41 | HK23: 44 | HL23: 40 | HM23: 45 | HN23: 17 | HO23: 0.01328125 | HP23: 2075 | HQ23: 1726 | HR23: 349 | HS23: 0.1681927711
A24: Maidenbower and Pound Hill | C24: Crawley | D24: Crawley | E24: Crawley | F24: Crawley | G24: Maidenbower, Pound Hill North, Pound Hill South and Worth | H24: Crawley SE | I24: C1 | J24: Crawley | K24: Crawley | L24: 22545 | M24: 22820 | N24: 22870 | O24: 23175 | P24: 23725 | Q24: 24090 | R24: 24460 | S24: 24445 | T24: 24605 | U24: 24745 | V24: 1565 | W24: 1550 | X24: 1525 | Y24: 1580 | Z24: 1705 | AA24: 1710 | AB24: 1820 | AC24: 1840 | AD24: 1825 | AE24: 1825 | AF24: 0.7443897099 | AG24: 0.04378762999 | AH24: 0.06787082649 | AI24: 0.105090312 | AJ24: 0.03174603175 | AK24: 0.007115489874 | AL24: 0.2556102901 | AM24: 3425 | AN24: 0.6795208881 | AO24: 0.1279579316 | AP24: 0.1925211803 | AQ24: 316 | AR24: 353 | AS24: 351 | AT24: 329 | AU24: 332 | AV24: 6 | AW24: 11 | AX24: 9 | AY24: 5 | AZ24: 8 | BA24: 23 | BB24: 0.06927710843 | BC24: 0.0466033113 | BD24: 0.1018043897 | BE24: 10 | BF24: 664 | BG24: 570 | BH24: 221 | BI24: 0.1317079505 | BJ24: 3454 | BK24: 5931 | BL24: 3289 | BM24: 2085 | BN24: 1 | BO24: 390 | BP24: 537 | BQ24: 276 | BR24: 140 | BS24: 130 | BT24: 110 | BU24: 602 | BV24: 174 | BW24: 0.2890365449 | BX24: 48 | BY24: 9 | BZ24: 211 | CA24: 0.02156141427 | CB24: 220 | CC24: 200 | CD24: 185 | CE24: 170 | CF24: 445 | CG24: 0.08 | CH24: 485 | CI24: 0.08257142857 | CJ24: 450 | CK24: 0.09164285714 | CL24: 405 | CM24: 0.09685714286 | CN24: 365 | CO24: 0.08735714286 | CP24: 410 | CQ24: 0.08031341822 | CR24: 337 | CS24: 7 | CT24: 330 | CU24: 0.981167328 | CV24: 122 | CW24: 194 | CX24: 0.3734775019 | CY24: 0.5899842786 | CZ24: 0.3193921388 | DA24: 0.4230006606 | DB24: 0.5340568523 | DC24: 0.6396782364 | DD24: 267 | DE24: 21 | DF24: 0.079 | DG24: 0.052 | DH24: 0.117 | DI24: No Sig diff | DJ24: 276 | DK24: 23 | DL24: 0.083 | DM24: 0.056 | DN24: 0.122 | DO24: No Sig diff | DP24: 239 | DQ24: 10 | DR24: 0.04184100418 | DS24: 0.02288342608 | DT24: 0.07529362712 | DU24: Sig better than Eng. | DV24: 265 | DW24: 23 | DX24: 0.08679245283 | DY24: 0.05852958566 | DZ24: 0.1268639137 | EA24: No Sig diff | EB24: 252 | EC24: 37 | ED24: 0.147 | EE24: 0.108 | EF24: 0.196 | EG24: No Sig diff | EH24: 282 | EI24: 34 | EJ24: 0.121 | EK24: 0.088 | EL24: 0.164 | EM24: Sig better than Eng. | EN24: 263 | EO24: 38 | EP24: 0.144486692 | EQ24: 0.1071112426 | ER24: 0.192098105 | ES24: No Sig diff | ET24: 249 | EU24: 34 | EV24: 0.1365461847 | EW24: 0.09938581616 | EX24: 0.1847505717 | EY24: Sig better than Eng. | EZ24: 324 | FA24: 210 | FB24: 0.6481481481 | FC24: 0.5946899179 | FD24: 0.6981345478 | FE24: 324 | FF24: 34 | FG24: 64 | FH24: 26.765625 | FI24: 0.2127757353 | FJ24: 330 | FK24: 227 | FL24: 0.6878787879 | FM24: 0.6359654216 | FN24: 0.7354683735 | FO24: 330 | FP24: 34 | FQ24: 66 | FR24: 24.87878788 | FS24: 0.2682709447 | FT24: 2918 | FU24: 2877 | FV24: 41 | FW24: 31 | FX24: 10 | FY24: 0.756097561 | FZ24: 0.243902439 | GA24: 0.9488377402 | GB24: 0.05116225978 | GC24: 0.03500530114 | GD24: 0.102932567 | GE24: 0.9815497994 | GF24: 0.01845020059 | GG24: 0.0108333665 | GH24: 0.05774318065 | GI24: 0.9417254081 | GJ24: 0.05827459189 | GK24: 0.03896655735 | GL24: 0.1096162064 | GM24: 0.8501893065 | GN24: 0.1498106935 | GO24: 0.1002012662 | GP24: 0.1977529424 | GQ24: 97 | GR24: 96 | GS24: 96 | GT24: 96 | GU24: 96 | GV24: 83 | GW24: 80 | GX24: 82 | GY24: 80 | GZ24: 82 | HA24: 82 | HB24: 77 | HC24: 82 | HD24: 96 | HE24: 91 | HF24: 90 | HG24: 88 | HH24: 90 | HI24: 93 | HJ24: 83 | HK24: 88 | HL24: 84 | HM24: 92 | HN24: 25 | HO24: 0.01368363437 | HP24: 2936 | HQ24: 2702 | HR24: 234 | HS24: 0.07970027248
A25: Maybridge | C25: Worthing | D25: Worthing | E25: Worthing | F25: CCC | G25: Ferring, Castle, Goring | H25: Durrington | I25: B | J25: Coastal West Sussex | K25: Worthing West | L25: 20310 | M25: 20305 | N25: 20430 | O25: 20645 | P25: 20655 | Q25: 20545 | R25: 20560 | S25: 20555 | T25: 20615 | U25: 20695 | V25: 925 | W25: 915 | X25: 910 | Y25: 865 | Z25: 915 | AA25: 930 | AB25: 910 | AC25: 900 | AD25: 900 | AE25: 900 | AF25: 0.8798235943 | AG25: 0.01984564498 | AH25: 0.04851157663 | AI25: 0.04630650496 | AJ25: 0.00441014333 | AK25: 0.001102535832 | AL25: 0.1201764057 | AM25: 1815 | AN25: 0.6644628099 | AO25: 0.138292011 | AP25: 0.1972451791 | AQ25: 172 | AR25: 165 | AS25: 168 | AT25: 172 | AU25: 164 | AV25: 12 | AW25: 12 | AX25: 7 | AY25: 9 | AZ25: 6 | BA25: 1 | BB25: 0.006097560976 | BC25: 0.00107718139 | BD25: 0.03372625074 | BE25: 17 | BF25: 272 | BG25: 292 | BH25: 145 | BI25: 0.1427779869 | BJ25: 2003 | BK25: 3568 | BL25: 2418 | BM25: 1461 | BN25: 1 | BO25: 289 | BP25: 506 | BQ25: 161 | BR25: 120 | BS25: 125 | BT25: 110 | BU25: 417 | BV25: 138 | BW25: 0.3309352518 | BX25: 42 | BY25: 5 | BZ25: 340 | CA25: 0.03613561484 | CB25: 165 | CC25: 155 | CD25: 155 | CE25: 140 | CF25: 455 | CG25: 0.1273076923 | CH25: 505 | CI25: 0.1353076923 | CJ25: 490 | CK25: 0.1325384615 | CL25: 505 | CM25: 0.1320769231 | CN25: 475 | CO25: 0.1176923077 | CP25: 440 | CQ25: 0.1417069243 | CR25: 178 | CS25: 11 | CT25: 167 | CU25: 0.9448155127 | CV25: 65 | CW25: 80 | CX25: 0.3999232062 | CY25: 0.501209282 | CZ25: 0.3185563026 | DA25: 0.4648688117 | DB25: 0.4046003918 | DC25: 0.5544259811 | DD25: 120 | DE25: 6 | DF25: 0.05 | DG25: 0.02311436441 | DH25: 0.1048028854 | DI25: No Sig diff | DJ25: 159 | DK25: 8 | DL25: 0.05031446541 | DM25: 0.02571267611 | DN25: 0.09613257733 | DO25: No Sig diff | DP25: 154 | DQ25: 12 | DR25: 0.07792207792 | DS25: 0.04513428609 | DT25: 0.1312544715 | DU25: No Sig diff | DV25: 200 | DW25: 13 | DX25: 0.065 | DY25: 0.03837635465 | DZ25: 0.1080190793 | EA25: No Sig diff | EB25: 163 | EC25: 19 | ED25: 0.1165644172 | EE25: 0.0759060038 | EF25: 0.1748797368 | EG25: Sig better than Eng. | EH25: 160 | EI25: 24 | EJ25: 0.15 | EK25: 0.1029184565 | EL25: 0.2134938802 | EM25: No Sig diff | EN25: 175 | EO25: 21 | EP25: 0.12 | EQ25: 0.07984170688 | ER25: 0.1764828564 | ES25: Sig better than Eng. | ET25: 183 | EU25: 38 | EV25: 0.2076502732 | EW25: 0.1551896404 | EX25: 0.2721323219 | EY25: No Sig diff | EZ25: 214 | FA25: 116 | FB25: 0.5420560748 | FC25: 0.4751486808 | FD25: 0.6074802187 | FE25: 214 | FF25: 34 | FG25: 42 | FH25: 24.16666667 | FI25: 0.2892156863 | FJ25: 197 | FK25: 114 | FL25: 0.578680203 | FM25: 0.5088703654 | FN25: 0.6454802362 | FO25: 197 | FP25: 34 | FQ25: 39 | FR25: 22.82051282 | FS25: 0.3288084465 | FT25: 2557 | FU25: 2503 | FV25: 54 | FW25: 46 | FX25: 8 | FY25: 0.8518518519 | FZ25: 0.1481481481 | GA25: 0.8430652681 | GB25: 0.1569347319 | GC25: 0.1071850143 | GD25: 0.2914541922 | GE25: 0.8661421911 | GF25: 0.1338578089 | GG25: 0.07343237343 | GH25: 0.2392981482 | GI25: 0.8411421911 | GJ25: 0.1588578089 | GK25: 0.1088876538 | GL25: 0.2955422258 | GM25: 0.8001165501 | GN25: 0.1998834499 | GO25: 0.1451370845 | GP25: 0.3464493981 | GQ25: 46 | GR25: 43 | GS25: 43 | GT25: 45 | GU25: 44 | GV25: 52 | GW25: 51 | GX25: 50 | GY25: 51 | GZ25: 50 | HA25: 52 | HB25: 51 | HC25: 51 | HD25: 53 | HE25: 50 | HF25: 48 | HG25: 44 | HH25: 48 | HI25: 49 | HJ25: 48 | HK25: 50 | HL25: 48 | HM25: 50 | HN25: 25 | HO25: 0.02756339581 | HP25: 1438 | HQ25: 1280 | HR25: 158 | HS25: 0.1098748261
A26: Mid Sussex Rural (North) | C26: Mid Sussex | D26: Mid Sussex | E26: Mid Sussex | F26: Mid Sussex | G26: Ardingly and Balcombe, Bolney, Crawley Down and Turners Hill, East Grinstead Herontye | H26: Haywards Heath/Cuckfield | I26: C2 | J26: Horsham and Mid Sussex | K26: Mid Sussex | L26: 23535 | M26: 23530 | N26: 23810 | O26: 24125 | P26: 24555 | Q26: 24770 | R26: 25010 | S26: 25180 | T26: 25165 | U26: 25335 | V26: 1215 | W26: 1180 | X26: 1200 | Y26: 1260 | Z26: 1290 | AA26: 1300 | AB26: 1280 | AC26: 1265 | AD26: 1230 | AE26: 1220 | AF26: 0.9038311181 | AG26: 0.05003909304 | AH26: 0.03440187647 | AI26: 0.009382329945 | AJ26: 0.002345582486 | AK26: 0 | AL26: 0.09616888194 | AM26: 2740 | AN26: 0.7202337473 | AO26: 0.08802045289 | AP26: 0.1917457999 | AQ26: 215 | AR26: 227 | AS26: 201 | AT26: 208 | AU26: 187 | AV26: 6 | AW26: 3 | AX26: 7 | AY26: 5 | AZ26: 3 | BA26: 12 | BB26: 0.06417112299 | BC26: 0.03708622049 | BD26: 0.1088016751 | BE26: 8 | BF26: 356 | BG26: 433 | BH26: 209 | BI26: 0.1607288901 | BJ26: 2911 | BK26: 5302 | BL26: 2948 | BM26: 1976 | BN26: 2 | BO26: 342 | BP26: 453 | BQ26: 175 | BR26: 80 | BS26: 60 | BT26: 60 | BU26: 379 | BV26: 91 | BW26: 0.2401055409 | BX26: 49 | BY26: 10 | BZ26: 165 | CA26: 0.01701381728 | CB26: 70 | CC26: 105 | CD26: 100 | CE26: 95 | CF26: 250 | CG26: 0.0526 | CH26: 270 | CI26: 0.05153333333 | CJ26: 270 | CK26: 0.06133333333 | CL26: 215 | CM26: 0.062 | CN26: 220 | CO26: 0.06033333333 | CP26: 245 | CQ26: 0.05917874396 | CR26: 187 | CS26: 5 | CT26: 182 | CU26: 0.9703347578 | CV26: 95 | CW26: 118 | CX26: 0.5590455646 | CY26: 0.687745247 | CZ26: 0.449704048 | DA26: 0.5933433644 | DB26: 0.5765659784 | DC26: 0.7140040555 | DD26: 181 | DE26: 12 | DF26: 0.066 | DG26: 0.038 | DH26: 0.112 | DI26: No Sig diff | DJ26: 207 | DK26: 18 | DL26: 0.087 | DM26: 0.056 | DN26: 0.133 | DO26: No Sig diff | DP26: 189 | DQ26: 9 | DR26: 0.04761904762 | DS26: 0.02525190669 | DT26: 0.08800931293 | DU26: Sig better than Eng. | DV26: 190 | DW26: 15 | DX26: 0.07894736842 | DY26: 0.04842449218 | DZ26: 0.1261586905 | EA26: No Sig diff | EB26: 175 | EC26: 23 | ED26: 0.131 | EE26: 0.089 | EF26: 0.189 | EG26: No Sig diff | EH26: 189 | EI26: 21 | EJ26: 0.111 | EK26: 0.074 | EL26: 0.164 | EM26: Sig better than Eng. | EN26: 183 | EO26: 28 | EP26: 0.1530054645 | EQ26: 0.1080305077 | ER26: 0.2122488308 | ES26: No Sig diff | ET26: 174 | EU26: 14 | EV26: 0.08045977011 | EW26: 0.04853109981 | EX26: 0.1305129714 | EY26: Sig better than Eng. | EZ26: 238 | FA26: 133 | FB26: 0.5588235294 | FC26: 0.4953035341 | FD26: 0.620474795 | FE26: 238 | FF26: 34 | FG26: 47 | FH26: 25.10638298 | FI26: 0.2615769712 | FJ26: 203 | FK26: 114 | FL26: 0.5615763547 | FM26: 0.4928022299 | FN26: 0.6280632877 | FO26: 203 | FP26: 34 | FQ26: 40 | FR26: 23.925 | FS26: 0.2963235294 | FT26: 4108 | FU26: 4023 | FV26: 85 | FW26: 80 | FX26: 5 | FY26: 0.9411764706 | FZ26: 0.05882352941 | GA26: 0.8980880231 | GB26: 0.1019119769 | GC26: 0.05467322415 | GD26: 0.1513559829 | GE26: 0.9351250601 | GF26: 0.06487493987 | GG26: 0.03394088582 | GH26: 0.1168555704 | GI26: 0.9247546898 | GJ26: 0.07524531025 | GK26: 0.04411767148 | GL26: 0.1342951602 | GM26: 0.8482789433 | GN26: 0.1517210567 | GO26: 0.1230777986 | GP26: 0.2486496609 | GQ26: 41 | GR26: 37 | GS26: 37 | GT26: 37 | GU26: 37 | GV26: 58 | GW26: 54 | GX26: 56 | GY26: 55 | GZ26: 56 | HA26: 56 | HB26: 55 | HC26: 56 | HD26: 61 | HE26: 57 | HF26: 57 | HG26: 56 | HH26: 58 | HI26: 58 | HJ26: 54 | HK26: 57 | HL26: 57 | HM26: 58 | HN26: 33 | HO26: 0.0259230165 | HP26: 2076 | HQ26: 1949 | HR26: 127 | HS26: 0.06117533719
A27: Midhurst | C27: Chichester | D27: Chichester Rural | E27: Chichester | F27: Arch | G27: Easebourne, Fernhurst, Harting, Midhurst, Rogate, Stedham | H27: Midhurst/Petworth | I27: A | J27: Coastal West Sussex | K27: Chichester | L27: 15945 | M27: 15990 | N27: 15980 | O27: 16045 | P27: 16120 | Q27: 16080 | R27: 16020 | S27: 16095 | T27: 16150 | U27: 16255 | V27: 755 | W27: 770 | X27: 810 | Y27: 830 | Z27: 830 | AA27: 815 | AB27: 815 | AC27: 790 | AD27: 785 | AE27: 815 | AF27: 0.9287469287 | AG27: 0.0171990172 | AH27: 0.04176904177 | AI27: 0.007371007371 | AJ27: 0.001228501229 | AK27: 0.003685503686 | AL27: 0.07125307125 | AM27: 1650 | AN27: 0.600970285 | AO27: 0.1952698605 | AP27: 0.2037598545 | AQ27: 117 | AR27: 125 | AS27: 99 | AT27: 127 | AU27: 97 | AV27: 4 | AW27: 7 | AX27: 1 | AY27: 5 | AZ27: 3 | BA27: 13 | BB27: 0.1340206186 | BC27: 0.0800245668 | BD27: 0.2158999385 | BE27: 7 | BF27: 198 | BG27: 277 | BH27: 134 | BI27: 0.1328806887 | BJ27: 1708 | BK27: 3061 | BL27: 1612 | BM27: 1037 | BN27: 0 | BO27: 188 | BP27: 295 | BQ27: 92 | BR27: 70 | BS27: 70 | BT27: 55 | BU27: 308 | BV27: 98 | BW27: 0.3181818182 | BX27: 26 | BY27: 6 | BZ27: 207 | CA27: 0.02861883036 | CB27: 85 | CC27: 95 | CD27: 95 | CE27: 80 | CF27: 250 | CG27: 0.08116666667 | CH27: 240 | CI27: 0.075 | CJ27: 250 | CK27: 0.07175 | CL27: 270 | CM27: 0.07208333333 | CN27: 280 | CO27: 0.06770833333 | CP27: 235 | CQ27: 0.08785046729 | CR27: 138 | CS27: 4 | CT27: 134 | CU27: 0.7348749478 | CV27: 67 | CW27: 83 | CX27: 0.4240330824 | CY27: 0.5124634536 | CZ27: 0.4165289411 | DA27: 0.5834710589 | DB27: 0.5349509667 | DC27: 0.6971995597 | DD27: 114 | DE27: 10 | DF27: 0.08771929825 | DG27: 0.04834510541 | DH27: 0.1539729842 | DI27: No Sig diff | DJ27: 133 | DK27: 9 | DL27: 0.06766917293 | DM27: 0.03600638718 | DN27: 0.1236050274 | DO27: No Sig diff | DP27: 141 | DQ27: 7 | DR27: 0.04964539007 | DS27: 0.02425353032 | DT27: 0.09892569589 | DU27: No Sig diff | DV27: 123 | DW27: 6 | DX27: 0.0487804878 | DY27: 0.02254577425 | DZ27: 0.1023460314 | EA27: No Sig diff | EB27: 88 | EC27: 10 | ED27: 0.1136363636 | EE27: 0.06290800375 | EF27: 0.1966856387 | EG27: No Sig diff | EH27: 88 | EI27: 17 | EJ27: 0.1931818182 | EK27: 0.1242595773 | EL27: 0.2877706681 | EM27: No Sig diff | EN27: 91 | EO27: 13 | EP27: 0.1428571429 | EQ27: 0.08542758137 | ER27: 0.2292181357 | ES27: No Sig diff | ET27: 100 | EU27: 6 | EV27: 0.06 | EW27: 0.02778612396 | EX27: 0.1247681545 | EY27: Sig better than Eng. | EZ27: 150 | FA27: 80 | FB27: 0.5333333333 | FC27: 0.4536624913 | FD27: 0.6113394924 | FE27: 150 | FF27: 34 | FG27: 30 | FH27: 25.43333333 | FI27: 0.2519607843 | FJ27: 166 | FK27: 90 | FL27: 0.5421686747 | FM27: 0.4662804824 | FN27: 0.6161493325 | FO27: 166 | FP27: 34 | FQ27: 33 | FR27: 25.51515152 | FS27: 0.2495543672 | FT27: 2265 | FU27: 2068 | FV27: 197 | FW27: 169 | FX27: 28 | FY27: 0.8578680203 | FZ27: 0.1421319797 | GB27: 0.1590909091 | GC27: 0.09719813762 | GD27: 0.2495031394 | GF27: 0.125 | GG27: 0.07125200898 | GH27: 0.2101193957 | GJ27: 0.1264367816 | GK27: 0.07208878776 | GL27: 0.2123800019 | GN27: 0.2954545455 | GO27: 0.2103072372 | GP27: 0.397713529 | GQ27: 29 | GR27: 27 | GS27: 27 | GT27: 28 | GU27: 27 | GV27: 22 | GW27: 22 | GX27: 22 | GY27: 22 | GZ27: 22 | HA27: 22 | HB27: 22 | HC27: 22 | HD27: 39 | HE27: 33 | HF27: 33 | HG27: 33 | HH27: 33 | HI27: 34 | HJ27: 33 | HK27: 34 | HL27: 31 | HM27: 33 | HN27: 12 | HO27: 0.01474201474 | HP27: 1220 | HQ27: 1116 | HR27: 104 | HS27: 0.08524590164
A28: Northgate | C28: Crawley | D28: Crawley | E28: Crawley | F28: Crawley | G28: Northgate, Three Bridges, West Green | H28: Crawley NE | I28: C1 | J28: Crawley | K28: Crawley | L28: 14675 | M28: 14925 | N28: 15190 | O28: 15405 | P28: 15880 | Q28: 16250 | R28: 17140 | S28: 17785 | T28: 18270 | U28: 18550 | V28: 795 | W28: 810 | X28: 830 | Y28: 825 | Z28: 895 | AA28: 980 | AB28: 1180 | AC28: 1340 | AD28: 1425 | AE28: 1455 | AF28: 0.5143939394 | AG28: 0.07954545455 | AH28: 0.08863636364 | AI28: 0.2621212121 | AJ28: 0.03257575758 | AK28: 0.02272727273 | AL28: 0.4856060606 | AM28: 2205 | AN28: 0.3743194192 | AO28: 0.3774954628 | AP28: 0.248185118 | AQ28: 199 | AR28: 311 | AS28: 317 | AT28: 298 | AU28: 307 | AV28: 8 | AW28: 13 | AX28: 17 | AY28: 7 | AZ28: 9 | BA28: 21 | BB28: 0.06840390879 | BC28: 0.0451723763 | BD28: 0.1023029926 | BE28: 20 | BF28: 514 | BG28: 330 | BH28: 171 | BI28: 0.1342541448 | BJ28: 2102 | BK28: 3595 | BL28: 2365 | BM28: 1231 | BN28: 5 | BO28: 338 | BP28: 561 | BQ28: 230 | BR28: 195 | BS28: 175 | BT28: 145 | BU28: 507 | BV28: 211 | BW28: 0.41617357 | BX28: 30 | BY28: 3 | BZ28: 422 | CA28: 0.0556875165 | CB28: 290 | CC28: 295 | CD28: 235 | CE28: 210 | CF28: 610 | CG28: 0.1724166667 | CH28: 635 | CI28: 0.1879166667 | CJ28: 580 | CK28: 0.1916666667 | CL28: 535 | CM28: 0.1946666667 | CN28: 475 | CO28: 0.1763333333 | CP28: 550 | CQ28: 0.1702786378 | CR28: 258 | CS28: 8 | CT28: 250 | CU28: 0.8881849304 | CV28: 108 | CW28: 155 | CX28: 0.3925894757 | CY28: 0.5596133737 | CZ28: 0.3720820594 | DA28: 0.4939761438 | DB28: 0.5584442322 | DC28: 0.6779236445 | DD28: 129 | DE28: 15 | DF28: 0.1162790698 | DG28: 0.07174577169 | DH28: 0.1830049599 | DI28: No Sig diff | DJ28: 154 | DK28: 16 | DL28: 0.1038961039 | DM28: 0.06496887858 | DN28: 0.1621036478 | DO28: No Sig diff | DP28: 132 | DQ28: 8 | DR28: 0.06060606061 | DS28: 0.03102688447 | DT28: 0.1150364676 | DU28: No Sig diff | DV28: 183 | DW28: 14 | DX28: 0.07650273224 | DY28: 0.04611535309 | DZ28: 0.1243043119 | EA28: No Sig diff | EB28: 114 | EC28: 23 | ED28: 0.201754386 | EE28: 0.1383706422 | EF28: 0.2845828695 | EG28: No Sig diff | EH28: 119 | EI28: 17 | EJ28: 0.1428571429 | EK28: 0.09114539833 | EL28: 0.2169058018 | EM28: No Sig diff | EN28: 158 | EO28: 28 | EP28: 0.1772151899 | EQ28: 0.1255502663 | ER28: 0.2442033139 | ES28: No Sig diff | ET28: 146 | EU28: 35 | EV28: 0.2397260274 | EW28: 0.1777180191 | EX28: 0.3150792307 | EY28: No Sig diff | EZ28: 230 | FA28: 112 | FB28: 0.4869565217 | FC28: 0.423107106 | FD28: 0.5512344841 | FE28: 230 | FF28: 34 | FG28: 46 | FH28: 21.30434783 | FI28: 0.3734015345 | FJ28: 236 | FK28: 118 | FL28: 0.5 | FM28: 0.4367215304 | FN28: 0.5632784696 | FO28: 236 | FP28: 34 | FQ28: 47 | FR28: 20.93617021 | FS28: 0.3842302879 | FT28: 2552 | FU28: 2532 | FV28: 20 | FW28: 19 | FX28: 1 | FY28: 0.95 | FZ28: 0.05 | GA28: 0.8230519372 | GB28: 0.0936147295 | GC28: 0.05518733606 | GD28: 0.1429002492 | GE28: 0.8318368451 | GF28: 0.08482982159 | GG28: 0.0460540756 | GH28: 0.1286200085 | GI28: 0.8107480156 | GJ28: 0.1059186511 | GK28: 0.06927290603 | GL28: 0.1639349309 | GM28: 0.6612035881 | GN28: 0.2554630786 | GO28: 0.1941866023 | GP28: 0.3260738074 | GQ28: 67 | GR28: 59 | GS28: 60 | GT28: 65 | GU28: 62 | GV28: 76 | GW28: 72 | GX28: 69 | GY28: 72 | GZ28: 70 | HA28: 73 | HB28: 73 | HC28: 74 | HD28: 63 | HE28: 60 | HF28: 55 | HG28: 56 | HH28: 56 | HI28: 59 | HJ28: 57 | HK28: 60 | HL28: 59 | HM28: 57 | HN28: 29 | HO28: 0.02213740458 | HP28: 2102 | HQ28: 1792 | HR28: 310 | HS28: 0.1474785918
A29: Petworth | C29: Chichester | D29: Chichester Rural | E29: Chichester | F29: Arch | G29: Bury, Fernhurst, Petworth, Plaistow | H29: Midhurst/Petworth | I29: A | J29: Coastal West Sussex | K29: Arundel and South Downs | L29: 11195 | M29: 11265 | N29: 11190 | O29: 11230 | P29: 11395 | Q29: 11450 | R29: 11565 | S29: 11620 | T29: 11600 | U29: 11620 | V29: 595 | W29: 585 | X29: 580 | Y29: 590 | Z29: 610 | AA29: 605 | AB29: 620 | AC29: 635 | AD29: 630 | AE29: 605 | AF29: 0.929022082 | AG29: 0.02839116719 | AH29: 0.02996845426 | AI29: 0.004731861199 | AJ29: 0.006309148265 | AK29: 0.001577287066 | AL29: 0.07097791798 | AM29: 1325 | AN29: 0.6390354182 | AO29: 0.1680482291 | AP29: 0.1929163527 | AQ29: 99 | AR29: 95 | AS29: 81 | AT29: 61 | AU29: 55 | AV29: 4 | AW29: 5 | AX29: 3 | AY29: 2 | AZ29: 4 | BA29: 3 | BB29: 0.05454545455 | BC29: 0.01872321555 | BD29: 0.1485306054 | BE29: 5 | BF29: 168 | BG29: 209 | BH29: 102 | BI29: 0.1724825611 | BJ29: 1297 | BK29: 2364 | BL29: 1307 | BM29: 905 | BN29: 0 | BO29: 129 | BP29: 202 | BQ29: 71 | BR29: 35 | BS29: 40 | BT29: 40 | BU29: 201 | BV29: 60 | BW29: 0.2985074627 | BX29: 20 | BY29: 5 | BZ29: 104 | CA29: 0.0220292311 | CB29: 60 | CC29: 60 | CD29: 50 | CE29: 55 | CF29: 175 | CG29: 0.088125 | CH29: 200 | CI29: 0.090375 | CJ29: 180 | CK29: 0.08925 | CL29: 180 | CM29: 0.09825 | CN29: 175 | CO29: 0.079125 | CP29: 155 | CQ29: 0.0756097561 | CR29: 61 | CS29: 0 | CT29: 61 | CU29: 0.75 | CV29: 22 | CW29: 28 | CX29: 0.2682291667 | CY29: 0.3378472222 | CZ29: 0.2517393651 | DA29: 0.4860832673 | DB29: 0.3401273089 | DC29: 0.5827617006 | DD29: 83 | DE29: 5 | DF29: 0.06024096386 | DG29: 0.02600340104 | DH29: 0.1333842809 | DI29: No Sig diff | DJ29: 89 | DK29: 8 | DL29: 0.08988764045 | DM29: 0.04625242915 | DN29: 0.1674609169 | DO29: No Sig diff | DP29: 82 | DQ29: 5 | DR29: 0.06097560976 | DS29: 0.02632395507 | DT29: 0.134920495 | DU29: No Sig diff | DV29: 100 | DW29: 7 | DX29: 0.07 | DY29: 0.03431926107 | DZ29: 0.1374951474 | EA29: No Sig diff | EB29: 65 | EC29: 13 | ED29: 0.2 | EE29: 0.1207795924 | EF29: 0.3127013264 | EG29: No Sig diff | EH29: 61 | EI29: 12 | EJ29: 0.1967213115 | EK29: 0.1162780223 | EL29: 0.3130994058 | EM29: No Sig diff | EN29: 64 | EO29: 8 | EP29: 0.125 | EQ29: 0.06472242663 | ER29: 0.2277456182 | ES29: No Sig diff | ET29: 63 | EU29: 12 | EV29: 0.1904761905 | EW29: 0.1124619187 | EX29: 0.3040678715 | EY29: No Sig diff | EZ29: 121 | FA29: 66 | FB29: 0.5454545455 | FC29: 0.4566999678 | FD29: 0.6314117869 | FE29: 121 | FF29: 35 | FG29: 24 | FH29: 25.54166667 | FI29: 0.2702380952 | FJ29: 114 | FK29: 69 | FL29: 0.6052631579 | FM29: 0.5135129605 | FN29: 0.690150506 | FO29: 114 | FP29: 34 | FQ29: 22 | FR29: 24.86363636 | FS29: 0.2687165775 | FT29: 2014 | FU29: 1726 | FV29: 288 | FW29: 243 | FX29: 45 | FY29: 0.84375 | FZ29: 0.15625 | GB29: 0.1111111111 | GC29: 0.04406568909 | GD29: 0.2531512902 | GF29: 0.05555555556 | GG29: 0.01536966377 | GH29: 0.1814497411 | GJ29: 0.08333333333 | GK29: 0.02874808927 | GL29: 0.2182701028 | GN29: 0.1428571429 | GO29: 0.06260138805 | GP29: 0.2937588031 | GQ29: 12 | GR29: 12 | GS29: 12 | GT29: 12 | GU29: 12 | GV29: 22 | GW29: 21 | GX29: 21 | GY29: 21 | GZ29: 21 | HA29: 20 | HB29: 20 | HC29: 21 | HD29: 21 | HE29: 20 | HF29: 17 | HG29: 20 | HH29: 17 | HI29: 17 | HJ29: 17 | HK29: 20 | HL29: 17 | HM29: 20 | HN29: 2 | HO29: 0.003164556962 | HP29: 962 | HQ29: 907 | HR29: 55 | HS29: 0.05717255717
A30: Roffey | C30: Horsham | D30: Horsham Town | E30: Horsham | F30: Horsham | G30: Holbrook East, Holbrook West, Roffey North, Roffey South | H30: Horsham E | I30: C3 | J30: Horsham and Mid Sussex | K30: Horsham | L30: 15130 | M30: 15245 | N30: 15340 | O30: 15245 | P30: 15350 | Q30: 15440 | R30: 15490 | S30: 15465 | T30: 15390 | U30: 15370 | V30: 975 | W30: 950 | X30: 945 | Y30: 965 | Z30: 935 | AA30: 925 | AB30: 950 | AC30: 945 | AD30: 960 | AE30: 945 | AF30: 0.8776371308 | AG30: 0.02848101266 | AH30: 0.05801687764 | AI30: 0.02953586498 | AJ30: 0.006329113924 | AK30: 0 | AL30: 0.1223628692 | AM30: 1865 | AN30: 0.7325830654 | AO30: 0.140943194 | AP30: 0.1264737406 | AQ30: 201 | AR30: 179 | AS30: 176 | AT30: 195 | AU30: 159 | AV30: 10 | AW30: 7 | AX30: 1 | AY30: 5 | AZ30: 2 | BA30: 9 | BB30: 0.05660377358 | BC30: 0.03006197812 | BD30: 0.1040651599 | BE30: 5 | BF30: 288 | BG30: 313 | BH30: 136 | BI30: 0.1365187394 | BJ30: 2026 | BK30: 3549 | BL30: 1808 | BM30: 1110 | BN30: 1 | BO30: 241 | BP30: 329 | BQ30: 127 | BR30: 75 | BS30: 60 | BT30: 65 | BU30: 323 | BV30: 88 | BW30: 0.2724458204 | BX30: 31 | BY30: 10 | BZ30: 206 | CA30: 0.03225806452 | CB30: 90 | CC30: 100 | CD30: 110 | CE30: 115 | CF30: 265 | CG30: 0.0844 | CH30: 270 | CI30: 0.0732 | CJ30: 250 | CK30: 0.0817 | CL30: 225 | CM30: 0.088 | CN30: 250 | CO30: 0.0862 | CP30: 240 | CQ30: 0.08067226891 | CR30: 176 | CS30: 3 | CT30: 173 | CU30: 0.9846230159 | CV30: 78 | CW30: 107 | CX30: 0.4553766549 | CY30: 0.6243544255 | CZ30: 0.3785889929 | DA30: 0.5252797801 | DB30: 0.5442818679 | DC30: 0.6875640326 | DD30: 156 | DE30: 13 | DF30: 0.08333333333 | DG30: 0.04934565085 | DH30: 0.1373484587 | DI30: No Sig diff | DJ30: 181 | DK30: 10 | DL30: 0.05524861878 | DM30: 0.03028347564 | DN30: 0.09869981076 | DO30: No Sig diff | DP30: 108 | DQ30: 12 | DR30: 0.1111111111 | DS30: 0.06471266929 | DT30: 0.1842241661 | DU30: No Sig diff | DV30: 153 | DW30: 15 | DX30: 0.09803921569 | DY30: 0.0603159428 | DZ30: 0.155452637 | EA30: No Sig diff | EB30: 171 | EC30: 23 | ED30: 0.134502924 | EE30: 0.09132603231 | EF30: 0.1937405598 | EG30: No Sig diff | EH30: 177 | EI30: 23 | EJ30: 0.1299435028 | EK30: 0.08817174919 | EL30: 0.1874368372 | EM30: Sig better than Eng. | EN30: 183 | EO30: 21 | EP30: 0.1147540984 | EQ30: 0.07629225718 | ER30: 0.1690572445 | ES30: Sig better than Eng. | ET30: 157 | EU30: 16 | EV30: 0.101910828 | EW30: 0.06370762918 | EX30: 0.1591295614 | EY30: Sig better than Eng. | EZ30: 180 | FA30: 111 | FB30: 0.6166666667 | FC30: 0.5439052747 | FD30: 0.6845524424 | FE30: 180 | FF30: 34 | FG30: 36 | FH30: 26.11111111 | FI30: 0.2320261438 | FJ30: 216 | FK30: 130 | FL30: 0.6018518519 | FM30: 0.5353392784 | FN30: 0.6648049538 | FO30: 216 | FP30: 34 | FQ30: 43 | FR30: 24.30232558 | FS30: 0.2852257182 | FT30: 2458 | FU30: 2411 | FV30: 47 | FW30: 44 | FX30: 3 | FY30: 0.9361702128 | FZ30: 0.06382978723 | GA30: 0.9695238095 | GB30: 0.03047619048 | GC30: 0.01397438629 | GD30: 0.0882479587 | GE30: 0.9628571429 | GF30: 0.03714285714 | GG30: 0.01921697453 | GH30: 0.1002703254 | GI30: 0.9494642857 | GJ30: 0.05053571429 | GK30: 0.0306015328 | GL30: 0.1234156769 | GM30: 0.8962286325 | GN30: 0.1037713675 | GO30: 0.06351398139 | GP30: 0.1810503958 | GQ30: 45 | GR30: 44 | GS30: 43 | GT30: 43 | GU30: 44 | GV30: 36 | GW30: 33 | GX30: 32 | GY30: 35 | GZ30: 32 | HA30: 33 | HB30: 36 | HC30: 34 | HD30: 34 | HE30: 30 | HF30: 29 | HG30: 29 | HH30: 30 | HI30: 32 | HJ30: 30 | HK30: 33 | HL30: 31 | HM30: 31 | HN30: 19 | HO30: 0.02016985138 | HP30: 1483 | HQ30: 1384 | HR30: 99 | HS30: 0.06675657451
A31: Rural Chichester | C31: Chichester | D31: Chichester Central | E31: Chichester | F31: Arch | G31: Boxgrove, Chichester North, Chichester West, Donnington, Funtington, Lavant, North Mundham, Sidlesham, Tangmere, Westbourne | H31: Chichester | I31: A | J31: Coastal West Sussex | K31: Chichester | L31: 21745 | M31: 21680 | N31: 21900 | O31: 21990 | P31: 22135 | Q31: 22310 | R31: 22585 | S31: 22720 | T31: 22920 | U31: 23175 | V31: 1110 | W31: 1095 | X31: 1100 | Y31: 1115 | Z31: 1085 | AA31: 1110 | AB31: 1135 | AC31: 1105 | AD31: 1145 | AE31: 1145 | AF31: 0.9232158988 | AG31: 0.03613369467 | AH31: 0.0216802168 | AI31: 0.009936766034 | AJ31: 0.001806684734 | AK31: 0.007226738934 | AL31: 0.07678410117 | AM31: 2290 | AN31: 0.5696810834 | AO31: 0.2350371341 | AP31: 0.1952817824 | AQ31: 210 | AR31: 200 | AS31: 234 | AT31: 217 | AU31: 181 | AV31: 12 | AW31: 13 | AX31: 17 | AY31: 11 | AZ31: 12 | BA31: 5 | BB31: 0.02762430939 | BC31: 0.01185593678 | BD31: 0.06302693262 | BE31: 26 | BF31: 312 | BG31: 362 | BH31: 186 | BI31: 0.1644675755 | BJ31: 2468 | BK31: 4506 | BL31: 2479 | BM31: 1534 | BN31: 0 | BO31: 288 | BP31: 484 | BQ31: 173 | BR31: 115 | BS31: 100 | BT31: 100 | BU31: 484 | BV31: 157 | BW31: 0.3243801653 | BX31: 39 | BY31: 6 | BZ31: 268 | CA31: 0.02751540041 | CB31: 165 | CC31: 180 | CD31: 180 | CE31: 155 | CF31: 455 | CG31: 0.119 | CH31: 480 | CI31: 0.1242307692 | CJ31: 520 | CK31: 0.1294615385 | CL31: 500 | CM31: 0.1185384615 | CN31: 490 | CO31: 0.1121538462 | CP31: 430 | CQ31: 0.1115434501 | CR31: 204 | CS31: 20 | CT31: 184 | CU31: 0.9019721179 | CV31: 80 | CW31: 106 | CX31: 0.4565707859 | CY31: 0.5950429096 | CZ31: 0.3652107328 | DA31: 0.507022042 | DB31: 0.5038425315 | DC31: 0.6452192312 | DD31: 160 | DE31: 19 | DF31: 0.11875 | DG31: 0.07735486801 | DH31: 0.1780228558 | DI31: No Sig diff | DJ31: 205 | DK31: 13 | DL31: 0.06341463415 | DM31: 0.03743086908 | DN31: 0.105459623 | DO31: No Sig diff | DP31: 206 | DQ31: 15 | DR31: 0.07281553398 | DS31: 0.04462064799 | DT31: 0.1166509092 | DU31: No Sig diff | DV31: 187 | DW31: 11 | DX31: 0.05882352941 | DY31: 0.03316019485 | DZ31: 0.1022477976 | EA31: No Sig diff | EB31: 179 | EC31: 28 | ED31: 0.156424581 | EE31: 0.1104972724 | EF31: 0.2167887776 | EG31: No Sig diff | EH31: 160 | EI31: 20 | EJ31: 0.125 | EK31: 0.08239453584 | EL31: 0.1851901105 | EM31: Sig better than Eng. | EN31: 175 | EO31: 28 | EP31: 0.16 | EQ31: 0.113079434 | ER31: 0.2215267542 | ES31: No Sig diff | ET31: 180 | EU31: 22 | EV31: 0.1222222222 | EW31: 0.08211540502 | EX31: 0.178116749 | EY31: Sig better than Eng. | EZ31: 230 | FA31: 120 | FB31: 0.5217391304 | FC31: 0.4573564726 | FD31: 0.5854075439 | FE31: 230 | FF31: 34 | FG31: 46 | FH31: 19.76086957 | FI31: 0.418797954 | FJ31: 234 | FK31: 126 | FL31: 0.5384615385 | FM31: 0.4744816007 | FN31: 0.6011990653 | FO31: 234 | FP31: 34 | FQ31: 46 | FR31: 22.34782609 | FS31: 0.3427109974 | FT31: 3372 | FU31: 3112 | FV31: 260 | FW31: 221 | FX31: 39 | FY31: 0.85 | FZ31: 0.15 | GB31: 0.1764705882 | GC31: 0.09572295726 | GD31: 0.3025440517 | GF31: 0.1764705882 | GG31: 0.09572295726 | GH31: 0.3025440517 | GJ31: 0.18 | GK31: 0.09770082732 | GL31: 0.3079631945 | GN31: 0.28 | GO31: 0.1747401436 | GP31: 0.4166538715 | GQ31: 54 | GR31: 50 | GS31: 50 | GT31: 54 | GU31: 50 | GV31: 45 | GW31: 44 | GX31: 45 | GY31: 43 | GZ31: 45 | HA31: 45 | HB31: 43 | HC31: 45 | HD31: 69 | HE31: 67 | HF31: 65 | HG31: 66 | HH31: 66 | HI31: 67 | HJ31: 63 | HK31: 66 | HL31: 64 | HM31: 67 | HN31: 21 | HO31: 0.01898734177 | HP31: 1723 | HQ31: 1581 | HR31: 142 | HS31: 0.0824143935
A32: Rural Henfield, Steyning and Upper Beeding | C32: Horsham | D32: Horsham Rural | E32: Horsham | F32: based on 2 sites | G32: Bramber, Upper Beeding and Woodmancote, Cowfold, Shermanbury and West Grinstead, Henfield, Nuthurst, Buckingham, Manor, Steyning | H32: Billingshurst, Steyning/Storrington | I32: C3/B | J32: Horsham and Mid Sussex | K32: Arundel and South Downs | L32: 27235 | M32: 27490 | N32: 27485 | O32: 27665 | P32: 27665 | Q32: 27750 | R32: 27890 | S32: 27850 | T32: 27865 | U32: 27915 | V32: 1275 | W32: 1285 | X32: 1260 | Y32: 1305 | Z32: 1265 | AA32: 1265 | AB32: 1275 | AC32: 1280 | AD32: 1325 | AE32: 1305 | AF32: 0.9357087529 | AG32: 0.02246320682 | AH32: 0.02711076685 | AI32: 0.0100697134 | AJ32: 0.001549186677 | AK32: 0.003098373354 | AL32: 0.0642912471 | AM32: 2715 | AN32: 0.7020257827 | AO32: 0.1134438306 | AP32: 0.1845303867 | AQ32: 246 | AR32: 238 | AS32: 240 | AT32: 238 | AU32: 228 | AV32: 12 | AW32: 10 | AX32: 8 | AY32: 16 | AZ32: 9 | BA32: 14 | BB32: 0.06140350877 | BC32: 0.03692559763 | BD32: 0.1004159244 | BE32: 23 | BF32: 355 | BG32: 458 | BH32: 190 | BI32: 0.1333107868 | BJ32: 3084 | BK32: 5413 | BL32: 3469 | BM32: 2348 | BN32: 1 | BO32: 415 | BP32: 523 | BQ32: 182 | BR32: 110 | BS32: 105 | BT32: 85 | BU32: 497 | BV32: 134 | BW32: 0.2696177062 | BX32: 57 | BY32: 8 | BZ32: 280 | CA32: 0.02398492376 | CB32: 160 | CC32: 160 | CD32: 135 | CE32: 120 | CF32: 405 | CG32: 0.08061111111 | CH32: 425 | CI32: 0.07533333333 | CJ32: 415 | CK32: 0.08638888889 | CL32: 380 | CM32: 0.086 | CN32: 395 | CO32: 0.08366666667 | CP32: 330 | CQ32: 0.07366071429 | CR32: 242 | CS32: 2 | CT32: 240 | CU32: 0.9904761905 | CV32: 111 | CW32: 149 | CX32: 0.4606218627 | CY32: 0.6258422133 | CZ32: 0.4005063166 | DA32: 0.5256752702 | DB32: 0.5580016763 | DC32: 0.6798576553 | DD32: 231 | DE32: 14 | DF32: 0.061 | DG32: 0.036 | DH32: 0.099 | DI32: No Sig diff | DJ32: 230 | DK32: 15 | DL32: 0.065 | DM32: 0.04 | DN32: 0.105 | DO32: No Sig diff | DP32: 176 | DQ32: 13 | DR32: 0.07386363636 | DS32: 0.04367147299 | DT32: 0.1222605597 | DU32: No Sig diff | DV32: 236 | DW32: 18 | DX32: 0.07627118644 | DY32: 0.04878699257 | DZ32: 0.11732882 | EA32: No Sig diff | EB32: 265 | EC32: 31 | ED32: 0.117 | EE32: 0.084 | EF32: 0.161 | EG32: Sig better than Eng. | EH32: 230 | EI32: 31 | EJ32: 0.135 | EK32: 0.097 | EL32: 0.185 | EM32: Sig better than Eng. | EN32: 219 | EO32: 30 | EP32: 0.1369863014 | EQ32: 0.09766872048 | ER32: 0.1888195262 | ES32: Sig better than Eng. | ET32: 201 | EU32: 23 | EV32: 0.1144278607 | EW32: 0.07746998148 | EX32: 0.1658472606 | EY32: Sig better than Eng. | EZ32: 270 | FA32: 155 | FB32: 0.5740740741 | FC32: 0.5144592121 | FD32: 0.6316107079 | FE32: 270 | FF32: 34 | FG32: 54 | FH32: 24.51851852 | FI32: 0.2788671024 | FJ32: 260 | FK32: 153 | FL32: 0.5884615385 | FM32: 0.5277795095 | FN32: 0.6465676163 | FO32: 260 | FP32: 34 | FQ32: 52 | FR32: 27.5 | FS32: 0.1911764706 | FT32: 3945 | FU32: 3878 | FV32: 67 | FW32: 60 | FX32: 7 | FY32: 0.8955223881 | FZ32: 0.1044776119 | GA32: 0.8991711992 | GB32: 0.1008288008 | GC32: 0.07158199284 | GD32: 0.1775920987 | GE32: 0.9474488474 | GF32: 0.05255115255 | GG32: 0.02923613475 | GH32: 0.1087044888 | GI32: 0.9075045325 | GJ32: 0.0924954675 | GK32: 0.07158199284 | GL32: 0.1775920987 | GM32: 0.8055879306 | GN32: 0.1944120694 | GO32: 0.1544267811 | GP32: 0.2894058793 | GQ32: 81 | GR32: 79 | GS32: 80 | GT32: 80 | GU32: 80 | GV32: 51 | GW32: 48 | GX32: 49 | GY32: 48 | GZ32: 49 | HA32: 51 | HB32: 47 | HC32: 49 | HD32: 71 | HE32: 69 | HF32: 65 | HG32: 67 | HH32: 66 | HI32: 69 | HJ32: 67 | HK32: 68 | HL32: 70 | HM32: 69 | HN32: 19 | HO32: 0.01474010861 | HP32: 2032 | HQ32: 1891 | HR32: 141 | HS32: 0.06938976378
A33: Rural Horsham | C33: Horsham | D33: Horsham Rural | E33: Horsham | F33: Chanctonbury | G33: Billingshurst and Shipley, Broadbridge Heath, Itchingfield, Slinfold and Warnham, Rudgwick, Rusper and Colgate | H33: Billingshurst | I33: C3 | J33: Coastal West Sussex | K33: Horsham | L33: 14005 | M33: 14120 | N33: 14350 | O33: 14600 | P33: 14705 | Q33: 14730 | R33: 14765 | S33: 14770 | T33: 14845 | U33: 15110 | V33: 785 | W33: 780 | X33: 795 | Y33: 825 | Z33: 825 | AA33: 785 | AB33: 765 | AC33: 780 | AD33: 730 | AE33: 790 | AF33: 0.9159235669 | AG33: 0.04203821656 | AH33: 0.02675159236 | AI33: 0.01401273885 | AJ33: 0.00127388535 | AK33: 0 | AL33: 0.08407643312 | AM33: 1660 | AN33: 0.6710843373 | AO33: 0.1638554217 | AP33: 0.165060241 | AQ33: 122 | AR33: 155 | AS33: 123 | AT33: 135 | AU33: 134 | AV33: 4 | AW33: 5 | AX33: 1 | AY33: 3 | AZ33: 4 | BA33: 9 | BB33: 0.0671641791 | BC33: 0.03573460605 | BD33: 0.1227188738 | BE33: 6 | BF33: 221 | BG33: 276 | BH33: 114 | BI33: 0.1487526922 | BJ33: 1769 | BK33: 3153 | BL33: 1642 | BM33: 1054 | BN33: 0 | BO33: 190 | BP33: 298 | BQ33: 100 | BR33: 75 | BS33: 55 | BT33: 45 | BU33: 303 | BV33: 102 | BW33: 0.3366336634 | BX33: 32 | BY33: 6 | BZ33: 170 | CA33: 0.02850435949 | CB33: 95 | CC33: 80 | CD33: 80 | CE33: 85 | CF33: 245 | CG33: 0.084 | CH33: 260 | CI33: 0.088625 | CJ33: 270 | CK33: 0.0935 | CL33: 270 | CM33: 0.092 | CN33: 250 | CO33: 0.0855 | CP33: 240 | CQ33: 0.09039548023 | CR33: 142 | CS33: 8 | CT33: 134 | CU33: 0.9474792469 | CV33: 52 | CW33: 71 | CX33: 0.4007936508 | CY33: 0.5369047619 | CZ33: 0.3097673661 | DA33: 0.4725915154 | DB33: 0.4456924932 | DC33: 0.6123451384 | DD33: 145 | DE33: 10 | DF33: 0.06896551724 | DG33: 0.03788895328 | DH33: 0.1222912748 | DI33: No Sig diff | DJ33: 131 | DK33: 13 | DL33: 0.09923664122 | DM33: 0.05891488691 | DN33: 0.1623928554 | DO33: No Sig diff | DP33: 82 | DQ33: 6 | DR33: 0.07317073171 | DS33: 0.03396477726 | DT33: 0.1505784381 | DU33: No Sig diff | DV33: 122 | DW33: 13 | DX33: 0.106557377 | DY33: 0.06333699612 | DZ33: 0.1737983574 | EA33: No Sig diff | EB33: 123 | EC33: 23 | ED33: 0.1869918699 | EE33: 0.1279583743 | EF33: 0.2649845899 | EG33: No Sig diff | EH33: 128 | EI33: 18 | EJ33: 0.140625 | EK33: 0.09083969494 | EL33: 0.2113524924 | EM33: No Sig diff | EN33: 125 | EO33: 19 | EP33: 0.152 | EQ33: 0.0995208342 | ER33: 0.2252306798 | ES33: No Sig diff | ET33: 103 | EU33: 18 | EV33: 0.1747572816 | EW33: 0.1134989656 | EX33: 0.2594036442 | EY33: No Sig diff | EZ33: 152 | FA33: 85 | FB33: 0.5592105263 | FC33: 0.4797884591 | FD33: 0.6357135398 | FE33: 152 | FF33: 34 | FG33: 30 | FH33: 24.76666667 | FI33: 0.2715686275 | FJ33: 150 | FK33: 89 | FL33: 0.5933333333 | FM33: 0.5133466505 | FN33: 0.6686589039 | FO33: 150 | FP33: 34 | FQ33: 30 | FR33: 26.6 | FS33: 0.2176470588 | FT33: 2449 | FU33: 2382 | FV33: 67 | FW33: 52 | FX33: 15 | FY33: 0.776119403 | FZ33: 0.223880597 | GA33: 0.9005952381 | GB33: 0.0994047619 | GC33: 0.03945757334 | GD33: 0.1957773625 | GE33: 0.918452381 | GF33: 0.08154761905 | GG33: 0.0286435965 | GH33: 0.1726017809 | GI33: 0.8851190476 | GJ33: 0.1148809524 | GK33: 0.05096655628 | GL33: 0.218257938 | GM33: 0.7655753968 | GN33: 0.2344246032 | GO33: 0.1319528799 | GP33: 0.3493892683 | GQ33: 40 | GR33: 39 | GS33: 39 | GT33: 39 | GU33: 39 | GV33: 33 | GW33: 32 | GX33: 33 | GY33: 32 | GZ33: 33 | HA33: 33 | HB33: 32 | HC33: 33 | HD33: 45 | HE33: 39 | HF33: 42 | HG33: 37 | HH33: 42 | HI33: 43 | HJ33: 38 | HK33: 39 | HL33: 38 | HM33: 43 | HN33: 13 | HO33: 0.01660280971 | HP33: 1220 | HQ33: 1127 | HR33: 93 | HS33: 0.0762295082
A34: Selsey | C34: Chichester | D34: Chichester Rural | E34: Chichester | F34: Arch | G34: East Wittering, Selsey North, Selsey South, Sidlesham, West Wittering | H34: Manhood | I34: A | J34: Coastal West Sussex | K34: Chichester | L34: 20565 | M34: 20845 | N34: 21190 | O34: 21470 | P34: 21585 | Q34: 21515 | R34: 21515 | S34: 21455 | T34: 21385 | U34: 21365 | V34: 740 | W34: 740 | X34: 770 | Y34: 825 | Z34: 875 | AA34: 890 | AB34: 885 | AC34: 890 | AD34: 910 | AE34: 885 | AF34: 0.9481397971 | AG34: 0.03269447576 | AH34: 0.01240135287 | AI34: 0.005636978579 | AJ34: 0.001127395716 | AK34: 0 | AL34: 0.05186020293 | AM34: 1790 | AN34: 0.6135346756 | AO34: 0.1364653244 | AP34: 0.25 | AQ34: 201 | AR34: 175 | AS34: 189 | AT34: 190 | AU34: 177 | AV34: 15 | AW34: 11 | AX34: 14 | AY34: 11 | AZ34: 12 | BA34: 19 | BB34: 0.1073446328 | BC34: 0.06980488204 | BD34: 0.1615660607 | BE34: 20 | BF34: 259 | BG34: 270 | BH34: 166 | BI34: 0.1541394301 | BJ34: 1966 | BK34: 3509 | BL34: 1980 | BM34: 1107 | BN34: 3 | BO34: 259 | BP34: 429 | BQ34: 182 | BR34: 145 | BS34: 105 | BT34: 100 | BU34: 427 | BV34: 142 | BW34: 0.3325526932 | BX34: 39 | BY34: 4 | BZ34: 306 | CA34: 0.031436203 | CB34: 170 | CC34: 150 | CD34: 165 | CE34: 170 | CF34: 490 | CG34: 0.144 | CH34: 525 | CI34: 0.1402857143 | CJ34: 555 | CK34: 0.1622142857 | CL34: 490 | CM34: 0.152 | CN34: 520 | CO34: 0.1415714286 | CP34: 450 | CQ34: 0.1428571429 | CR34: 173 | CS34: 21 | CT34: 152 | CU34: 0.8755429958 | CV34: 48 | CW34: 66 | CX34: 0.3514386951 | CY34: 0.4740001129 | CZ34: 0.2472085457 | DA34: 0.3934522278 | DB34: 0.3579952497 | DC34: 0.5136693123 | DD34: 191 | DE34: 20 | DF34: 0.1047120419 | DG34: 0.06881285035 | DH34: 0.1561980846 | DI34: No Sig diff | DJ34: 162 | DK34: 19 | DL34: 0.1172839506 | DM34: 0.07638288685 | DN34: 0.1759150555 | DO34: No Sig diff | DP34: 179 | DQ34: 16 | DR34: 0.08938547486 | DS34: 0.0557687008 | DT34: 0.1402560906 | DU34: No Sig diff | DV34: 176 | DW34: 30 | DX34: 0.1704545455 | DY34: 0.1220871751 | DZ34: 0.2329002635 | EA34: Sig worse than Eng. | EB34: 165 | EC34: 31 | ED34: 0.1878787879 | EE34: 0.1356343859 | EF34: 0.254325872 | EG34: No Sig diff | EH34: 159 | EI34: 31 | EJ34: 0.1949685535 | EK34: 0.1408911874 | EL34: 0.2634374111 | EM34: No Sig diff | EN34: 156 | EO34: 22 | EP34: 0.141025641 | EQ34: 0.09501114383 | ER34: 0.2042945505 | ES34: No Sig diff | ET34: 156 | EU34: 30 | EV34: 0.1923076923 | EW34: 0.1381588946 | EX34: 0.2612459863 | EY34: No Sig diff | EZ34: 198 | FA34: 122 | FB34: 0.6161616162 | FC34: 0.5468233814 | FD34: 0.6810782612 | FE34: 198 | FF34: 34 | FG34: 39 | FH34: 25.51282051 | FI34: 0.2496229261 | FJ34: 206 | FK34: 130 | FL34: 0.6310679612 | FM34: 0.5633394479 | FN34: 0.693997688 | FO34: 206 | FP34: 34 | FQ34: 41 | FR34: 23.31707317 | FS34: 0.3142037303 | FT34: 4313 | FU34: 3997 | FV34: 316 | FW34: 261 | FX34: 55 | FY34: 0.8259493671 | FZ34: 0.1740506329 | GB34: 0.1754385965 | GC34: 0.09818747134 | GD34: 0.2936759905 | GF34: 0.1403508772 | GG34: 0.07287189227 | GH34: 0.253247079 | GJ34: 0.1754385965 | GK34: 0.09818747134 | GL34: 0.2936759905 | GN34: 0.2363636364 | GO34: 0.1436652159 | GP34: 0.3634861872 | GQ34: 61 | GR34: 55 | GS34: 56 | GT34: 58 | GU34: 56 | GV34: 45 | GW34: 41 | GX34: 43 | GY34: 41 | GZ34: 43 | HA34: 44 | HB34: 40 | HC34: 43 | HD34: 47 | HE34: 42 | HF34: 41 | HG34: 37 | HH34: 40 | HI34: 41 | HJ34: 40 | HK34: 42 | HL34: 42 | HM34: 42 | HN34: 16 | HO34: 0.01807909605 | HP34: 1409 | HQ34: 1255 | HR34: 154 | HS34: 0.109297374
A35: Sidney West | C35: Mid Sussex | D35: Mid Sussex | E35: Mid Sussex | F35: Mid Sussex | G35: Burgess Hill Franklands, Burgess Hill Leylands, Burgess Hill Meeds, Burgess Hill St Andrews | H35: Burgess Hill | I35: C2 | J35: Horsham and Mid Sussex | K35: Mid Sussex | L35: 18300 | M35: 18330 | N35: 18385 | O35: 18520 | P35: 18660 | Q35: 18865 | R35: 18970 | S35: 19140 | T35: 19245 | U35: 19340 | V35: 940 | W35: 945 | X35: 975 | Y35: 985 | Z35: 970 | AA35: 975 | AB35: 980 | AC35: 1035 | AD35: 1055 | AE35: 1050 | AF35: 0.8347742555 | AG35: 0.03842459174 | AH35: 0.04226705091 | AI35: 0.07012487992 | AJ35: 0.01152737752 | AK35: 0.00288184438 | AL35: 0.1652257445 | AM35: 2000 | AN35: 0.7217782218 | AO35: 0.1238761239 | AP35: 0.1543456543 | AQ35: 190 | AR35: 212 | AS35: 187 | AT35: 194 | AU35: 193 | AV35: 8 | AW35: 9 | AX35: 5 | AY35: 3 | AZ35: 7 | BA35: 9 | BB35: 0.04663212435 | BC35: 0.02472444479 | BD35: 0.08623520239 | BE35: 11 | BF35: 335 | BG35: 330 | BH35: 155 | BI35: 0.1477799788 | BJ35: 2200 | BK35: 3896 | BL35: 2431 | BM35: 1630 | BN35: 1 | BO35: 287 | BP35: 375 | BQ35: 138 | BR35: 80 | BS35: 80 | BT35: 70 | BU35: 332 | BV35: 85 | BW35: 0.2560240964 | BX35: 24 | BY35: 8 | BZ35: 227 | CA35: 0.02886571719 | CB35: 120 | CC35: 120 | CD35: 130 | CE35: 110 | CF35: 320 | CG35: 0.09716666667 | CH35: 335 | CI35: 0.09391666667 | CJ35: 365 | CK35: 0.1003333333 | CL35: 325 | CM35: 0.095 | CN35: 335 | CO35: 0.089 | CP35: 300 | CQ35: 0.09202453988 | CR35: 192 | CS35: 1 | CT35: 191 | CU35: 0.9944444444 | CV35: 88 | CW35: 111 | CX35: 0.463985081 | CY35: 0.6005510521 | CZ35: 0.3915119745 | DA35: 0.5315024126 | DB35: 0.5102564415 | DC35: 0.6488471586 | DD35: 158 | DE35: 14 | DF35: 0.08860759494 | DG35: 0.05351508043 | DH35: 0.1432296786 | DI35: =IF(DG35>$DH$77,"Sig worse than Eng.",(IF(DH35<$DG$77,"Sig better than Eng.","No Sig diff"))) -> No Sig diff | DJ35: 169 | DK35: 14 | DL35: 0.08284023669 | DM35: 0.04998585276 | DN35: 0.1342376492 | DO35: =IF(DM35>$DN$77,"Sig worse than Eng.",(IF(DN35<$DM$77,"Sig better than Eng.","No Sig diff"))) -> No Sig diff | DP35: 180 | DQ35: 10 | DR35: 0.05555555556 | DS35: 0.03045327362 | DT35: 0.09923161342 | DU35: No Sig diff | DV35: 134 | DW35: 11 | DX35: 0.08208955224 | DY35: 0.04645432581 | DZ35: 0.1410179996 | EA35: =IF(DY35>$DZ$77,"Sig worse than Eng.",(IF(DZ35<$DY$77,"Sig better than Eng.","No Sig diff"))) -> No Sig diff | EB35: 190 | EC35: 26 | ED35: 0.1368421053 | EE35: 0.09512509997 | EF35: 0.1929528951 | EG35: =IF(EE35>$EF$77,"Sig worse than Eng.",(IF(EF35<$EE$77,"Sig better than Eng.","No Sig diff"))) -> No Sig diff | EH35: 159 | EI35: 18 | EJ35: 0.1132075472 | EK35: 0.07281930261 | EL35: 0.1718447965 | EM35: Sig better than Eng. | EN35: 164 | EO35: 17 | EP35: 0.1036585366 | EQ35: 0.06573150819 | ER35: 0.1597280361 | ES35: Sig better than Eng. | ET35: 150 | EU35: 21 | EV35: 0.14 | EW35: 0.09342648819 | EX35: 0.2045520878 | EY35: No Sig diff | EZ35: 200 | FA35: 104 | FB35: 0.52 | FC35: 0.4510378507 | FD35: 0.5882083362 | FE35: 200 | FF35: 34 | FG35: 40 | FH35: 24.45 | FI35: 0.2808823529 | FJ35: 202 | FK35: 134 | FL35: 0.6633663366 | FM35: 0.5956895259 | FN35: 0.72494559 | FO35: 202 | FP35: 35 | FQ35: 40 | FR35: 27.4 | FS35: 0.2171428571 | FT35: 2703 | FU35: 2643 | FV35: 60 | FW35: 50 | FX35: 10 | FY35: 0.8333333333 | FZ35: 0.1666666667 | GA35: 0.8871855473 | GB35: 0.1128144527 | GC35: 0.07893557235 | GD35: 0.189746408 | GE35: 0.9200663919 | GF35: 0.07993360806 | GG35: 0.04542299712 | GH35: 0.1380568838 | GI35: 0.9063199532 | GJ35: 0.09368004681 | GK35: 0.05629419132 | GL35: 0.1555863894 | GM35: 0.7445994637 | GN35: 0.2554005363 | GO35: 0.191253536 | GP35: 0.3367839006 | GQ35: 50 | GR35: 50 | GS35: 50 | GT35: 49 | GU35: 50 | GV35: 62 | GW35: 58 | GX35: 56 | GY35: 57 | GZ35: 57 | HA35: 57 | HB35: 58 | HC35: 59 | HD35: 66 | HE35: 60 | HF35: 59 | HG35: 63 | HH35: 63 | HI35: 63 | HJ35: 65 | HK35: 64 | HL35: 63 | HM35: 61 | HN35: 12 | HO35: 0.01152737752 | HP35: 1671 | HQ35: 1556 | HR35: 115 | HS35: 0.06882106523
A36: Southbourne | C36: Chichester | D36: Chichester Rural | E36: Chichester | F36: Arch | G36: Bosham, Fishbourne, Southbourne | H36: Southbourne | I36: A | J36: Coastal West Sussex | K36: Chichester | L36: 13500 | M36: 13545 | N36: 13600 | O36: 13605 | P36: 13840 | Q36: 14100 | R36: 14275 | S36: 14155 | T36: 14250 | U36: 14385 | V36: 635 | W36: 670 | X36: 670 | Y36: 685 | Z36: 735 | AA36: 745 | AB36: 735 | AC36: 735 | AD36: 780 | AE36: 775 | AF36: 0.9139344262 | AG36: 0.0218579235 | AH36: 0.01229508197 | AI36: 0.01092896175 | AJ36: 0.03551912568 | AK36: 0.005464480874 | AL36: 0.08606557377 | AM36: 1435 | AN36: 0.6020905923 | AO36: 0.09128919861 | AP36: 0.3066202091 | AQ36: 129 | AR36: 143 | AS36: 129 | AT36: 106 | AU36: 105 | AV36: 0 | AW36: 5 | AX36: 4 | AY36: 3 | AZ36: 8 | BA36: 5 | BB36: 0.04761904762 | BC36: 0.02050916567 | BD36: 0.1066616658 | BE36: 10 | BF36: 199 | BG36: 254 | BH36: 95 | BI36: 0.1323688688 | BJ36: 1511 | BK36: 2682 | BL36: 1519 | BM36: 1015 | BN36: 1 | BO36: 170 | BP36: 225 | BQ36: 108 | BR36: 45 | BS36: 40 | BT36: 35 | BU36: 224 | BV36: 53 | BW36: 0.2366071429 | BX36: 25 | BY36: 7 | BZ36: 137 | CA36: 0.02340679993 | CB36: 45 | CC36: 45 | CD36: 75 | CE36: 50 | CF36: 185 | CG36: 0.08522222222 | CH36: 205 | CI36: 0.07788888889 | CJ36: 175 | CK36: 0.078 | CL36: 180 | CM36: 0.08577777778 | CN36: 190 | CO36: 0.08 | CP36: 170 | CQ36: 0.07098121086 | CR36: 95 | CS36: 2 | CT36: 93 | CU36: 0.9873377651 | CV36: 49 | CW36: 60 | CX36: 0.4589065256 | CY36: 0.5695699362 | CZ36: 0.4263683965 | DA36: 0.6252623077 | DB36: 0.5439330656 | DC36: 0.7348727368 | DD36: 126 | DE36: 18 | DF36: 0.1428571429 | DG36: 0.09231379654 | DH36: 0.2145331781 | DI36: No Sig diff | DJ36: 108 | DK36: 6 | DL36: 0.05555555556 | DM36: 0.02570772961 | DN36: 0.1159343679 | DO36: No Sig diff | DP36: 112 | DQ36: 6 | DR36: 0.05357142857 | DS36: 0.02478093902 | DT36: 0.1119702637 | DU36: No Sig diff | DV36: 138 | DW36: 8 | DX36: 0.05797101449 | DY36: 0.02966442743 | DZ36: 0.1102203354 | EA36: No Sig diff | EB36: 111 | EC36: 15 | ED36: 0.1351351351 | EE36: 0.08363439677 | EF36: 0.2110454094 | EG36: No Sig diff | EH36: 107 | EI36: 12 | EJ36: 0.1121495327 | EK36: 0.06532881882 | EL36: 0.1858538985 | EM36: Sig better than Eng. | EN36: 91 | EO36: 13 | EP36: 0.1428571429 | EQ36: 0.08542758137 | ER36: 0.2292181357 | ES36: No Sig diff | ET36: 100 | EU36: 8 | EV36: 0.08 | EW36: 0.04109346148 | EX36: 0.149981077 | EY36: Sig better than Eng. | EZ36: 154 | FA36: 81 | FB36: 0.525974026 | FC36: 0.4474423133 | FD36: 0.6032414554 | FE36: 154 | FF36: 34 | FG36: 30 | FH36: 23.26666667 | FI36: 0.3156862745 | FJ36: 153 | FK36: 92 | FL36: 0.6013071895 | FM36: 0.5221581778 | FN36: 0.6754936436 | FO36: 153 | FP36: 34 | FQ36: 30 | FR36: 23.63333333 | FS36: 0.3049019608 | FT36: 2577 | FU36: 2448 | FV36: 129 | FW36: 114 | FX36: 15 | FY36: 0.8837209302 | FZ36: 0.1162790698 | GA36: 0.8796296296 | GB36: 0.1203703704 | GC36: 0.07306766024 | GD36: 0.3851702198 | GE36: 0.9166666667 | GF36: 0.08333333333 | GG36: 0.04748917264 | GH36: 0.3333541188 | GI36: 0.8796296296 | GJ36: 0.1203703704 | GK36: 0.07306766024 | GL36: 0.3851702198 | GM36: 0.7407407407 | GN36: 0.2592592593 | GO36: 0.1315058202 | GP36: 0.481521237 | GQ36: 34 | GR36: 33 | GS36: 33 | GT36: 33 | GU36: 33 | GV36: 29 | GW36: 25 | GX36: 28 | GY36: 25 | GZ36: 28 | HA36: 28 | HB36: 25 | HC36: 29 | HD36: 41 | HE36: 32 | HF36: 32 | HG36: 31 | HH36: 32 | HI36: 32 | HJ36: 26 | HK36: 36 | HL36: 32 | HM36: 33 | HN36: 11 | HO36: 0.0150273224 | HP36: 1117 | HQ36: 1045 | HR36: 72 | HS36: 0.06445837064
A37: Southgate | C37: Crawley | D37: Crawley | E37: Crawley | F37: Crawley | G37: Furnace Green, Southgate, Tilgate | H37: Crawley NW | I37: C1 | J37: Crawley | K37: Crawley | L37: 19675 | M37: 19775 | N37: 20055 | O37: 20095 | P37: 19945 | Q37: 19970 | R37: 19880 | S37: 20140 | T37: 20365 | U37: 20375 | V37: 1085 | W37: 1070 | X37: 1135 | Y37: 1175 | Z37: 1180 | AA37: 1225 | AB37: 1275 | AC37: 1355 | AD37: 1395 | AE37: 1385 | AF37: 0.6339285714 | AG37: 0.07142857143 | AH37: 0.07589285714 | AI37: 0.162202381 | AJ37: 0.04166666667 | AK37: 0.01488095238 | AL37: 0.3660714286 | AM37: 2455 | AN37: 0.4969450102 | AO37: 0.333197556 | AP37: 0.1698574338 | AQ37: 253 | AR37: 277 | AS37: 274 | AT37: 292 | AU37: 274 | AV37: 6 | AW37: 17 | AX37: 19 | AY37: 12 | AZ37: 11 | BA37: 19 | BB37: 0.06934306569 | BC37: 0.0448389592 | BD37: 0.1057557685 | BE37: 30 | BF37: 447 | BG37: 385 | BH37: 216 | BI37: 0.1555294975 | BJ37: 2399 | BK37: 4278 | BL37: 2497 | BM37: 1229 | BN37: 1 | BO37: 327 | BP37: 652 | BQ37: 288 | BR37: 210 | BS37: 210 | BT37: 165 | BU37: 588 | BV37: 253 | BW37: 0.4302721088 | BX37: 46 | BY37: 4 | BZ37: 428 | CA37: 0.05146086329 | CB37: 300 | CC37: 285 | CD37: 265 | CE37: 265 | CF37: 735 | CG37: 0.1649230769 | CH37: 690 | CI37: 0.1626923077 | CJ37: 715 | CK37: 0.1861538462 | CL37: 590 | CM37: 0.1786153846 | CN37: 575 | CO37: 0.1888461538 | CP37: 665 | CQ37: 0.1700767263 | CR37: 280 | CS37: 10 | CT37: 270 | CU37: 0.9717159472 | CV37: 102 | CW37: 153 | CX37: 0.3801115337 | CY37: 0.5549214348 | CZ37: 0.322042273 | DA37: 0.4369424831 | DB37: 0.5070316641 | DC37: 0.6244311962 | DD37: 179 | DE37: 16 | DF37: 0.08938547486 | DG37: 0.0557687008 | DH37: 0.1402560906 | DI37: No Sig diff | DJ37: 208 | DK37: 21 | DL37: 0.1009615385 | DM37: 0.06698687528 | DN37: 0.1494082491 | DO37: No Sig diff | DP37: 165 | DQ37: 17 | DR37: 0.103030303 | DS37: 0.06532679971 | DT37: 0.1587974118 | DU37: No Sig diff | DV37: 218 | DW37: 19 | DX37: 0.0871559633 | DY37: 0.05650562101 | DZ37: 0.1321041143 | EA37: No Sig diff | EB37: 171 | EC37: 37 | ED37: 0.216374269 | EE37: 0.1612529755 | EF37: 0.2839587 | EG37: No Sig diff | EH37: 190 | EI37: 32 | EJ37: 0.1684210526 | EK37: 0.1219004049 | EL37: 0.2280838515 | EM37: No Sig diff | EN37: 189 | EO37: 33 | EP37: 0.1746031746 | EQ37: 0.1271141863 | ER37: 0.2350561647 | ES37: No Sig diff | ET37: 189 | EU37: 40 | EV37: 0.2116402116 | EW37: 0.1594476478 | EX37: 0.2753211998 | EY37: No Sig diff | EZ37: 254 | FA37: 120 | FB37: 0.4724409449 | FC37: 0.4119131578 | FD37: 0.5337899108 | FE37: 254 | FF37: 33 | FG37: 50 | FH37: 21.02 | FI37: 0.363030303 | FJ37: 261 | FK37: 134 | FL37: 0.5134099617 | FM37: 0.4530189696 | FN37: 0.5734119375 | FO37: 261 | FP37: 34 | FQ37: 52 | FR37: 21.84615385 | FS37: 0.3574660633 | FT37: 2479 | FU37: 2437 | FV37: 42 | FW37: 38 | FX37: 4 | FY37: 0.9047619048 | FZ37: 0.09523809524 | GA37: 0.9010472434 | GB37: 0.09895275665 | GC37: 0.05492478814 | GD37: 0.1468065679 | GE37: 0.9272580696 | GF37: 0.07274193043 | GG37: 0.03565016288 | GH37: 0.1153974697 | GI37: 0.8839375724 | GJ37: 0.1160624276 | GK37: 0.06539990815 | GL37: 0.1631210965 | GM37: 0.7878698225 | GN37: 0.2121301775 | GO37: 0.1625115989 | GP37: 0.2926383742 | GQ37: 80 | GR37: 77 | GS37: 77 | GT37: 79 | GU37: 78 | GV37: 75 | GW37: 73 | GX37: 72 | GY37: 73 | GZ37: 72 | HA37: 73 | HB37: 74 | HC37: 73 | HD37: 78 | HE37: 71 | HF37: 71 | HG37: 69 | HH37: 71 | HI37: 73 | HJ37: 70 | HK37: 74 | HL37: 72 | HM37: 72 | HN37: 31 | HO37: 0.02308265078 | HP37: 2126 | HQ37: 1832 | HR37: 294 | HS37: 0.1382878645
A38: Southwater | C38: Horsham | D38: Horsham Town | E38: Horsham | F38: Horsham | G38: Southwater | H38: Horsham W | I38: C3 | J38: Horsham and Mid Sussex | K38: Horsham | L38: 10025 | M38: 10140 | N38: 10345 | O38: 10460 | P38: 10555 | Q38: 10600 | R38: 10635 | S38: 10750 | T38: 10925 | U38: 10975 | V38: 695 | W38: 630 | X38: 645 | Y38: 645 | Z38: 635 | AA38: 635 | AB38: 620 | AC38: 635 | AD38: 605 | AE38: 570 | AF38: 0.9137931034 | AG38: 0.01724137931 | AH38: 0.04231974922 | AI38: 0.02037617555 | AJ38: 0.004702194357 | AK38: 0.001567398119 | AL38: 0.08620689655 | AM38: 1330 | AN38: 0.7827067669 | AO38: 0.09248120301 | AP38: 0.1248120301 | AQ38: 123 | AR38: 104 | AS38: 126 | AT38: 91 | AU38: 78 | AV38: 5 | AW38: 3 | AX38: 2 | AY38: 1 | AZ38: 0 | BA38: 4 | BB38: 0.05128205128 | BC38: 0.02012101247 | BD38: 0.1245667655 | BE38: 3 | BF38: 166 | BG38: 218 | BH38: 106 | BI38: 0.1467864991 | BJ38: 1433 | BK38: 2576 | BL38: 1414 | BM38: 1047 | BN38: 0 | BO38: 134 | BP38: 144 | BQ38: 89 | BR38: 50 | BS38: 25 | BT38: 20 | BU38: 183 | BV38: 42 | BW38: 0.2295081967 | BX38: 23 | BY38: 10 | BZ38: 63 | CA38: 0.01640625 | CB38: 40 | CC38: 60 | CD38: 40 | CE38: 35 | CF38: 130 | CG38: 0.06628571429 | CH38: 140 | CI38: 0.07171428571 | CJ38: 160 | CK38: 0.07542857143 | CL38: 155 | CM38: 0.06828571429 | CN38: 155 | CO38: 0.06028571429 | CP38: 115 | CQ38: 0.05424528302 | CR38: 89 | CS38: 2 | CT38: 87 | CU38: 0.9792207792 | CV38: 39 | CW38: 54 | CX38: 0.4638365603 | CY38: 0.6204517705 | CZ38: 0.3481700473 | DA38: 0.5527564005 | DB38: 0.5156742657 | DC38: 0.7154973561 | DD38: 118 | DE38: 11 | DF38: 0.09322033898 | DG38: 0.05285160077 | DH38: 0.1592392513 | DI38: No Sig diff | DJ38: 116 | DK38: 11 | DL38: 0.09482758621 | DM38: 0.05377736358 | DN38: 0.1618530124 | DO38: No Sig diff | DP38: 87 | DQ38: 9 | DR38: 0.1034482759 | DS38: 0.05538511034 | DT38: 0.185049809 | DU38: No Sig diff | DV38: 110 | DW38: 3 | DX38: 0.02727272727 | DY38: 0.009317969858 | DZ38: 0.0771308417 | EA38: Sig better than Eng. | EB38: 116 | EC38: 15 | ED38: 0.1293103448 | EE38: 0.07995391353 | EF38: 0.2024313241 | EG38: No Sig diff | EH38: 123 | EI38: 14 | EJ38: 0.1138211382 | EK38: 0.06902284441 | EL38: 0.1820106829 | EM38: Sig better than Eng. | EN38: 107 | EO38: 13 | EP38: 0.1214953271 | EQ38: 0.07239434167 | ER38: 0.1968321656 | ES38: No Sig diff | ET38: 126 | EU38: 21 | EV38: 0.1666666667 | EW38: 0.1116718888 | EX38: 0.2413852875 | EY38: No Sig diff | EZ38: 134 | FA38: 89 | FB38: 0.6641791045 | FC38: 0.5806295434 | FD38: 0.7385777574 | FE38: 134 | FF38: 34 | FG38: 26 | FH38: 27.03846154 | FI38: 0.2047511312 | FJ38: 135 | FK38: 97 | FL38: 0.7185185185 | FM38: 0.6374233252 | FN38: 0.7875217921 | FO38: 135 | FP38: 35 | FQ38: 27 | FR38: 25.40740741 | FS38: 0.2740740741 | FT38: 2308 | FU38: 2278 | FV38: 30 | FW38: 29 | FX38: 1 | FY38: 0.9666666667 | FZ38: 0.03333333333 | GA38: 0.9821428571 | GB38: 0.01785714286 | GC38: 0.003469603253 | GD38: 0.1030480768 | GE38: 0.9678571429 | GF38: 0.03214285714 | GG38: 0.01082085627 | GH38: 0.1321654899 | GI38: 0.9821428571 | GJ38: 0.01785714286 | GK38: 0.003469603253 | GL38: 0.1030480768 | GM38: 0.943877551 | GN38: 0.05612244898 | GO38: 0.02020627286 | GP38: 0.1592487394 | GQ38: 29 | GR38: 28 | GS38: 28 | GT38: 28 | GU38: 28 | GV38: 31 | GW38: 31 | GX38: 30 | GY38: 30 | GZ38: 30 | HA38: 31 | HB38: 30 | HC38: 31 | HD38: 30 | HE38: 28 | HF38: 29 | HG38: 27 | HH38: 28 | HI38: 29 | HJ38: 26 | HK38: 27 | HL38: 29 | HM38: 29 | HN38: 12 | HO38: 0.0188976378 | HP38: 1003 | HQ38: 964 | HR38: 39 | HS38: 0.03888334995
A39: Stepping Stones | C39: Adur | D39: Adur East | E39: Adur | F39: Adur | G39: Eastbrook, Hillside, Southwich Green | H39: Shoreham | I39: B | J39: Coastal West Sussex | K39: East Worthing and Shoreham | L39: 13130 | M39: 13040 | N39: 13085 | O39: 13055 | P39: 13065 | Q39: 13160 | R39: 13195 | S39: 13265 | T39: 13280 | U39: 13390 | V39: 700 | W39: 680 | X39: 705 | Y39: 710 | Z39: 735 | AA39: 775 | AB39: 775 | AC39: 805 | AD39: 825 | AE39: 830 | AF39: 0.8893034826 | AG39: 0.01865671642 | AH39: 0.03358208955 | AI39: 0.03109452736 | AJ39: 0.007462686567 | AK39: 0.01990049751 | AL39: 0.1106965174 | AM39: 1550 | AN39: 0.5919948354 | AO39: 0.2078760491 | AP39: 0.2001291156 | AQ39: 109 | AR39: 125 | AS39: 107 | AT39: 138 | AU39: 115 | AV39: 10 | AW39: 7 | AX39: 5 | AY39: 7 | AZ39: 7 | BA39: 5 | BB39: 0.04347826087 | BC39: 0.01871210111 | BD39: 0.09775784935 | BE39: 15 | BF39: 256 | BG39: 276 | BH39: 106 | BI39: 0.1249235266 | BJ39: 1665 | BK39: 2857 | BL39: 1670 | BM39: 843 | BN39: 1 | BO39: 307 | BP39: 384 | BQ39: 135 | BR39: 145 | BS39: 130 | BT39: 105 | BU39: 384 | BV39: 151 | BW39: 0.3932291667 | BX39: 34 | BY39: 2 | BZ39: 300 | CA39: 0.0532292406 | CB39: 215 | CC39: 210 | CD39: 215 | CE39: 185 | CF39: 480 | CG39: 0.1944444444 | CH39: 480 | CI39: 0.1884444444 | CJ39: 555 | CK39: 0.2017777778 | CL39: 515 | CM39: 0.1774444444 | CN39: 520 | CO39: 0.1784444444 | CP39: 495 | CQ39: 0.199195171 | CR39: 138 | CS39: 15 | CT39: 123 | CU39: 0.9003763266 | CV39: 51 | CW39: 71 | CX39: 0.3936825238 | CY39: 0.5680522736 | CZ39: 0.3314429905 | DA39: 0.502996184 | DB39: 0.4888939492 | DC39: 0.6608991786 | DD39: 85 | DE39: 4 | DF39: 0.04705882353 | DG39: 0.01845026083 | DH39: 0.1148372716 | DI39: No Sig diff | DJ39: 120 | DK39: 6 | DL39: 0.05 | DM39: 0.02311436441 | DN39: 0.1048028854 | DO39: No Sig diff | DP39: 92 | DQ39: 13 | DR39: 0.1413043478 | DS39: 0.08447693378 | DT39: 0.226885802 | DU39: No Sig diff | DV39: 114 | DW39: 11 | DX39: 0.09649122807 | DY39: 0.05473614905 | DZ39: 0.1645538961 | EA39: No Sig diff | EB39: 103 | EC39: 19 | ED39: 0.1844660194 | EE39: 0.1213953722 | EF39: 0.2702265626 | EG39: No Sig diff | EH39: 94 | EI39: 19 | EJ39: 0.2021276596 | EK39: 0.1333948199 | EL39: 0.2942506724 | EM39: No Sig diff | EN39: 97 | EO39: 18 | EP39: 0.1855670103 | EQ39: 0.1207290338 | ER39: 0.2743610342 | ES39: No Sig diff | ET39: 90 | EU39: 19 | EV39: 0.2111111111 | EW39: 0.1395259212 | EX39: 0.3063479958 | EY39: No Sig diff | EZ39: 135 | FA39: 68 | FB39: 0.5037037037 | FC39: 0.4204350169 | FD39: 0.5867674427 | FE39: 135 | FF39: 34 | FG39: 27 | FH39: 21.51851852 | FI39: 0.3671023965 | FJ39: 122 | FK39: 68 | FL39: 0.5573770492 | FM39: 0.4688262595 | FN39: 0.6424248348 | FO39: 122 | FP39: 34 | FQ39: 24 | FR39: 23.16666667 | FS39: 0.318627451 | FT39: 2004 | FU39: 1951 | FV39: 53 | FW39: 51 | FX39: 2 | FY39: 0.9622641509 | FZ39: 0.03773584906 | GA39: 0.9322751323 | GB39: 0.06772486772 | GC39: 0.05315354432 | GD39: 0.2060153303 | GE39: 0.8433862434 | GF39: 0.1566137566 | GG39: 0.04299450414 | GH39: 0.1871221695 | GI39: 0.8100529101 | GJ39: 0.1899470899 | GK39: 0.07459006188 | GL39: 0.2426832147 | GM39: 0.7882275132 | GN39: 0.2117724868 | GO39: 0.1701805506 | GP39: 0.379510334 | GQ39: 36 | GR39: 33 | GS39: 33 | GT39: 33 | GU39: 33 | GV39: 24 | GW39: 24 | GX39: 24 | GY39: 22 | GZ39: 24 | HA39: 24 | HB39: 22 | HC39: 24 | HD39: 30 | HE39: 29 | HF39: 30 | HG39: 27 | HH39: 30 | HI39: 30 | HJ39: 27 | HK39: 29 | HL39: 27 | HM39: 30 | HN39: 26 | HO39: 0.03233830846 | HP39: 1254 | HQ39: 1069 | HR39: 185 | HS39: 0.1475279107
A40: Storrington (Little Footsteps) | C40: Horsham | D40: Horsham Rural | E40: Horsham | F40: Chanctonbury | G40: Chanctonbury, Chantry | H40: Steyning/Storrington | I40: B | J40: Coastal West Sussex | K40: Arundel and South Downs | L40: 12250 | M40: 12260 | N40: 12325 | O40: 12385 | P40: 12470 | Q40: 12475 | R40: 12705 | S40: 12710 | T40: 12795 | U40: 12795 | V40: 625 | W40: 595 | X40: 560 | Y40: 605 | Z40: 610 | AA40: 600 | AB40: 615 | AC40: 600 | AD40: 605 | AE40: 590 | AF40: 0.9308072488 | AG40: 0.03294892916 | AH40: 0.02635914333 | AI40: 0.009884678748 | AJ40: 0 | AK40: 0 | AL40: 0.06919275124 | AM40: 1245 | AN40: 0.6889067524 | AO40: 0.1615755627 | AP40: 0.1495176849 | AQ40: 115 | AR40: 103 | AS40: 98 | AT40: 111 | AU40: 96 | AV40: 7 | AW40: 6 | AX40: 2 | AY40: 1 | AZ40: 5 | BA40: 8 | BB40: 0.08333333333 | BC40: 0.04283062415 | BD40: 0.1558990324 | BE40: 7 | BF40: 168 | BG40: 196 | BH40: 100 | BI40: 0.1469418856 | BJ40: 1359 | BK40: 2423 | BL40: 1459 | BM40: 1025 | BN40: 0 | BO40: 140 | BP40: 205 | BQ40: 89 | BR40: 35 | BS40: 40 | BT40: 45 | BU40: 209 | BV40: 51 | BW40: 0.2440191388 | BX40: 15 | BY40: 7 | BZ40: 132 | CA40: 0.02424242424 | CB40: 65 | CC40: 50 | CD40: 70 | CE40: 90 | CF40: 175 | CG40: 0.123625 | CH40: 195 | CI40: 0.10725 | CJ40: 215 | CK40: 0.11975 | CL40: 195 | CM40: 0.104375 | CN40: 235 | CO40: 0.092 | CP40: 160 | CQ40: 0.07980049875 | CR40: 122 | CS40: 4 | CT40: 118 | CU40: 0.9677266082 | CV40: 58 | CW40: 75 | CX40: 0.504002193 | CY40: 0.6389249011 | CZ40: 0.403022288 | DA40: 0.5805629571 | DB40: 0.5457554487 | DC40: 0.7168806296 | DD40: 106 | DE40: 7 | DF40: 0.066 | DG40: 0.032 | DH40: 0.13 | DI40: No Sig diff | DJ40: 96 | DK40: 11 | DL40: 0.115 | DM40: 0.065 | DN40: 0.194 | DO40: No Sig diff | DP40: 91 | DQ40: 11 | DR40: 0.1208791209 | DS40: 0.06885508485 | DT40: 0.2036149841 | DU40: No Sig diff | DV40: 106 | DW40: 7 | DX40: 0.06603773585 | DY40: 0.03235414711 | DZ40: 0.1300750396 | EA40: No Sig diff | EB40: 120 | EC40: 21 | ED40: 0.175 | EE40: 0.117 | EF40: 0.253 | EG40: No Sig diff | EH40: 112 | EI40: 22 | EJ40: 0.196 | EK40: 0.133 | EL40: 0.28 | EM40: No Sig diff | EN40: 104 | EO40: 13 | EP40: 0.125 | EQ40: 0.07452602524 | ER40: 0.2021899905 | ES40: No Sig diff | ET40: 94 | EU40: 14 | EV40: 0.1489361702 | EW40: 0.09084047959 | EX40: 0.2345988506 | EY40: No Sig diff | EZ40: 117 | FA40: 64 | FB40: 0.547008547 | FC40: 0.4567487789 | FD40: 0.6342795826 | FE40: 117 | FF40: 34 | FG40: 23 | FH40: 28.86956522 | FI40: 0.1508951407 | FJ40: 134 | FK40: 83 | FL40: 0.6194029851 | FM40: 0.5349525372 | FN40: 0.697198227 | FO40: 134 | FP40: 34 | FQ40: 26 | FR40: 26.19230769 | FS40: 0.229638009 | FT40: 1921 | FU40: 1896 | FV40: 25 | FW40: 21 | FX40: 4 | FY40: 0.84 | FZ40: 0.16 | GA40: 0.923408189 | GB40: 0.07659181097 | GC40: 0.04249204304 | GD40: 0.1678010207 | GE40: 0.9323367605 | GF40: 0.06766323954 | GG40: 0.03438916189 | GH40: 0.1523305605 | GI40: 0.923408189 | GJ40: 0.07659181097 | GK40: 0.04249204304 | GL40: 0.1678010207 | GM40: 0.8519796176 | GN40: 0.1480203824 | GO40: 0.1155618862 | GP40: 0.2833179086 | GQ40: 35 | GR40: 35 | GS40: 35 | GT40: 35 | GU40: 35 | GV40: 18 | GW40: 16 | GX40: 18 | GY40: 16 | GZ40: 18 | HA40: 18 | HB40: 16 | HC40: 18 | HD40: 30 | HE40: 30 | HF40: 30 | HG40: 29 | HH40: 30 | HI40: 30 | HJ40: 29 | HK40: 29 | HL40: 29 | HM40: 30 | HN40: 14 | HO40: 0.02310231023 | HP40: 939 | HQ40: 864 | HR40: 75 | HS40: 0.07987220447
A41: Sussex Downs | C41: Mid Sussex | D41: Mid Sussex | E41: Mid Sussex | F41: Mid Sussex | G41: Bolney, Cuckfield, Hassocks, Hurstpierpoint and Downs | H41: Hassocks | I41: C2 | J41: Horsham and Mid Sussex | K41: Mid Sussex | L41: 17565 | M41: 17650 | N41: 17895 | O41: 18095 | P41: 18490 | Q41: 18770 | R41: 19185 | S41: 19470 | T41: 19695 | U41: 19975 | V41: 885 | W41: 890 | X41: 920 | Y41: 960 | Z41: 1000 | AA41: 1015 | AB41: 1065 | AC41: 1135 | AD41: 1170 | AE41: 1195 | AF41: 0.9230769231 | AG41: 0.02829354553 | AH41: 0.03801945181 | AI41: 0.00884173298 | AJ41: 0.000884173298 | AK41: 0.000884173298 | AL41: 0.07692307692 | AM41: 2290 | AN41: 0.7408376963 | AO41: 0.1134380454 | AP41: 0.1457242583 | AQ41: 177 | AR41: 186 | AS41: 202 | AT41: 176 | AU41: 217 | AV41: 5 | AW41: 6 | AX41: 7 | AY41: 2 | AZ41: 3 | BA41: 6 | BB41: 0.02764976959 | BC41: 0.01273243148 | BD41: 0.05899983703 | BE41: 7 | BF41: 294 | BG41: 388 | BH41: 185 | BI41: 0.1533147324 | BJ41: 2368 | BK41: 4334 | BL41: 2179 | BM41: 1435 | BN41: 2 | BO41: 250 | BP41: 324 | BQ41: 168 | BR41: 55 | BS41: 60 | BT41: 50 | BU41: 364 | BV41: 82 | BW41: 0.2252747253 | BX41: 27 | BY41: 9 | BZ41: 158 | CA41: 0.01961271102 | CB41: 85 | CC41: 80 | CD41: 95 | CE41: 75 | CF41: 275 | CG41: 0.08475 | CH41: 275 | CI41: 0.0725 | CJ41: 275 | CK41: 0.07308333333 | CL41: 265 | CM41: 0.07341666667 | CN41: 305 | CO41: 0.06991666667 | CP41: 245 | CQ41: 0.06693989071 | CR41: 205 | CS41: 7 | CT41: 198 | CU41: 0.9660224035 | CV41: 105 | CW41: 142 | CX41: 0.5280416951 | CY41: 0.7311074939 | CZ41: 0.4608710556 | DA41: 0.5985815053 | DB41: 0.6507678088 | DC41: 0.7753088771 | DD41: 165 | DE41: 2 | DF41: 0.012 | DG41: 0.003 | DH41: 0.043 | DI41: Sig better than Eng. | DJ41: 191 | DK41: 5 | DL41: 0.026 | DM41: 0.011 | DN41: 0.06 | DO41: Sig better than Eng. | DP41: 203 | DQ41: 8 | DR41: 0.039408867 | DS41: 0.02010205027 | DT41: 0.07582387741 | DU41: Sig better than Eng. | DV41: 175 | DW41: 11 | DX41: 0.06285714286 | DY41: 0.03545755036 | DZ41: 0.1090361201 | EA41: No Sig diff | EB41: 174 | EC41: 14 | ED41: 0.08 | EE41: 0.049 | EF41: 0.131 | EG41: Sig better than Eng. | EH41: 162 | EI41: 21 | EJ41: 0.13 | EK41: 0.086 | EL41: 0.19 | EM41: No Sig diff | EN41: 169 | EO41: 20 | EP41: 0.1183431953 | EQ41: 0.07792880924 | ER41: 0.1757224797 | ES41: Sig better than Eng. | ET41: 178 | EU41: 18 | EV41: 0.1011235955 | EW41: 0.06492661669 | EX41: 0.1541733569 | EY41: Sig better than Eng. | EZ41: 230 | FA41: 126 | FB41: 0.547826087 | FC41: 0.4832442817 | FD41: 0.6108365545 | FE41: 230 | FF41: 34 | FG41: 46 | FH41: 24.34782609 | FI41: 0.283887468 | FJ41: 254 | FK41: 168 | FL41: 0.6614173228 | FM41: 0.6012004482 | FN41: 0.7168244357 | FO41: 254 | FP41: 34 | FQ41: 50 | FR41: 27.06 | FS41: 0.2041176471 | FT41: 3264 | FU41: 3239 | FV41: 25 | FW41: 24 | FX41: 1 | FY41: 0.96 | FZ41: 0.04 | GA41: 0.9198881751 | GB41: 0.0801118249 | GC41: 0.05283630707 | GD41: 0.1415074982 | GE41: 0.9337996109 | GF41: 0.06620038912 | GG41: 0.0434205661 | GH41: 0.126509415 | GI41: 0.9040176644 | GJ41: 0.09598233557 | GK41: 0.06740122032 | GL41: 0.163563321 | GM41: 0.8422166953 | GN41: 0.1577833047 | GO41: 0.1186435202 | GP41: 0.2343901416 | GQ41: 56 | GR41: 52 | GS41: 52 | GT41: 53 | GU41: 52 | GV41: 70 | GW41: 63 | GX41: 63 | GY41: 60 | GZ41: 64 | HA41: 67 | HB41: 67 | HC41: 68 | HD41: 74 | HE41: 70 | HF41: 72 | HG41: 67 | HH41: 72 | HI41: 71 | HJ41: 56 | HK41: 71 | HL41: 67 | HM41: 72 | HN41: 14 | HO41: 0.01237842617 | HP41: 1748 | HQ41: 1643 | HR41: 105 | HS41: 0.06006864989
A42: The Gattons | C42: Mid Sussex | D42: Mid Sussex | E42: Mid Sussex | F42: Mid Sussex | G42: Burgess Hill Dunstall, Burgess Hill Victoria | H42: Burgess Hill | I42: C2 | J42: Horsham and Mid Sussex | K42: Mid Sussex | L42: 10660 | M42: 10735 | N42: 10835 | O42: 10865 | P42: 10945 | Q42: 10870 | R42: 11015 | S42: 11065 | T42: 11080 | U42: 11015 | V42: 895 | W42: 880 | X42: 890 | Y42: 855 | Z42: 850 | AA42: 815 | AB42: 825 | AC42: 810 | AD42: 780 | AE42: 765 | AF42: 0.8902743142 | AG42: 0.02244389027 | AH42: 0.03865336658 | AI42: 0.04364089776 | AJ42: 0.004987531172 | AK42: 0 | AL42: 0.1097256858 | AM42: 1615 | AN42: 0.7106567534 | AO42: 0.134448575 | AP42: 0.1548946716 | AQ42: 146 | AR42: 149 | AS42: 140 | AT42: 139 | AU42: 139 | AV42: 5 | AW42: 5 | AX42: 3 | AY42: 0 | AZ42: 6 | BA42: 8 | BB42: 0.05755395683 | BC42: 0.02944890156 | BD42: 0.1094565604 | BE42: 7 | BF42: 258 | BG42: 268 | BH42: 121 | BI42: 0.146981359 | BJ42: 1656 | BK42: 2925 | BL42: 1282 | BM42: 848 | BN42: 1 | BO42: 170 | BP42: 202 | BQ42: 61 | BR42: 55 | BS42: 60 | BT42: 40 | BU42: 291 | BV42: 68 | BW42: 0.2336769759 | BX42: 18 | BY42: 9 | BZ42: 96 | CA42: 0.02252463632 | CB42: 95 | CC42: 90 | CD42: 80 | CE42: 70 | CF42: 245 | CG42: 0.1025714286 | CH42: 225 | CI42: 0.09014285714 | CJ42: 250 | CK42: 0.099 | CL42: 230 | CM42: 0.08771428571 | CN42: 260 | CO42: 0.1024285714 | CP42: 200 | CQ42: 0.08163265306 | CR42: 128 | CS42: 4 | CT42: 124 | CU42: 0.965615337 | CV42: 50 | CW42: 63 | CX42: 0.3985044018 | CY42: 0.5035630919 | CZ42: 0.32104885 | DA42: 0.4912188312 | DB42: 0.4211588888 | DC42: 0.594485471 | DD42: 151 | DE42: 12 | DF42: 0.07947019868 | DG42: 0.04604266587 | DH42: 0.1337635632 | DI42: No Sig diff | DJ42: 141 | DK42: 7 | DL42: 0.04964539007 | DM42: 0.02425353032 | DN42: 0.09892569589 | DO42: No Sig diff | DP42: 143 | DQ42: 12 | DR42: 0.08391608392 | DS42: 0.04865396246 | DT42: 0.1409482047 | DU42: No Sig diff | DV42: 101 | DW42: 5 | DX42: 0.0495049505 | DY42: 0.02132850989 | DZ42: 0.1106942507 | EA42: No Sig diff | EB42: 159 | EC42: 34 | ED42: 0.213836478 | EE42: 0.1572520944 | EF42: 0.2839221578 | EG42: No Sig diff | EH42: 120 | EI42: 18 | EJ42: 0.15 | EK42: 0.09703812293 | EL42: 0.2246752936 | EM42: No Sig diff | EN42: 135 | EO42: 16 | EP42: 0.1185185185 | EQ42: 0.07428348603 | ER42: 0.1838631737 | ES42: Sig better than Eng. | ET42: 128 | EU42: 21 | EV42: 0.1640625 | EW42: 0.1098833165 | EX42: 0.237818076 | EY42: No Sig diff | EZ42: 163 | FA42: 108 | FB42: 0.6625766871 | FC42: 0.5869891748 | FD42: 0.7306776712 | FE42: 163 | FF42: 35 | FG42: 32 | FH42: 26.90625 | FI42: 0.23125 | FJ42: 150 | FK42: 107 | FL42: 0.7133333333 | FM42: 0.6363508226 | FN42: 0.7796618731 | FO42: 150 | FP42: 34 | FQ42: 30 | FR42: 29.63333333 | FS42: 0.1284313725 | FT42: 2111 | FU42: 2085 | FV42: 26 | FW42: 25 | FX42: 1 | FY42: 0.9615384615 | FZ42: 0.03846153846 | GA42: 0.9406593407 | GB42: 0.05934065934 | GC42: 0.02595000879 | GD42: 0.1169710606 | GE42: 0.9580586081 | GF42: 0.04194139194 | GG42: 0.01463166253 | GH42: 0.0922018729 | GI42: 0.9580586081 | GJ42: 0.04194139194 | GK42: 0.01463166253 | GL42: 0.0922018729 | GM42: 0.8828446553 | GN42: 0.1171553447 | GO42: 0.07380094171 | GP42: 0.2003736386 | GQ42: 35 | GR42: 34 | GS42: 34 | GT42: 35 | GU42: 34 | GV42: 38 | GW42: 38 | GX42: 38 | GY42: 38 | GZ42: 38 | HA42: 38 | HB42: 37 | HC42: 38 | HD42: 46 | HE42: 45 | HF42: 43 | HG42: 44 | HH42: 43 | HI42: 43 | HJ42: 42 | HK42: 43 | HL42: 42 | HM42: 43 | HN42: 7 | HO42: 0.008728179551 | HP42: 1306 | HQ42: 1227 | HR42: 79 | HS42: 0.06049004594
A43: The Needles | C43: Horsham | D43: Horsham Town | E43: Horsham | F43: Horsham | G43: Denne, Holbrook West, Trafalgar | H43: Horsham E | I43: C3 | J43: Horsham and Mid Sussex | K43: Horsham | L43: 13510 | M43: 13700 | N43: 14090 | O43: 14320 | P43: 14400 | Q43: 14500 | R43: 14600 | S43: 14840 | T43: 15055 | U43: 15260 | V43: 820 | W43: 775 | X43: 800 | Y43: 865 | Z43: 865 | AA43: 900 | AB43: 900 | AC43: 915 | AD43: 940 | AE43: 985 | AF43: 0.8398656215 | AG43: 0.04367301232 | AH43: 0.04927211646 | AI43: 0.05599104143 | AJ43: 0.006718924972 | AK43: 0.004479283315 | AL43: 0.1601343785 | AM43: 1710 | AN43: 0.6676418958 | AO43: 0.1492100644 | AP43: 0.1831480398 | AQ43: 174 | AR43: 164 | AS43: 195 | AT43: 156 | AU43: 196 | AV43: 2 | AW43: 3 | AX43: 3 | AY43: 1 | AZ43: 2 | BA43: 16 | BB43: 0.08163265306 | BC43: 0.05087055145 | BD43: 0.128478914 | BE43: 4 | BF43: 291 | BG43: 299 | BH43: 111 | BI43: 0.1363079071 | BJ43: 1691 | BK43: 2953 | BL43: 1667 | BM43: 1141 | BN43: 1 | BO43: 169 | BP43: 262 | BQ43: 94 | BR43: 65 | BS43: 70 | BT43: 70 | BU43: 286 | BV43: 85 | BW43: 0.2972027972 | BX43: 31 | BY43: 9 | BZ43: 200 | CA43: 0.03021148036 | CB43: 95 | CC43: 80 | CD43: 105 | CE43: 100 | CF43: 235 | CG43: 0.1037777778 | CH43: 235 | CI43: 0.1003333333 | CJ43: 245 | CK43: 0.096 | CL43: 250 | CM43: 0.092 | CN43: 260 | CO43: 0.08888888889 | CP43: 230 | CQ43: 0.08966861598 | CR43: 154 | CS43: 3 | CT43: 151 | CU43: 0.9781201369 | CV43: 73 | CW43: 92 | CX43: 0.4862197987 | CY43: 0.6065100023 | CZ43: 0.4051408376 | DA43: 0.5625680985 | DB43: 0.5296607014 | DC43: 0.6834603203 | DD43: 149 | DE43: 5 | DF43: 0.03355704698 | DG43: 0.01441710635 | DH43: 0.07614378549 | DI43: Sig better than Eng. | DJ43: 141 | DK43: 9 | DL43: 0.06382978723 | DM43: 0.03394127128 | DN43: 0.1168543573 | DO43: No Sig diff | DP43: 80 | DQ43: 8 | DR43: 0.1 | DS43: 0.05154761557 | DT43: 0.1851068881 | DU43: No Sig diff | DV43: 133 | DW43: 7 | DX43: 0.05263157895 | DY43: 0.02572572831 | DZ43: 0.104654779 | EA43: No Sig diff | EB43: 125 | EC43: 23 | ED43: 0.184 | EE43: 0.1258541409 | EF43: 0.2609891879 | EG43: No Sig diff | EH43: 158 | EI43: 24 | EJ43: 0.1518987342 | EK43: 0.1042500347 | EL43: 0.2160724537 | EM43: No Sig diff | EN43: 117 | EO43: 10 | EP43: 0.08547008547 | EQ43: 0.04708748324 | ER43: 0.1502078743 | ES43: Sig better than Eng. | ET43: 119 | EU43: 9 | EV43: 0.0756302521 | EW43: 0.04029724166 | EX43: 0.1375047727 | EY43: Sig better than Eng. | EZ43: 162 | FA43: 96 | FB43: 0.5925925926 | FC43: 0.5156355909 | FD43: 0.6652600682 | FE43: 162 | FF43: 34 | FG43: 32 | FH43: 24.46875 | FI43: 0.2803308824 | FJ43: 185 | FK43: 101 | FL43: 0.5459459459 | FM43: 0.4739937609 | FN43: 0.6160288438 | FO43: 185 | FP43: 34 | FQ43: 37 | FR43: 24.78378378 | FS43: 0.2710651828 | FT43: 2096 | FU43: 2025 | FV43: 71 | FW43: 56 | FX43: 15 | FY43: 0.7887323944 | FZ43: 0.2112676056 | GA43: 0.9591297591 | GB43: 0.04087024087 | GC43: 0.01722408773 | GD43: 0.1076325153 | GE43: 0.9676767677 | GF43: 0.03232323232 | GG43: 0.01127420246 | GH43: 0.09249460785 | GI43: 0.9591297591 | GJ43: 0.04087024087 | GK43: 0.01722408773 | GL43: 0.1076325153 | GM43: 0.8367735659 | GN43: 0.1632264341 | GO43: 0.09607722098 | GP43: 0.2468897249 | GQ43: 49 | GR43: 45 | GS43: 45 | GT43: 47 | GU43: 45 | GV43: 54 | GW43: 50 | GX43: 50 | GY43: 50 | GZ43: 50 | HA43: 49 | HB43: 50 | HC43: 50 | HD43: 48 | HE43: 45 | HF43: 45 | HG43: 43 | HH43: 45 | HI43: 46 | HJ43: 43 | HK43: 46 | HL43: 45 | HM43: 45 | HN43: 17 | HO43: 0.01903695409 | HP43: 1395 | HQ43: 1297 | HR43: 98 | HS43: 0.07025089606
A44: The Villages | C44: Arun West | D44: Arun West North | E44: Arun | F44: Arch | G44: Arundel, Barnham, Walberton, Yapton | H44: Barnham/Westergate | I44: A | J44: Coastal West Sussex | K44: Bognor Regis and Littlehampton | L44: 21245 | M44: 21405 | N44: 21340 | O44: 21505 | P44: 21720 | Q44: 21695 | R44: 21740 | S44: 21775 | T44: 21950 | U44: 22015 | V44: 1045 | W44: 1050 | X44: 1060 | Y44: 1040 | Z44: 1035 | AA44: 1035 | AB44: 1020 | AC44: 1020 | AD44: 1030 | AE44: 1030 | AF44: 0.9357976654 | AG44: 0.02529182879 | AH44: 0.02431906615 | AI44: 0.01459143969 | AJ44: 0 | AK44: 0 | AL44: 0.06420233463 | AM44: 2185 | AN44: 0.692589204 | AO44: 0.1230558097 | AP44: 0.1843549863 | AQ44: 185 | AR44: 191 | AS44: 178 | AT44: 212 | AU44: 164 | AV44: 7 | AW44: 6 | AX44: 6 | AY44: 4 | AZ44: 6 | BA44: 10 | BB44: 0.06097560976 | BC44: 0.03345456133 | BD44: 0.1085929339 | BE44: 12 | BF44: 269 | BG44: 371 | BH44: 159 | BI44: 0.1451755223 | BJ44: 2354 | BK44: 4219 | BL44: 2370 | BM44: 1475 | BN44: 2 | BO44: 285 | BP44: 418 | BQ44: 190 | BR44: 105 | BS44: 80 | BT44: 90 | BU44: 416 | BV44: 126 | BW44: 0.3028846154 | BX44: 43 | BY44: 4 | BZ44: 251 | CA44: 0.02771337087 | CB44: 110 | CC44: 135 | CD44: 155 | CE44: 140 | CF44: 420 | CG44: 0.116 | CH44: 385 | CI44: 0.1127857143 | CJ44: 435 | CK44: 0.1154285714 | CL44: 415 | CM44: 0.1026428571 | CN44: 440 | CO44: 0.1155714286 | CP44: 365 | CQ44: 0.09945504087 | CR44: 207 | CS44: 14 | CT44: 193 | CU44: 0.9393353495 | CV44: 85 | CW44: 110 | CX44: 0.4601853041 | CY44: 0.6021040567 | CZ44: 0.3722152151 | DA44: 0.5109395652 | DB44: 0.4994062927 | DC44: 0.6377598348 | DD44: 174 | DE44: 27 | DF44: 0.1551724138 | DG44: 0.108888462 | DH44: 0.2163532403 | DI44: Sig worse than Eng. | DJ44: 178 | DK44: 13 | DL44: 0.07303370787 | DM44: 0.04317502531 | DN44: 0.1209319886 | DO44: No Sig diff | DP44: 194 | DQ44: 14 | DR44: 0.07216494845 | DS44: 0.04347070868 | DT44: 0.1174736101 | DU44: No Sig diff | DV44: 212 | DW44: 24 | DX44: 0.1132075472 | DY44: 0.07726491741 | DZ44: 0.1629181276 | EA44: No Sig diff | EB44: 180 | EC44: 24 | ED44: 0.1333333333 | EE44: 0.09126281054 | EF44: 0.1907272213 | EG44: No Sig diff | EH44: 181 | EI44: 38 | EJ44: 0.2099447514 | EK44: 0.1569517947 | EL44: 0.2749938268 | EM44: No Sig diff | EN44: 177 | EO44: 29 | EP44: 0.1638418079 | EQ44: 0.1165664165 | ER44: 0.2253986352 | ES44: No Sig diff | ET44: 182 | EU44: 23 | EV44: 0.1263736264 | EW44: 0.08570506589 | EX44: 0.182488367 | EY44: Sig better than Eng. | EZ44: 241 | FA44: 129 | FB44: 0.5352697095 | FC44: 0.4722408813 | FD44: 0.5971918041 | FE44: 241 | FF44: 34 | FG44: 48 | FH44: 24.5625 | FI44: 0.2775735294 | FJ44: 209 | FK44: 137 | FL44: 0.6555023923 | FM44: 0.5887930737 | FN44: 0.7165985561 | FO44: 209 | FP44: 34 | FQ44: 41 | FR44: 25.51219512 | FS44: 0.2496413199 | FT44: 3058 | FU44: 3021 | FV44: 37 | FW44: 36 | FX44: 1 | FY44: 0.972972973 | FZ44: 0.02702702703 | GA44: 0.9165140415 | GB44: 0.08348595849 | GC44: 0.06915862061 | GD44: 0.1675857563 | GE44: 0.9310744811 | GF44: 0.06892551893 | GG44: 0.05421051563 | GH44: 0.1449966995 | GI44: 0.8927568463 | GJ44: 0.1072431537 | GK44: 0.08454734308 | GL44: 0.1897341956 | GM44: 0.7338130124 | GN44: 0.2661869876 | GO44: 0.205789326 | GP44: 0.3437647325 | GQ44: 61 | GR44: 58 | GS44: 58 | GT44: 60 | GU44: 59 | GV44: 53 | GW44: 52 | GX44: 53 | GY44: 52 | GZ44: 53 | HA44: 53 | HB44: 51 | HC44: 53 | HD44: 67 | HE44: 64 | HF44: 65 | HG44: 61 | HH44: 64 | HI44: 64 | HJ44: 57 | HK44: 61 | HL44: 61 | HM44: 65 | HN44: 19 | HO44: 0.01848249027 | HP44: 1627 | HQ44: 1483 | HR44: 144 | HS44: 0.0885064536
A45: The Wave | C45: Worthing | D45: Worthing | E45: Worthing | F45: CCC | G45: Broadwater, Gaisford | H45: Worthing | I45: B | J45: Coastal West Sussex | K45: East Worthing and Shoreham | L45: 13165 | M45: 13320 | N45: 13405 | O45: 13530 | P45: 13660 | Q45: 13830 | R45: 13930 | S45: 14030 | T45: 14190 | U45: 14215 | V45: 875 | W45: 890 | X45: 900 | Y45: 915 | Z45: 950 | AA45: 995 | AB45: 995 | AC45: 1000 | AD45: 1010 | AE45: 965 | AF45: 0.8348082596 | AG45: 0.0285152409 | AH45: 0.06588003933 | AI45: 0.05113077679 | AJ45: 0.01474926254 | AK45: 0.004916420846 | AL45: 0.1651917404 | AM45: 1995 | AN45: 0.6698444556 | AO45: 0.1038635223 | AP45: 0.2262920221 | AQ45: 183 | AR45: 162 | AS45: 185 | AT45: 166 | AU45: 151 | AV45: 14 | AW45: 5 | AX45: 10 | AY45: 8 | AZ45: 8 | BA45: 9 | BB45: 0.05960264901 | BC45: 0.0316707566 | BD45: 0.1093861605 | BE45: 17 | BF45: 292 | BG45: 331 | BH45: 171 | BI45: 0.1613523955 | BJ45: 1975 | BK45: 3591 | BL45: 1617 | BM45: 880 | BN45: 0 | BO45: 264 | BP45: 366 | BQ45: 107 | BR45: 125 | BS45: 120 | BT45: 90 | BU45: 476 | BV45: 162 | BW45: 0.3403361345 | BX45: 35 | BY45: 4 | BZ45: 315 | CA45: 0.05425421977 | CB45: 175 | CC45: 155 | CD45: 160 | CE45: 135 | CF45: 440 | CG45: 0.1561111111 | CH45: 455 | CI45: 0.1338888889 | CJ45: 485 | CK45: 0.1544444444 | CL45: 405 | CM45: 0.1464444444 | CN45: 470 | CO45: 0.1363333333 | CP45: 410 | CQ45: 0.1333333333 | CR45: 172 | CS45: 4 | CT45: 168 | CU45: 0.9771326464 | CV45: 70 | CW45: 87 | CX45: 0.415285626 | CY45: 0.5102516507 | CZ45: 0.3447929821 | DA45: 0.4922662632 | DB45: 0.4427458333 | DC45: 0.5921700427 | DD45: 130 | DE45: 14 | DF45: 0.1076923077 | DG45: 0.06524133962 | DH45: 0.1726629622 | DI45: No Sig diff | DJ45: 186 | DK45: 13 | DL45: 0.06989247312 | DM45: 0.04129721625 | DN45: 0.1158942582 | DO45: No Sig diff | DP45: 159 | DQ45: 13 | DR45: 0.08176100629 | DS45: 0.0484022988 | DT45: 0.1348523775 | DU45: No Sig diff | DV45: 192 | DW45: 25 | DX45: 0.1302083333 | DY45: 0.08977422474 | DZ45: 0.185149477 | EA45: No Sig diff | EB45: 152 | EC45: 20 | ED45: 0.1315789474 | EE45: 0.08681711524 | EF45: 0.1945037807 | EG45: No Sig diff | EH45: 163 | EI45: 32 | EJ45: 0.1963190184 | EK45: 0.1426344443 | EL45: 0.2639878623 | EM45: No Sig diff | EN45: 148 | EO45: 17 | EP45: 0.1148648649 | EQ45: 0.07296423932 | ER45: 0.1762526683 | ES45: Sig better than Eng. | ET45: 146 | EU45: 22 | EV45: 0.1506849315 | EW45: 0.1016646414 | EX45: 0.2176158781 | EY45: No Sig diff | EZ45: 222 | FA45: 118 | FB45: 0.5315315315 | FC45: 0.4659124737 | FD45: 0.5960779158 | FE45: 222 | FF45: 34 | FG45: 44 | FH45: 24.88636364 | FI45: 0.2680481283 | FJ45: 203 | FK45: 141 | FL45: 0.6945812808 | FM45: 0.6280955228 | FN45: 0.7538395131 | FO45: 203 | FP45: 34 | FQ45: 40 | FR45: 26.025 | FS45: 0.2345588235 | FT45: 2577 | FU45: 2501 | FV45: 76 | FW45: 65 | FX45: 11 | FY45: 0.8552631579 | FZ45: 0.1447368421 | GA45: 0.881456044 | GB45: 0.118543956 | GC45: 0.07170995898 | GD45: 0.1951102582 | GE45: 0.9287087912 | GF45: 0.07129120879 | GG45: 0.03800979345 | GH45: 0.1393982551 | GI45: 0.8830586081 | GJ45: 0.1169413919 | GK45: 0.07170995898 | GL45: 0.1951102582 | GM45: 0.8137973138 | GN45: 0.1862026862 | GO45: 0.1231986017 | GP45: 0.2687986515 | GQ45: 38 | GR45: 36 | GS45: 36 | GT45: 37 | GU45: 36 | GV45: 54 | GW45: 50 | GX45: 51 | GY45: 50 | GZ45: 52 | HA45: 53 | HB45: 49 | HC45: 52 | HD45: 52 | HE45: 48 | HF45: 47 | HG45: 45 | HH45: 48 | HI45: 51 | HJ45: 47 | HK45: 50 | HL45: 46 | HM45: 50 | HN45: 20 | HO45: 0.01966568338 | HP45: 1566 | HQ45: 1396 | HR45: 170 | HS45: 0.1085568327
A46: Treehouse | C46: Arun West | D46: Arun West North | E46: Arun | F46: Arch | G46: Bersted, Orchard | H46: Bognor Regis/Felpham | I46: A | J46: Coastal West Sussex | K46: Bognor Regis and Littlehampton | L46: 13355 | M46: 13435 | N46: 13285 | O46: 13270 | P46: 13255 | Q46: 13215 | R46: 13290 | S46: 13380 | T46: 13845 | U46: 14270 | V46: 790 | W46: 780 | X46: 770 | Y46: 780 | Z46: 805 | AA46: 855 | AB46: 870 | AC46: 900 | AD46: 960 | AE46: 1055 | AF46: 0.8165137615 | AG46: 0.1158256881 | AH46: 0.02866972477 | AI46: 0.02866972477 | AJ46: 0.005733944954 | AK46: 0.004587155963 | AL46: 0.1834862385 | AM46: 1590 | AN46: 0.5549968573 | AO46: 0.1728472659 | AP46: 0.2721558768 | AQ46: 181 | AR46: 205 | AS46: 186 | AT46: 208 | AU46: 219 | AV46: 16 | AW46: 9 | AX46: 15 | AY46: 12 | AZ46: 15 | BA46: 10 | BB46: 0.04566210046 | BC46: 0.02498901307 | BD46: 0.08199942143 | BE46: 25 | BF46: 278 | BG46: 265 | BH46: 130 | BI46: 0.141203866 | BJ46: 1626 | BK46: 2858 | BL46: 1629 | BM46: 778 | BN46: 1 | BO46: 284 | BP46: 410 | BQ46: 156 | BR46: 140 | BS46: 135 | BT46: 130 | BU46: 409 | BV46: 162 | BW46: 0.3960880196 | BX46: 34 | BY46: 1 | BZ46: 382 | CA46: 0.06769448875 | CB46: 185 | CC46: 170 | CD46: 190 | CE46: 220 | CF46: 535 | CG46: 0.2251111111 | CH46: 540 | CI46: 0.2117777778 | CJ46: 585 | CK46: 0.2194444444 | CL46: 575 | CM46: 0.2023333333 | CN46: 620 | CO46: 0.1942222222 | CP46: 515 | CQ46: 0.1886446886 | CR46: 200 | CS46: 7 | CT46: 193 | CU46: 0.9632949476 | CV46: 79 | CW46: 93 | CX46: 0.4146435597 | CY46: 0.4833177412 | CZ46: 0.3423812181 | DA46: 0.4798108389 | DB46: 0.41241407 | DC46: 0.5520243414 | DD46: 132 | DE46: 14 | DF46: 0.106 | DG46: 0.064 | DH46: 0.17 | DI46: No Sig diff | DJ46: 141 | DK46: 14 | DL46: 0.099 | DM46: 0.06 | DN46: 0.16 | DO46: No Sig diff | DP46: 157 | DQ46: 23 | DR46: 0.1464968153 | DS46: 0.09964442106 | DT46: 0.2102350042 | DU46: Sig worse than Eng. | DV46: 177 | DW46: 17 | DX46: 0.09604519774 | DY46: 0.06083240307 | DZ46: 0.1484197179 | EA46: No Sig diff | EB46: 155 | EC46: 33 | ED46: 0.2129032258 | EE46: 0.1558082357 | EF46: 0.2838846464 | EG46: No Sig diff | EH46: 124 | EI46: 25 | EJ46: 0.2016129032 | EK46: 0.1404564804 | EL46: 0.2807015642 | EM46: No Sig diff | EN46: 114 | EO46: 22 | EP46: 0.1929824561 | EQ46: 0.1310389216 | ER46: 0.2749426344 | ES46: No Sig diff | ET46: 112 | EU46: 20 | EV46: 0.1785714286 | EW46: 0.1186766054 | EX46: 0.2597842605 | EY46: No Sig diff | EZ46: 174 | FA46: 66 | FB46: 0.3793103448 | FC46: 0.3105570776 | FD46: 0.4532775183 | FE46: 174 | FF46: 31 | FG46: 34 | FH46: 19.38235294 | FI46: 0.3747628083 | FJ46: 199 | FK46: 88 | FL46: 0.4422110553 | FM46: 0.3749497107 | FN46: 0.5116612408 | FO46: 199 | FP46: 33 | FQ46: 39 | FR46: 20.33333333 | FS46: 0.3838383838 | FT46: 1967 | FU46: 1849 | FV46: 118 | FW46: 101 | FX46: 17 | FY46: 0.8559322034 | FZ46: 0.1440677966 | GA46: 0.8088871006 | GB46: 0.1911128994 | GC46: 0.125592045 | GD46: 0.2735427091 | GE46: 0.8403833821 | GF46: 0.1596166179 | GG46: 0.1101987358 | GH46: 0.2525199427 | GI46: 0.8568668985 | GJ46: 0.1431331015 | GK46: 0.09509777314 | GL46: 0.2312048299 | GM46: 0.6553716345 | GN46: 0.3446283655 | GO46: 0.2650355067 | GP46: 0.4436358892 | GQ46: 55 | GR46: 53 | GS46: 54 | GT46: 53 | GU46: 54 | GV46: 50 | GW46: 46 | GX46: 44 | GY46: 46 | GZ46: 44 | HA46: 45 | HB46: 45 | HC46: 45 | HD46: 49 | HE46: 42 | HF46: 44 | HG46: 39 | HH46: 44 | HI46: 45 | HJ46: 41 | HK46: 45 | HL46: 41 | HM46: 47 | HN46: 17 | HO46: 0.01949541284 | HP46: 1401 | HQ46: 1225 | HR46: 176 | HS46: 0.1256245539
A47: Worthing Central | C47: Worthing | D47: Worthing | E47: Worthing | F47: CCC | G47: Marine, Tarring | H47: Worthing | I47: B | J47: Coastal West Sussex | K47: Worthing West | L47: 15975 | M47: 16075 | N47: 16115 | O47: 16215 | P47: 16445 | Q47: 16465 | R47: 16535 | S47: 16690 | T47: 16745 | U47: 16800 | V47: 835 | W47: 820 | X47: 835 | Y47: 920 | Z47: 960 | AA47: 955 | AB47: 995 | AC47: 1040 | AD47: 995 | AE47: 950 | AF47: 0.8799612778 | AG47: 0.01936108422 | AH47: 0.06873184898 | AI47: 0.02323330106 | AJ47: 0.005808325266 | AK47: 0.002904162633 | AL47: 0.1200387222 | AM47: 1920 | AN47: 0.7217300677 | AO47: 0.06357477853 | AP47: 0.2146951537 | AQ47: 177 | AR47: 194 | AS47: 199 | AT47: 192 | AU47: 180 | AV47: 5 | AW47: 7 | AX47: 4 | AY47: 7 | AZ47: 6 | BA47: 19 | BB47: 0.1055555556 | BC47: 0.06862299433 | BD47: 0.1589723429 | BE47: 10 | BF47: 305 | BG47: 362 | BH47: 126 | BI47: 0.1104021851 | BJ47: 1957 | BK47: 3375 | BL47: 1779 | BM47: 871 | BN47: 2 | BO47: 301 | BP47: 459 | BQ47: 146 | BR47: 95 | BS47: 95 | BT47: 65 | BU47: 410 | BV47: 120 | BW47: 0.2926829268 | BX47: 46 | BY47: 6 | BZ47: 284 | CA47: 0.03757607833 | CB47: 125 | CC47: 135 | CD47: 150 | CE47: 115 | CF47: 330 | CG47: 0.0976 | CH47: 290 | CI47: 0.0866 | CJ47: 295 | CK47: 0.0985 | CL47: 260 | CM47: 0.099 | CN47: 295 | CO47: 0.1037 | CP47: 300 | CQ47: 0.1025641026 | CR47: 182 | CS47: 3 | CT47: 179 | CU47: 0.975 | CV47: 81 | CW47: 101 | CX47: 0.4693737374 | CY47: 0.5735577201 | CZ47: 0.3813573095 | DA47: 0.5256660375 | DB47: 0.4910090144 | DC47: 0.6347829279 | DD47: 147 | DE47: 10 | DF47: 0.06802721088 | DG47: 0.03736756835 | DH47: 0.1206888374 | DI47: No Sig diff | DJ47: 180 | DK47: 12 | DL47: 0.06666666667 | DM47: 0.03854407494 | DN47: 0.1128986899 | DO47: No Sig diff | DP47: 162 | DQ47: 10 | DR47: 0.06172839506 | DS47: 0.0338718427 | DT47: 0.1098887042 | DU47: No Sig diff | DV47: 178 | DW47: 12 | DX47: 0.06741573034 | DY47: 0.03898189964 | DZ47: 0.1141265224 | EA47: No Sig diff | EB47: 152 | EC47: 23 | ED47: 0.1513157895 | EE47: 0.1029952047 | EF47: 0.2168263576 | EG47: No Sig diff | EH47: 148 | EI47: 18 | EJ47: 0.1216216216 | EK47: 0.07833277129 | EL47: 0.1840557696 | EM47: Sig better than Eng. | EN47: 151 | EO47: 26 | EP47: 0.1721854305 | EQ47: 0.1202985594 | ER47: 0.2403377924 | ES47: No Sig diff | ET47: 132 | EU47: 17 | EV47: 0.1287878788 | EW47: 0.08198665524 | EX47: 0.1965841077 | EY47: No Sig diff | EZ47: 200 | FA47: 109 | FB47: 0.545 | FC47: 0.4757861137 | FD47: 0.6125178069 | FE47: 200 | FF47: 34 | FG47: 40 | FH47: 26.75 | FI47: 0.2132352941 | FJ47: 212 | FK47: 123 | FL47: 0.5801886792 | FM47: 0.5129056637 | FN47: 0.6446173636 | FO47: 212 | FP47: 34 | FQ47: 42 | FR47: 26.61904762 | FS47: 0.2170868347 | FT47: 2349 | FU47: 2302 | FV47: 47 | FW47: 38 | FX47: 9 | FY47: 0.8085106383 | FZ47: 0.1914893617 | GA47: 0.9052684407 | GB47: 0.09473155929 | GC47: 0.06070443426 | GD47: 0.1735704325 | GE47: 0.9174007937 | GF47: 0.08259920635 | GG47: 0.04791798016 | GH47: 0.1526986389 | GI47: 0.9254365079 | GJ47: 0.07456349206 | GK47: 0.04791798016 | GL47: 0.1526986389 | GM47: 0.8395448179 | GN47: 0.1604551821 | GO47: 0.1154958952 | GP47: 0.253411962 | GQ47: 39 | GR47: 39 | GS47: 39 | GT47: 39 | GU47: 39 | GV47: 45 | GW47: 43 | GX47: 45 | GY47: 43 | GZ47: 45 | HA47: 45 | HB47: 43 | HC47: 45 | HD47: 59 | HE47: 56 | HF47: 54 | HG47: 54 | HH47: 57 | HI47: 58 | HJ47: 57 | HK47: 57 | HL47: 57 | HM47: 58 | HN47: 13 | HO47: 0.01258470474 | HP47: 1567 | HQ47: 1408 | HR47: 159 | HS47: 0.1014677728
A48: CFC Group - Adur East | C48: n/a | D48: CFC Group - Adur East | E48: Adur | G48: n/a | H48: n/a | I48: n/a | J48: Coastal West Sussex | K48: East Worthing and Shoreham | L48: 27300 | M48: 27205 | N48: 27465 | O48: 27495 | P48: 27515 | Q48: 27770 | R48: 27820 | S48: 27855 | T48: 28125 | U48: 28580 | V48: 1470 | W48: 1455 | X48: 1510 | Y48: 1510 | Z48: 1565 | AA48: 1590 | AB48: 1630 | AC48: 1710 | AD48: 1770 | AE48: 1825 | AF48: 0.8938053097 | AG48: 0.02064896755 | AH48: 0.0412979351 | AI48: 0.02949852507 | AJ48: 0.002949852507 | AK48: 0.01179941003 | AL48: 0.1061946903 | AM48: 3208 | AN48: 0.5960099751 | AO48: 0.2051122195 | AP48: 0.1988778055 | AQ48: =AQ20+AQ39 -> 259 | AR48: =AR20+AR39 -> 293 | AS48: =AS20+AS39 -> 276 | AT48: =AT20+AT39 -> 316 | AU48: 317 | AV48: =AV20+AV39 -> 17 | AW48: =AW20+AW39 -> 12 | AX48: =AX20+AX39 -> 12 | AY48: =AY20+AY39 -> 11 | AZ48: 13 | BA48: 21 | BB48: 0.06624605678 | BC48: 0.0437339067 | BD48: 0.09914494378 | BE48: 24 | BF48: =BF20+BF39 -> 555 | BG48: =BG20+BG39 -> 572 | BH48: =BH20+BH39 -> 212 | BI48: =BH48/BJ48 -> 0.06298276887 | BJ48: =BJ20+BJ39 -> 3366 | BK48: 5787 | BL48: 3378 | BM48: 1740 | BN48: 4 | BO48: 585 | BP48: 790 | BQ48: 259 | BR48: 280 | BS48: 235 | BT48: 200 | BU48: 789 | BV48: 307 | BW48: 0.3891001267 | BX48: 64 | BY48: n/a | BZ48: 645 | CA48: 0.05358032896 | CB48: =CB20+CB39 -> 380 | CC48: =CC20+CC39 -> 375 | CD48: 370 | CE48: =CE20+CE39 -> 340 | CF48: 895 | CG48: 0.1801169799 | CH48: 905 | CI48: 0.1725677214 | CJ48: 975 | CK48: 0.1837028749 | CL48: 935 | CM48: 0.169526765 | CN48: 965 | CO48: 0.1684297901 | CP48: 930 | CQ48: 0.1805825243 | CR48: =CR20+CR39 -> 319 | CS48: =CS20+CS39 -> 20 | CT48: =CT20+CT39 -> 299 | CU48: =CT48/CR48 -> 0.9373040752 | CV48: =CV20+CV39 -> 124 | CW48: =CW20+CW39 -> 166 | CX48: 0.4147157191 | CY48: 0.5551839465 | CZ48: 0.3602989774 | DA48: 0.4712960751 | DB48: 0.4985103761 | DC48: 0.6104575312 | DD48: =DD20+DD39 -> 213 | DE48: =DE20+DE39 -> 10 | DF48: 0.04694835681 | DG48: 0.02569840042 | DH48: 0.0842504025 | DI48: Sig better than Eng. | DJ48: =DJ20+DJ39 -> 276 | DK48: =DK20+DK39 -> 15 | DL48: 0.05434782609 | DM48: 0.03320874374 | DN48: 0.08772208246 | DO48: Sig better than Eng. | DP48: =DP20+DP39 -> 224 | DQ48: =DQ20+DQ39 -> 22 | DR48: 0.09821428571 | DS48: 0.06575622157 | DT48: 0.1442207469 | DU48: No Sig diff | DV48: =DV20+DV39 -> 279 | DW48: =DW20+DW39 -> 28 | DX48: 0.1003584229 | DY48: 0.07035031139 | DZ48: 0.141222133 | EA48: No Sig diff | EB48: =EB20+EB39 -> 238 | EC48: =EC20+EC39 -> 44 | ED48: 0.1848739496 | EE48: 0.1406988459 | EF48: 0.2390601056 | EG48: No Sig diff | EH48: =EH20+EH39 -> 214 | EI48: =EI20+EI39 -> 46 | EJ48: 0.214953271 | EK48: 0.1651983842 | EL48: 0.2747612972 | EM48: No Sig diff | EN48: =EN20+EN39 -> 218 | EO48: =EO20+EO39 -> 36 | EP48: 0.1651376147 | EQ48: 0.1217328801 | ER48: 0.2201394607 | ES48: No Sig diff | ET48: =ET20+ET39 -> 215 | EU48: =EU20+EU39 -> 46 | EV48: 0.2139534884 | EW48: 0.1644096936 | EX48: 0.2735395841 | EY48: No Sig diff | EZ48: 314 | FA48: 156 | FB48: 0.4968152866 | FC48: 0.4418865135 | FD48: 0.5518210412 | FE48: 314 | FF48: 34 | FG48: 62 | FH48: 22.87096774 | FI48: 0.3273244782 | FJ48: 294 | FK48: 174 | FL48: 0.5918367347 | FM48: 0.5348217971 | FN48: 0.6464827138 | FO48: 294 | FP48: 34 | FQ48: 58 | FR48: 25.37931034 | FS48: 0.2535496957 | FT48: =FT20+FT39 -> 4052 | FU48: =FU20+FU39 -> 3973 | FV48: =FV20+FV39 -> 79 | FW48: =FW20+FW39 -> 73 | FX48: =FX20+FX39 -> 6 | FY48: =FW48/FV48 -> 0.9240506329 | FZ48: =FX48/FV48 -> 0.07594936709 | GQ48: =GQ20+GQ39 -> 93 | GR48: 85 | GS48: 86 | GT48: 88 | GU48: 86 | GV48: 66 | GW48: 64 | GX48: 65 | GY48: 62 | GZ48: 65 | HA48: 65 | HB48: 62 | HC48: 65 | HD48: 71 | HE48: 67 | HF48: 67 | HG48: 64 | HH48: 67 | HI48: 68 | HJ48: 63 | HK48: 66 | HL48: 63 | HM48: 68 | HN48: 48 | HO48: 0.02830188679 | HP48: 2641 | HQ48: 2287 | HR48: 354 | HS48: 0.1340401363
A49: CFC Group - Adur West | C49: n/a | D49: CFC Group - Adur West | E49: Adur | G49: n/a | H49: n/a | I49: n/a | J49: Coastal West Sussex | K49: East Worthing and Shoreham | L49: 29760 | M49: 29685 | N49: 29960 | O49: 30165 | P49: 30300 | Q49: 30380 | R49: 30535 | S49: 30635 | T49: 30915 | U49: 31085 | V49: 1465 | W49: 1435 | X49: 1470 | Y49: 1535 | Z49: 1520 | AA49: 1640 | AB49: 1725 | AC49: 1755 | AD49: 1805 | AE49: 1840 | AF49: 0.8956521739 | AG49: 0.0347826087 | AH49: 0.04347826087 | AI49: 0.01739130435 | AJ49: 0.002898550725 | AK49: 0.005797101449 | AL49: 0.1043478261 | AM49: 3211 | AN49: 0.6209903457 | AO49: 0.1625661788 | AP49: 0.2164434756 | AQ49: =AQ7+AQ21 -> 354 | AR49: 346 | AS49: 345 | AT49: 377 | AU49: 371 | AV49: 22 | AW49: 26 | AX49: 15 | AY49: =AY7+AY21 -> 21 | AZ49: 11 | BA49: 22 | BB49: 0.05929919137 | BC49: 0.03948305339 | BD49: 0.08814812959 | BE49: 27 | BF49: =BF7+BF21 -> 589 | BG49: =BG7+BG21 -> 517 | BH49: =BH7+BH21 -> 247 | BI49: =BH49/BJ49 -> 0.07439759036 | BJ49: =BJ7+BJ21 -> 3320 | BK49: 5743 | BL49: 3348 | BM49: 1712 | BN49: 2 | BO49: 565 | BP49: 802 | BQ49: 267 | BR49: 265 | BS49: 275 | BT49: 260 | BU49: 802 | BV49: 325 | BW49: 0.4052369077 | BX49: 92 | BY49: n/a | BZ49: 644 | CA49: 0.04659238895 | CB49: =CB7+CB21 -> 380 | CC49: =CC7+CC21 -> 340 | CD49: 355 | CE49: =CE7+CE21 -> 335 | CF49: 870 | CG49: 0.1735250784 | CH49: 855 | CI49: 0.1722431331 | CJ49: 985 | CK49: 0.1874979234 | CL49: 880 | CM49: 0.1675044766 | CN49: 925 | CO49: 0.1653051597 | CP49: 785 | CQ49: 0.152872444 | CR49: =CR7+CR21 -> 379 | CS49: =CS7+CS21 -> 26 | CT49: =CT7+CT21 -> 353 | CU49: =CT49/CR49 -> 0.9313984169 | CV49: =CV7+CV21 -> 131 | CW49: =CW7+CW21 -> 163 | CX49: 0.3711048159 | CY49: 0.4617563739 | CZ49: 0.3223489443 | DA49: 0.4226358444 | DB49: 0.4104407396 | DC49: 0.5138954065 | DD49: =DD7+DD21 -> 264 | DE49: =DE7+DE21 -> 17 | DF49: 0.06439393939 | DG49: 0.04058961752 | DH49: 0.1006934347 | DI49: No Sig diff | DJ49: =DJ7+DJ21 -> 287 | DK49: =DK7+DK21 -> 27 | DL49: 0.09407665505 | DM49: 0.06546135684 | DN49: 0.1334148937 | DO49: No Sig diff | DP49: =DP7+DP21 -> 272 | DQ49: =DQ7+DQ21 -> 29 | DR49: 0.1066176471 | DS49: 0.07526532686 | DT49: 0.1489267112 | DU49: No Sig diff | DV49: =DV7+DV21 -> 315 | DW49: =DW7+DW21 -> 22 | DX49: 0.06984126984 | DY49: 0.04657128768 | DZ49: 0.1034765104 | EA49: No Sig diff | EB49: =EB7+EB21 -> 244 | EC49: =EC7+EC21 -> 45 | ED49: 0.1844262295 | EE49: 0.1407863061 | EF49: 0.2378487264 | EG49: No Sig diff | EH49: =EH7+EH21 -> 254 | EI49: =EI7+EI21 -> 33 | EJ49: 0.1299212598 | EK49: 0.09402769534 | EL49: 0.1768420831 | EM49: Sig better than Eng. | EN49: =EN7+EN21 -> 222 | EO49: =EO7+EO21 -> 39 | EP49: 0.1756756757 | EQ49: 0.1312558469 | ER49: 0.2311287182 | ES49: No Sig diff | ET49: =ET7+ET21 -> 246 | EU49: =EU7+EU21 -> 32 | EV49: 0.1300813008 | EW49: 0.09367087241 | EX49: 0.1778671627 | EY49: Sig better than Eng. | EZ49: 347 | FA49: 171 | FB49: 0.492795389 | FC49: 0.4405602602 | FD49: 0.5451882884 | FE49: 347 | FF49: 34 | FG49: 69 | FH49: 21.42028986 | FI49: 0.3699914749 | FJ49: 335 | FK49: 184 | FL49: 0.5492537313 | FM49: 0.495713563 | FN49: 0.6016771167 | FO49: 335 | FP49: 34 | FQ49: 66 | FR49: 21.62121212 | FS49: 0.3640819964 | FT49: =FT7+FT21 -> 4003 | FU49: =FU7+FU21 -> 3955 | FV49: =FV7+FV21 -> 48 | FW49: =FW7+FW21 -> 39 | FX49: =FX7+FX21 -> 9 | FY49: 0.8125 | FZ49: 0.1875 | GQ49: =GQ7+GQ21 -> 96 | GR49: 94 | GS49: 94 | GT49: 95 | GU49: 94 | GV49: 106 | GW49: 101 | GX49: 104 | GY49: 100 | GZ49: 103 | HA49: 105 | HB49: 102 | HC49: 104 | HD49: 88 | HE49: 84 | HF49: 82 | HG49: 80 | HH49: 82 | HI49: 83 | HJ49: 82 | HK49: 84 | HL49: 83 | HM49: 83 | HN49: 31 | HO49: 0.01797101449 | HP49: 2686 | HQ49: 2343 | HR49: 343 | HS49: 0.1276991809
A50: CFC Group - Arun East | C50: n/a | D50: CFC Group - Arun East | E50: Arun | G50: n/a | H50: n/a | I50: n/a | J50: Coastal West Sussex | K50: Worthing W/Bognor and Littlehampton | L50: 53555 | M50: 53925 | N50: 54555 | O50: 54965 | P50: 55265 | Q50: 55595 | R50: 55840 | S50: 56205 | T50: 56680 | U50: 57130 | V50: 2675 | W50: 2700 | X50: 2735 | Y50: 2740 | Z50: 2760 | AA50: 2835 | AB50: 2865 | AC50: 2935 | AD50: 3070 | AE50: 3090 | AF50: 0.8858131488 | AG50: 0.05190311419 | AH50: 0.03806228374 | AI50: 0.01903114187 | AJ50: 0.003460207612 | AK50: 0.001730103806 | AL50: 0.1141868512 | AM50: 5674 | AN50: 0.5773704618 | AO50: 0.1473387381 | AP50: 0.2752908001 | AQ50: =AQ23+AQ11+AQ3 -> 561 | AR50: 576 | AS50: 644 | AT50: 630 | AU50: 560 | AV50: 44 | AW50: 30 | AX50: 47 | AY50: =AY23+AY11+AY3 -> 32 | AZ50: 26 | BA50: 38 | BB50: 0.06785714286 | BC50: 0.04983449 | BD50: 0.09176818495 | BE50: 55 | BF50: =BF23+BF11+BF3 -> 987 | BG50: =BG23+BG11+BG3 -> 889 | BH50: =BH23+BH11+BH3 -> 436 | BI50: 0.07205420592 | BJ50: =BJ23+BJ11+BJ3 -> 6051 | BK50: 10574 | BL50: 6079 | BM50: 3197 | BN50: 3 | BO50: 898 | BP50: 1483 | BQ50: 498 | BR50: 480 | BS50: 465 | BT50: 365 | BU50: 1482 | BV50: 508 | BW50: 0.342780027 | BX50: 137 | BY50: n/a | BZ50: 1108 | CA50: 0.04371325995 | CB50: =CB23+CB11+CB3 -> 605 | CC50: =CC23+CC11+CC3 -> 655 | CD50: 650 | CE50: =CE23+CE11+CE3 -> 610 | CF50: 1745 | CG50: 0.2253097899 | CH50: 1735 | CI50: 0.2041831892 | CJ50: 1805 | CK50: 0.2240416436 | CL50: 1690 | CM50: 0.2075330375 | CN50: 1810 | CO50: 0.2071183241 | CP50: 1655 | CQ50: 0.1723958333 | CR50: =CR23+CR11+CR3 -> 588 | CS50: =CS23+CS11+CS3 -> 23 | CT50: =CT23+CT11+CT3 -> 565 | CU50: 0.9608843537 | CV50: =CV23+CV11+CV3 -> 207 | CW50: =CW23+CW11+CW3 -> 263 | CX50: 0.3663716814 | CY50: 0.4654867257 | CZ50: 0.327669687 | DA50: 0.406878494 | DB50: 0.4247284324 | DC50: 0.506711164 | DD50: =DD23+DD11+DD3 -> 416 | DE50: =DE23+DE11+DE3 -> 22 | DF50: 0.05288461538 | DG50: 0.0351804595 | DH50: 0.07877078999 | DI50: Sig better than Eng. | DJ50: =DJ23+DJ11+DJ3 -> 472 | DK50: =DK23+DK11+DK3 -> 40 | DL50: 0.08474576271 | DM50: 0.06285111848 | DN50: 0.1133450857 | DO50: No Sig diff | DP50: =DP23+DP11+DP3 -> 364 | DQ50: =DQ23+DQ11+DQ3 -> 27 | DR50: 0.07417582418 | DS50: 0.05147593668 | DT50: 0.1057696849 | DU50: No Sig diff | DV50: =DV23+DV11+DV3 -> 513 | DW50: =DW23+DW11+DW3 -> 47 | DX50: 0.09161793372 | DY50: 0.06959768604 | DZ50: 0.1197088356 | EA50: No Sig diff | EB50: =EB23+EB11+EB3 -> 486 | EC50: =EC23+EC11+EC3 -> 73 | ED50: 0.1502057613 | EE50: 0.1211914005 | EF50: 0.1847064694 | EG50: Sig better than Eng. | EH50: =EH23+EH11+EH3 -> 495 | EI50: =EI23+EI11+EI3 -> 84 | EJ50: 0.1696969697 | EK50: 0.1392026015 | EL50: 0.2052785073 | EM50: No Sig diff | EN50: =EN23+EN11+EN3 -> 500 | EO50: =EO23+EO11+EO3 -> 103 | EP50: 0.206 | EQ50: 0.1728566413 | ER50: 0.2436264709 | ES50: No Sig diff | ET50: =ET23+ET11+ET3 -> 506 | EU50: =EU23+EU11+EU3 -> 73 | EV50: 0.1442687747 | EW50: 0.1163325401 | EX50: 0.1775656046 | EY50: Sig better than Eng. | EZ50: 573 | FA50: 306 | FB50: 0.5340314136 | FC50: 0.4930959815 | FD50: 0.5745135833 | FE50: 573 | FF50: 34 | FG50: 114 | FH50: 24.0877193 | FI50: 0.2915376677 | FJ50: 623 | FK50: 370 | FL50: 0.5939004815 | FM50: 0.5548755104 | FN50: 0.6317745562 | FO50: 623 | FP50: 34 | FQ50: 123 | FR50: 24.8699187 | FS50: 0.268531803 | FT50: =FT23+FT11+FT3 -> 7538 | FU50: =FU23+FU11+FU3 -> 7332 | FV50: =FV23+FV11+FV3 -> 206 | FW50: =FW23+FW11+FW3 -> 166 | FX50: =FX23+FX11+FX3 -> 40 | FY50: 0.8058252427 | FZ50: 0.1941747573 | GQ50: =GQ23+GQ11+GQ3 -> 184 | GR50: 176 | GS50: 176 | GT50: 182 | GU50: 176 | GV50: 163 | GW50: 150 | GX50: 155 | GY50: 152 | GZ50: 155 | HA50: 160 | HB50: 148 | HC50: 156 | HD50: 143 | HE50: 137 | HF50: 132 | HG50: 130 | HH50: 133 | HI50: 133 | HJ50: 131 | HK50: 137 | HL50: 130 | HM50: 138 | HN50: 53 | HO50: 0.01834544825 | HP50: 4618 | HQ50: 4018 | HR50: 600 | HS50: 0.1299263751
A51: CFC Group - Arun West North | C51: n/a | D51: CFC Group - Arun West North | E51: Arun | G51: n/a | H51: n/a | I51: n/a | J51: Coastal West Sussex | K51: Bognor Regis and Littlehampton | L51: 34600 | M51: 34840 | N51: 34625 | O51: 34775 | P51: 34970 | Q51: 34910 | R51: 35030 | S51: 35155 | T51: 35795 | U51: 36285 | V51: 1835 | W51: 1830 | X51: 1830 | Y51: 1815 | Z51: 1845 | AA51: 1885 | AB51: 1890 | AC51: 1920 | AD51: 1995 | AE51: 2085 | AF51: 0.8815789474 | AG51: 0.06578947368 | AH51: 0.02631578947 | AI51: 0.02105263158 | AJ51: 0.002631578947 | AK51: 0.002631578947 | AL51: 0.1184210526 | AM51: 3777 | AN51: 0.6346306593 | AO51: 0.1440296532 | AP51: 0.2213396876 | AQ51: =AQ46+AQ44 -> 366 | AR51: 396 | AS51: 364 | AT51: 420 | AU51: 383 | AV51: 23 | AW51: 15 | AX51: 21 | AY51: =AY46+AY44 -> 16 | AZ51: 21 | BA51: 20 | BB51: 0.05221932115 | BC51: 0.03405512727 | BD51: 0.07927672437 | BE51: 37 | BF51: =BF46+BF44 -> 547 | BG51: =BG46+BG44 -> 636 | BH51: =BH46+BH44 -> 289 | BI51: 0.07261306533 | BJ51: =BJ46+BJ44 -> 3980 | BK51: 7077 | BL51: 3999 | BM51: 2253 | BN51: 3 | BO51: 569 | BP51: 828 | BQ51: 346 | BR51: 245 | BS51: 215 | BT51: 220 | BU51: 825 | BV51: 288 | BW51: 0.3490909091 | BX51: 77 | BY51: n/a | BZ51: 633 | CA51: 0.04306122449 | CB51: =CB46+CB44 -> 295 | CC51: =CC46+CC44 -> 305 | CD51: 345 | CE51: =CE46+CE44 -> 360 | CF51: 955 | CG51: 0.1771250727 | CH51: 925 | CI51: 0.1705756757 | CJ51: 1020 | CK51: 0.1750847339 | CL51: 990 | CM51: 0.1605438913 | CN51: 1060 | CO51: 0.161574723 | CP51: 880 | CQ51: 0.1375 | CR51: =CR46+CR44 -> 407 | CS51: =CS46+CS44 -> 21 | CT51: =CT46+CT44 -> 386 | CU51: 0.9484029484 | CV51: =CV46+CV44 -> 164 | CW51: =CW46+CW44 -> 203 | CX51: 0.4248704663 | CY51: 0.5259067358 | CZ51: 0.3765352995 | DA51: 0.474686271 | DB51: 0.476084058 | DC51: 0.5752188487 | DD51: =DD46+DD44 -> 306 | DE51: =DE46+DE44 -> 41 | DF51: 0.1339869281 | DG51: 0.1003252833 | DH51: 0.176724338 | DI51: Sig worse than Eng. | DJ51: =DJ46+DJ44 -> 319 | DK51: =DK46+DK44 -> 27 | DL51: 0.08463949843 | DM51: 0.05881981248 | DN51: 0.120343852 | DO51: No Sig diff | DP51: =DP46+DP44 -> 351 | DQ51: =DQ46+DQ44 -> 37 | DR51: 0.1054131054 | DS51: 0.07744918225 | DT51: 0.1419205021 | DU51: No Sig diff | DV51: =DV46+DV44 -> 389 | DW51: =DW46+DW44 -> 41 | DX51: 0.1053984576 | DY51: 0.07864806887 | DZ51: 0.1398661864 | EA51: No Sig diff | EB51: =EB46+EB44 -> 335 | EC51: =EC46+EC44 -> 57 | ED51: 0.1701492537 | EE51: 0.1337047476 | EF51: 0.2140728214 | EG51: No Sig diff | EH51: =EH46+EH44 -> 305 | EI51: =EI46+EI44 -> 63 | EJ51: 0.206557377 | EK51: 0.1649099431 | EL51: 0.2555046584 | EM51: No Sig diff | EN51: =EN46+EN44 -> 291 | EO51: =EO46+EO44 -> 51 | EP51: 0.175257732 | EQ51: 0.1358868116 | ER51: 0.2230907191 | ES51: No Sig diff | ET51: =ET46+ET44 -> 294 | EU51: =EU46+EU44 -> 43 | EV51: 0.1462585034 | EW51: 0.110431491 | EX51: 0.1912103932 | EY51: No Sig diff | EZ51: 415 | FA51: 195 | FB51: 0.4698795181 | FC51: 0.4223576248 | FD51: 0.5179539192 | FE51: 415 | FF51: 33 | FG51: 83 | FH51: 21.6746988 | FI51: 0.3431909456 | FJ51: 408 | FK51: 225 | FL51: 0.5514705882 | FM51: 0.5029550975 | FN51: 0.5990258932 | FO51: 408 | FP51: 34 | FQ51: 80 | FR51: 22.9875 | FS51: 0.3238970588 | FT51: =FT46+FT44 -> 5025 | FU51: =FU46+FU44 -> 4870 | FV51: =FV46+FV44 -> 155 | FW51: =FW46+FW44 -> 137 | FX51: =FX46+FX44 -> 18 | FY51: 0.8838709677 | FZ51: 0.1161290323 | GQ51: =GQ46+GQ44 -> 116 | GR51: 111 | GS51: 112 | GT51: 113 | GU51: 113 | GV51: 103 | GW51: 98 | GX51: 97 | GY51: 98 | GZ51: 97 | HA51: 98 | HB51: 96 | HC51: 98 | HD51: 116 | HE51: 106 | HF51: 109 | HG51: 100 | HH51: 108 | HI51: 109 | HJ51: 98 | HK51: 106 | HL51: 102 | HM51: 112 | HN51: 36 | HO51: 0.01894736842 | HP51: 3028 | HQ51: 2708 | HR51: 320 | HS51: 0.105680317
A52: CFC Group - Arun West South | C52: n/a | D52: CFC Group - Arun West South | E52: Arun | G52: n/a | H52: n/a | I52: n/a | J52: Coastal West Sussex | K52: Bognor Regis and Littlehampton | L52: 50060 | M52: 50310 | N52: 50585 | O52: 50940 | P52: 51220 | Q52: 51400 | R52: 51500 | S52: 51425 | T52: 51845 | U52: 52350 | V52: 1985 | W52: 2010 | X52: 2020 | Y52: 2100 | Z52: 2150 | AA52: 2280 | AB52: 2360 | AC52: 2420 | AD52: 2530 | AE52: 2610 | AF52: 0.8523206751 | AG52: 0.09282700422 | AH52: 0.03164556962 | AI52: 0.02109704641 | AJ52: 0.002109704641 | AK52: 0.002109704641 | AL52: 0.1476793249 | AM52: 4444 | AN52: 0.5942844284 | AO52: 0.0904590459 | AP52: 0.3152565257 | AQ52: =AQ6+AQ14 -> 455 | AR52: 487 | AS52: 513 | AT52: 520 | AU52: 493 | AV52: 43 | AW52: 29 | AX52: 31 | AY52: =AY6+AY14 -> 27 | AZ52: 27 | BA52: 35 | BB52: 0.07099391481 | BC52: 0.0514867531 | BD52: 0.09713502053 | BE52: 56 | BF52: =BF6+BF14 -> 840 | BG52: =BG6+BG14 -> 724 | BH52: =BH6+BH14 -> 320 | BI52: 0.06612936557 | BJ52: =BJ6+BJ14 -> 4839 | BK52: 8245 | BL52: 4875 | BM52: 2596 | BN52: 2 | BO52: 722 | BP52: 1139 | BQ52: 416 | BR52: 330 | BS52: 330 | BT52: 285 | BU52: 1132 | BV52: 388 | BW52: 0.3427561837 | BX52: 110 | BY52: n/a | BZ52: 1060 | CA52: 0.04551505002 | CB52: =CB6+CB14 -> 415 | CC52: =CC6+CC14 -> 415 | CD52: 450 | CE52: =CE6+CE14 -> 445 | CF52: 1105 | CG52: 0.1550794118 | CH52: 1135 | CI52: 0.1444837739 | CJ52: 1150 | CK52: 0.1523586957 | CL52: 1085 | CM52: 0.149656682 | CN52: 1140 | CO52: 0.1457133772 | CP52: 1040 | CQ52: 0.1404456448 | CR52: =CR6+CR14 -> 518 | CS52: =CS6+CS14 -> 13 | CT52: =CT6+CT14 -> 505 | CU52: 0.9749034749 | CV52: =CV6+CV14 -> 191 | CW52: =CW6+CW14 -> 230 | CX52: 0.3782178218 | CY52: 0.4554455446 | CZ52: 0.3369917917 | DA52: 0.4212826219 | DB52: 0.4125097171 | DC52: 0.4990540928 | DD52: =DD6+DD14 -> 418 | DE52: =DE6+DE14 -> 43 | DF52: 0.1028708134 | DG52: 0.07727261197 | DH52: 0.1357018526 | DI52: No Sig diff | DJ52: =DJ6+DJ14 -> 407 | DK52: =DK6+DK14 -> 39 | DL52: 0.09582309582 | DM52: 0.07088996367 | DN52: 0.1283145155 | DO52: No Sig diff | DP52: =DP6+DP14 -> 399 | DQ52: =DQ6+DQ14 -> 52 | DR52: 0.1303258145 | DS52: 0.1007868719 | DT52: 0.1669151147 | DU52: Sig worse than Eng. | DV52: =DV6+DV14 -> 488 | DW52: =DW6+DW14 -> 46 | DX52: 0.09426229508 | DY52: 0.07141459013 | DZ52: 0.1234479151 | EA52: No Sig diff | EB52: =EB6+EB14 -> 380 | EC52: =EC6+EC14 -> 64 | ED52: 0.1684210526 | EE52: 0.1341538802 | EF52: 0.2093250635 | EG52: No Sig diff | EH52: =EH6+EH14 -> 354 | EI52: =EI6+EI14 -> 68 | EJ52: 0.1920903955 | EK52: 0.1544455949 | EL52: 0.2363460682 | EM52: No Sig diff | EN52: =EN6+EN14 -> 355 | EO52: =EO6+EO14 -> 56 | EP52: 0.1577464789 | EQ52: 0.1235192014 | ER52: 0.1993015206 | ES52: No Sig diff | ET52: =ET6+ET14 -> 353 | EU52: =EU6+EU14 -> 59 | EV52: 0.1671388102 | EW52: 0.1318455357 | EX52: 0.209598699 | EY52: No Sig diff | EZ52: 504 | FA52: 185 | FB52: 0.3670634921 | FC52: 0.326135709 | FD52: 0.4100024151 | FE52: 504 | FF52: 32 | FG52: 100 | FH52: 21.43 | FI52: 0.3303125 | FJ52: 506 | FK52: 262 | FL52: 0.5177865613 | FM52: 0.4742787305 | FN52: 0.5610263623 | FO52: 506 | FP52: 34 | FQ52: 100 | FR52: 23.28 | FS52: 0.3152941176 | FT52: =FT6+FT14 -> 5649 | FU52: =FU6+FU14 -> 5391 | FV52: =FV6+FV14 -> 258 | FW52: =FW6+FW14 -> 186 | FX52: =FX6+FX14 -> 72 | FY52: 0.7209302326 | FZ52: 0.2790697674 | GQ52: =GQ6+GQ14 -> 112 | GR52: 109 | GS52: 109 | GT52: 110 | GU52: 110 | GV52: 134 | GW52: 128 | GX52: 132 | GY52: 128 | GZ52: 131 | HA52: 133 | HB52: 128 | HC52: 132 | HD52: 152 | HE52: 146 | HF52: 140 | HG52: 138 | HH52: 141 | HI52: 141 | HJ52: 138 | HK52: 146 | HL52: 137 | HM52: 144 | HN52: 55 | HO52: 0.02324598478 | HP52: 3782 | HQ52: 3333 | HR52: 449 | HS52: 0.1187202538
A53: CFC Group - Chichester Central | C53: n/a | D53: CFC Group - Chichester Central | E53: Chichester | G53: n/a | H53: n/a | I53: n/a | J53: Coastal West Sussex | K53: Chichester | L53: 41470 | M53: 41665 | N53: 42175 | O53: 42615 | P53: 43230 | Q53: 43680 | R53: 44220 | S53: 44815 | T53: 45235 | U53: 45765 | V53: 2010 | W53: 1985 | X53: 2015 | Y53: 2075 | Z53: 2120 | AA53: 2235 | AB53: 2285 | AC53: 2295 | AD53: 2425 | AE53: 2420 | AF53: 0.8706140351 | AG53: 0.04605263158 | AH53: 0.03070175439 | AI53: 0.04166666667 | AJ53: 0.006578947368 | AK53: 0.006578947368 | AL53: 0.1293859649 | AM53: 4345 | AN53: 0.487456847 | AO53: 0.2948216341 | AP53: 0.217721519 | AQ53: =AQ9+AQ31 -> 499 | AR53: 458 | AS53: 510 | AT53: 480 | AU53: 430 | AV53: 33 | AW53: 26 | AX53: 29 | AY53: =AY9+AY31 -> 23 | AZ53: 23 | BA53: 24 | BB53: 0.05581395349 | BC53: 0.03779043273 | BD53: 0.08170358465 | BE53: 50 | BF53: =BF9+BF31 -> 731 | BG53: =BG9+BG31 -> 698 | BH53: =BH9+BH31 -> 351 | BI53: 0.07638737758 | BJ53: =BJ9+BJ31 -> 4595 | BK53: 8125 | BL53: 4625 | BM53: 2595 | BN53: 1 | BO53: 630 | BP53: 1053 | BQ53: 346 | BR53: 310 | BS53: 305 | BT53: 280 | BU53: 1052 | BV53: 358 | BW53: 0.3403041825 | BX53: 70 | BY53: n/a | BZ53: 715 | CA53: 0.0358935743 | CB53: =CB9+CB31 -> 435 | CC53: =CC9+CC31 -> 435 | CD53: 465 | CE53: =CE9+CE31 -> 395 | CF53: 1085 | CG53: 0.1553126551 | CH53: 1105 | CI53: 0.1645196659 | CJ53: 1175 | CK53: 0.1616648118 | CL53: 1140 | CM53: 0.1517908232 | CN53: 1070 | CO53: 0.1466786485 | CP53: 1050 | CQ53: 0.1455301455 | CR53: =CR9+CR31 -> 452 | CS53: =CS9+CS31 -> 40 | CT53: =CT9+CT31 -> 412 | CU53: 0.9115044248 | CV53: =CV9+CV31 -> 190 | CW53: =CW9+CW31 -> 243 | CX53: 0.4611650485 | CY53: 0.5898058252 | CZ53: 0.4136108995 | DA53: 0.5094366964 | DB53: 0.5416937282 | DC53: 0.6362587064 | DD53: =DD9+DD31 -> 349 | DE53: =DE9+DE31 -> 35 | DF53: 0.100286533 | DG53: 0.0729952658 | DH53: 0.1362813285 | DI53: No Sig diff | DJ53: =DJ9+DJ31 -> 373 | DK53: =DK9+DK31 -> 29 | DL53: 0.07774798928 | DM53: 0.05467611773 | DN53: 0.1094285936 | DO53: No Sig diff | DP53: =DP9+DP31 -> 388 | DQ53: =DQ9+DQ31 -> 26 | DR53: 0.06701030928 | DS53: 0.04613665998 | DT53: 0.09637367823 | DU53: No Sig diff | DV53: =DV9+DV31 -> 383 | DW53: =DW9+DW31 -> 29 | DX53: 0.07571801567 | DY53: 0.05323440139 | DZ53: 0.1066281403 | EA53: No Sig diff | EB53: =EB9+EB31 -> 333 | EC53: =EC9+EC31 -> 54 | ED53: 0.1621621622 | EE53: 0.1264637083 | EF53: 0.2055662598 | EG53: No Sig diff | EH53: =EH9+EH31 -> 324 | EI53: =EI9+EI31 -> 51 | EJ53: 0.1574074074 | EK53: 0.1217959515 | EL53: 0.2010474717 | EM53: No Sig diff | EN53: =EN9+EN31 -> 333 | EO53: =EO9+EO31 -> 57 | EP53: 0.1711711712 | EQ53: 0.1345230224 | ER53: 0.2153194799 | ES53: No Sig diff | ET53: =ET9+ET31 -> 320 | EU53: =EU9+EU31 -> 39 | EV53: 0.121875 | EW53: 0.09044903702 | EX53: 0.1622717206 | EY53: Sig better than Eng. | EZ53: 457 | FA53: 224 | FB53: 0.4901531729 | FC53: 0.444593871 | FD53: 0.5358766361 | FE53: 457 | FF53: 34 | FG53: 91 | FH53: 20.46153846 | FI53: 0.3981900452 | FJ53: 460 | FK53: 240 | FL53: 0.5217391304 | FM53: 0.476099466 | FN53: 0.5670187151 | FO53: 460 | FP53: 34 | FQ53: 91 | FR53: 21.73626374 | FS53: 0.3606981254 | FT53: =FT9+FT31 -> 6478 | FU53: =FU9+FU31 -> 5978 | FV53: =FV9+FV31 -> 500 | FW53: =FW9+FW31 -> 425 | FX53: =FX9+FX31 -> 75 | FY53: 0.85 | FZ53: 0.15 | GQ53: =GQ9+GQ31 -> 117 | GR53: 111 | GS53: 111 | GT53: 116 | GU53: 110 | GV53: 108 | GW53: 104 | GX53: 105 | GY53: 103 | GZ53: 105 | HA53: 107 | HB53: 103 | HC53: 106 | HD53: 134 | HE53: 125 | HF53: 123 | HG53: 120 | HH53: 122 | HI53: 125 | HJ53: 118 | HK53: 124 | HL53: 120 | HM53: 126 | HN53: 44 | HO53: 0.01933216169 | HP53: 3520 | HQ53: 3144 | HR53: 376 | HS53: 0.1068181818
A54: CFC Group - Chichester Rural | C54: n/a | D54: CFC Group - Chichester Rural | E54: Chichester | G54: n/a | H54: n/a | I54: n/a | J54: Coastal West Sussex | K54: Chichester | L54: 61200 | M54: 61645 | N54: 61960 | O54: 62350 | P54: 62935 | Q54: 63140 | R54: 63375 | S54: 63320 | T54: 63385 | U54: 63620 | V54: 2725 | W54: 2765 | X54: 2830 | Y54: 2925 | Z54: 3055 | AA54: 3055 | AB54: 3060 | AC54: 3050 | AD54: 3110 | AE54: 3085 | AF54: 0.9314845024 | AG54: 0.02610114192 | AH54: 0.02446982055 | AI54: 0.006525285481 | AJ54: 0.009787928222 | AK54: 0.003262642741 | AL54: 0.06851549755 | AM54: 6199 | AN54: 0.6130020971 | AO54: 0.148411034 | AP54: 0.2385868688 | AQ54: =AQ27+AQ29+AQ34+AQ36 -> 546 | AR54: 538 | AS54: 498 | AT54: 484 | AU54: 434 | AV54: 23 | AW54: 28 | AX54: 22 | AY54: =AY27+AY29+AY34+AY36 -> 21 | AZ54: 27 | BA54: 40 | BB54: 0.09216589862 | BC54: 0.06841452466 | BD54: 0.1230736433 | BE54: 42 | BF54: =BF27+BF29+BF34+BF36 -> 824 | BG54: =BG27+BG29+BG34+BG36 -> 1010 | BH54: =BH27+BH29+BH34+BH36 -> 497 | BI54: 0.07667386609 | BJ54: =BJ27+BJ29+BJ34+BJ36 -> 6482 | BK54: 11616 | BL54: 6418 | BM54: 4064 | BN54: 4 | BO54: 746 | BP54: 1151 | BQ54: 453 | BR54: 295 | BS54: 255 | BT54: 230 | BU54: 1160 | BV54: 353 | BW54: 0.3043103448 | BX54: 110 | BY54: n/a | BZ54: 754 | CA54: 0.02737736466 | CB54: =CB27+CB29+CB34+CB36 -> 360 | CC54: =CC27+CC29+CC34+CC36 -> 350 | CD54: 385 | CE54: =CE27+CE29+CE34+CE36 -> 355 | CF54: 1100 | CG54: 0.1109451389 | CH54: 1170 | CI54: 0.1074292498 | CJ54: 1160 | CK54: 0.1186908867 | CL54: 1120 | CM54: 0.113453125 | CN54: 1165 | CO54: 0.104396868 | CP54: 1010 | CQ54: 0.09834469328 | CR54: =CR27+CR29+CR34+CR36 -> 467 | CS54: =CS27+CS29+CS34+CS36 -> 27 | CT54: =CT27+CT29+CT34+CT36 -> 440 | CU54: 0.9421841542 | CV54: =CV27+CV29+CV34+CV36 -> 186 | CW54: =CW27+CW29+CW34+CW36 -> 237 | CX54: 0.4227272727 | CY54: 0.5386363636 | CZ54: 0.3774338716 | DA54: 0.4693582685 | DB54: 0.4919236503 | DC54: 0.5846802796 | DD54: =DD27+DD29+DD34+DD36 -> 514 | DE54: =DE27+DE29+DE34+DE36 -> 53 | DF54: 0.1031128405 | DG54: 0.07969970067 | DH54: 0.1324143681 | DI54: No Sig diff | DJ54: =DJ27+DJ29+DJ34+DJ36 -> 492 | DK54: =DK27+DK29+DK34+DK36 -> 42 | DL54: 0.08536585366 | DM54: 0.06377452436 | DN54: 0.1133818172 | DO54: No Sig diff | DP54: =DP27+DP29+DP34+DP36 -> 514 | DQ54: =DQ27+DQ29+DQ34+DQ36 -> 34 | DR54: 0.06614785992 | DS54: 0.04771913306 | DT54: 0.09101340293 | DU54: Sig better than Eng. | DV54: =DV27+DV29+DV34+DV36 -> 537 | DW54: =DW27+DW29+DW34+DW36 -> 51 | DX54: 0.09497206704 | DY54: 0.07297371266 | DZ54: 0.1227240415 | EA54: No Sig diff | EB54: =EB27+EB29+EB34+EB36 -> 429 | EC54: =EC27+EC29+EC34+EC36 -> 69 | ED54: 0.1608391608 | EE54: 0.1291085151 | EF54: 0.1985898972 | EG54: No Sig diff | EH54: =EH27+EH29+EH34+EH36 -> 415 | EI54: =EI27+EI29+EI34+EI36 -> 72 | EJ54: 0.1734939759 | EK54: 0.140100073 | EL54: 0.2128770636 | EM54: No Sig diff | EN54: =EN27+EN29+EN34+EN36 -> 402 | EO54: =EO27+EO29+EO34+EO36 -> 56 | EP54: 0.1393034826 | EQ54: 0.1088570113 | ER54: 0.17657824 | ES54: Sig better than Eng. | ET54: =ET27+ET29+ET34+ET36 -> 419 | EU54: =EU27+EU29+EU34+EU36 -> 56 | EV54: 0.1336515513 | EW54: 0.104376049 | EX54: 0.1695835082 | EY54: Sig better than Eng. | EZ54: 623 | FA54: 349 | FB54: 0.5601926164 | FC54: 0.520964996 | FD54: 0.5986824826 | FE54: 623 | FF54: 34 | FG54: 124 | FH54: 24.91935484 | FI54: 0.2670777989 | FJ54: 632 | FK54: 377 | FL54: 0.5965189873 | FM54: 0.5577987237 | FN54: 0.6340730052 | FO54: 632 | FP54: 34 | FQ54: 126 | FR54: 24.23809524 | FS54: 0.2871148459 | FT54: =FT27+FT29+FT34+FT36 -> 11169 | FU54: =FU27+FU29+FU34+FU36 -> 10239 | FV54: =FV27+FV29+FV34+FV36 -> 930 | FW54: =FW27+FW29+FW34+FW36 -> 787 | FX54: =FX27+FX29+FX34+FX36 -> 143 | FY54: 0.8462365591 | FZ54: 0.1537634409 | GQ54: =GQ27+GQ29+GQ34+GQ36 -> 136 | GR54: 127 | GS54: 128 | GT54: 131 | GU54: 128 | GV54: 118 | GW54: 109 | GX54: 114 | GY54: 109 | GZ54: 114 | HA54: 114 | HB54: 107 | HC54: 115 | HD54: 148 | HE54: 127 | HF54: 123 | HG54: 121 | HH54: 122 | HI54: 124 | HJ54: 116 | HK54: 132 | HL54: 122 | HM54: 128 | HN54: 41 | HO54: 0.0133855697 | HP54: 4708 | HQ54: 4323 | HR54: 385 | HS54: 0.08177570093
A55: CFC Group - Crawley | C55: n/a | D55: CFC Group - Crawley | E55: Crawley | G55: n/a | H55: n/a | I55: n/a | J55: Crawley | K55: Crawley | L55: 98885 | M55: 99705 | N55: 100745 | O55: 101610 | P55: 102825 | Q55: 103845 | R55: 105480 | S55: 107055 | T55: 108300 | U55: 108970 | V55: 6305 | W55: 6280 | X55: 6370 | Y55: 6595 | Z55: 6935 | AA55: 7190 | AB55: 7740 | AC55: 8145 | AD55: 8320 | AE55: 8355 | AF55: 0.6220570012 | AG55: 0.06567534077 | AH55: 0.07682775713 | AI55: 0.1734820322 | AJ55: 0.04894671623 | AK55: 0.01301115242 | AL55: 0.3779429988 | AM55: 14546 | AN55: 0.4909940877 | AO55: 0.3152756772 | AP55: 0.1937302351 | AQ55: =AQ4+AQ8+AQ22+AQ24+AQ28+AQ37 -> 1545 | AR55: 1666 | AS55: 1694 | AT55: 1617 | AU55: 1621 | AV55: 69 | AW55: 75 | AX55: 79 | AY55: =AY4+AY8+AY22+AY24+AY28+AY37 -> 67 | AZ55: 64 | BA55: 128 | BB55: 0.07896360271 | BC55: 0.06680852069 | BD55: 0.09310951771 | BE55: 144 | BF55: =BF4+BF8+BF22+BF24+BF28+BF37 -> 2712 | BG55: =BG4+BG8+BG22+BG24+BG28+BG37 -> 2241 | BH55: =BH4+BH8+BH22+BH24+BH28+BH37 -> 1333 | BI55: 0.0950716782 | BJ55: =BJ4+BJ8+BJ22+BJ24+BJ28+BJ37 -> 14021 | BK55: 24916 | BL55: 14216 | BM55: 7467 | BN55: 9 | BO55: 1897 | BP55: 3347 | BQ55: 1496 | BR55: 1180 | BS55: 1095 | BT55: 925 | BU55: 3293 | BV55: 1363 | BW55: 0.4139082903 | BX55: 248 | BY55: n/a | BZ55: 2084 | CA55: 0.04877477941 | CB55: =CB4+CB8+CB22+CB24+CB28+CB37 -> 1650 | CC55: =CC4+CC8+CC22+CC24+CC28+CC37 -> 1650 | CD55: 1580 | CE55: =CE4+CE8+CE22+CE24+CE28+CE37 -> 1475 | CF55: 3775 | CG55: 0.19 | CH55: 3775 | CI55: 0.187 | CJ55: 4090 | CK55: 0.195 | CL55: 4165 | CM55: 0.195 | CN55: 4165 | CO55: 0.19 | CP55: 3895 | CQ55: 0.174 | CR55: =CR4+CR8+CR22+CR24+CR28+CR37 -> 1542 | CS55: =CS4+CS8+CS22+CS24+CS28+CS37 -> 48 | CT55: =CT4+CT8+CT22+CT24+CT28+CT37 -> 1494 | CU55: 0.9688715953 | CV55: =CV4+CV8+CV22+CV24+CV28+CV37 -> 540 | CW55: =CW4+CW8+CW22+CW24+CW28+CW37 -> 809 | CX55: 0.3614457831 | CY55: 0.5414993307 | CZ55: 0.3374688957 | DA55: 0.3861333603 | DB55: 0.5161587896 | DC55: 0.5666270081 | DD55: =DD4+DD8+DD22+DD24+DD28+DD37 -> 1053 | DE55: =DE4+DE8+DE22+DE24+DE28+DE37 -> 91 | DF55: 0.08641975309 | DG55: 0.07091610802 | DH55: 0.1049300014 | DI55: No Sig diff | DJ55: =DJ4+DJ8+DJ22+DJ24+DJ28+DJ37 -> 1172 | DK55: =DK4+DK8+DK22+DK24+DK28+DK37 -> 114 | DL55: 0.09726962457 | DM55: 0.08159712287 | DN55: 0.1155735561 | DO55: No Sig diff | DP55: =DP4+DP8+DP22+DP24+DP28+DP37 -> 991 | DQ55: =DQ4+DQ8+DQ22+DQ24+DQ28+DQ37 -> 81 | DR55: 0.08173562059 | DS55: 0.06625029275 | DT55: 0.1004511021 | DU55: No Sig diff | DV55: =DV4+DV8+DV22+DV24+DV28+DV37 -> 1189 | DW55: =DW4+DW8+DW22+DW24+DW28+DW37 -> 111 | DX55: 0.09335576114 | DY55: 0.07810352378 | DZ55: 0.1112271347 | EA55: No Sig diff | EB55: =EB4+EB8+EB22+EB24+EB28+EB37 -> 1018 | EC55: =EC4+EC8+EC22+EC24+EC28+EC37 -> 197 | ED55: 0.1935166994 | EE55: 0.1704193088 | EF55: 0.2189184455 | EG55: No Sig diff | EH55: =EH4+EH8+EH22+EH24+EH28+EH37 -> 1114 | EI55: =EI4+EI8+EI22+EI24+EI28+EI37 -> 192 | EJ55: 0.1723518851 | EK55: 0.1513086613 | EL55: 0.1956470325 | EM55: No Sig diff | EN55: =EN4+EN8+EN22+EN24+EN28+EN37 -> 1128 | EO55: =EO4+EO8+EO22+EO24+EO28+EO37 -> 213 | EP55: 0.1888297872 | EQ55: 0.1670608359 | ER55: 0.2127109558 | ES55: No Sig diff | ET55: =ET4+ET8+ET22+ET24+ET28+ET37 -> 1075 | EU55: =EU4+EU8+EU22+EU24+EU28+EU37 -> 210 | EV55: 0.1953488372 | EW55: 0.1727507332 | EX55: 0.2201164999 | EY55: No Sig diff | EZ55: 1440 | FA55: 693 | FB55: 0.48125 | FC55: 0.4555275623 | FD55: 0.5070722096 | FE55: 1440 | FF55: 34 | FG55: 288 | FH55: 22.37847222 | FI55: 0.3418096405 | FJ55: 1518 | FK55: 841 | FL55: 0.5540184453 | FM55: 0.5289079581 | FN55: 0.578856224 | FO55: 1518 | FP55: 34 | FQ55: 301 | FR55: 22.71428571 | FS55: 0.3319327731 | FT55: =FT4+FT8+FT22+FT24+FT28+FT37 -> 13718 | FU55: =FU4+FU8+FU22+FU24+FU28+FU37 -> 13516 | FV55: =FV4+FV8+FV22+FV24+FV28+FV37 -> 202 | FW55: =FW4+FW8+FW22+FW24+FW28+FW37 -> 173 | FX55: =FX4+FX8+FX22+FX24+FX28+FX37 -> 29 | FY55: 0.8564356436 | FZ55: 0.1435643564 | GQ55: =GQ4+GQ8+GQ22+GQ24+GQ28+GQ37 -> 436 | GR55: 417 | GS55: 418 | GT55: 430 | GU55: 423 | GV55: 408 | GW55: 396 | GX55: 389 | GY55: 394 | GZ55: 393 | HA55: 396 | HB55: 395 | HC55: 402 | HD55: 420 | HE55: 394 | HF55: 383 | HG55: 376 | HH55: 384 | HI55: 394 | HJ55: 378 | HK55: 399 | HL55: 379 | HM55: 391 | HN55: 158 | HO55: 0.01960297767 | HP55: 12900 | HQ55: 11233 | HR55: 1667 | HS55: 0.1292248062
A56: CFC Group - Horsham Rural | C56: n/a | D56: CFC Group - Horsham Rural | E56: Horsham | G56: n/a | H56: n/a | I56: n/a | J56: Coastal/Horsham and Mid Sussex | K56: Arundel and South Downs/Horsham | L56: 77760 | M56: 78225 | N56: 78800 | O56: 79500 | P56: 79860 | Q56: 80135 | R56: 80945 | S56: 81165 | T56: 81415 | U56: 81900 | V56: 3925 | W56: 3885 | X56: 3805 | Y56: 3970 | Z56: 3935 | AA56: 3890 | AB56: 3940 | AC56: 3945 | AD56: 3960 | AE56: 3985 | AF56: 0.92875 | AG56: 0.02875 | AH56: 0.03 | AI56: 0.01125 | AJ56: 0.00125 | AK56: 0.00125 | AL56: 0.07125 | AM56: 8282 | AN56: 0.7081622796 | AO56: 0.1390968365 | AP56: 0.1527408838 | AQ56: =AQ5+AQ32+AQ33+AQ40 -> 694 | AR56: 711 | AS56: 686 | AT56: 680 | AU56: 643 | AV56: 31 | AW56: 23 | AX56: 15 | AY56: =AY5+AY32+AY33+AY40 -> 26 | AZ56: 21 | BA56: 48 | BB56: 0.07465007776 | BC56: 0.05676492658 | BD56: 0.09758736092 | BE56: 41 | BF56: =BF5+BF32+BF33+BF40 -> 1116 | BG56: =BG5+BG32+BG33+BG40 -> 1375 | BH56: =BH5+BH32+BH33+BH40 -> 609 | BI56: 0.06734490766 | BJ56: =BJ5+BJ32+BJ33+BJ40 -> 9043 | BK56: 16084 | BL56: 9447 | BM56: 6288 | BN56: 1 | BO56: 1076 | BP56: 1520 | BQ56: 562 | BR56: 305 | BS56: 275 | BT56: 245 | BU56: 1392 | BV56: 396 | BW56: 0.2844827586 | BX56: 150 | BY56: n/a | BZ56: 791 | CA56: 0.02327839906 | CB56: =CB5+CB32+CB33+CB40 -> 460 | CC56: =CC5+CC32+CC33+CC40 -> 430 | CD56: 395 | CE56: =CE5+CE32+CE33+CE40 -> 415 | CF56: 1210 | CG56: 0.08648863636 | CH56: 1290 | CI56: 0.0843995478 | CJ56: 1345 | CK56: 0.0960396014 | CL56: 1205 | CM56: 0.0915129668 | CN56: 1230 | CO56: 0.08544173442 | CP56: 1040 | CQ56: 0.077 | CR56: =CR5+CR32+CR33+CR40 -> 694 | CS56: =CS5+CS32+CS33+CS40 -> 20 | CT56: =CT5+CT32+CT33+CT40 -> 674 | CU56: 0.9711815562 | CV56: =CV5+CV32+CV33+CV40 -> 308 | CW56: =CW5+CW32+CW33+CW40 -> 404 | CX56: 0.4569732938 | CY56: 0.5994065282 | CZ56: 0.419715585 | DA56: 0.4947186839 | DB56: 0.5619498866 | DC56: 0.6357364577 | DD56: =DD5+DD32+DD33+DD40 -> 690 | DE56: =DE5+DE32+DE33+DE40 -> 45 | DF56: 0.0652173913 | DG56: 0.04909560112 | DH56: 0.08615353631 | DI56: Sig better than Eng. | DJ56: =DJ5+DJ32+DJ33+DJ40 -> 715 | DK56: =DK5+DK32+DK33+DK40 -> 60 | DL56: 0.08391608392 | DM56: 0.06574951121 | DN56: 0.1065297269 | DO56: No Sig diff | DP56: =DP5+DP32+DP33+DP40 -> 478 | DQ56: =DQ5+DQ32+DQ33+DQ40 -> 37 | DR56: 0.07740585774 | DS56: 0.05667730911 | DT56: 0.104872631 | DU56: No Sig diff | DV56: =DV5+DV32+DV33+DV40 -> 661 | DW56: =DW5+DW32+DW33+DW40 -> 53 | DX56: 0.08018154312 | DY56: 0.06182201338 | DZ56: 0.1033925011 | EA56: No Sig diff | EB56: =EB5+EB32+EB33+EB40 -> 715 | EC56: =EC5+EC32+EC33+EC40 -> 109 | ED56: 0.1524475524 | EE56: 0.1279623452 | EF56: 0.1806473713 | EG56: Sig better than Eng. | EH56: =EH5+EH32+EH33+EH40 -> 683 | EI56: =EI5+EI32+EI33+EI40 -> 102 | EJ56: 0.149341142 | EK56: 0.124574774 | EL56: 0.1780299336 | EM56: Sig better than Eng. | EN56: =EN5+EN32+EN33+EN40 -> 653 | EO56: =EO5+EO32+EO33+EO40 -> 89 | EP56: 0.1362940276 | EQ56: 0.1120965297 | ER56: 0.1647457074 | ES56: Sig better than Eng. | ET56: =ET5+ET32+ET33+ET40 -> 591 | EU56: =EU5+EU32+EU33+EU40 -> 74 | EV56: 0.1252115059 | EW56: 0.1009256744 | EX56: 0.1543380712 | EY56: Sig better than Eng. | EZ56: 782 | FA56: 456 | FB56: 0.5831202046 | FC56: 0.5482396007 | FD56: 0.6171881691 | FE56: 782 | FF56: 34 | FG56: 156 | FH56: 25.67948718 | FI56: 0.2447209653 | FJ56: 838 | FK56: 521 | FL56: 0.6217183771 | FM56: 0.5883987374 | FN56: 0.6539271755 | FO56: 838 | FP56: 34 | FQ56: 166 | FR56: 26.81325301 | FS56: 0.2113749114 | FT56: =FT5+FT32+FT33+FT40 -> 12075 | FU56: =FU5+FU32+FU33+FU40 -> 11826 | FV56: =FV5+FV32+FV33+FV40 -> 249 | FW56: =FW5+FW32+FW33+FW40 -> 205 | FX56: =FX5+FX32+FX33+FX40 -> 44 | FY56: 0.8232931727 | FZ56: 0.1767068273 | GQ56: =GQ5+GQ32+GQ33+GQ40 -> 214 | GR56: 209 | GS56: 210 | GT56: 210 | GU56: 210 | GV56: 164 | GW56: 154 | GX56: 157 | GY56: 154 | GZ56: 158 | HA56: 159 | HB56: 154 | HC56: 158 | HD56: 206 | HE56: 197 | HF56: 194 | HG56: 189 | HH56: 193 | HI56: 197 | HJ56: 189 | HK56: 194 | HL56: 191 | HM56: 201 | HN56: 60 | HO56: 0.01501877347 | HP56: 6263 | HQ56: 5821 | HR56: 442 | HS56: 0.07057320773
A57: CFC Group - Horsham Town | C57: n/a | D57: CFC Group - Horsham Town | E57: Horsham | G57: n/a | H57: n/a | I57: n/a | J57: Horsham and Mid Sussex | K57: Horsham | L57: 55555 | M57: 56115 | N57: 56850 | O57: 57335 | P57: 57750 | Q57: 58185 | R57: 58650 | S57: 59080 | T57: 59530 | U57: 59735 | V57: 3470 | W57: 3325 | X57: 3330 | Y57: 3430 | Z57: 3440 | AA57: 3490 | AB57: 3565 | AC57: 3600 | AD57: 3660 | AE57: 3595 | AF57: 0.8615384615 | AG57: 0.03356643357 | AH57: 0.05454545455 | AI57: 0.03916083916 | AJ57: 0.006993006993 | AK57: 0.002797202797 | AL57: 0.1370629371 | AM57: 6989 | AN57: 0.7055372729 | AO57: 0.1417942481 | AP57: 0.152668479 | AQ57: =AQ19+AQ38+AQ30+AQ43 -> 701 | AR57: 648 | AS57: 690 | AT57: 636 | AU57: 632 | AV57: 23 | AW57: 19 | AX57: 9 | AY57: =AY19+AY38+AY30+AY43 -> 13 | AZ57: 7 | BA57: 40 | BB57: 0.06329113924 | BC57: 0.04682100466 | BD57: 0.08503805809 | BE57: 21 | BF57: =BF19+BF38+BF30+BF43 -> 1043 | BG57: =BG19+BG38+BG30+BG43 -> 1201 | BH57: =BH19+BH38+BH30+BH43 -> 501 | BI57: 0.06817254048 | BJ57: =BJ19+BJ38+BJ30+BJ43 -> 7349 | BK57: 13050 | BL57: 7079 | BM57: 4683 | BN57: 7 | BO57: 790 | BP57: 1140 | BQ57: 459 | BR57: 270 | BS57: 260 | BT57: 225 | BU57: 1167 | BV57: 322 | BW57: 0.2759211654 | BX57: 120 | BY57: n/a | BZ57: 755 | CA57: 0.03090842101 | CB57: =CB19+CB38+CB30+CB43 -> 375 | CC57: =CC19+CC38+CC30+CC43 -> 385 | CD57: 390 | CE57: =CE19+CE38+CE30+CE43 -> 375 | CF57: 975 | CG57: 0.09121026825 | CH57: 985 | CI57: 0.08466503615 | CJ57: 1005 | CK57: 0.09154222395 | CL57: 935 | CM57: 0.08897444267 | CN57: 1000 | CO57: 0.08787085137 | CP57: 920 | CQ57: 0.084 | CR57: =CR19+CR38+CR30+CR43 -> 617 | CS57: =CS19+CS38+CS30+CS43 -> 16 | CT57: =CT19+CT38+CT30+CT43 -> 601 | CU57: 0.9740680713 | CV57: =CV19+CV38+CV30+CV43 -> 283 | CW57: =CW19+CW38+CW30+CW43 -> 368 | CX57: 0.4708818636 | CY57: 0.612312812 | CZ57: 0.4312868408 | DA57: 0.5108467556 | DB57: 0.5727640747 | DC57: 0.6504349108 | DD57: =DD19+DD38+DD30+DD43 -> 584 | DE57: =DE19+DE38+DE30+DE43 -> 40 | DF57: 0.06849315068 | DG57: 0.05070019215 | DH57: 0.09192577878 | DI57: Sig better than Eng. | DJ57: =DJ19+DJ38+DJ30+DJ43 -> 606 | DK57: =DK19+DK38+DK30+DK43 -> 41 | DL57: 0.06765676568 | DM57: 0.05026148426 | DN57: 0.09049880283 | DO57: Sig better than Eng. | DP57: =DP19+DP38+DP30+DP43 -> 390 | DQ57: =DQ19+DQ38+DQ30+DQ43 -> 35 | DR57: 0.08974358974 | DS57: 0.06523552745 | DT57: 0.1222547867 | DU57: No Sig diff | DV57: =DV19+DV38+DV30+DV43 -> 568 | DW57: =DW19+DW38+DW30+DW43 -> 39 | DX57: 0.06866197183 | DY57: 0.05063169053 | DZ57: 0.09248745125 | EA57: No Sig diff | EB57: =EB19+EB38+EB30+EB43 -> 593 | EC57: =EC19+EC38+EC30+EC43 -> 79 | ED57: 0.1332209106 | EE57: 0.108217515 | EF57: 0.1629457167 | EG57: Sig better than Eng. | EH57: =EH19+EH38+EH30+EH43 -> 630 | EI57: =EI19+EI38+EI30+EI43 -> 88 | EJ57: 0.1396825397 | EK57: 0.1147908489 | EL57: 0.1689417097 | EM57: Sig better than Eng. | EN57: =EN19+EN38+EN30+EN43 -> 603 | EO57: =EO19+EO38+EO30+EO43 -> 68 | EP57: 0.1127694859 | EQ57: 0.08993505793 | ER57: 0.1405064467 | ES57: Sig better than Eng. | ET57: =ET19+ET38+ET30+ET43 -> 580 | EU57: =EU19+EU38+EU30+EU43 -> 72 | EV57: 0.124137931 | EW57: 0.09975014419 | EX57: 0.1534717821 | EY57: Sig better than Eng. | EZ57: 673 | FA57: 392 | FB57: 0.5824665676 | FC57: 0.5448432717 | FD57: 0.6191537745 | FE57: 673 | FF57: 34 | FG57: 134 | FH57: 25.25373134 | FI57: 0.2572431958 | FJ57: 751 | FK57: 468 | FL57: 0.6231691079 | FM57: 0.5879668416 | FN57: 0.6571177359 | FO57: 751 | FP57: 34 | FQ57: 150 | FR57: 24.6 | FS57: 0.2764705882 | FT57: =FT19+FT38+FT30+FT43 -> 9632 | FU57: =FU19+FU38+FU30+FU43 -> 9400 | FV57: =FV19+FV38+FV30+FV43 -> 232 | FW57: =FW19+FW38+FW30+FW43 -> 203 | FX57: =FX19+FX38+FX30+FX43 -> 29 | FY57: 0.875 | FZ57: 0.125 | GQ57: =GQ19+GQ38+GQ30+GQ43 -> 181 | GR57: 173 | GS57: 173 | GT57: 176 | GU57: 173 | GV57: 189 | GW57: 180 | GX57: 174 | GY57: 180 | GZ57: 175 | HA57: 178 | HB57: 181 | HC57: 181 | HD57: 168 | HE57: 155 | HF57: 152 | HG57: 147 | HH57: 151 | HI57: 158 | HJ57: 145 | HK57: 158 | HL57: 154 | HM57: 156 | HN57: 67 | HO57: 0.01879910213 | HP57: 5540 | HQ57: 5172 | HR57: 368 | HS57: 0.06642599278
A58: CFC Group - Mid Sussex | C58: n/a | D58: CFC Group - Mid Sussex | E58: Mid Sussex | G58: n/a | H58: n/a | I58: n/a | J58: Horsham and Mid Sussex | K58: Mid Sussex | L58: 129460 | M58: 130505 | N58: 132060 | O58: 133975 | P58: 135735 | Q58: 137210 | R58: 138895 | S58: 140190 | T58: 141160 | U58: 142765 | V58: 7400 | W58: 7450 | X58: 7665 | Y58: 7985 | Z58: 8155 | AA58: 8140 | AB58: 8240 | AC58: 8325 | AD58: 8490 | AE58: 8560 | AF58: 0.8747753146 | AG58: 0.03894547633 | AH58: 0.04014379868 | AI58: 0.03954463751 | AJ58: 0.005392450569 | AK58: 0.0005991611744 | AL58: 0.1252246854 | AM58: 16498 | AN58: 0.7104497515 | AO58: 0.1245605528 | AP58: 0.1649896957 | AQ58: =AQ12+AQ13+AQ17+AQ18+AQ26+AQ35+AQ41+AQ42 -> 1463 | AR58: 1513 | AS58: 1518 | AT58: 1502 | AU58: 1486 | AV58: 48 | AW58: 48 | AX58: 43 | AY58: =AY12+AY13+AY17+AY18+AY26+AY35+AY41+AY42 -> 28 | AZ58: 36 | BA58: 74 | BB58: 0.04979811575 | BC58: 0.03985242282 | BD58: 0.06206544094 | BE58: 70 | BF58: =BF12+BF13+BF17+BF18+BF26+BF35+BF41+BF42 -> 2421 | BG58: =BG12+BG13+BG17+BG18+BG26+BG35+BG41+BG42 -> 2796 | BH58: =BH12+BH13+BH17+BH18+BH26+BH35+BH41+BH42 -> 1278 | BI58: 0.07521629098 | BJ58: =BJ12+BJ13+BJ17+BJ18+BJ26+BJ35+BJ41+BJ42 -> 16991 | BK58: 30486 | BL58: 17136 | BM58: 11373 | BN58: 9 | BO58: 2041 | BP58: 2699 | BQ58: 1014 | BR58: 530 | BS58: 540 | BT58: 445 | BU58: 2645 | BV58: 656 | BW58: 0.2480151229 | BX58: 222 | BY58: n/a | BZ58: 1360 | CA58: 0.02368966538 | CB58: =CB12+CB13+CB17+CB18+CB26+CB35+CB41+CB42 -> 740 | CC58: =CC12+CC13+CC17+CC18+CC26+CC35+CC41+CC42 -> 770 | CD58: 785 | CE58: =CE12+CE13+CE17+CE18+CE26+CE35+CE41+CE42 -> 691 | CF58: 2145 | CG58: 0.087 | CH58: 2025 | CI58: 0.082 | CJ58: 2235 | CK58: 0.089 | CL58: 2140 | CM58: 0.085 | CN58: 2130 | CO58: 0.084 | CP58: 1955 | CQ58: 0.077 | CR58: =CR12+CR13+CR17+CR18+CR26+CR35+CR41+CR42 -> 1479 | CS58: =CS12+CS13+CS17+CS18+CS26+CS35+CS41+CS42 -> 37 | CT58: =CT12+CT13+CT17+CT18+CT26+CT35+CT41+CT42 -> 1442 | CU58: 0.9749830967 | CV58: =CV12+CV13+CV17+CV18+CV26+CV35+CV41+CV42 -> 703 | CW58: =CW12+CW13+CW17+CW18+CW26+CW35+CW41+CW42 -> 902 | CX58: 0.487517337 | CY58: 0.625520111 | CZ58: 0.4617859419 | DA58: 0.5133150625 | DB58: 0.6002371395 | DC58: 0.6501360932 | DD58: =DD12+DD13+DD17+DD18+DD26+DD35+DD41+DD42 -> 1206 | DE58: =DE12+DE13+DE17+DE18+DE26+DE35+DE41+DE42 -> 69 | DF58: 0.05721393035 | DG58: 0.04545751517 | DH58: 0.07178219238 | DI58: Sig better than Eng. | DJ58: =DJ12+DJ13+DJ17+DJ18+DJ26+DJ35+DJ41+DJ42 -> 1330 | DK58: =DK12+DK13+DK17+DK18+DK26+DK35+DK41+DK42 -> 79 | DL58: 0.05939849624 | DM58: 0.04791923109 | DN58: 0.07341562303 | DO58: Sig better than Eng. | DP58: =DP12+DP13+DP17+DP18+DP26+DP35+DP41+DP42 -> 1348 | DQ58: =DQ12+DQ13+DQ17+DQ18+DQ26+DQ35+DQ41+DQ42 -> 69 | DR58: 0.05118694362 | DS58: 0.04064552487 | DT58: 0.06427910065 | DU58: Sig better than Eng. | DV58: =DV12+DV13+DV17+DV18+DV26+DV35+DV41+DV42 -> 1303 | DW58: =DW12+DW13+DW17+DW18+DW26+DW35+DW41+DW42 -> 90 | DX58: 0.06907137375 | DY58: 0.05653171765 | DZ58: 0.08414445816 | EA58: Sig better than Eng. | EB58: =EB12+EB13+EB17+EB18+EB26+EB35+EB41+EB42 -> 1204 | EC58: =EC12+EC13+EC17+EC18+EC26+EC35+EC41+EC42 -> 172 | ED58: 0.1428571429 | EE58: 0.1242260957 | EF58: 0.1637599279 | EG58: Sig better than Eng. | EH58: =EH12+EH13+EH17+EH18+EH26+EH35+EH41+EH42 -> 1143 | EI58: =EI12+EI13+EI17+EI18+EI26+EI35+EI41+EI42 -> 142 | EJ58: 0.1242344707 | EK58: 0.1063614466 | EL58: 0.1446248224 | EM58: Sig better than Eng. | EN58: =EN12+EN13+EN17+EN18+EN26+EN35+EN41+EN42 -> 1187 | EO58: =EO12+EO13+EO17+EO18+EO26+EO35+EO41+EO42 -> 158 | EP58: 0.1331086773 | EQ58: 0.1149626362 | ER58: 0.1536217807 | ES58: Sig better than Eng. | ET58: =ET12+ET13+ET17+ET18+ET26+ET35+ET41+ET42 -> 1154 | EU58: =EU12+EU13+EU17+EU18+EU26+EU35+EU41+EU42 -> 133 | EV58: 0.1152512998 | EW58: 0.09809040411 | EX58: 0.1349652157 | EY58: Sig better than Eng. | EZ58: 1637 | FA58: 947 | FB58: 0.5784972511 | FC58: 0.554420048 | FD58: 0.6022069062 | FE58: 1637 | FF58: 34 | FG58: 327 | FH58: 25.43119266 | FI58: 0.2520237453 | FJ58: 1614 | FK58: 1025 | FL58: 0.6350681537 | FM58: 0.6112869712 | FN58: 0.6582079151 | FO58: 1614 | FP58: 34 | FQ58: 320 | FR58: 26.740625 | FS58: 0.2135110294 | FT58: =FT12+FT13+FT17+FT18+FT26+FT35+FT41+FT42 -> 22188 | FU58: =FU12+FU13+FU17+FU18+FU26+FU35+FU41+FU42 -> 21777 | FV58: =FV12+FV13+FV17+FV18+FV26+FV35+FV41+FV42 -> 411 | FW58: =FW12+FW13+FW17+FW18+FW26+FW35+FW41+FW42 -> 362 | FX58: =FX12+FX13+FX17+FX18+FX26+FX35+FX41+FX42 -> 49 | FY58: 0.8807785888 | FZ58: 0.1192214112 | GQ58: =GQ12+GQ13+GQ17+GQ18+GQ26+GQ35+GQ41+GQ42 -> 397 | GR58: 380 | GS58: 381 | GT58: 383 | GU58: 381 | GV58: 441 | GW58: 409 | GX58: 410 | GY58: 403 | GZ58: 413 | HA58: 421 | HB58: 411 | HC58: 422 | HD58: 492 | HE58: 456 | HF58: 453 | HG58: 440 | HH58: 455 | HI58: 457 | HJ58: 430 | HK58: 463 | HL58: 453 | HM58: 460 | HN58: 140 | HO58: 0.01679462572 | HP58: 13214 | HQ58: 12411 | HR58: 803 | HS58: 0.06076888149
A59: CFC Group - Worthing | C59: n/a | D59: CFC Group - Worthing | E59: Worthing | G59: n/a | H59: n/a | I59: n/a | J59: Coastal West Sussex | K59: East Worthing and Shoreham/Worthing | L59: 106385 | M59: 106970 | N59: 107615 | O59: 108555 | P59: 109370 | Q59: 109795 | R59: 110865 | S59: 112025 | T59: 112725 | U59: 113170 | V59: 5555 | W59: 5620 | X59: 5730 | Y59: 5915 | Z59: 6175 | AA59: 6205 | AB59: 6365 | AC59: 6570 | AD59: 6540 | AE59: 6395 | AF59: 0.8479087452 | AG59: 0.03269961977 | AH59: 0.06235741445 | AI59: 0.04410646388 | AJ59: 0.007604562738 | AK59: 0.003802281369 | AL59: 0.1513307985 | AM59: 12349 | AN59: 0.6363268281 | AO59: 0.1243825411 | AP59: 0.2392906308 | AQ59: =AQ10+AQ15+AQ16+AQ25+AQ45+AQ47 -> 1223 | AR59: 1179 | AS59: 1292 | AT59: 1197 | AU59: 1141 | AV59: 67 | AW59: 65 | AX59: 52 | AY59: =AY10+AY15+AY16+AY25+AY45+AY47 -> 53 | AZ59: 46 | BA59: 70 | BB59: 0.06134969325 | BC59: 0.04884325575 | BD59: 0.07679986952 | BE59: 99 | BF59: =BF10+BF15+BF16+BF25+BF45+BF47 -> 2106 | BG59: =BG10+BG15+BG16+BG25+BG45+BG47 -> 2016 | BH59: =BH10+BH15+BH16+BH25+BH45+BH47 -> 959 | BI59: 0.07595437985 | BJ59: =BJ10+BJ15+BJ16+BJ25+BJ45+BJ47 -> 12626 | BK59: 22122 | BL59: 12498 | BM59: 7090 | BN59: 8 | BO59: 1731 | BP59: 2743 | BQ59: 926 | BR59: 850 | BS59: 780 | BT59: 585 | BU59: 2898 | BV59: 1015 | BW59: 0.3502415459 | BX59: 295 | BY59: n/a | BZ59: 2423 | CA59: 0.04806204626 | CB59: =CB10+CB15+CB16+CB25+CB45+CB47 -> 1110 | CC59: =CC10+CC15+CC16+CC25+CC45+CC47 -> 1095 | CD59: 1100 | CE59: =CE10+CE15+CE16+CE25+CE45+CE47 -> 985 | CF59: 2775 | CG59: 0.157 | CH59: 2635 | CI59: 0.148 | CJ59: 2915 | CK59: 0.161 | CL59: 2865 | CM59: 0.157 | CN59: 2740 | CO59: 0.152 | CP59: 2460 | CQ59: 0.133 | CR59: =CR10+CR15+CR16+CR25+CR45+CR47 -> 1193 | CS59: =CS10+CS15+CS16+CS25+CS45+CS47 -> 54 | CT59: =CT10+CT15+CT16+CT25+CT45+CT47 -> 1139 | CU59: 0.9547359598 | CV59: =CV10+CV15+CV16+CV25+CV45+CV47 -> 471 | CW59: =CW10+CW15+CW16+CW25+CW45+CW47 -> 617 | CX59: 0.4135206321 | CY59: 0.5417032485 | CZ59: 0.3852582633 | DA59: 0.4423643711 | DB59: 0.5126752803 | DC59: 0.5704508605 | DD59: =DD10+DD15+DD16+DD25+DD45+DD47 -> 829 | DE59: =DE10+DE15+DE16+DE25+DE45+DE47 -> 68 | DF59: 0.082026538 | DG59: 0.0652186983 | DH59: 0.1026901604 | DI59: No Sig diff | DJ59: =DJ10+DJ15+DJ16+DJ25+DJ45+DJ47 -> 1066 | DK59: =DK10+DK15+DK16+DK25+DK45+DK47 -> 86 | DL59: 0.08067542214 | DM59: 0.06579277448 | DN59: 0.09856939093 | DO59: No Sig diff | DP59: =DP10+DP15+DP16+DP25+DP45+DP47 -> 1024 | DQ59: =DQ10+DQ15+DQ16+DQ25+DQ45+DQ47 -> 76 | DR59: 0.07421875 | DS59: 0.05970632344 | DT59: 0.09191380969 | DU59: Sig better than Eng. | DV59: =DV10+DV15+DV16+DV25+DV45+DV47 -> 1216 | DW59: =DW10+DW15+DW16+DW25+DW45+DW47 -> 109 | DX59: 0.08963815789 | DY59: 0.07484783955 | DZ59: 0.1070130549 | EA59: No Sig diff | EB59: =EB10+EB15+EB16+EB25+EB45+EB47 -> 936 | EC59: =EC10+EC15+EC16+EC25+EC45+EC47 -> 136 | ED59: 0.1452991453 | EE59: 0.1241724262 | EF59: 0.1693254358 | EG59: Sig better than Eng. | EH59: =EH10+EH15+EH16+EH25+EH45+EH47 -> 957 | EI59: =EI10+EI15+EI16+EI25+EI45+EI47 -> 155 | EJ59: 0.1619644723 | EK59: 0.1399817409 | EL59: 0.1866501461 | EM59: Sig better than Eng. | EN59: =EN10+EN15+EN16+EN25+EN45+EN47 -> 920 | EO59: =EO10+EO15+EO16+EO25+EO45+EO47 -> 136 | EP59: 0.147826087 | EQ59: 0.1263566656 | ER59: 0.1722242827 | ES59: Sig better than Eng. | ET59: =ET10+ET15+ET16+ET25+ET45+ET47 -> 913 | EU59: =EU10+EU15+EU16+EU25+EU45+EU47 -> 142 | EV59: 0.1555312158 | EW59: 0.1334715719 | EX59: 0.1804774278 | EY59: Sig better than Eng. | EZ59: 1347 | FA59: 734 | FB59: 0.5449146251 | FC59: 0.5182309641 | FD59: 0.5713428339 | FE59: 1347 | FF59: 34 | FG59: 269 | FH59: 25 | FI59: 0.2647058824 | FJ59: 1275 | FK59: 778 | FL59: 0.6101960784 | FM59: 0.5831331025 | FN59: 0.6365970275 | FO59: 1275 | FP59: 34 | FQ59: 252 | FR59: 25.51984127 | FS59: 0.2494164332 | FT59: =FT10+FT15+FT16+FT25+FT45+FT47 -> 15545 | FU59: =FU10+FU15+FU16+FU25+FU45+FU47 -> 15138 | FV59: =FV10+FV15+FV16+FV25+FV45+FV47 -> 407 | FW59: =FW10+FW15+FW16+FW25+FW45+FW47 -> 335 | FX59: =FX10+FX15+FX16+FX25+FX45+FX47 -> 72 | FY59: 0.8230958231 | FZ59: 0.1769041769 | GQ59: =GQ10+GQ15+GQ16+GQ25+GQ45+GQ47 -> 281 | GR59: 273 | GS59: 271 | GT59: 279 | GU59: 275 | GV59: 336 | GW59: 320 | GX59: 323 | GY59: 318 | GZ59: 324 | HA59: 328 | HB59: 317 | HC59: 327 | HD59: 360 | HE59: 337 | HF59: 325 | HG59: 317 | HH59: 330 | HI59: 337 | HJ59: 326 | HK59: 342 | HL59: 331 | HM59: 340 | HN59: 120 | HO59: 0.01827875095 | HP59: 10048 | HQ59: 8846 | HR59: 1202 | HS59: 0.1196257962
A60: LA - Adur | C60: n/a | D60: n/a | E60: Adur | G60: n/a | H60: n/a | I60: n/a | J60: Coastal West Sussex | K60: n/a | L60: 60000 | M60: 59800 | N60: 60300 | O60: 60600 | P60: 60700 | Q60: 61000 | R60: 61200 | S60: 61300 | T60: 61900 | U60: 62500 | V60: 3100 | W60: 3000 | X60: 3100 | Y60: 3200 | Z60: 3200 | AA60: 3400 | AB60: 3400 | AC60: 3600 | AD60: 3700 | AE60: 3800 | AF60: 0.8967468175 | AG60: 0.02828854314 | AH60: 0.04243281471 | AI60: 0.02263083451 | AJ60: 0.004243281471 | AK60: 0.008486562942 | AL60: 0.1046676096 | AM60: 6645 | AN60: 0.6155003762 | AO60: 0.1775771257 | AP60: 0.2069224981 | AQ60: 682 | AR60: 718 | AS60: 679 | AT60: 775 | AU60: 758 | AV60: 43 | AW60: 42 | AX60: 29 | AY60: 37 | AZ60: 26 | BA60: n/a | BB60: n/a | BC60: n/a | BD60: n/a | BE60: n/a | BU60: 1614 | BV60: 637 | BW60: 0.3946716233 | BX60: 158 | BY60: n/a | BZ60: 1300 | CA60: 0.04822495085 | CB60: =SUMIF($E$3:$E$47,$E60,CB$3:CB$47) -> 760 | CC60: 715 | CD60: 735 | CE60: 680 | CF60: 1900 | CG60: 0.182 | CH60: 1820 | CI60: 0.175 | CJ60: 1960 | CK60: 0.187 | CL60: 1795 | CM60: 0.172 | CN60: 1785 | CO60: 0.17 | CP60: 1720 | CQ60: 0.161 | CR60: =SUMIF($E$3:$E$47,$E60,CR$3:CR$47) -> 698 | CS60: 46 | CT60: 652 | CU60: 0.9340974212 | CV60: =SUMIF($E$3:$E$47,$E60,CV$3:CV$47) -> 255 | CW60: 329 | CX60: =CV60/CR60 -> 0.3653295129 | CY60: =CW60/CR60 -> 0.4713467049 | CZ60: 0.3543881049 | DA60: 0.4290961998 | DB60: 0.4663086941 | DC60: 0.5428398564 | DD60: 499 | DE60: 26.946 | DF60: 0.054 | DG60: 0.034 | DH60: 0.074 | DI60: Sig better than Eng. | DJ60: 612 | DK60: 612.078 | DL60: 0.078 | DM60: 0.057 | DN60: 0.099 | DO60: No Sig diff | DP60: 536 | DQ60: 55.744 | DR60: 0.104 | DS60: 0.078 | DT60: 0.13 | DU60: No Sig diff | DV60: 639 | DW60: 56.871 | DX60: 0.089 | DY60: 0.067 | DZ60: 0.111 | EA60: No Sig diff | EB60: 517 | EC60: 87.89 | ED60: 0.17 | EE60: 0.138 | EF60: 0.202 | EG60: No Sig diff | EH60: 523 | EI60: 87.864 | EJ60: 0.168 | EK60: 0.136 | EL60: 0.2 | EM60: No Sig diff | EN60: 486 | EO60: 83.106 | EP60: 0.171 | EQ60: 0.138 | ER60: 0.204 | ES60: No Sig diff | ET60: 518 | EU60: 89.096 | EV60: 0.172 | EW60: 0.1687 | EX60: 0.205 | EY60: No Sig diff | EZ60: 688 | FA60: 340 | FB60: 0.4941860465 | FC60: 0.4569632396 | FD60: 0.5314734175 | FE60: 688 | FF60: 34 | FG60: 137 | FH60: 22.17518248 | FI60: 0.3477887505 | FJ60: 654 | FK60: 370 | FL60: 0.5657492355 | FM60: 0.5274868551 | FN60: 0.6032437318 | FO60: 654 | FP60: 34 | FQ60: 130 | FR60: 23.22307692 | FS60: 0.3169683258 | FT60: =SUMIF($E$3:$E$47,$E60,FT$3:FT$47) -> 8055 | FU60: 7928 | FV60: 127 | FW60: 112 | FX60: 15 | FY60: 0.8818897638 | FZ60: 0.1181102362 | GQ60: n/a | GR60: n/a | GS60: n/a | GT60: n/a | GU60: n/a | GV60: n/a | GW60: n/a | GX60: n/a | GY60: n/a | GZ60: n/a | HA60: n/a | HB60: n/a | HC60: n/a | HD60: n/a | HE60: n/a | HF60: n/a | HG60: n/a | HH60: n/a | HI60: n/a | HJ60: n/a | HK60: n/a | HL60: n/a | HM60: n/a | HN60: 82 | HO60: 0.02319660537 | HP60: 5509 | HQ60: 4805 | HR60: 704 | HS60: 0.1277908876
A61: LA - Arun | C61: n/a | D61: n/a | E61: Arun | G61: n/a | H61: n/a | I61: n/a | J61: Coastal West Sussex | K61: n/a | L61: 145100 | M61: 146000 | N61: 146800 | O61: 147700 | P61: 148500 | Q61: 148900 | R61: 149500 | S61: 149800 | T61: 151400 | U61: 152800 | V61: 6700 | W61: 6800 | X61: 6800 | Y61: 6900 | Z61: 7000 | AA61: 7300 | AB61: 7300 | AC61: 7500 | AD61: 7800 | AE61: 8000 | AF61: 0.875423155 | AG61: 0.06838185511 | AH61: 0.03249830738 | AI61: 0.02031144211 | AJ61: 0.002708192282 | AK61: 0.002031144211 | AL61: 0.124576845 | AM61: 14349 | AN61: 0.6024113179 | AO61: 0.1254442818 | AP61: 0.2721444003 | AQ61: 1435 | AR61: 1496 | AS61: 1567 | AT61: 1619 | AU61: 1493 | AV61: 109 | AW61: 76 | AX61: 101 | AY61: 76 | AZ61: 77 | BA61: n/a | BB61: n/a | BC61: n/a | BD61: n/a | BE61: n/a | BU61: 3519 | BV61: 1200 | BW61: 0.3410059676 | BX61: 332 | BY61: n/a | BZ61: 2878 | CA61: 0.04314454472 | CB61: 1315 | CC61: 1375 | CD61: 1465 | CE61: 1430 | CF61: 4085 | CG61: 0.173 | CH61: 3835 | CI61: 0.163 | CJ61: 4050 | CK61: 0.171 | CL61: 3845 | CM61: 0.162 | CN61: 3880 | CO61: 0.163 | CP61: 3620 | CQ61: 0.15 | CR61: 1513 | CS61: 57 | CT61: 1456 | CU61: 0.9623265036 | CV61: 562 | CW61: 696 | CX61: 0.3714474554 | CY61: 0.4600132188 | CZ61: 0.3613137692 | DA61: 0.4112642968 | DB61: 0.4524553755 | DC61: 0.5037042517 | DD61: 1142 | DE61: 102.78 | DF61: 0.09 | DG61: 0.073 | DH61: 0.107 | DI61: No Sig diff | DJ61: 1241 | DK61: 1241.085 | DL61: 0.085 | DM61: 0.069 | DN61: 0.101 | DO61: No Sig diff | DP61: 1158 | DQ61: 119.274 | DR61: 0.103 | DS61: 0.086 | DT61: 0.12 | DU61: No Sig diff | DV61: 1432 | DW61: 140.336 | DX61: 0.098 | DY61: 0.083 | DZ61: 0.113 | EA61: No Sig diff | EB61: 1236 | EC61: 196.524 | ED61: 0.159 | EE61: 0.139 | EF61: 0.179 | EG61: Sig better than Eng. | EH61: 1196 | EI61: 218.868 | EJ61: 0.183 | EK61: 0.161 | EL61: 0.205 | EM61: No Sig diff | EN61: 1187 | EO61: 214.847 | EP61: 0.181 | EQ61: 0.159 | ER61: 0.203 | ES61: No Sig diff | ET61: 1199 | EU61: 183.447 | EV61: 0.153 | EW61: 0.133 | EX61: 0.173 | EY61: Sig better than Eng. | EZ61: 1542 | FA61: 715 | FB61: 0.4636835279 | FC61: 0.438914419 | FD61: 0.4886331317 | FE61: 1542 | FF61: 33 | FG61: 308 | FH61: 22.46103896 | FI61: 0.3193624557 | FJ61: 1589 | FK61: 889 | FL61: 0.5594713656 | FM61: 0.5349472854 | FN61: 0.5837085915 | FO61: 1589 | FP61: 34 | FQ61: 317 | FR61: 23.64984227 | FS61: 0.3044164038 | FT61: 18212 | FU61: 17593 | FV61: 619 | FW61: 489 | FX61: 130 | FY61: 0.7899838449 | FZ61: 0.2100161551 | GQ61: n/a | GR61: n/a | GS61: n/a | GT61: n/a | GU61: n/a | GV61: n/a | GW61: n/a | GX61: n/a | GY61: n/a | GZ61: n/a | HA61: n/a | HB61: n/a | HC61: n/a | HD61: n/a | HE61: n/a | HF61: n/a | HG61: n/a | HH61: n/a | HI61: n/a | HJ61: n/a | HK61: n/a | HL61: n/a | HM61: n/a | HN61: 150 | HO61: 0.02031969656 | HP61: 11783 | HQ61: 10387 | HR61: 1396 | HS61: 0.1184757702
A62: LA - Chichester | C62: n/a | D62: n/a | E62: Chichester | G62: n/a | H62: n/a | I62: n/a | J62: Coastal West Sussex | K62: n/a | L62: 108200 | M62: 108800 | N62: 109700 | O62: 110600 | P62: 111800 | Q62: 112500 | R62: 113400 | S62: 114000 | T62: 114500 | U62: 115300 | V62: 5000 | W62: 5000 | X62: 5200 | Y62: 5300 | Z62: 5500 | AA62: 5500 | AB62: 5700 | AC62: 5600 | AD62: 5900 | AE62: 5800 | AF62: 0.907079646 | AG62: 0.03185840708 | AH62: 0.02743362832 | AI62: 0.02123893805 | AJ62: 0.008849557522 | AK62: 0.003539823009 | AL62: 0.09115044248 | AM62: 11231 | AN62: 0.5725224824 | AO62: 0.2047012733 | AP62: 0.2227762443 | AQ62: 1131 | AR62: 1067 | AS62: 1134 | AT62: 1136 | AU62: 1046 | AV62: 59 | AW62: 55 | AX62: 48 | AY62: 51 | AZ62: 50 | BA62: n/a | BB62: n/a | BC62: n/a | BD62: n/a | BE62: n/a | BU62: 2288 | BV62: 731 | BW62: 0.319493007 | BX62: 191 | BY62: n/a | BZ62: 1500 | CA62: 0.03009147809 | CB62: 795 | CC62: 785 | CD62: 865 | CE62: 770 | CF62: 2305 | CG62: 0.126 | CH62: 2330 | CI62: 0.127 | CJ62: 2425 | CK62: 0.131 | CL62: 2340 | CM62: 0.126 | CN62: 2230 | CO62: 0.12 | CP62: 2100 | CQ62: 0.113 | CR62: 919 | CS62: 67 | CT62: 852 | CU62: 0.9270946681 | CV62: 376 | CW62: 480 | CX62: 0.40914037 | CY62: 0.5223068553 | CZ62: 0.4083096601 | DA62: 0.4748462884 | DB62: 0.5298659833 | DC62: 0.5963255923 | DD62: 991 | DE62: 99.1 | DF62: 0.1 | DG62: 0.081 | DH62: 0.119 | DI62: No Sig diff | DJ62: 956 | DK62: 956.079 | DL62: 0.079 | DM62: 0.062 | DN62: 0.096 | DO62: No Sig diff | DP62: 951 | DQ62: 65.619 | DR62: 0.069 | DS62: 0.053 | DT62: 0.085 | DU62: Sig better than Eng. | DV62: 988 | DW62: 83.98 | DX62: 0.085 | DY62: 0.068 | DZ62: 0.102 | EA62: No Sig diff | EB62: 885 | EC62: 130.98 | ED62: 0.148 | EE62: 0.125 | EF62: 0.171 | EG62: Sig better than Eng. | EH62: 801 | EI62: 129.762 | EJ62: 0.162 | EK62: 0.136 | EL62: 0.188 | EM62: Sig better than Eng. | EN62: 821 | EO62: 127.255 | EP62: 0.155 | EQ62: 0.13 | ER62: 0.18 | ES62: Sig better than Eng. | ET62: 831 | EU62: 108.861 | EV62: 0.131 | EW62: 0.108 | EX62: 0.154 | EY62: Sig better than Eng. | EZ62: 1138 | FA62: 610 | FB62: 0.5360281195 | FC62: 0.5069808957 | FD62: 0.564832927 | FE62: 1138 | FF62: 34 | FG62: 227 | FH62: 22.969163 | FI62: 0.3244363825 | FJ62: 1158 | FK62: 658 | FL62: 0.5682210708 | FM62: 0.5395130368 | FN62: 0.5964779789 | FO62: 1158 | FP62: 34 | FQ62: 231 | FR62: 23.1991342 | FS62: 0.3176725236 | FT62: 17647 | FU62: 16217 | FV62: 1430 | FW62: 1212 | FX62: 218 | FY62: 0.8475524476 | FZ62: 0.1524475524 | GQ62: n/a | GR62: n/a | GS62: n/a | GT62: n/a | GU62: n/a | GV62: n/a | GW62: n/a | GX62: n/a | GY62: n/a | GZ62: n/a | HA62: n/a | HB62: n/a | HC62: n/a | HD62: n/a | HE62: n/a | HF62: n/a | HG62: n/a | HH62: n/a | HI62: n/a | HJ62: n/a | HK62: n/a | HL62: n/a | HM62: n/a | HN62: 89 | HO62: 0.01576616475 | HP62: 8704 | HQ62: 7913 | HR62: 791 | HS62: 0.09087775735
A63: LA - Crawley | C63: n/a | D63: n/a | E63: Crawley | G63: n/a | H63: n/a | I63: n/a | J63: Crawley | K63: n/a | L63: 98900 | M63: 99700 | N63: 100700 | O63: 101600 | P63: 102800 | Q63: 103800 | R63: 105500 | S63: 107100 | T63: 108300 | U63: 109000 | V63: 6300 | W63: 6300 | X63: 6400 | Y63: 6600 | Z63: 6900 | AA63: 7200 | AB63: 7700 | AC63: 8200 | AD63: 8300 | AE63: 8400 | AF63: 0.6220570012 | AG63: 0.06567534077 | AH63: 0.07682775713 | AI63: 0.1734820322 | AJ63: 0.04894671623 | AK63: 0.01301115242 | AL63: 0.3760842627 | AM63: 14546 | AN63: 0.4909940877 | AO63: 0.3152756772 | AP63: 0.1937302351 | AQ63: 1576 | AR63: 1716 | AS63: 1718 | AT63: 1648 | AU63: 1646 | AV63: 73 | AW63: 80 | AX63: 79 | AY63: 71 | AZ63: 66 | BA63: n/a | BB63: n/a | BC63: n/a | BD63: n/a | BE63: n/a | BU63: 3293 | BV63: 1363 | BW63: 0.4139082903 | BX63: 248 | BY63: n/a | BZ63: 2084 | CA63: 0.04877477941 | CB63: 1650 | CC63: 1650 | CD63: 1580 | CE63: 1475 | CF63: 3775 | CG63: 0.19 | CH63: 3775 | CI63: 0.187 | CJ63: 4090 | CK63: 0.195 | CL63: 4165 | CM63: 0.195 | CN63: 4165 | CO63: 0.19 | CP63: 3895 | CQ63: 0.174 | CR63: 1542 | CS63: 48 | CT63: 1494 | CU63: 0.9688715953 | CV63: 540 | CW63: 809 | CX63: 0.3501945525 | CY63: 0.5246433204 | CZ63: 0.3374684627 | DA63: 0.3861338194 | DB63: 0.5161583232 | DC63: 0.5666274667 | DD63: 1032 | DE63: 86.688 | DF63: 0.084 | DG63: 0.067 | DH63: 0.101 | DI63: No Sig diff | DJ63: 1178 | DK63: 1178.098 | DL63: 0.098 | DM63: 0.081 | DN63: 0.115 | DO63: No Sig diff | DP63: 998 | DQ63: 80.838 | DR63: 0.081 | DS63: 0.064 | DT63: 0.098 | DU63: No Sig diff | DV63: 1197 | DW63: 111.321 | DX63: 0.093 | DY63: 0.077 | DZ63: 0.109 | EA63: No Sig diff | EB63: 1000 | EC63: 190 | ED63: 0.19 | EE63: 0.166 | EF63: 0.214 | EG63: No Sig diff | EH63: 1121 | EI63: 193.933 | EJ63: 0.173 | EK63: 0.151 | EL63: 0.195 | EM63: No Sig diff | EN63: 1131 | EO63: 212.628 | EP63: 0.188 | EQ63: 0.165 | ER63: 0.211 | ES63: No Sig diff | ET63: 1083 | EU63: 211.185 | EV63: 0.195 | EW63: 0.171 | EX63: 0.219 | EY63: No Sig diff | EZ63: 1440 | FA63: 693 | FB63: 0.48125 | FC63: 0.4555275623 | FD63: 0.5070722096 | FE63: 1440 | FF63: 34 | FG63: 288 | FH63: 22.37847222 | FI63: 0.3418096405 | FJ63: 1518 | FK63: 841 | FL63: 0.5540184453 | FM63: 0.5289079581 | FN63: 0.578856224 | FO63: 1518 | FP63: 34 | FQ63: 303 | FR63: 22.61056106 | FS63: 0.3349834983 | FT63: 13718 | FU63: 13516 | FV63: 202 | FW63: 173 | FX63: 29 | FY63: 0.8564356436 | FZ63: 0.1435643564 | GQ63: n/a | GR63: n/a | GS63: n/a | GT63: n/a | GU63: n/a | GV63: n/a | GW63: n/a | GX63: n/a | GY63: n/a | GZ63: n/a | HA63: n/a | HB63: n/a | HC63: n/a | HD63: n/a | HE63: n/a | HF63: n/a | HG63: n/a | HH63: n/a | HI63: n/a | HJ63: n/a | HK63: n/a | HL63: n/a | HM63: n/a | HN63: 158 | HO63: 0.01960297767 | HP63: 12900 | HQ63: 11233 | HR63: 1667 | HS63: 0.1292248062
A64: LA - Horsham | C64: n/a | D64: n/a | E64: Horsham | G64: n/a | H64: n/a | I64: n/a | J64: Coastal/Horsham and Mid Sussex | K64: n/a | L64: 124900 | M64: 125900 | N64: 127200 | O64: 128300 | P64: 129100 | Q64: 129800 | R64: 130900 | S64: 131500 | T64: 132200 | U64: 132900 | V64: 7000 | W64: 6800 | X64: 6700 | Y64: 7000 | Z64: 7000 | AA64: 7000 | AB64: 7100 | AC64: 7100 | AD64: 7200 | AE64: 7100 | AF64: 0.8958041958 | AG64: 0.03216783217 | AH64: 0.04125874126 | AI64: 0.02517482517 | AJ64: 0.004195804196 | AK64: 0.002097902098 | AL64: 0.1027972028 | AM64: 14358 | AN64: 0.7034405906 | AO64: 0.1424293077 | AP64: 0.1541301017 | AQ64: 1368 | AR64: 1313 | AS64: 1308 | AT64: 1290 | AU64: 1261 | AV64: 49 | AW64: 35 | AX64: 21 | AY64: 34 | AZ64: 31 | BA64: n/a | BB64: n/a | BC64: n/a | BD64: n/a | BE64: n/a | BU64: 2460 | BV64: 693 | BW64: 0.2817073171 | BX64: 257 | BY64: n/a | BZ64: 1504 | CA64: 0.02738379185 | CB64: 835 | CC64: 815 | CD64: 760 | CE64: 765 | CF64: 2155 | CG64: 0.092 | CH64: 2065 | CI64: 0.089 | CJ64: 2275 | CK64: 0.098 | CL64: 2195 | CM64: 0.095 | CN64: 2095 | CO64: 0.091 | CP64: 1885 | CQ64: 0.082 | CR64: 1311 | CS64: 36 | CT64: 1275 | CU64: 0.9725400458 | CV64: 591 | CW64: 772 | CX64: 0.4508009153 | CY64: 0.588863463 | CZ64: 0.4363075109 | DA64: 0.4909704256 | DB64: 0.5783840579 | DC64: 0.6319625558 | DD64: 1215 | DE64: 82.62 | DF64: 0.068 | DG64: 0.054 | DH64: 0.082 | DI64: Sig better than Eng. | DJ64: 1230 | DK64: 1230.078 | DL64: 0.078 | DM64: 0.063 | DN64: 0.093 | DO64: No Sig diff | DP64: 838 | DQ64: 70.392 | DR64: 0.084 | DS64: 0.065 | DT64: 0.103 | DU64: No Sig diff | DV64: 1171 | DW64: 88.996 | DX64: 0.076 | DY64: 0.061 | DZ64: 0.091 | EA64: Sig better than Eng. | EB64: 1236 | EC64: 187.872 | ED64: 0.152 | EE64: 0.132 | EF64: 0.172 | EG64: Sig better than Eng. | EH64: 1267 | EI64: 184.982 | EJ64: 0.146 | EK64: 0.127 | EL64: 0.165 | EM64: Sig better than Eng. | EN64: 1196 | EO64: 149.5 | EP64: 0.125 | EQ64: 0.106 | ER64: 0.144 | ES64: Sig better than Eng. | ET64: 1110 | EU64: 135.42 | EV64: 0.122 | EW64: 0.103 | EX64: 0.141 | EY64: Sig better than Eng. | EZ64: 1370 | FA64: 798 | FB64: 0.5824817518 | FC64: 0.5561730382 | FD64: 0.6083292037 | FE64: 1370 | FF64: 34 | FG64: 274 | FH64: 25.51459854 | FI64: 0.2495706312 | FJ64: 1498 | FK64: 936 | FL64: 0.6248331108 | FM64: 0.6000250238 | FN64: 0.6490025935 | FO64: 1498 | FP64: 34 | FQ64: 299 | FR64: 25.78929766 | FS64: 0.2414912453 | FT64: 21707 | FU64: 21226 | FV64: 481 | FW64: 408 | FX64: 73 | FY64: 0.8482328482 | FZ64: 0.1517671518 | GQ64: n/a | GR64: n/a | GS64: n/a | GT64: n/a | GU64: n/a | GV64: n/a | GW64: n/a | GX64: n/a | GY64: n/a | GZ64: n/a | HA64: n/a | HB64: n/a | HC64: n/a | HD64: n/a | HE64: n/a | HF64: n/a | HG64: n/a | HH64: n/a | HI64: n/a | HJ64: n/a | HK64: n/a | HL64: n/a | HM64: n/a | HN64: 120 | HO64: 0.0168090769 | HP64: 11145 | HQ64: 10372 | HR64: 773 | HS64: 0.06935845671
A65: LA - Mid Sussex | C65: n/a | D65: n/a | E65: Mid Sussex | G65: n/a | H65: n/a | I65: n/a | J65: Horsham and Mid Sussex | K65: n/a | L65: 129500 | M65: 130500 | N65: 132100 | O65: 134000 | P65: 135700 | Q65: 137200 | R65: 138900 | S65: 140200 | T65: 141200 | U65: 142800 | V65: 7400 | W65: 7500 | X65: 7700 | Y65: 8000 | Z65: 8100 | AA65: 8100 | AB65: 8200 | AC65: 8300 | AD65: 8500 | AE65: 8500 | AF65: 0.8747753146 | AG65: 0.03894547633 | AH65: 0.04014379868 | AI65: 0.03954463751 | AJ65: 0.005392450569 | AK65: 0.0005991611744 | AL65: 0.1210305572 | AM65: 16498 | AN65: 0.7104497515 | AO65: 0.1245605528 | AP65: 0.1649896957 | AQ65: 1479 | AR65: 1527 | AS65: 1524 | AT65: 1545 | AU65: 1512 | AV65: 46 | AW65: 43 | AX65: 42 | AY65: 28 | AZ65: 39 | BA65: n/a | BB65: n/a | BC65: n/a | BD65: n/a | BE65: n/a | BU65: 2645 | BV65: 656 | BW65: 0.2480151229 | BX65: 222 | BY65: n/a | BZ65: 1360 | CA65: 0.02368966538 | CB65: 740 | CC65: 770 | CD65: 785 | CE65: 691 | CF65: 2145 | CG65: 0.087 | CH65: 2025 | CI65: 0.082 | CJ65: 2235 | CK65: 0.089 | CL65: 2140 | CM65: 0.085 | CN65: 2130 | CO65: 0.084 | CP65: 1955 | CQ65: 0.077 | CR65: 1479 | CS65: 37 | CT65: 1442 | CU65: 0.9749830967 | CV65: 703 | CW65: 902 | CX65: 0.4753211629 | CY65: 0.6098715348 | CZ65: 0.461785471 | DA65: 0.5133155359 | DB65: 0.6002366699 | DC65: 0.6501365383 | DD65: 1248 | DE65: 74.88 | DF65: 0.06 | DG65: 0.047 | DH65: 0.073 | DI65: Sig better than Eng. | DJ65: 1357 | DK65: 1357.069 | DL65: 0.069 | DM65: 0.056 | DN65: 0.082 | DO65: Sig better than Eng. | DP65: 1386 | DQ65: 73.458 | DR65: 0.053 | DS65: 0.041 | DT65: 0.065 | DU65: Sig better than Eng. | DV65: 1334 | DW65: 92.046 | DX65: 0.069 | DY65: 0.055 | DZ65: 0.083 | EA65: Sig better than Eng. | EB65: 1270 | EC65: 180.34 | ED65: 0.142 | EE65: 0.123 | EF65: 0.161 | EG65: Sig better than Eng. | EH65: 1176 | EI65: 145.824 | EJ65: 0.124 | EK65: 0.105 | EL65: 0.143 | EM65: Sig better than Eng. | EN65: 1223 | EO65: 160.213 | EP65: 0.131 | EQ65: 0.112 | ER65: 0.15 | ES65: Sig better than Eng. | ET65: 1192 | EU65: 135.888 | EV65: 0.114 | EW65: 0.096 | EX65: 0.132 | EY65: Sig better than Eng. | EZ65: 1637 | FA65: 947 | FB65: 0.5784972511 | FC65: 0.554420048 | FD65: 0.6022069062 | FE65: 1637 | FF65: 34 | FG65: 327 | FH65: 25.43119266 | FI65: 0.2520237453 | FJ65: 1614 | FK65: 1025 | FL65: 0.6350681537 | FM65: 0.6112869712 | FN65: 0.6582079151 | FO65: 1614 | FP65: 34 | FQ65: 322 | FR65: 26.60248447 | FS65: 0.2175739861 | FT65: 22188 | FU65: 21777 | FV65: 411 | FW65: 362 | FX65: 49 | FY65: 0.8807785888 | FZ65: 0.1192214112 | GQ65: n/a | GR65: n/a | GS65: n/a | GT65: n/a | GU65: n/a | GV65: n/a | GW65: n/a | GX65: n/a | GY65: n/a | GZ65: n/a | HA65: n/a | HB65: n/a | HC65: n/a | HD65: n/a | HE65: n/a | HF65: n/a | HG65: n/a | HH65: n/a | HI65: n/a | HJ65: n/a | HK65: n/a | HL65: n/a | HM65: n/a | HN65: 140 | HO65: 0.01679462572 | HP65: 13214 | HQ65: 12411 | HR65: 803 | HS65: 0.06076888149
A66: LA - Worthing | C66: n/a | D66: n/a | E66: Worthing | G66: n/a | H66: n/a | I66: n/a | J66: Coastal West Sussex | K66: n/a | L66: 99500 | M66: 100100 | N66: 100600 | O66: 101500 | P66: 102400 | Q66: 102800 | R66: 103800 | S66: 105000 | T66: 105700 | U66: 106100 | V66: 5400 | W66: 5400 | X66: 5500 | Y66: 5700 | Z66: 6000 | AA66: 6000 | AB66: 6100 | AC66: 6400 | AD66: 6300 | AE66: 6200 | AF66: 0.8455476753 | AG66: 0.03230890465 | AH66: 0.06382978723 | AI66: 0.04570527975 | AJ66: 0.007880220646 | AK66: 0.003940110323 | AL66: 0.1528762805 | AM66: 11895 | AN66: 0.6328709542 | AO66: 0.1276166456 | AP66: 0.2395124002 | AQ66: 1256 | AR66: 1187 | AS66: 1268 | AT66: 1194 | AU66: 1119 | AV66: 77 | AW66: 68 | AX66: 47 | AY66: 48 | AZ66: 42 | BA66: n/a | BB66: n/a | BC66: n/a | BD66: n/a | BE66: n/a | BU66: 2818 | BV66: 999 | BW66: 0.3545067424 | BX66: 287 | BY66: n/a | BZ66: 2346 | CA66: 0.04986820849 | CB66: 1110 | CC66: 1095 | CD66: 1080 | CE66: 970 | CF66: 2775 | CG66: 0.157 | CH66: 2635 | CI66: 0.148 | CJ66: 2915 | CK66: 0.161 | CL66: 2865 | CM66: 0.157 | CN66: 2740 | CO66: 0.152 | CP66: 2460 | CQ66: 0.133 | CR66: 1193 | CS66: 54 | CT66: 1139 | CU66: 0.9547359598 | CV66: 471 | CW66: 617 | CX66: 0.3948030176 | CY66: 0.5171835708 | CZ66: 0.385257751 | DA66: 0.4423649047 | DB66: 0.5126747461 | DC66: 0.5704513844 | DD66: 808 | DE66: 66.256 | DF66: 0.082 | DG66: 0.063 | DH66: 0.101 | DI66: No Sig diff | DJ66: 1027 | DK66: 1027.084 | DL66: 0.084 | DM66: 0.067 | DN66: 0.101 | DO66: No Sig diff | DP66: 991 | DQ66: 74.325 | DR66: 0.075 | DS66: 0.059 | DT66: 0.091 | DU66: Sig better than Eng. | DV66: 1178 | DW66: 104.842 | DX66: 0.089 | DY66: 0.073 | DZ66: 0.105 | EA66: No Sig diff | EB66: 890 | EC66: 132.61 | ED66: 0.149 | EE66: 0.126 | EF66: 0.172 | EG66: Sig better than Eng. | EH66: 920 | EI66: 150.88 | EJ66: 0.164 | EK66: 0.14 | EL66: 0.188 | EM66: Sig better than Eng. | EN66: 884 | EO66: 130.832 | EP66: 0.148 | EQ66: 0.125 | ER66: 0.171 | ES66: Sig better than Eng. | ET66: 871 | EU66: 133.263 | EV66: 0.153 | EW66: 0.129 | EX66: 0.177 | EY66: Sig better than Eng. | EZ66: 1297 | FA66: 705 | FB66: 0.5435620663 | FC66: 0.5163654201 | FD66: 0.57050143 | FE66: 1297 | FF66: 34 | FG66: 259 | FH66: 24.98069498 | FI66: 0.265273677 | FJ66: 1223 | FK66: 746 | FL66: 0.6099754702 | FM66: 0.5823356473 | FN66: 0.6369265875 | FO66: 1223 | FP66: 34 | FQ66: 244 | FR66: 25.42622951 | FS66: 0.2521697203 | FT66: 15545 | FU66: 15138 | FV66: 407 | FW66: 335 | FX66: 72 | FY66: 0.8230958231 | FZ66: 0.1769041769 | GQ66: n/a | GR66: n/a | GS66: n/a | GT66: n/a | GU66: n/a | GV66: n/a | GW66: n/a | GX66: n/a | GY66: n/a | GZ66: n/a | HA66: n/a | HB66: n/a | HC66: n/a | HD66: n/a | HE66: n/a | HF66: n/a | HG66: n/a | HH66: n/a | HI66: n/a | HJ66: n/a | HK66: n/a | HL66: n/a | HM66: n/a | HN66: 114 | HO66: 0.01798674661 | HP66: 9693 | HQ66: 8518 | HR66: 1175 | HS66: 0.1212215001
A67: CCG - Coastal West Sussex | C67: n/a | D67: n/a | E67: n/a | G67: n/a | H67: n/a | I67: n/a | J67: Coastal West Sussex | K67: n/a | L67: 460050 | M67: 462250 | N67: 465500 | O67: 468900 | P67: 472100 | Q67: 474150 | R67: 477450 | S67: 480050 | T67: 483500 | U67: 487050 | V67: 22500 | W67: 22550 | X67: 22850 | Y67: 23450 | Z67: 24000 | AA67: 24500 | AB67: 25050 | AC67: 25500 | AD67: 26150 | AE67: 26300 | AF67: 0.8826078393 | AG67: 0.04155997636 | AH67: 0.0405751428 | AI67: 0.02619657278 | AJ67: 0.005515067954 | AK67: 0.00374236754 | AL67: 0.1173921607 | AM67: 49115 | AN67: 0.6132953273 | AO67: 0.1549221216 | AP67: 0.2317825512 | AQ67: n/a | AR67: n/a | AS67: n/a | AT67: n/a | AU67: n/a | AV67: n/a | AW67: n/a | AX67: n/a | AY67: n/a | AZ67: n/a | BA67: 309 | BB67: 0.0671009772 | BC67: 0.06022951957 | BD67: 0.07469407552 | BE67: n/a | BU67: 11170 | BV67: 3826 | BW67: 0.3425246195 | BX67: 1065 | BY67: n/a | BZ67: 8575 | CA67: 0.04044010149 | CB67: 4350 | CC67: 4315 | CD67: 4420 | CE67: 4155 | CF67: 11415 | CG67: 0.1436058588 | CH67: 11590 | CI67: 0.1380062842 | CJ67: 12195 | CK67: 0.1476979735 | CL67: 11375 | CM67: 0.1396245559 | CN67: 11845 | CO67: 0.1358862856 | CP67: 10605 | CQ67: 0.133 | DE67: 0 | DG67: -0.017 | DH67: 0.017 | DI67: =IF(DG67>$DH$77,"Sig worse than Eng.",(IF(DH67<$DG$77,"Sig better than Eng.","No Sig diff"))) -> Sig better than Eng. | DK67: 0 | DO67: =IF(DM67>$DN$77,"Sig worse than Eng.",(IF(DN67<$DM$77,"Sig better than Eng.","No Sig diff"))) -> Sig better than Eng. | DQ67: 0 | DS67: -0.026 | DT67: 0.026 | DU67: Sig better than Eng. | DW67: 0 | DY67: -0.022 | DZ67: 0.022 | EA67: =IF(DY67>$DZ$77,"Sig worse than Eng.",(IF(DZ67<$DY$77,"Sig better than Eng.","No Sig diff"))) -> Sig better than Eng. | EC67: 0 | EE67: -0.032 | EF67: 0.032 | EG67: =IF(EE67>$EF$77,"Sig worse than Eng.",(IF(EF67<$EE$77,"Sig better than Eng.","No Sig diff"))) -> Sig better than Eng. | EI67: 0 | EK67: -0.032 | EL67: 0.032 | EM67: Sig better than Eng. | EN67: 0 | ET67: 3697 | EU67: 541 | EV67: 0.1463348661 | EW67: 0.1133348661 | EX67: 0.1793348661 | EY67: Sig better than Eng. | EZ67: 5155 | FA67: 2669 | FB67: 0.5177497575 | FC67: 0.5041011247 | FD67: 0.5313719561 | FE67: 5155 | FF67: 34 | FG67: 1031 | FH67: 23.42870999 | FI67: 0.3109202944 | FJ67: 5159 | FK67: 2997 | FL67: 0.5809265362 | FM67: 0.567407293 | FN67: 0.5943253511 | FO67: 5159 | FP67: 34 | FQ67: 1031 | FR67: 24.20368574 | FS67: 0.2881268899 | GQ67: n/a | GR67: n/a | GS67: n/a | GT67: n/a | GU67: n/a | GV67: n/a | GW67: n/a | GX67: n/a | GY67: n/a | GZ67: n/a | HA67: n/a | HB67: n/a | HC67: n/a | HD67: n/a | HE67: n/a | HF67: n/a | HG67: n/a | HH67: n/a | HI67: n/a | HJ67: n/a | HK67: n/a | HL67: n/a | HM67: n/a | HN67: 470 | HO67: 0.01853020028 | HP67: 39541 | HQ67: 35196 | HR67: 4345 | HS67: 0.1098859412
A68: CCG - Crawley | C68: n/a | D68: n/a | E68: n/a | G68: n/a | H68: n/a | I68: n/a | J68: Crawley | K68: n/a | L68: 98900 | M68: 99700 | N68: 100750 | O68: 101600 | P68: 102850 | Q68: 103850 | R68: 105500 | S68: 107050 | T68: 108300 | U68: 108950 | V68: 6300 | W68: 6300 | X68: 6350 | Y68: 6600 | Z68: 6950 | AA68: 7200 | AB68: 7750 | AC68: 8150 | AD68: 8300 | AE68: 8350 | AF68: 0.6220570012 | AG68: 0.06567534077 | AH68: 0.07682775713 | AI68: 0.1734820322 | AJ68: 0.04894671623 | AK68: 0.01301115242 | AL68: 0.3779429988 | AM68: 14546 | AN68: 0.4909940877 | AO68: 0.3152756772 | AP68: 0.1937302351 | AQ68: n/a | AR68: n/a | AS68: n/a | AT68: n/a | AU68: n/a | AV68: n/a | AW68: n/a | AX68: n/a | AY68: n/a | AZ68: n/a | BA68: 128 | BB68: 0.07896360271 | BC68: 0.06680852069 | BD68: 0.09310951771 | BE68: n/a | BU68: 3293 | BV68: 1363 | BW68: 0.4139082903 | BX68: 248 | BY68: n/a | BZ68: 2084 | CA68: 0.04877477941 | CB68: 1650 | CC68: 1650 | CD68: 1580 | CE68: 1475 | CF68: 3775 | CG68: 0.19 | CH68: 3775 | CI68: 0.187 | CJ68: 4090 | CK68: 0.195 | CL68: 4165 | CM68: 0.195 | CN68: 4165 | CO68: 0.19 | CP68: 3895 | CQ68: 0.174 | DE68: 0 | DG68: -0.017 | DH68: 0.017 | DI68: Sig better than Eng. | DK68: 0 | DO68: Sig better than Eng. | DQ68: 0 | DS68: -0.026 | DT68: 0.026 | DU68: =IF(DS68>$DT$77,"Sig worse than Eng.",(IF(DT68<$DS$77,"Sig better than Eng.","No Sig diff"))) -> Sig better than Eng. | DW68: 0 | DY68: -0.022 | DZ68: 0.022 | EA68: Sig better than Eng. | EC68: 0 | EE68: -0.032 | EF68: 0.032 | EG68: Sig better than Eng. | EI68: 0 | EK68: -0.032 | EL68: 0.032 | EM68: =IF(EK68>$EL$77,"Sig worse than Eng.",(IF(EL68<$EK$77,"Sig better than Eng.","No Sig diff"))) -> Sig better than Eng. | EN68: 0 | ES68: =IF(EQ68>$ER$77,"Sig worse than Eng.",(IF(ER68<$EQ$77,"Sig better than Eng.","No Sig diff"))) ->  | ET68: 1075 | EU68: 210 | EV68: 0.1953488372 | EW68: 0.1623488372 | EX68: 0.2283488372 | EY68: =IF(EW68>$EX$77,"Sig worse than Eng.",(IF(EX68<$EW$77,"Sig better than Eng.","No Sig diff"))) -> No Sig diff | EZ68: 1440 | FA68: 693 | FB68: 0.48125 | FC68: 0.4555275623 | FD68: 0.5070722096 | FE68: 1440 | FF68: 34 | FG68: 288 | FH68: 22.37847222 | FI68: 0.3418096405 | FJ68: 1518 | FK68: 841 | FL68: 0.5540184453 | FM68: 0.5289079581 | FN68: 0.578856224 | FO68: 1518 | FP68: 34 | FQ68: 303 | FR68: 22.61056106 | FS68: 0.3349834983 | GQ68: n/a | GR68: n/a | GS68: n/a | GT68: n/a | GU68: n/a | GV68: n/a | GW68: n/a | GX68: n/a | GY68: n/a | GZ68: n/a | HA68: n/a | HB68: n/a | HC68: n/a | HD68: n/a | HE68: n/a | HF68: n/a | HG68: n/a | HH68: n/a | HI68: n/a | HJ68: n/a | HK68: n/a | HL68: n/a | HM68: n/a | HN68: 158 | HO68: 0.01960297767 | HP68: 12900 | HQ68: 11233 | HR68: 1667 | HS68: 0.1292248062
A69: CCG - Horsham and Mid Sussex | C69: n/a | D69: n/a | E69: n/a | G69: n/a | H69: n/a | I69: n/a | J69: Horsham and Mid Sussex | K69: n/a | L69: 207050 | M69: 208850 | N69: 211150 | O69: 213800 | P69: 216050 | Q69: 218050 | R69: 220250 | S69: 221850 | T69: 223350 | U69: 225300 | V69: 12000 | W69: 11900 | X69: 12100 | Y69: 12550 | Z69: 12700 | AA69: 12750 | AB69: 12900 | AC69: 13050 | AD69: 13200 | AE69: 13200 | AF69: 0.8760552571 | AG69: 0.03760552571 | AH69: 0.04221028396 | AI69: 0.03722179586 | AJ69: 0.005372217959 | AK69: 0.001534919417 | AL69: 0.1239447429 | AM69: 25861 | AN69: 0.7111480608 | AO69: 0.1271412552 | AP69: 0.161710684 | AQ69: n/a | AR69: n/a | AS69: n/a | AT69: n/a | AU69: n/a | AV69: n/a | AW69: n/a | AX69: n/a | AY69: n/a | AZ69: n/a | BA69: 123 | BB69: 0.05382932166 | BC69: 0.04530228763 | BD69: 0.0638540097 | BE69: n/a | BU69: 4174 | BV69: 1090 | BW69: 0.2611403929 | BX69: 382 | BY69: n/a | BZ69: 2313 | CA69: 0.02546094997 | CB69: 1205 | CC69: 1240 | CD69: 1270 | CE69: 1151 | CF69: 3485 | CG69: 0.08385631535 | CH69: 3545 | CI69: 0.07714053624 | CJ69: 3655 | CK69: 0.08629879765 | CL69: 3290 | CM69: 0.08373435513 | CN69: 3450 | CO69: 0.0816743416 | CP69: 3180 | CQ69: 0.078 | DE69: 0 | DG69: -0.017 | DH69: 0.017 | DI69: Sig better than Eng. | DK69: 0 | DO69: Sig better than Eng. | DQ69: 0 | DS69: -0.026 | DT69: 0.026 | DU69: Sig better than Eng. | DW69: 0 | DY69: -0.022 | DZ69: 0.022 | EA69: Sig better than Eng. | EC69: 0 | EE69: -0.032 | EF69: 0.032 | EG69: Sig better than Eng. | EI69: 0 | EK69: -0.032 | EL69: 0.032 | EM69: Sig better than Eng. | EN69: 0 | ET69: 1894 | EU69: 228 | EV69: 0.1203801478 | EW69: 0.08738014784 | EX69: 0.1533801478 | EY69: Sig better than Eng. | EZ69: 2517 | FA69: 1446 | FB69: 0.5744934446 | FC69: 0.5550789837 | FD69: 0.5936808674 | FE69: 2517 | FF69: 34 | FG69: 503 | FH69: 25.26242545 | FI69: 0.2569874868 | FJ69: 2577 | FK69: 1627 | FL69: 0.6313542879 | FM69: 0.6125450803 | FN69: 0.6497724664 | FO69: 2577 | FP69: 34 | FQ69: 515 | FR69: 26.02135922 | FS69: 0.2346659052 | GQ69: n/a | GR69: n/a | GS69: n/a | GT69: n/a | GU69: n/a | GV69: n/a | GW69: n/a | GX69: n/a | GY69: n/a | GZ69: n/a | HA69: n/a | HB69: n/a | HC69: n/a | HD69: n/a | HE69: n/a | HF69: n/a | HG69: n/a | HH69: n/a | HI69: n/a | HJ69: n/a | HK69: n/a | HL69: n/a | HM69: n/a | HN69: 225 | HO69: 0.01729305972 | HP69: 20507 | HQ69: 19210 | HR69: 1297 | HS69: 0.06324669625
A70: Education Partnership Area - A | C70: n/a | D70: n/a | E70: n/a | G70: n/a | H70: n/a | I70: Education Partnership Area - A | J70: Coastal West Sussex | K70: n/a | L70: 182350 | M70: 183400 | N70: 184450 | O70: 185750 | P70: 187300 | Q70: 188050 | R70: 189050 | S70: 189700 | T70: 191200 | U70: 192950 | V70: 8300 | W70: 8350 | X70: 8450 | Y70: 8700 | Z70: 8950 | AA70: 9250 | AB70: 9350 | AC70: 9450 | AD70: 9800 | AE70: 9950 | AF70: 0.8860489883 | AG70: 0.0548455804 | AH70: 0.02822151225 | AI70: 0.02236421725 | AJ70: 0.006389776358 | AK70: 0.003194888179 | AL70: 0.1139510117 | AM70: 18292 | AN70: 0.5823310737 | AO70: 0.1690903127 | AP70: 0.2485786136 | AQ70: n/a | AR70: n/a | AS70: n/a | AT70: n/a | AU70: n/a | AV70: n/a | AW70: n/a | AX70: n/a | AY70: n/a | AZ70: 98 | BA70: 119 | BB70: 0.06975381008 | BC70: 0.05860774926 | BD70: 0.08283311801 | BE70: n/a | BU70: 4045 | BV70: 1341 | BW70: 0.3315203956 | BX70: 359 | BY70: n/a | BZ70: 3092 | CA70: 0.03711305559 | CB70: 1485 | CC70: 1480 | CD70: 1620 | CE70: 1535 | CF70: n/a | CG70: n/a | CH70: n/a | CI70: n/a | CJ70: n/a | CK70: n/a | CL70: n/a | CM70: n/a | CN70: 4165 | CO70: 0.1377146631 | CP70: 3895 | CQ70: 0.128498936 | DE70: 0 | DG70: -0.017 | DH70: 0.017 | DI70: Sig better than Eng. | DK70: 0 | DO70: Sig better than Eng. | DQ70: 0 | DS70: -0.026 | DT70: 0.026 | DU70: Sig better than Eng. | DV70: 1764 | DW70: 166 | DX70: 0.09410430839 | DY70: 0.07210430839 | DZ70: 0.1161043084 | EA70: No Sig diff | EC70: 0 | EE70: -0.032 | EF70: 0.032 | EG70: Sig better than Eng. | EI70: 0 | EK70: -0.032 | EL70: 0.032 | EM70: Sig better than Eng. | EO70: 0 | EQ70: -0.033 | ER70: 0.033 | ES70: Sig better than Eng. | ET70: 1346 | EU70: 195 | EV70: 0.1448736999 | EW70: 0.1118736999 | EX70: 0.1778736999 | EY70: Sig better than Eng. | EZ70: 1955 | FA70: 929 | FB70: 0.4751918159 | FC70: 0.4531256028 | FD70: 0.4973553309 | FE70: 1955 | FF70: 33 | FG70: 391 | FH70: 22.06905371 | FI70: 0.3312407967 | FJ70: 1961 | FK70: 1078 | FL70: 0.5497195309 | FM70: 0.5276234371 | FN70: 0.5716212115 | FO70: 1961 | FP70: 34 | FQ70: 392 | FR70: 22.89030612 | FS70: 0.3267557023 | GQ70: n/a | GR70: n/a | GS70: n/a | GT70: n/a | GU70: n/a | GV70: n/a | GW70: n/a | GX70: n/a | GY70: n/a | GZ70: n/a | HA70: n/a | HB70: n/a | HC70: n/a | HD70: n/a | HE70: n/a | HF70: n/a | HG70: n/a | HH70: n/a | HI70: n/a | HJ70: n/a | HK70: n/a | HL70: n/a | HM70: n/a | HN70: 175 | HO70: 0.01866069524 | HP70: 14691 | HQ70: 13198 | HR70: 1493 | HS70: 0.1016268464
A71: Education Partnership Area - B | C71: n/a | D71: n/a | E71: n/a | G71: n/a | H71: n/a | I71: Education Partnership Area - B | J71: Coastal/Horsham and Mid Sussex | K71: n/a | L71: 263500 | M71: 264550 | N71: 266350 | O71: 268100 | P71: 269550 | Q71: 270700 | R71: 272600 | S71: 274300 | T71: 276200 | U71: 277800 | V71: 13350 | W71: 13350 | X71: 13550 | Y71: 13900 | Z71: 14150 | AA71: 14400 | AB71: 14750 | AC71: 15100 | AD71: 15400 | AE71: 15350 | AF71: 0.8786972416 | AG71: 0.03423064141 | AH71: 0.04785643071 | AI71: 0.02991026919 | AJ71: 0.004985044865 | AK71: 0.004320372217 | AL71: 0.1213027584 | AM71: 28968 | AN71: 0.6281068766 | AO71: 0.1426056338 | AP71: 0.2292874896 | AQ71: n/a | AR71: n/a | AS71: n/a | AT71: n/a | AU71: n/a | AV71: n/a | AW71: n/a | AX71: n/a | AY71: n/a | AZ71: 110 | BA71: 174 | BB71: 0.06345733042 | BC71: 0.05492930353 | BD71: 0.07320681215 | BE71: n/a | BU71: 6808 | BV71: 2392 | BW71: 0.3513513514 | BX71: 672 | BY71: n/a | BZ71: 5313 | CA71: 0.04357561144 | CB71: 2725 | CC71: 2710 | CD71: 2705 | CE71: 2505 | CF71: n/a | CG71: n/a | CH71: n/a | CI71: n/a | CJ71: n/a | CK71: n/a | CL71: n/a | CM71: n/a | CN71: 7045 | CO71: 0.1529858849 | CP71: 6475 | CQ71: 0.1393821978 | DE71: 0 | DG71: -0.017 | DH71: 0.017 | DI71: Sig better than Eng. | DK71: 0 | DO71: Sig better than Eng. | DQ71: 0 | DS71: -0.026 | DT71: 0.026 | DU71: Sig better than Eng. | DV71: 2713 | DW71: 234 | DX71: 0.08625138223 | DY71: 0.06425138223 | DZ71: 0.1082513822 | EA71: No Sig diff | EC71: 0 | EE71: -0.032 | EF71: 0.032 | EG71: Sig better than Eng. | EI71: 0 | EK71: -0.032 | EL71: 0.032 | EM71: Sig better than Eng. | EO71: 0 | EQ71: -0.033 | ER71: 0.033 | ES71: Sig better than Eng. | ET71: 2211 | EU71: 325 | EV71: 0.1469923112 | EW71: 0.1139923112 | EX71: 0.1799923112 | EY71: Sig better than Eng. | EZ71: 3032 | FA71: 1623 | FB71: 0.5352902375 | FC71: 0.517503872 | FD71: 0.5529872926 | FE71: 3032 | FF71: 34 | FG71: 606 | FH71: 24.28877888 | FI71: 0.2856241507 | FJ71: 2971 | FK71: 1768 | FL71: 0.5950858297 | FM71: 0.5773230678 | FN71: 0.61260302 | FO71: 2971 | FP71: 34 | FQ71: 594 | FR71: 25.1010101 | FS71: 0.261734997 | GQ71: n/a | GR71: n/a | GS71: n/a | GT71: n/a | GU71: n/a | GV71: n/a | GW71: n/a | GX71: n/a | GY71: n/a | GZ71: n/a | HA71: n/a | HB71: n/a | HC71: n/a | HD71: n/a | HE71: n/a | HF71: n/a | HG71: n/a | HH71: n/a | HI71: n/a | HJ71: n/a | HK71: n/a | HL71: n/a | HM71: n/a | HN71: 289 | HO71: 0.01922437305 | HP71: 23383 | HQ71: 20621 | HR71: 2762 | HS71: 0.1181200017
A72: Education Partnership Area - C1 | C72: n/a | D72: n/a | E72: n/a | G72: n/a | H72: n/a | I72: Education Partnership Area - C1 | J72: Crawley | K72: n/a | L72: 98900 | M72: 99700 | N72: 100750 | O72: 101600 | P72: 102850 | Q72: 103850 | R72: 105500 | S72: 107050 | T72: 108300 | U72: 108950 | V72: 6300 | W72: 6300 | X72: 6350 | Y72: 6600 | Z72: 6950 | AA72: 7200 | AB72: 7750 | AC72: 8150 | AD72: 8300 | AE72: 8350 | AF72: 0.6220570012 | AG72: 0.06567534077 | AH72: 0.07682775713 | AI72: 0.1734820322 | AJ72: 0.04894671623 | AK72: 0.01301115242 | AL72: 0.3779429988 | AM72: 14546 | AN72: 0.4909940877 | AO72: 0.3152756772 | AP72: 0.1937302351 | AQ72: n/a | AR72: n/a | AS72: n/a | AT72: n/a | AU72: n/a | AV72: n/a | AW72: n/a | AX72: n/a | AY72: n/a | AZ72: 64 | BA72: 128 | BB72: 0.07896360271 | BC72: 0.06680852069 | BD72: 0.09310951771 | BE72: n/a | BU72: 3293 | BV72: 1363 | BW72: 0.4139082903 | BX72: 248 | BY72: n/a | BZ72: 2084 | CA72: 0.04877477941 | CB72: 1650 | CC72: 1650 | CD72: 1580 | CE72: 1475 | CF72: n/a | CG72: n/a | CH72: n/a | CI72: n/a | CJ72: n/a | CK72: n/a | CL72: n/a | CM72: n/a | CN72: 4170 | CO72: 0.1900205058 | CP72: 3890 | CQ72: 0.1739713775 | DE72: 0 | DG72: -0.017 | DH72: 0.017 | DI72: Sig better than Eng. | DK72: 0 | DO72: Sig better than Eng. | DQ72: 0 | DS72: -0.026 | DT72: 0.026 | DU72: Sig better than Eng. | DV72: 1189 | DW72: 111 | DX72: 0.09335576114 | DY72: 0.07135576114 | DZ72: 0.1153557611 | EA72: No Sig diff | EC72: 0 | EE72: -0.032 | EF72: 0.032 | EG72: Sig better than Eng. | EI72: 0 | EK72: -0.032 | EL72: 0.032 | EM72: Sig better than Eng. | EO72: 0 | EQ72: -0.033 | ER72: 0.033 | ES72: Sig better than Eng. | ET72: 1075 | EU72: 210 | EV72: 0.1953488372 | EW72: 0.1623488372 | EX72: 0.2283488372 | EY72: No Sig diff | EZ72: 1440 | FA72: 693 | FB72: 0.48125 | FC72: 0.4555275623 | FD72: 0.5070722096 | FE72: 1440 | FF72: 34 | FG72: 288 | FH72: 22.37847222 | FI72: 0.3418096405 | FJ72: 1518 | FK72: 841 | FL72: 0.5540184453 | FM72: 0.5289079581 | FN72: 0.578856224 | FO72: 1518 | FP72: 34 | FQ72: 303 | FR72: 22.61056106 | FS72: 0.3349834983 | GQ72: n/a | GR72: n/a | GS72: n/a | GT72: n/a | GU72: n/a | GV72: n/a | GW72: n/a | GX72: n/a | GY72: n/a | GZ72: n/a | HA72: n/a | HB72: n/a | HC72: n/a | HD72: n/a | HE72: n/a | HF72: n/a | HG72: n/a | HH72: n/a | HI72: n/a | HJ72: n/a | HK72: n/a | HL72: n/a | HM72: n/a | HN72: 158 | HO72: 0.01960297767 | HP72: 12900 | HQ72: 11233 | HR72: 1667 | HS72: 0.1292248062
A73: Education Partnership Area - C2 | C73: n/a | D73: n/a | E73: n/a | G73: n/a | H73: n/a | I73: Education Partnership Area - C2 | J73: Horsham and Mid Sussex | K73: n/a | L73: 129450 | M73: 130500 | N73: 132050 | O73: 134000 | P73: 135750 | Q73: 137200 | R73: 138900 | S73: 140200 | T73: 141150 | U73: 142750 | V73: 7400 | W73: 7450 | X73: 7650 | Y73: 8000 | Z73: 8150 | AA73: 8150 | AB73: 8250 | AC73: 8350 | AD73: 8500 | AE73: 8550 | AF73: 0.8747753146 | AG73: 0.03894547633 | AH73: 0.04014379868 | AI73: 0.03954463751 | AJ73: 0.005392450569 | AK73: 0.0005991611744 | AL73: 0.1252246854 | AM73: 16498 | AN73: 0.7104497515 | AO73: 0.1245605528 | AP73: 0.1649896957 | AQ73: n/a | AR73: n/a | AS73: n/a | AT73: n/a | AU73: n/a | AV73: n/a | AW73: n/a | AX73: n/a | AY73: n/a | AZ73: 36 | BA73: 74 | BB73: 0.04979811575 | BC73: 0.03985242282 | BD73: 0.06206544094 | BE73: n/a | BU73: 2645 | BV73: 656 | BW73: 0.2480151229 | BX73: 222 | BY73: n/a | BZ73: 1360 | CA73: 0.02368966538 | CB73: 740 | CC73: 770 | CD73: 785 | CE73: 691 | CF73: n/a | CG73: n/a | CH73: n/a | CI73: n/a | CJ73: n/a | CK73: n/a | CL73: n/a | CM73: n/a | CN73: 2105 | CO73: 0.08295566502 | CP73: 1930 | CQ73: 0.0758051846 | DE73: 0 | DG73: -0.017 | DH73: 0.017 | DI73: Sig better than Eng. | DK73: 0 | DO73: Sig better than Eng. | DQ73: 0 | DS73: -0.026 | DT73: 0.026 | DU73: Sig better than Eng. | DV73: 1303 | DW73: 90 | DX73: 0.06907137375 | DY73: 0.04707137375 | DZ73: 0.09107137375 | EA73: Sig better than Eng. | EC73: 0 | EE73: -0.032 | EF73: 0.032 | EG73: Sig better than Eng. | EI73: 0 | EK73: -0.032 | EL73: 0.032 | EM73: Sig better than Eng. | EO73: 0 | EQ73: -0.033 | ER73: 0.033 | ES73: Sig better than Eng. | ET73: 1154 | EU73: 133 | EV73: 0.1152512998 | EW73: 0.08225129983 | EX73: 0.1482512998 | EY73: Sig better than Eng. | EZ73: 1637 | FA73: 947 | FB73: 0.5784972511 | FC73: 0.554420048 | FD73: 0.6022069062 | FE73: 1637 | FF73: 34 | FG73: 327 | FH73: 25.43119266 | FI73: 0.2520237453 | FJ73: 1614 | FK73: 1025 | FL73: 0.6350681537 | FM73: 0.6112869712 | FN73: 0.6582079151 | FO73: 1614 | FP73: 34 | FQ73: 322 | FR73: 26.60248447 | FS73: 0.2175739861 | GQ73: n/a | GR73: n/a | GS73: n/a | GT73: n/a | GU73: n/a | GV73: n/a | GW73: n/a | GX73: n/a | GY73: n/a | GZ73: n/a | HA73: n/a | HB73: n/a | HC73: n/a | HD73: n/a | HE73: n/a | HF73: n/a | HG73: n/a | HH73: n/a | HI73: n/a | HJ73: n/a | HK73: n/a | HL73: n/a | HM73: n/a | HN73: 140 | HO73: 0.01679462572 | HP73: 13214 | HQ73: 12411 | HR73: 803 | HS73: 0.06076888149
A74: Education Partnership Area - C3 | C74: n/a | D74: n/a | E74: n/a | G74: n/a | H74: n/a | I74: Education Partnership Area - C3 | J74: Coastal/Horsham and Mid Sussex | K74: n/a | L74: 91850 | M74: 92650 | N74: 93800 | O74: 94800 | P74: 95550 | Q74: 96250 | R74: 97100 | S74: 97700 | T74: 98250 | U74: 98900 | V74: 5450 | W74: 5300 | X74: 5250 | Y74: 5450 | Z74: 5450 | AA74: 5500 | AB74: 5550 | AC74: 5650 | AD74: 5650 | AE74: 5650 | AF74: 0.884751773 | AG74: 0.03368794326 | AH74: 0.04609929078 | AI74: 0.02836879433 | AJ74: 0.004432624113 | AK74: 0.001773049645 | AL74: 0.115248227 | AM74: 11218 | AN74: 0.7082367623 | AO74: 0.1442324835 | AP74: 0.1475307541 | AQ74: n/a | AR74: n/a | AS74: n/a | AT74: n/a | AU74: n/a | AV74: n/a | AW74: n/a | AX74: n/a | AY74: n/a | AZ74: 14 | BA74: 65 | BB74: 0.0679916318 | BC74: 0.05370178666 | BD74: 0.08573942792 | BE74: n/a | BU74: 1846 | BV74: 527 | BW74: 0.2854821235 | BX74: 194 | BY74: n/a | BZ74: 1123 | CA74: 0.02790824822 | CB74: 605 | CC74: 595 | CD74: 580 | CE74: 575 | CF74: n/a | CG74: n/a | CH74: n/a | CI74: n/a | CJ74: n/a | CK74: n/a | CL74: n/a | CM74: n/a | CN74: 1575 | CO74: 0.08779264214 | CP74: 1455 | CQ74: 0.0812849162 | DE74: 0 | DG74: -0.017 | DH74: 0.017 | DI74: Sig better than Eng. | DK74: 0 | DO74: Sig better than Eng. | DQ74: 0 | DS74: -0.026 | DT74: 0.026 | DU74: Sig better than Eng. | DV74: 872 | DW74: 65 | DX74: 0.0745412844 | DY74: 0.0525412844 | DZ74: 0.0965412844 | EA74: No Sig diff | EC74: 0 | EE74: -0.032 | EF74: 0.032 | EG74: Sig better than Eng. | EI74: 0 | EK74: -0.032 | EL74: 0.032 | EM74: Sig better than Eng. | EO74: 0 | EQ74: -0.033 | ER74: 0.033 | ES74: Sig better than Eng. | ET74: 880 | EU74: 116 | EV74: 0.1318181818 | EW74: 0.09881818182 | EX74: 0.1648181818 | EY74: Sig better than Eng. | EZ74: 1048 | FA74: 616 | FB74: 0.5877862595 | FC74: 0.5577168758 | FD74: 0.6172144301 | FE74: 1048 | FF74: 34 | FG74: 209 | FH74: 25.28708134 | FI74: 0.2562623135 | FJ74: 1190 | FK74: 753 | FL74: 0.6327731092 | FM74: 0.6049982945 | FN74: 0.6596934681 | FO74: 1190 | FP74: 34 | FQ74: 238 | FR74: 25.20588235 | FS74: 0.258650519 | GQ74: n/a | GR74: n/a | GS74: n/a | GT74: n/a | GU74: n/a | GV74: n/a | GW74: n/a | GX74: n/a | GY74: n/a | GZ74: n/a | HA74: n/a | HB74: n/a | HC74: n/a | HD74: n/a | HE74: n/a | HF74: n/a | HG74: n/a | HH74: n/a | HI74: n/a | HJ74: n/a | HK74: n/a | HL74: n/a | HM74: n/a | HN74: 91 | HO74: 0.01616915423 | HP74: 8760 | HQ74: 8176 | HR74: 584 | HS74: 0.06666666667
A75: West Sussex | C75: n/a | D75: n/a | E75: n/a | G75: n/a | H75: n/a | I75: n/a | J75: n/a | K75: n/a | L75: 766000 | M75: 770800 | N75: 777400 | O75: 784300 | P75: 791000 | Q75: 796000 | R75: 803200 | S75: 808900 | T75: 815100 | U75: 821400 | V75: 40800 | W75: 40700 | X75: 41300 | Y75: 42600 | Z75: 43700 | AA75: 44500 | AB75: 45700 | AC75: 46700 | AD75: 47600 | AE75: 47800 | AF75: 0.8356459073 | AG75: 0.04442293213 | AH75: 0.04743465634 | AI75: 0.05485640529 | AJ75: 0.01290738948 | AK75: 0.004732709476 | AL75: 0.1625255459 | AM75: 89522 | AN75: 0.6216907576 | AO75: 0.1729519001 | AP75: 0.2053573423 | AQ75: 8927 | AR75: 9024 | AS75: 9198 | AT75: 9207 | AU75: 8835 | AV75: =SUM(AV60:AV66) -> 456 | AW75: =SUM(AW60:AW66) -> 399 | AX75: 367 | AY75: 345 | AZ75: 331 | BE75: 714 | BF75: 14471 | BG75: 14675 | BH75: 7032 | BJ75: 92663 | BK75: 163825 | BL75: 93098 | BM75: 55058 | BN75: 53 | BO75: 12250 | BP75: 18695 | BQ75: 7042 | BR75: 5340 | BS75: 5030 | BT75: 4265 | BU75: 18637 | BV75: 6279 | BW75: 0.336910447 | BX75: 1695 | BY75: n/a | BZ75: 12980 | CA75: 0.038 | CB75: 7205 | CC75: 7205 | CD75: 8688 | CE75: =SUM(CE60:CE66) -> 6781 | CF75: 19140 | CG75: 0.139 | CH75: 18490 | CI75: 0.134 | CJ75: 19950 | CK75: 0.143 | CL75: 19345 | CM75: 0.138 | CN75: 19070 | CO75: 0.135 | CP75: 17645 | CQ75: 0.124 | CR75: 8655 | CS75: 345 | CT75: 8310 | CU75: 0.946 | CV75: 3498 | CW75: 4605 | CX75: 0.423 | CY75: 0.552 | DD75: 6935 | DE75: 540.93 | DF75: 0.078 | DG75: 0.072 | DH75: 0.084 | DI75: Sig better than Eng. | DJ75: 7601 | DK75: 7601.08 | DL75: 0.08 | DM75: 0.074 | DN75: 0.086 | DO75: Sig better than Eng. | DP75: 6858 | DQ75: 541.782 | DR75: 0.079 | DS75: 0.073 | DT75: 0.085 | DU75: Sig better than Eng. | DV75: 7939 | DW75: 674.815 | DX75: 0.085 | DY75: 0.079 | DZ75: 0.091 | EA75: Sig better than Eng. | EB75: 7034 | EC75: 1104.338 | ED75: 0.157 | EE75: 0.148 | EF75: 0.166 | EG75: Sig better than Eng. | EH75: 7004 | EI75: 1113.636 | EJ75: 0.159 | EK75: 0.15 | EL75: 0.168 | EM75: Sig better than Eng. | EN75: 6928 | EO75: 1080.768 | EP75: 0.156 | EQ75: 0.147 | ER75: 0.165 | ES75: Sig better than Eng. | ET75: 6804 | EU75: 1000.188 | EV75: 0.147 | EW75: 0.139 | EX75: 0.155 | EY75: Sig better than Eng. | FB75: 0.52 | FF75: 34 | FH75: 23.7 | FI75: 0.304 | FL75: 0.59 | FP75: 34 | FR75: 24.5 | FS75: 0.279 | FT75: 117072 | FU75: 113395 | FV75: 3677 | FW75: 3091 | FX75: 586 | FY75: =FW75/FV75 -> 0.8406309491 | FZ75: =FX75/FV75 -> 0.1593690509 | GA75: 0.8888888889 | GB75: 0.1111111111 | GC75: 0.102655891 | GD75: 0.1201694815 | GE75: 0.9129116993 | GF75: 0.08708830067 | GG75: 0.07954926655 | GH75: 0.09526787276 | GI75: 0.892329488 | GJ75: 0.107670512 | GK75: 0.09933038882 | GL75: 0.1166202293 | GM75: 0.775904104 | GN75: 0.224095896 | GO75: 0.2126641537 | GP75: 0.2359579863 | GQ75: n/a | GR75: n/a | GS75: n/a | GT75: n/a | GU75: n/a | GV75: n/a | GW75: n/a | GX75: n/a | GY75: n/a | GZ75: n/a | HA75: n/a | HB75: n/a | HC75: n/a | HD75: n/a | HE75: n/a | HF75: n/a | HG75: n/a | HH75: n/a | HI75: n/a | HJ75: n/a | HK75: n/a | HL75: n/a | HM75: n/a | HN75: 853 | HO75: 0.01836976419 | HP75: 72948 | HQ75: 65639 | HR75: 7309 | HS75: 0.1001946592
A76: South East | C76: n/a | D76: n/a | E76: n/a | G76: n/a | H76: n/a | I76: n/a | J76: n/a | K76: n/a | L76: 8133100 | M76: 8202900 | N76: 8270900 | O76: 8351400 | P76: 8426400 | Q76: 8490900 | R76: 8577800 | S76: 8652800 | T76: 8724700 | U76: 8792600 | V76: 460400 | W76: 463200 | X76: 471000 | Y76: 485900 | Z76: 500100 | AA76: 510600 | AB76: 525200 | AC76: 536000 | AD76: 545700 | AE76: 547500 | AF76: 0.787977201 | AG76: 0.04948196955 | AH76: 0.05857908973 | AI76: 0.07261785544 | AJ76: 0.02392205677 | AK76: 0.007421827473 | AL76: 0.2095519762 | AM76: 1020973 | AN76: 0.6013107105 | AO76: 0.172319934 | AP76: 0.2263693555 | AQ76: 103669 | AR76: 106434 | AS76: 107132 | AT76: 107858 | AU76: 102190 | AV76: 5317 | AW76: 4994 | AX76: 4521 | AY76: 4191 | AZ76: 3686 | BE76: n/a | BF76: 167421 | BG76: 162401 | BH76: 85422 | BJ76: 1041021 | BK76: 1860927 | BL76: 1044637 | BM76: 607685 | BN76: 566 | BO76: 138651 | BP76: 216366 | BQ76: 81369 | BU76: 215348 | BV76: 78504 | BW76: 0.3645448298 | BX76: 22090 | BY76: n/a | BZ76: 143980 | CA76: 0.04 | CB76: 87780 | CC76: 87380 | CD76: 88800 | CE76: 84810 | CF76: 238745 | CG76: 0.156 | CH76: 233325 | CI76: 0.152 | CJ76: 249690 | CK76: 0.16 | CL76: 243950 | CM76: 0.155 | CN76: 239725 | CO76: 0.151 | CP76: 226290 | CQ76: 0.142 | CY76: 0.489 | DD76: 82264 | DE76: 7156.968 | DF76: 0.087 | DG76: 0.085 | DH76: 0.089 | DI76: Sig better than Eng. | DJ76: 83380 | DK76: 83380.082 | DL76: 0.082 | DM76: 0.08 | DN76: 0.084 | DO76: Sig better than Eng. | DP76: 87844 | DQ76: 7291.052 | DR76: 0.083 | DS76: 0.081 | DT76: 0.085 | DU76: Sig better than Eng. | DV76: 89710 | DW76: 7087.09 | DX76: 0.079 | DY76: 0.077 | DZ76: 0.081 | EA76: Sig better than Eng. | EB76: 78560 | EC76: 13040.96 | ED76: 0.166 | EE76: 0.163 | EF76: 0.169 | EG76: Sig better than Eng. | EH76: 76553 | EI76: 12707.798 | EJ76: 0.166 | EK76: 0.163 | EL76: 0.169 | EM76: Sig better than Eng. | EN76: 76433 | EO76: 12611.445 | EP76: 0.165 | EQ76: 0.162 | ER76: 0.168 | ES76: Sig better than Eng. | ET76: 76191 | EU76: 12190.56 | EV76: 0.16 | EW76: 0.157 | EX76: 0.163 | EY76: Sig better than Eng. | FB76: 0.54 | FF76: 34 | FH76: 23.4 | FI76: 0.311 | FL76: 0.64 | FP76: 34 | FR76: 24.7 | FS76: 0.275 | FT76: 1321193 | FU76: 1269063 | FV76: 52130 | FW76: 43594 | FX76: 8536 | FY76: =FW76/FV76 -> 0.8362555151 | FZ76: =FX76/FV76 -> 0.1637444849 | GQ76: n/a | GR76: n/a | GS76: n/a | GT76: n/a | GU76: n/a | GV76: n/a | GW76: n/a | GX76: n/a | GY76: n/a | GZ76: n/a | HA76: n/a | HB76: n/a | HC76: n/a | HD76: n/a | HE76: n/a | HF76: n/a | HG76: n/a | HH76: n/a | HI76: n/a | HJ76: n/a | HK76: n/a | HL76: n/a | HM76: n/a | HN76: 10296 | HO76: 0.01929152005 | HP76: 838584 | HQ76: 748605 | HR76: 89979 | HS76: 0.1072987321
A77: England | C77: n/a | D77: n/a | E77: n/a | G77: n/a | H77: n/a | I77: n/a | J77: n/a | K77: n/a | L77: 50194600 | M77: 50606000 | N77: 50965200 | O77: 51381100 | P77: 51815900 | Q77: 52196400 | R77: 52642500 | S77: 53107200 | T77: 53493700 | U77: 53865800 | V77: 2876000 | W77: 2908000 | X77: 2963100 | Y77: 3049000 | Z77: 3142700 | AA77: 3211900 | AB77: 3280500 | AC77: 3328700 | AD77: 3393300 | AE77: 3414100 | AF77: 0.7071644894 | AG77: 0.0523828896 | AH77: 0.0648631138 | AI77: 0.108118248 | AJ77: 0.05283942805 | AK77: 0.0146303244 | AL77: 0.2901595624 | AM77: 6286051 | AN77: 0.5524967901 | AO77: 0.214469784 | AP77: 0.2330334259 | AQ77: 671058 | AR77: 687006 | AS77: 688120 | AT77: 694241 | AU77: 664517 | AV77: 40359 | AW77: 37844 | AX77: 34025 | AY77: 31566 | AZ77: 27213 | BE77: n/a | BF77: 1064130 | BG77: 957255 | BH77: 566275 | BJ77: 6408564 | BK77: 11437443 | BL77: 6423941 | BM77: 3373005 | BN77: 2885 | BO77: 890780 | BP77: 1573255 | BQ77: 584016 | BU77: 1564681 | BV77: 634019 | BW77: 0.4052065565 | BX77: 151744 | BY77: n/a | BZ77: 1249560 | CA77: 0.057 | CB77: 724870 | CC77: 721690 | CD77: 731670 | CE77: 700500 | CF77: 2141960 | CG77: 0.224 | CH77: 2068970 | CI77: 0.216 | CJ77: 2131350 | CK77: 0.219 | CL77: 2066320 | CM77: 0.211 | CN77: 2026465 | CO77: 0.206 | CP77: 1910205 | CQ77: 0.192 | CY77: 0.471 | DD77: 526499 | DE77: 51596.902 | DF77: 0.098 | DG77: 0.097 | DH77: 0.099 | DJ77: 540228 | DK77: 540228.094 | DL77: 0.094 | DM77: 0.093 | DN77: 0.095 | DP77: 565662 | DQ77: 53737.89 | DR77: 0.095 | DS77: 0.094 | DT77: 0.096 | DV77: 586332 | DW77: 54528.876 | DX77: 0.093 | DY77: 0.092 | DZ77: 0.094 | EB77: 499867 | EC77: 93475.129 | ED77: 0.187 | EE77: 0.186 | EF77: 0.188 | EH77: 464334 | EI77: 88223.46 | EJ77: 0.19 | EK77: 0.189 | EL77: 0.191 | EN77: 491118 | EO77: 94294.656 | EP77: 0.192 | EQ77: 0.191 | ER77: 0.193 | ET77: 487817 | EU77: 92197.413 | EV77: 0.189 | EW77: 0.188 | EX77: 0.19 | FB77: 0.52 | FF77: 34 | FH77: 21.6 | FI77: 0.366 | FL77: 0.6 | FP77: 34 | FR77: 22.5 | FS77: 0.339 | FT77: 8015990 | FU77: 7549840 | FV77: 466150 | FW77: 390060 | FX77: 76090 | FY77: =FW77/FV77 -> 0.8367692803 | FZ77: =FX77/FV77 -> 0.1632307197 | GQ77: n/a | GR77: n/a | GS77: n/a | GT77: n/a | GU77: n/a | GV77: n/a | GW77: n/a | GX77: n/a | GY77: n/a | GZ77: n/a | HA77: n/a | HB77: n/a | HC77: n/a | HD77: n/a | HE77: n/a | HF77: n/a | HG77: n/a | HH77: n/a | HI77: n/a | HJ77: n/a | HK77: n/a | HL77: n/a | HM77: n/a | HN77: 70922 | HO77: 0.02138868742 | HP77: 5223191 | HQ77: 4482036 | HR77: 741155 | HS77: 0.1418969745
